Workbook

Sheet Topics
A1: Descriptive Statistics: Tabular, Graphical and Numerical summaries of data.
A3: Chapter 2: Descriptive Statistics: Tabular and Graphical summaries of data.
A5: Chapter 3: Descriptive Statistics: Numerical summaries of data.
A7: Why? Because it is hard to see patterns and trends when you are looking at Raw Data! Our Goal is to create useful information from the raw data so that we can see patterns and trends. This will help in Decision Making.

Sheet Data
A1: Sample of 200 sales from www.boomerangs.com. Use Descriptive Statistics to reveal patterns in raw data.
A3: No. | B3: Date (2010) | C3: Coupon | D3: Payment Method | E3: Region | F3: Price | G3: Units | H3: Amount of Transaction (Revenue) | I3: Product (Boomerang Name) | J3: Customer Age | K3: Range (Flight out meters)
A4: 1 | B4: 2010-05-22 | C4: Coupon | D4: Mastercard | E4: West | F4: 22.95 | G4: 2 | H4: 45.9 | I4: Carlota | J4: 21 | K4: 20
A5: 2 | B5: 2010-06-29 | C5: Coupon | D5: Mastercard | E5: West | F5: 19.95 | G5: 1 | H5: 19.95 | I5: Yanaki | J5: 57 | K5: 25
A6: 3 | B6: 2010-11-05 | C6: No Coupon | D6: Mastercard | E6: East | F6: 21.95 | G6: 1 | H6: 21.95 | I6: Aspen | J6: 25 | K6: 22
A7: 4 | B7: 2010-08-31 | C7: No Coupon | D7: American Express | E7: West | F7: 19.95 | G7: 1 | H7: 19.95 | I7: Yanaki | J7: 38 | K7: 25
A8: 5 | B8: 2010-05-30 | C8: Coupon | D8: Visa | E8: West | F8: 19.95 | G8: 4 | H8: 79.8 | I8: Yanaki | J8: 22 | K8: 25
A9: 6 | B9: 2010-10-05 | C9: Coupon | D9: PayPal | E9: South | F9: 19.95 | G9: 4 | H9: 79.8 | I9: Yanaki | J9: 29 | K9: 25
A10: 7 | B10: 2010-03-22 | C10: Coupon | D10: Visa | E10: West | F10: 19.95 | G10: 3 | H10: 59.85 | I10: Yanaki | J10: 18 | K10: 25
A11: 8 | B11: 2010-06-14 | C11: No Coupon | D11: Discover | E11: West | F11: 19.95 | G11: 7 | H11: 139.65 | I11: Yanaki | J11: 64 | K11: 25
A12: 9 | B12: 2010-05-09 | C12: No Coupon | D12: American Express | E12: West | F12: 19.95 | G12: 6 | H12: 119.7 | I12: Yanaki | J12: 27 | K12: 25
A13: 10 | B13: 2010-08-28 | C13: No Coupon | D13: Visa | E13: West | F13: 21.95 | G13: 2 | H13: 43.9 | I13: Aspen | J13: 22 | K13: 22
A14: 11 | B14: 2010-11-30 | C14: Coupon | D14: PayPal | E14: Mid West | F14: 21.95 | G14: 2 | H14: 43.9 | I14: Aspen | J14: 39 | K14: 22
A15: 12 | B15: 2010-09-13 | C15: No Coupon | D15: Mastercard | E15: Mid West | F15: 19.95 | G15: 5 | H15: 99.75 | I15: Yanaki | J15: 61 | K15: 25
A16: 13 | B16: 2010-10-23 | C16: No Coupon | D16: Visa | E16: Mid West | F16: 22.95 | G16: 5 | H16: 114.75 | I16: Carlota | J16: 18 | K16: 20
A17: 14 | B17: 2010-09-19 | C17: No Coupon | D17: PayPal | E17: West | F17: 22.95 | G17: 4 | H17: 91.8 | I17: Carlota | J17: 22 | K17: 20
A18: 15 | B18: 2010-09-20 | C18: No Coupon | D18: American Express | E18: Mid West | F18: 22.95 | G18: 5 | H18: 114.75 | I18: Carlota | J18: 52 | K18: 20
A19: 16 | B19: 2010-01-18 | C19: Coupon | D19: Visa | E19: West | F19: 22.95 | G19: 1 | H19: 22.95 | I19: Carlota | J19: 22 | K19: 20
A20: 17 | B20: 2010-07-28 | C20: No Coupon | D20: Discover | E20: West | F20: 24.95 | G20: 5 | H20: 124.75 | I20: Sunset | J20: 18 | K20: 35
A21: 18 | B21: 2010-06-06 | C21: No Coupon | D21: PayPal | E21: South | F21: 19.95 | G21: 1 | H21: 19.95 | I21: Yanaki | J21: 55 | K21: 25
A22: 19 | B22: 2010-01-30 | C22: No Coupon | D22: PayPal | E22: East | F22: 21.95 | G22: 4 | H22: 87.8 | I22: Aspen | J22: 20 | K22: 22
A23: 20 | B23: 2010-10-09 | C23: Coupon | D23: PayPal | E23: Mid West | F23: 22.95 | G23: 1 | H23: 22.95 | I23: Carlota | J23: 42 | K23: 20
A24: 21 | B24: 2010-07-04 | C24: No Coupon | D24: PayPal | E24: South | F24: 29.95 | G24: 10 | H24: 299.5 | I24: Delicate Arch | J24: 30 | K24: 45
A25: 22 | B25: 2010-11-08 | C25: Coupon | D25: Visa | E25: Mid West | F25: 19.95 | G25: 1 | H25: 19.95 | I25: Yanaki | J25: 64 | K25: 25
A26: 23 | B26: 2010-06-09 | C26: Coupon | D26: PayPal | E26: Mid West | F26: 19.95 | G26: 5 | H26: 99.75 | I26: Yanaki | J26: 63 | K26: 25
A27: 24 | B27: 2010-03-17 | C27: Coupon | D27: Mastercard | E27: South | F27: 19.95 | G27: 2 | H27: 39.9 | I27: Yanaki | J27: 41 | K27: 25
A28: 25 | B28: 2010-04-07 | C28: No Coupon | D28: Visa | E28: East | F28: 21.95 | G28: 3 | H28: 65.85 | I28: Aspen | J28: 21 | K28: 22
A29: 26 | B29: 2010-01-05 | C29: No Coupon | D29: PayPal | E29: East | F29: 24.95 | G29: 1 | H29: 24.95 | I29: Sunset | J29: 63 | K29: 35
A30: 27 | B30: 2010-07-22 | C30: No Coupon | D30: American Express | E30: West | F30: 21.95 | G30: 1 | H30: 21.95 | I30: Aspen | J30: 54 | K30: 22
A31: 28 | B31: 2010-11-12 | C31: No Coupon | D31: American Express | E31: West | F31: 19.95 | G31: 1 | H31: 19.95 | I31: Yanaki | J31: 18 | K31: 25
A32: 29 | B32: 2010-05-11 | C32: No Coupon | D32: Discover | E32: West | F32: 22.95 | G32: 4 | H32: 91.8 | I32: Carlota | J32: 26 | K32: 20
A33: 30 | B33: 2010-04-14 | C33: No Coupon | D33: PayPal | E33: Mid West | F33: 21.95 | G33: 3 | H33: 65.85 | I33: Aspen | J33: 59 | K33: 22
A34: 31 | B34: 2010-08-11 | C34: No Coupon | D34: Discover | E34: West | F34: 19.95 | G34: 2 | H34: 39.9 | I34: Yanaki | J34: 30 | K34: 25
A35: 32 | B35: 2010-11-14 | C35: No Coupon | D35: Visa | E35: West | F35: 21.95 | G35: 2 | H35: 43.9 | I35: Aspen | J35: 64 | K35: 22
A36: 33 | B36: 2010-01-21 | C36: No Coupon | D36: PayPal | E36: West | F36: 21.95 | G36: 3 | H36: 65.85 | I36: Aspen | J36: 30 | K36: 22
A37: 34 | B37: 2010-04-12 | C37: Coupon | D37: American Express | E37: West | F37: 21.95 | G37: 2 | H37: 43.9 | I37: Aspen | J37: 41 | K37: 22
A38: 35 | B38: 2010-06-04 | C38: Coupon | D38: Mastercard | E38: South | F38: 19.95 | G38: 5 | H38: 99.75 | I38: Yanaki | J38: 23 | K38: 25
A39: 36 | B39: 2010-10-19 | C39: Coupon | D39: Visa | E39: West | F39: 29.95 | G39: 1 | H39: 29.95 | I39: Delicate Arch | J39: 52 | K39: 45
A40: 37 | B40: 2010-09-07 | C40: No Coupon | D40: PayPal | E40: West | F40: 21.95 | G40: 3 | H40: 65.85 | I40: Aspen | J40: 18 | K40: 22
A41: 38 | B41: 2010-09-19 | C41: No Coupon | D41: PayPal | E41: West | F41: 22.95 | G41: 1 | H41: 22.95 | I41: Carlota | J41: 32 | K41: 20
A42: 39 | B42: 2010-01-17 | C42: Coupon | D42: American Express | E42: Mid West | F42: 19.95 | G42: 1 | H42: 19.95 | I42: Yanaki | J42: 22 | K42: 25
A43: 40 | B43: 2010-03-15 | C43: Coupon | D43: PayPal | E43: South | F43: 19.95 | G43: 5 | H43: 99.75 | I43: Yanaki | J43: 29 | K43: 25
A44: 41 | B44: 2010-12-16 | C44: No Coupon | D44: Mastercard | E44: Mid West | F44: 24.95 | G44: 5 | H44: 124.75 | I44: Bellen | J44: 25 | K44: 30
A45: 42 | B45: 2010-07-08 | C45: No Coupon | D45: PayPal | E45: West | F45: 21.95 | G45: 1 | H45: 21.95 | I45: Aspen | J45: 63 | K45: 22
A46: 43 | B46: 2010-05-13 | C46: No Coupon | D46: Mastercard | E46: Mid West | F46: 24.95 | G46: 7 | H46: 174.65 | I46: Sunset | J46: 26 | K46: 35
A47: 44 | B47: 2010-03-03 | C47: Coupon | D47: Discover | E47: West | F47: 29.95 | G47: 1 | H47: 29.95 | I47: Delicate Arch | J47: 31 | K47: 45
A48: 45 | B48: 2010-04-30 | C48: No Coupon | D48: PayPal | E48: Mid West | F48: 29.95 | G48: 5 | H48: 149.75 | I48: Delicate Arch | J48: 23 | K48: 45
A49: 46 | B49: 2010-07-11 | C49: Coupon | D49: PayPal | E49: Mid West | F49: 29.95 | G49: 1 | H49: 29.95 | I49: Delicate Arch | J49: 42 | K49: 45
A50: 47 | B50: 2010-03-22 | C50: Coupon | D50: Visa | E50: East | F50: 22.95 | G50: 2 | H50: 45.9 | I50: Carlota | J50: 28 | K50: 20
A51: 48 | B51: 2010-08-27 | C51: No Coupon | D51: Visa | E51: West | F51: 22.95 | G51: 7 | H51: 160.65 | I51: Carlota | J51: 23 | K51: 20
A52: 49 | B52: 2010-11-16 | C52: No Coupon | D52: Mastercard | E52: Mid West | F52: 22.95 | G52: 7 | H52: 160.65 | I52: Carlota | J52: 19 | K52: 20
A53: 50 | B53: 2010-01-26 | C53: Coupon | D53: Visa | E53: West | F53: 19.95 | G53: 6 | H53: 119.7 | I53: Yanaki | J53: 37 | K53: 25
A54: 51 | B54: 2010-05-06 | C54: No Coupon | D54: Mastercard | E54: East | F54: 21.95 | G54: 2 | H54: 43.9 | I54: Aspen | J54: 38 | K54: 22
A55: 52 | B55: 2010-03-18 | C55: Coupon | D55: Mastercard | E55: Mid West | F55: 19.95 | G55: 6 | H55: 119.7 | I55: Yanaki | J55: 50 | K55: 25
A56: 53 | B56: 2010-04-16 | C56: No Coupon | D56: Discover | E56: West | F56: 21.95 | G56: 3 | H56: 65.85 | I56: Aspen | J56: 26 | K56: 22
A57: 54 | B57: 2010-01-05 | C57: No Coupon | D57: PayPal | E57: South | F57: 22.95 | G57: 1 | H57: 22.95 | I57: Carlota | J57: 33 | K57: 20
A58: 55 | B58: 2010-11-09 | C58: No Coupon | D58: PayPal | E58: Mid West | F58: 21.95 | G58: 3 | H58: 65.85 | I58: Aspen | J58: 59 | K58: 22
A59: 56 | B59: 2010-07-29 | C59: No Coupon | D59: Visa | E59: Mid West | F59: 21.95 | G59: 5 | H59: 109.75 | I59: Aspen | J59: 32 | K59: 22
A60: 57 | B60: 2010-12-07 | C60: No Coupon | D60: Visa | E60: Mid West | F60: 22.95 | G60: 5 | H60: 114.75 | I60: Carlota | J60: 27 | K60: 20
A61: 58 | B61: 2010-11-22 | C61: Coupon | D61: American Express | E61: West | F61: 24.95 | G61: 10 | H61: 249.5 | I61: Bellen | J61: 54 | K61: 30
A62: 59 | B62: 2010-01-10 | C62: No Coupon | D62: PayPal | E62: West | F62: 21.95 | G62: 5 | H62: 109.75 | I62: Aspen | J62: 63 | K62: 22
A63: 60 | B63: 2010-06-01 | C63: No Coupon | D63: Visa | E63: East | F63: 22.95 | G63: 5 | H63: 114.75 | I63: Carlota | J63: 48 | K63: 20
A64: 61 | B64: 2010-05-02 | C64: No Coupon | D64: American Express | E64: East | F64: 22.95 | G64: 5 | H64: 114.75 | I64: Carlota | J64: 29 | K64: 20
A65: 62 | B65: 2010-06-13 | C65: Coupon | D65: Visa | E65: West | F65: 29.95 | G65: 4 | H65: 119.8 | I65: Delicate Arch | J65: 38 | K65: 45
A66: 63 | B66: 2010-02-16 | C66: Coupon | D66: Mastercard | E66: East | F66: 29.95 | G66: 1 | H66: 29.95 | I66: Delicate Arch | J66: 24 | K66: 45
A67: 64 | B67: 2010-08-02 | C67: No Coupon | D67: Visa | E67: West | F67: 22.95 | G67: 5 | H67: 114.75 | I67: Carlota | J67: 51 | K67: 20
A68: 65 | B68: 2010-11-01 | C68: Coupon | D68: Mastercard | E68: West | F68: 29.95 | G68: 7 | H68: 209.65 | I68: Delicate Arch | J68: 25 | K68: 45
A69: 66 | B69: 2010-11-08 | C69: No Coupon | D69: Visa | E69: West | F69: 22.95 | G69: 5 | H69: 114.75 | I69: Carlota | J69: 65 | K69: 20
A70: 67 | B70: 2010-08-17 | C70: No Coupon | D70: PayPal | E70: Mid West | F70: 19.95 | G70: 3 | H70: 59.85 | I70: Yanaki | J70: 35 | K70: 25
A71: 68 | B71: 2010-09-27 | C71: No Coupon | D71: Mastercard | E71: East | F71: 24.95 | G71: 5 | H71: 124.75 | I71: Sunset | J71: 35 | K71: 35
A72: 69 | B72: 2010-01-09 | C72: No Coupon | D72: Visa | E72: Mid West | F72: 19.95 | G72: 2 | H72: 39.9 | I72: Yanaki | J72: 21 | K72: 25
A73: 70 | B73: 2010-10-10 | C73: No Coupon | D73: Mastercard | E73: West | F73: 24.95 | G73: 5 | H73: 124.75 | I73: Sunset | J73: 47 | K73: 35
A74: 71 | B74: 2010-12-31 | C74: No Coupon | D74: Discover | E74: East | F74: 24.95 | G74: 1 | H74: 24.95 | I74: Sunset | J74: 62 | K74: 35
A75: 72 | B75: 2010-12-06 | C75: No Coupon | D75: PayPal | E75: East | F75: 22.95 | G75: 1 | H75: 22.95 | I75: Carlota | J75: 63 | K75: 20
A76: 73 | B76: 2010-03-18 | C76: No Coupon | D76: American Express | E76: Mid West | F76: 24.95 | G76: 10 | H76: 249.5 | I76: Bellen | J76: 23 | K76: 30
A77: 74 | B77: 2010-03-22 | C77: No Coupon | D77: Visa | E77: South | F77: 19.95 | G77: 3 | H77: 59.85 | I77: Yanaki | J77: 59 | K77: 25
A78: 75 | B78: 2010-09-14 | C78: Coupon | D78: Visa | E78: West | F78: 21.95 | G78: 2 | H78: 43.9 | I78: Aspen | J78: 48 | K78: 22
A79: 76 | B79: 2010-02-09 | C79: No Coupon | D79: Mastercard | E79: South | F79: 19.95 | G79: 1 | H79: 19.95 | I79: Yanaki | J79: 57 | K79: 25
A80: 77 | B80: 2010-03-24 | C80: No Coupon | D80: Discover | E80: Mid West | F80: 29.95 | G80: 1 | H80: 29.95 | I80: Delicate Arch | J80: 19 | K80: 45
A81: 78 | B81: 2010-07-28 | C81: Coupon | D81: Mastercard | E81: Mid West | F81: 19.95 | G81: 1 | H81: 19.95 | I81: Yanaki | J81: 48 | K81: 25
A82: 79 | B82: 2010-08-26 | C82: Coupon | D82: Mastercard | E82: South | F82: 21.95 | G82: 3 | H82: 65.85 | I82: Aspen | J82: 21 | K82: 22
A83: 80 | B83: 2010-03-05 | C83: No Coupon | D83: American Express | E83: West | F83: 22.95 | G83: 1 | H83: 22.95 | I83: Carlota | J83: 40 | K83: 20
A84: 81 | B84: 2010-08-18 | C84: No Coupon | D84: Visa | E84: Mid West | F84: 19.95 | G84: 4 | H84: 79.8 | I84: Yanaki | J84: 25 | K84: 25
A85: 82 | B85: 2010-11-02 | C85: Coupon | D85: Mastercard | E85: South | F85: 19.95 | G85: 4 | H85: 79.8 | I85: Yanaki | J85: 59 | K85: 25
A86: 83 | B86: 2010-12-19 | C86: No Coupon | D86: Visa | E86: West | F86: 22.95 | G86: 5 | H86: 114.75 | I86: Carlota | J86: 57 | K86: 20
A87: 84 | B87: 2010-07-05 | C87: Coupon | D87: Discover | E87: West | F87: 22.95 | G87: 1 | H87: 22.95 | I87: Carlota | J87: 56 | K87: 20
A88: 85 | B88: 2010-04-16 | C88: No Coupon | D88: Visa | E88: West | F88: 19.95 | G88: 1 | H88: 19.95 | I88: Yanaki | J88: 19 | K88: 25
A89: 86 | B89: 2010-12-23 | C89: No Coupon | D89: Visa | E89: Mid West | F89: 21.95 | G89: 5 | H89: 109.75 | I89: Aspen | J89: 54 | K89: 22
A90: 87 | B90: 2010-05-29 | C90: No Coupon | D90: PayPal | E90: Mid West | F90: 29.95 | G90: 2 | H90: 59.9 | I90: Delicate Arch | J90: 65 | K90: 45
A91: 88 | B91: 2010-05-01 | C91: Coupon | D91: PayPal | E91: West | F91: 21.95 | G91: 2 | H91: 43.9 | I91: Aspen | J91: 25 | K91: 22
A92: 89 | B92: 2010-07-03 | C92: No Coupon | D92: American Express | E92: West | F92: 19.95 | G92: 2 | H92: 39.9 | I92: Yanaki | J92: 30 | K92: 25
A93: 90 | B93: 2010-08-12 | C93: No Coupon | D93: Mastercard | E93: West | F93: 29.95 | G93: 7 | H93: 209.65 | I93: Delicate Arch | J93: 57 | K93: 45
A94: 91 | B94: 2010-06-21 | C94: Coupon | D94: PayPal | E94: West | F94: 19.95 | G94: 1 | H94: 19.95 | I94: Yanaki | J94: 43 | K94: 25
A95: 92 | B95: 2010-12-15 | C95: No Coupon | D95: Mastercard | E95: South | F95: 19.95 | G95: 4 | H95: 79.8 | I95: Yanaki | J95: 44 | K95: 25
A96: 93 | B96: 2010-05-25 | C96: No Coupon | D96: PayPal | E96: East | F96: 24.95 | G96: 5 | H96: 124.75 | I96: Bellen | J96: 21 | K96: 30
A97: 94 | B97: 2010-03-23 | C97: No Coupon | D97: PayPal | E97: West | F97: 24.95 | G97: 1 | H97: 24.95 | I97: Bellen | J97: 20 | K97: 30
A98: 95 | B98: 2010-01-22 | C98: Coupon | D98: Visa | E98: West | F98: 22.95 | G98: 7 | H98: 160.65 | I98: Carlota | J98: 49 | K98: 20
A99: 96 | B99: 2010-09-26 | C99: No Coupon | D99: Mastercard | E99: South | F99: 21.95 | G99: 3 | H99: 65.85 | I99: Aspen | J99: 37 | K99: 22
A100: 97 | B100: 2010-12-27 | C100: No Coupon | D100: PayPal | E100: West | F100: 22.95 | G100: 6 | H100: 137.7 | I100: Carlota | J100: 26 | K100: 20
A101: 98 | B101: 2010-07-24 | C101: No Coupon | D101: Mastercard | E101: East | F101: 29.95 | G101: 1 | H101: 29.95 | I101: Delicate Arch | J101: 62 | K101: 45
A102: 99 | B102: 2010-04-27 | C102: No Coupon | D102: PayPal | E102: West | F102: 19.95 | G102: 6 | H102: 119.7 | I102: Yanaki | J102: 38 | K102: 25
A103: 100 | B103: 2010-05-07 | C103: No Coupon | D103: Visa | E103: West | F103: 19.95 | G103: 1 | H103: 19.95 | I103: Yanaki | J103: 55 | K103: 25
A104: 101 | B104: 2010-03-03 | C104: Coupon | D104: American Express | E104: East | F104: 19.95 | G104: 2 | H104: 39.9 | I104: Yanaki | J104: 24 | K104: 25
A105: 102 | B105: 2010-03-23 | C105: No Coupon | D105: PayPal | E105: Mid West | F105: 22.95 | G105: 5 | H105: 114.75 | I105: Carlota | J105: 30 | K105: 20
A106: 103 | B106: 2010-12-05 | C106: Coupon | D106: Visa | E106: Mid West | F106: 21.95 | G106: 1 | H106: 21.95 | I106: Aspen | J106: 39 | K106: 22
A107: 104 | B107: 2010-11-11 | C107: Coupon | D107: PayPal | E107: South | F107: 29.95 | G107: 6 | H107: 179.7 | I107: Delicate Arch | J107: 59 | K107: 45
A108: 105 | B108: 2010-04-13 | C108: No Coupon | D108: Discover | E108: East | F108: 19.95 | G108: 2 | H108: 39.9 | I108: Yanaki | J108: 26 | K108: 25
A109: 106 | B109: 2010-12-13 | C109: No Coupon | D109: Visa | E109: Mid West | F109: 24.95 | G109: 1 | H109: 24.95 | I109: Sunset | J109: 33 | K109: 35
A110: 107 | B110: 2010-10-05 | C110: No Coupon | D110: Visa | E110: West | F110: 24.95 | G110: 4 | H110: 99.8 | I110: Bellen | J110: 20 | K110: 30
A111: 108 | B111: 2010-01-02 | C111: No Coupon | D111: Visa | E111: West | F111: 21.95 | G111: 4 | H111: 87.8 | I111: Aspen | J111: 18 | K111: 22
A112: 109 | B112: 2010-11-04 | C112: Coupon | D112: PayPal | E112: East | F112: 19.95 | G112: 2 | H112: 39.9 | I112: Yanaki | J112: 19 | K112: 25
A113: 110 | B113: 2010-04-29 | C113: No Coupon | D113: PayPal | E113: West | F113: 21.95 | G113: 3 | H113: 65.85 | I113: Aspen | J113: 61 | K113: 22
A114: 111 | B114: 2010-10-02 | C114: Coupon | D114: PayPal | E114: East | F114: 19.95 | G114: 10 | H114: 199.5 | I114: Yanaki | J114: 39 | K114: 25
A115: 112 | B115: 2010-12-26 | C115: Coupon | D115: Discover | E115: West | F115: 21.95 | G115: 1 | H115: 21.95 | I115: Aspen | J115: 52 | K115: 22
A116: 113 | B116: 2010-11-05 | C116: No Coupon | D116: Visa | E116: West | F116: 24.95 | G116: 5 | H116: 124.75 | I116: Sunset | J116: 20 | K116: 35
A117: 114 | B117: 2010-11-15 | C117: No Coupon | D117: Visa | E117: West | F117: 29.95 | G117: 1 | H117: 29.95 | I117: Delicate Arch | J117: 50 | K117: 45
A118: 115 | B118: 2010-06-27 | C118: Coupon | D118: PayPal | E118: South | F118: 21.95 | G118: 1 | H118: 21.95 | I118: Aspen | J118: 29 | K118: 22
A119: 116 | B119: 2010-04-21 | C119: No Coupon | D119: Visa | E119: West | F119: 29.95 | G119: 4 | H119: 119.8 | I119: Delicate Arch | J119: 55 | K119: 45
A120: 117 | B120: 2010-09-25 | C120: No Coupon | D120: American Express | E120: West | F120: 29.95 | G120: 3 | H120: 89.85 | I120: Delicate Arch | J120: 18 | K120: 45
A121: 118 | B121: 2010-01-24 | C121: Coupon | D121: Mastercard | E121: Mid West | F121: 21.95 | G121: 3 | H121: 65.85 | I121: Aspen | J121: 39 | K121: 22
A122: 119 | B122: 2010-01-04 | C122: No Coupon | D122: Visa | E122: South | F122: 22.95 | G122: 4 | H122: 91.8 | I122: Carlota | J122: 35 | K122: 20
A123: 120 | B123: 2010-05-06 | C123: Coupon | D123: American Express | E123: South | F123: 24.95 | G123: 6 | H123: 149.7 | I123: Bellen | J123: 38 | K123: 30
A124: 121 | B124: 2010-06-22 | C124: No Coupon | D124: Visa | E124: East | F124: 19.95 | G124: 3 | H124: 59.85 | I124: Yanaki | J124: 20 | K124: 25
A125: 122 | B125: 2010-07-12 | C125: No Coupon | D125: Discover | E125: Mid West | F125: 21.95 | G125: 6 | H125: 131.7 | I125: Aspen | J125: 60 | K125: 22
A126: 123 | B126: 2010-05-03 | C126: No Coupon | D126: Visa | E126: Mid West | F126: 24.95 | G126: 2 | H126: 49.9 | I126: Sunset | J126: 61 | K126: 35
A127: 124 | B127: 2010-03-09 | C127: Coupon | D127: PayPal | E127: West | F127: 21.95 | G127: 2 | H127: 43.9 | I127: Aspen | J127: 62 | K127: 22
A128: 125 | B128: 2010-03-02 | C128: No Coupon | D128: Visa | E128: Mid West | F128: 19.95 | G128: 1 | H128: 19.95 | I128: Yanaki | J128: 21 | K128: 25
A129: 126 | B129: 2010-03-28 | C129: No Coupon | D129: Discover | E129: South | F129: 21.95 | G129: 1 | H129: 21.95 | I129: Aspen | J129: 40 | K129: 22
A130: 127 | B130: 2010-01-15 | C130: No Coupon | D130: Visa | E130: West | F130: 24.95 | G130: 1 | H130: 24.95 | I130: Bellen | J130: 25 | K130: 30
A131: 128 | B131: 2010-11-18 | C131: No Coupon | D131: Mastercard | E131: West | F131: 19.95 | G131: 2 | H131: 39.9 | I131: Yanaki | J131: 50 | K131: 25
A132: 129 | B132: 2010-03-27 | C132: No Coupon | D132: Visa | E132: West | F132: 24.95 | G132: 1 | H132: 24.95 | I132: Bellen | J132: 24 | K132: 30
A133: 130 | B133: 2010-08-11 | C133: Coupon | D133: PayPal | E133: West | F133: 22.95 | G133: 5 | H133: 114.75 | I133: Carlota | J133: 28 | K133: 20
A134: 131 | B134: 2010-12-24 | C134: No Coupon | D134: Visa | E134: Mid West | F134: 19.95 | G134: 6 | H134: 119.7 | I134: Yanaki | J134: 22 | K134: 25
A135: 132 | B135: 2010-11-27 | C135: No Coupon | D135: PayPal | E135: West | F135: 21.95 | G135: 2 | H135: 43.9 | I135: Aspen | J135: 22 | K135: 22
A136: 133 | B136: 2010-03-12 | C136: No Coupon | D136: Visa | E136: West | F136: 24.95 | G136: 1 | H136: 24.95 | I136: Bellen | J136: 27 | K136: 30
A137: 134 | B137: 2010-09-16 | C137: Coupon | D137: Visa | E137: West | F137: 24.95 | G137: 7 | H137: 174.65 | I137: Sunset | J137: 54 | K137: 35
A138: 135 | B138: 2010-02-01 | C138: No Coupon | D138: Mastercard | E138: West | F138: 24.95 | G138: 1 | H138: 24.95 | I138: Bellen | J138: 25 | K138: 30
A139: 136 | B139: 2010-07-03 | C139: No Coupon | D139: Visa | E139: Mid West | F139: 24.95 | G139: 2 | H139: 49.9 | I139: Sunset | J139: 25 | K139: 35
A140: 137 | B140: 2010-08-30 | C140: No Coupon | D140: PayPal | E140: East | F140: 19.95 | G140: 1 | H140: 19.95 | I140: Yanaki | J140: 30 | K140: 25
A141: 138 | B141: 2010-09-18 | C141: Coupon | D141: Mastercard | E141: South | F141: 19.95 | G141: 2 | H141: 39.9 | I141: Yanaki | J141: 59 | K141: 25
A142: 139 | B142: 2010-11-24 | C142: No Coupon | D142: Visa | E142: West | F142: 22.95 | G142: 2 | H142: 45.9 | I142: Carlota | J142: 51 | K142: 20
A143: 140 | B143: 2010-12-22 | C143: No Coupon | D143: Visa | E143: West | F143: 29.95 | G143: 6 | H143: 179.7 | I143: Delicate Arch | J143: 38 | K143: 45
A144: 141 | B144: 2010-04-23 | C144: No Coupon | D144: PayPal | E144: South | F144: 22.95 | G144: 7 | H144: 160.65 | I144: Carlota | J144: 28 | K144: 20
A145: 142 | B145: 2010-11-18 | C145: Coupon | D145: Discover | E145: West | F145: 21.95 | G145: 1 | H145: 21.95 | I145: Aspen | J145: 30 | K145: 22
A146: 143 | B146: 2010-10-28 | C146: No Coupon | D146: Visa | E146: South | F146: 24.95 | G146: 5 | H146: 124.75 | I146: Bellen | J146: 43 | K146: 30
A147: 144 | B147: 2010-08-14 | C147: No Coupon | D147: PayPal | E147: West | F147: 29.95 | G147: 3 | H147: 89.85 | I147: Delicate Arch | J147: 42 | K147: 45
A148: 145 | B148: 2010-05-05 | C148: No Coupon | D148: Visa | E148: Mid West | F148: 24.95 | G148: 2 | H148: 49.9 | I148: Bellen | J148: 24 | K148: 30
A149: 146 | B149: 2010-08-25 | C149: Coupon | D149: Visa | E149: Mid West | F149: 22.95 | G149: 1 | H149: 22.95 | I149: Carlota | J149: 47 | K149: 20
A150: 147 | B150: 2010-10-25 | C150: No Coupon | D150: PayPal | E150: Mid West | F150: 19.95 | G150: 1 | H150: 19.95 | I150: Yanaki | J150: 23 | K150: 25
A151: 148 | B151: 2010-07-31 | C151: No Coupon | D151: PayPal | E151: East | F151: 19.95 | G151: 5 | H151: 99.75 | I151: Yanaki | J151: 59 | K151: 25
A152: 149 | B152: 2010-07-25 | C152: Coupon | D152: Mastercard | E152: West | F152: 22.95 | G152: 4 | H152: 91.8 | I152: Carlota | J152: 22 | K152: 20
A153: 150 | B153: 2010-09-30 | C153: Coupon | D153: Visa | E153: Mid West | F153: 24.95 | G153: 2 | H153: 49.9 | I153: Bellen | J153: 27 | K153: 30
A154: 151 | B154: 2010-10-03 | C154: No Coupon | D154: Discover | E154: East | F154: 21.95 | G154: 1 | H154: 21.95 | I154: Aspen | J154: 65 | K154: 22
A155: 152 | B155: 2010-04-01 | C155: No Coupon | D155: Mastercard | E155: Mid West | F155: 22.95 | G155: 2 | H155: 45.9 | I155: Carlota | J155: 27 | K155: 20
A156: 153 | B156: 2010-12-15 | C156: No Coupon | D156: American Express | E156: East | F156: 22.95 | G156: 1 | H156: 22.95 | I156: Carlota | J156: 27 | K156: 20
A157: 154 | B157: 2010-01-07 | C157: No Coupon | D157: PayPal | E157: West | F157: 22.95 | G157: 2 | H157: 45.9 | I157: Carlota | J157: 28 | K157: 20
A158: 155 | B158: 2010-07-23 | C158: Coupon | D158: PayPal | E158: West | F158: 24.95 | G158: 1 | H158: 24.95 | I158: Bellen | J158: 22 | K158: 30
A159: 156 | B159: 2010-03-16 | C159: No Coupon | D159: PayPal | E159: East | F159: 19.95 | G159: 2 | H159: 39.9 | I159: Yanaki | J159: 42 | K159: 25
A160: 157 | B160: 2010-12-04 | C160: No Coupon | D160: American Express | E160: East | F160: 29.95 | G160: 6 | H160: 179.7 | I160: Delicate Arch | J160: 25 | K160: 45
A161: 158 | B161: 2010-01-08 | C161: Coupon | D161: Mastercard | E161: West | F161: 21.95 | G161: 1 | H161: 21.95 | I161: Aspen | J161: 41 | K161: 22
A162: 159 | B162: 2010-06-02 | C162: Coupon | D162: PayPal | E162: West | F162: 24.95 | G162: 1 | H162: 24.95 | I162: Bellen | J162: 46 | K162: 30
A163: 160 | B163: 2010-08-18 | C163: No Coupon | D163: Discover | E163: West | F163: 24.95 | G163: 3 | H163: 74.85 | I163: Sunset | J163: 41 | K163: 35
A164: 161 | B164: 2010-04-24 | C164: No Coupon | D164: Mastercard | E164: West | F164: 19.95 | G164: 4 | H164: 79.8 | I164: Yanaki | J164: 29 | K164: 25
A165: 162 | B165: 2010-12-01 | C165: No Coupon | D165: Visa | E165: Mid West | F165: 19.95 | G165: 1 | H165: 19.95 | I165: Yanaki | J165: 50 | K165: 25
A166: 163 | B166: 2010-12-31 | C166: Coupon | D166: Visa | E166: Mid West | F166: 22.95 | G166: 1 | H166: 22.95 | I166: Carlota | J166: 50 | K166: 20
A167: 164 | B167: 2010-04-30 | C167: Coupon | D167: PayPal | E167: Mid West | F167: 22.95 | G167: 2 | H167: 45.9 | I167: Carlota | J167: 34 | K167: 20
A168: 165 | B168: 2010-03-16 | C168: Coupon | D168: American Express | E168: West | F168: 21.95 | G168: 3 | H168: 65.85 | I168: Aspen | J168: 24 | K168: 22
A169: 166 | B169: 2010-01-28 | C169: No Coupon | D169: Mastercard | E169: West | F169: 19.95 | G169: 7 | H169: 139.65 | I169: Yanaki | J169: 29 | K169: 25
A170: 167 | B170: 2010-08-03 | C170: No Coupon | D170: Mastercard | E170: Mid West | F170: 22.95 | G170: 1 | H170: 22.95 | I170: Carlota | J170: 35 | K170: 20
A171: 168 | B171: 2010-11-11 | C171: No Coupon | D171: Visa | E171: West | F171: 19.95 | G171: 2 | H171: 39.9 | I171: Yanaki | J171: 24 | K171: 25
A172: 169 | B172: 2010-12-13 | C172: Coupon | D172: Visa | E172: South | F172: 21.95 | G172: 5 | H172: 109.75 | I172: Aspen | J172: 23 | K172: 22
A173: 170 | B173: 2010-03-27 | C173: No Coupon | D173: PayPal | E173: Mid West | F173: 22.95 | G173: 7 | H173: 160.65 | I173: Carlota | J173: 31 | K173: 20
A174: 171 | B174: 2010-10-08 | C174: Coupon | D174: PayPal | E174: Mid West | F174: 24.95 | G174: 2 | H174: 49.9 | I174: Bellen | J174: 24 | K174: 30
A175: 172 | B175: 2010-08-03 | C175: No Coupon | D175: Visa | E175: Mid West | F175: 22.95 | G175: 1 | H175: 22.95 | I175: Carlota | J175: 30 | K175: 20
A176: 173 | B176: 2010-03-10 | C176: Coupon | D176: Visa | E176: West | F176: 22.95 | G176: 2 | H176: 45.9 | I176: Carlota | J176: 22 | K176: 20
A177: 174 | B177: 2010-03-02 | C177: No Coupon | D177: Visa | E177: East | F177: 22.95 | G177: 3 | H177: 68.85 | I177: Carlota | J177: 43 | K177: 20
A178: 175 | B178: 2010-01-26 | C178: No Coupon | D178: Visa | E178: West | F178: 22.95 | G178: 10 | H178: 229.5 | I178: Carlota | J178: 55 | K178: 20
A179: 176 | B179: 2010-05-06 | C179: No Coupon | D179: American Express | E179: West | F179: 29.95 | G179: 1 | H179: 29.95 | I179: Delicate Arch | J179: 38 | K179: 45
A180: 177 | B180: 2010-03-10 | C180: Coupon | D180: Visa | E180: West | F180: 19.95 | G180: 2 | H180: 39.9 | I180: Yanaki | J180: 28 | K180: 25
A181: 178 | B181: 2010-11-18 | C181: Coupon | D181: PayPal | E181: Mid West | F181: 21.95 | G181: 2 | H181: 43.9 | I181: Aspen | J181: 30 | K181: 22
A182: 179 | B182: 2010-01-30 | C182: Coupon | D182: Discover | E182: West | F182: 19.95 | G182: 1 | H182: 19.95 | I182: Yanaki | J182: 35 | K182: 25
A183: 180 | B183: 2010-07-02 | C183: No Coupon | D183: Visa | E183: West | F183: 29.95 | G183: 2 | H183: 59.9 | I183: Delicate Arch | J183: 41 | K183: 45
A184: 181 | B184: 2010-10-13 | C184: Coupon | D184: Discover | E184: East | F184: 19.95 | G184: 5 | H184: 99.75 | I184: Yanaki | J184: 28 | K184: 25
A185: 182 | B185: 2010-02-07 | C185: No Coupon | D185: Discover | E185: Mid West | F185: 24.95 | G185: 7 | H185: 174.65 | I185: Bellen | J185: 65 | K185: 30
A186: 183 | B186: 2010-06-05 | C186: No Coupon | D186: Mastercard | E186: West | F186: 21.95 | G186: 3 | H186: 65.85 | I186: Aspen | J186: 20 | K186: 22
A187: 184 | B187: 2010-11-02 | C187: No Coupon | D187: Visa | E187: Mid West | F187: 24.95 | G187: 5 | H187: 124.75 | I187: Sunset | J187: 39 | K187: 35
A188: 185 | B188: 2010-12-13 | C188: No Coupon | D188: Visa | E188: East | F188: 21.95 | G188: 4 | H188: 87.8 | I188: Aspen | J188: 19 | K188: 22
A189: 186 | B189: 2010-10-23 | C189: No Coupon | D189: Visa | E189: West | F189: 22.95 | G189: 10 | H189: 229.5 | I189: Carlota | J189: 64 | K189: 20
A190: 187 | B190: 2010-12-22 | C190: Coupon | D190: PayPal | E190: South | F190: 19.95 | G190: 5 | H190: 99.75 | I190: Yanaki | J190: 42 | K190: 25
A191: 188 | B191: 2010-08-21 | C191: Coupon | D191: PayPal | E191: Mid West | F191: 19.95 | G191: 1 | H191: 19.95 | I191: Yanaki | J191: 24 | K191: 25
A192: 189 | B192: 2010-08-28 | C192: Coupon | D192: PayPal | E192: Mid West | F192: 19.95 | G192: 1 | H192: 19.95 | I192: Yanaki | J192: 24 | K192: 25
A193: 190 | B193: 2010-06-20 | C193: No Coupon | D193: American Express | E193: Mid West | F193: 24.95 | G193: 4 | H193: 99.8 | I193: Bellen | J193: 18 | K193: 30
A194: 191 | B194: 2010-04-30 | C194: Coupon | D194: Mastercard | E194: East | F194: 24.95 | G194: 1 | H194: 24.95 | I194: Bellen | J194: 36 | K194: 30
A195: 192 | B195: 2010-10-14 | C195: No Coupon | D195: Mastercard | E195: Mid West | F195: 22.95 | G195: 5 | H195: 114.75 | I195: Carlota | J195: 61 | K195: 20
A196: 193 | B196: 2010-08-04 | C196: No Coupon | D196: Visa | E196: West | F196: 19.95 | G196: 3 | H196: 59.85 | I196: Yanaki | J196: 22 | K196: 25
A197: 194 | B197: 2010-10-28 | C197: Coupon | D197: PayPal | E197: West | F197: 21.95 | G197: 2 | H197: 43.9 | I197: Aspen | J197: 55 | K197: 22
A198: 195 | B198: 2010-11-04 | C198: No Coupon | D198: American Express | E198: West | F198: 24.95 | G198: 3 | H198: 74.85 | I198: Sunset | J198: 27 | K198: 35
A199: 196 | B199: 2010-01-05 | C199: No Coupon | D199: PayPal | E199: Mid West | F199: 19.95 | G199: 1 | H199: 19.95 | I199: Yanaki | J199: 49 | K199: 25
A200: 197 | B200: 2010-12-11 | C200: Coupon | D200: Visa | E200: West | F200: 22.95 | G200: 1 | H200: 22.95 | I200: Carlota | J200: 29 | K200: 20
A201: 198 | B201: 2010-07-18 | C201: No Coupon | D201: PayPal | E201: West | F201: 21.95 | G201: 7 | H201: 153.65 | I201: Aspen | J201: 33 | K201: 22
... 2 more rows

Sheet FD & Charts - F
A1: Frequency Distribution: Tabular Summary of data that counts (frequency) items in each
A2: nonoverlapping categories in order to reveal patterns in data and shape of data.
N3: **Alt + F1 keyboard for column chart (default)
A4: Region | B4: Revenue | C4: Age | F4: Categorical, COUNTIF | N4: Column For Categorical
A5: West | B5: 45.9 | C5: 21 | F5: Region | G5: Frequency | N5: Columns do not touch
A6: West | B6: 19.95 | C6: 57 | F6: West | N6: Height of columns
A7: East | B7: 21.95 | C7: 25 | F7: East | N7: convey count
A8: West | B8: 19.95 | C8: 38 | F8: South | N8: Order of categories
A9: West | B9: 79.8 | C9: 22 | F9: Mid West | N9: conveys no info
A10: South | B10: 79.8 | C10: 29 | F10: Total | N10: West had most
A11: West | B11: 59.85 | C11: 18 | N11: South & East had least
A12: West | B12: 139.65 | C12: 64 | E12: ** Alt + F1 = Default Chart
A13: West | B13: 119.7 | C13: 27 | K13: Increment | N13: Histogram
A14: West | B14: 43.9 | C14: 22 | F14: Quantitative: Integer, COUNTIFS | K14: 19 | N14: Columns touch to
A15: Mid West | B15: 43.9 | C15: 39 | F15: Age | G15: Frequency | I15: Min | K15: Lower | L15: Upper | N15: indicate that no
A16: Mid West | B16: 99.75 | C16: 61 | I16: =MIN($C$5:$C$204) -> 18 | K16: 0 | N16: numbers can fit
A17: Mid West | B17: 114.75 | C17: 18 | I17: Max | N17: between classes
A18: West | B18: 91.8 | C18: 22 | I18: =MAX($C$5:$C$204) -> 65 | N18: Height of columns
A19: Mid West | B19: 114.75 | C19: 52 | N19: convey count
A20: West | B20: 22.95 | C20: 22 | F20: Total | N20: Order of classes is
A21: West | B21: 124.75 | C21: 18 | N21: important to help reveal
A22: South | B22: 19.95 | C22: 55 | N22: shape of data
A23: East | B23: 87.8 | C23: 20 | K23: Increment
A24: Mid West | B24: 22.95 | C24: 42 | F24: Quantitative: Decimal, COUNTIFS | K24: 75
A25: South | B25: 299.5 | C25: 30 | F25: Sales | G25: Frequency | I25: Min | K25: Lower | L25: Upper
A26: Mid West | B26: 19.95 | C26: 64 | I26: =MIN($B$5:$B$204) -> 19.95 | K26: 0
A27: Mid West | B27: 99.75 | C27: 63 | I27: Max
A28: South | B28: 39.9 | C28: 41 | I28: =MAX($B$5:$B$204) -> 299.5
A29: East | B29: 65.85 | C29: 21
A30: East | B30: 24.95 | C30: 63 | F30: Total
A31: West | B31: 21.95 | C31: 54
A32: West | B32: 19.95 | C32: 18
A33: West | B33: 91.8 | C33: 26
A34: Mid West | B34: 65.85 | C34: 59
A35: West | B35: 39.9 | C35: 30
A36: West | B36: 43.9 | C36: 64
A37: West | B37: 65.85 | C37: 30
A38: West | B38: 43.9 | C38: 41
A39: South | B39: 99.75 | C39: 23
A40: West | B40: 29.95 | C40: 52
A41: West | B41: 65.85 | C41: 18
A42: West | B42: 22.95 | C42: 32
A43: Mid West | B43: 19.95 | C43: 22
A44: South | B44: 99.75 | C44: 29
A45: Mid West | B45: 124.75 | C45: 25
A46: West | B46: 21.95 | C46: 63
A47: Mid West | B47: 174.65 | C47: 26
A48: West | B48: 29.95 | C48: 31
A49: Mid West | B49: 149.75 | C49: 23
A50: Mid West | B50: 29.95 | C50: 42
A51: East | B51: 45.9 | C51: 28
A52: West | B52: 160.65 | C52: 23
A53: Mid West | B53: 160.65 | C53: 19
A54: West | B54: 119.7 | C54: 37
A55: East | B55: 43.9 | C55: 38
A56: Mid West | B56: 119.7 | C56: 50
A57: West | B57: 65.85 | C57: 26
A58: South | B58: 22.95 | C58: 33
A59: Mid West | B59: 65.85 | C59: 59
A60: Mid West | B60: 109.75 | C60: 32
A61: Mid West | B61: 114.75 | C61: 27
A62: West | B62: 249.5 | C62: 54
A63: West | B63: 109.75 | C63: 63
A64: East | B64: 114.75 | C64: 48
A65: East | B65: 114.75 | C65: 29
A66: West | B66: 119.8 | C66: 38
A67: East | B67: 29.95 | C67: 24
A68: West | B68: 114.75 | C68: 51
A69: West | B69: 209.65 | C69: 25
A70: West | B70: 114.75 | C70: 65
A71: Mid West | B71: 59.85 | C71: 35
A72: East | B72: 124.75 | C72: 35
A73: Mid West | B73: 39.9 | C73: 21
A74: West | B74: 124.75 | C74: 47
A75: East | B75: 24.95 | C75: 62
A76: East | B76: 22.95 | C76: 63
A77: Mid West | B77: 249.5 | C77: 23
A78: South | B78: 59.85 | C78: 59
A79: West | B79: 43.9 | C79: 48
A80: South | B80: 19.95 | C80: 57
A81: Mid West | B81: 29.95 | C81: 19
A82: Mid West | B82: 19.95 | C82: 48
A83: South | B83: 65.85 | C83: 21
A84: West | B84: 22.95 | C84: 40
A85: Mid West | B85: 79.8 | C85: 25
A86: South | B86: 79.8 | C86: 59
A87: West | B87: 114.75 | C87: 57
A88: West | B88: 22.95 | C88: 56
A89: West | B89: 19.95 | C89: 19
A90: Mid West | B90: 109.75 | C90: 54
A91: Mid West | B91: 59.9 | C91: 65
A92: West | B92: 43.9 | C92: 25
A93: West | B93: 39.9 | C93: 30
A94: West | B94: 209.65 | C94: 57
A95: West | B95: 19.95 | C95: 43
A96: South | B96: 79.8 | C96: 44
A97: East | B97: 124.75 | C97: 21
A98: West | B98: 24.95 | C98: 20
A99: West | B99: 160.65 | C99: 49
A100: South | B100: 65.85 | C100: 37
A101: West | B101: 137.7 | C101: 26
A102: East | B102: 29.95 | C102: 62
A103: West | B103: 119.7 | C103: 38
A104: West | B104: 19.95 | C104: 55
A105: East | B105: 39.9 | C105: 24
A106: Mid West | B106: 114.75 | C106: 30
A107: Mid West | B107: 21.95 | C107: 39
A108: South | B108: 179.7 | C108: 59
A109: East | B109: 39.9 | C109: 26
A110: Mid West | B110: 24.95 | C110: 33
A111: West | B111: 99.8 | C111: 20
A112: West | B112: 87.8 | C112: 18
A113: East | B113: 39.9 | C113: 19
A114: West | B114: 65.85 | C114: 61
A115: East | B115: 199.5 | C115: 39
A116: West | B116: 21.95 | C116: 52
A117: West | B117: 124.75 | C117: 20
A118: West | B118: 29.95 | C118: 50
A119: South | B119: 21.95 | C119: 29
A120: West | B120: 119.8 | C120: 55
A121: West | B121: 89.85 | C121: 18
A122: Mid West | B122: 65.85 | C122: 39
A123: South | B123: 91.8 | C123: 35
A124: South | B124: 149.7 | C124: 38
A125: East | B125: 59.85 | C125: 20
A126: Mid West | B126: 131.7 | C126: 60
A127: Mid West | B127: 49.9 | C127: 61
A128: West | B128: 43.9 | C128: 62
A129: Mid West | B129: 19.95 | C129: 21
A130: South | B130: 21.95 | C130: 40
A131: West | B131: 24.95 | C131: 25
A132: West | B132: 39.9 | C132: 50
A133: West | B133: 24.95 | C133: 24
A134: West | B134: 114.75 | C134: 28
A135: Mid West | B135: 119.7 | C135: 22
A136: West | B136: 43.9 | C136: 22
A137: West | B137: 24.95 | C137: 27
A138: West | B138: 174.65 | C138: 54
A139: West | B139: 24.95 | C139: 25
A140: Mid West | B140: 49.9 | C140: 25
A141: East | B141: 19.95 | C141: 30
A142: South | B142: 39.9 | C142: 59
A143: West | B143: 45.9 | C143: 51
A144: West | B144: 179.7 | C144: 38
A145: South | B145: 160.65 | C145: 28
A146: West | B146: 21.95 | C146: 30
A147: South | B147: 124.75 | C147: 43
A148: West | B148: 89.85 | C148: 42
A149: Mid West | B149: 49.9 | C149: 24
A150: Mid West | B150: 22.95 | C150: 47
A151: Mid West | B151: 19.95 | C151: 23
A152: East | B152: 99.75 | C152: 59
A153: West | B153: 91.8 | C153: 22
A154: Mid West | B154: 49.9 | C154: 27
A155: East | B155: 21.95 | C155: 65
A156: Mid West | B156: 45.9 | C156: 27
A157: East | B157: 22.95 | C157: 27
A158: West | B158: 45.9 | C158: 28
A159: West | B159: 24.95 | C159: 22
A160: East | B160: 39.9 | C160: 42
A161: East | B161: 179.7 | C161: 25
A162: West | B162: 21.95 | C162: 41
A163: West | B163: 24.95 | C163: 46
A164: West | B164: 74.85 | C164: 41
A165: West | B165: 79.8 | C165: 29
A166: Mid West | B166: 19.95 | C166: 50
A167: Mid West | B167: 22.95 | C167: 50
A168: Mid West | B168: 45.9 | C168: 34
A169: West | B169: 65.85 | C169: 24
A170: West | B170: 139.65 | C170: 29
A171: Mid West | B171: 22.95 | C171: 35
A172: West | B172: 39.9 | C172: 24
A173: South | B173: 109.75 | C173: 23
A174: Mid West | B174: 160.65 | C174: 31
A175: Mid West | B175: 49.9 | C175: 24
A176: Mid West | B176: 22.95 | C176: 30
A177: West | B177: 45.9 | C177: 22
A178: East | B178: 68.85 | C178: 43
A179: West | B179: 229.5 | C179: 55
A180: West | B180: 29.95 | C180: 38
A181: West | B181: 39.9 | C181: 28
A182: Mid West | B182: 43.9 | C182: 30
A183: West | B183: 19.95 | C183: 35
A184: West | B184: 59.9 | C184: 41
A185: East | B185: 99.75 | C185: 28
A186: Mid West | B186: 174.65 | C186: 65
A187: West | B187: 65.85 | C187: 20
A188: Mid West | B188: 124.75 | C188: 39
A189: East | B189: 87.8 | C189: 19
A190: West | B190: 229.5 | C190: 64
A191: South | B191: 99.75 | C191: 42
A192: Mid West | B192: 19.95 | C192: 24
A193: Mid West | B193: 19.95 | C193: 24
A194: Mid West | B194: 99.8 | C194: 18
A195: East | B195: 24.95 | C195: 36
A196: Mid West | B196: 114.75 | C196: 61
A197: West | B197: 59.85 | C197: 22
A198: West | B198: 43.9 | C198: 55
A199: West | B199: 74.85 | C199: 27
A200: Mid West | B200: 19.95 | C200: 49
... 4 more rows

Sheet FD & Charts - F (an)
A1: Frequency Distribution: Tabular Summary of data that counts (frequency) items in each
A2: nonoverlapping categories in order to reveal patterns in data and shape of data.
N3: **Alt + F1 keyboard for column chart (default)
A4: Region | B4: Revenue | C4: Age | F4: Categorical, COUNTIF | N4: Column For Categorical
A5: West | B5: 45.9 | C5: 21 | F5: Region | G5: Frequency | N5: Columns do not touch
A6: West | B6: 19.95 | C6: 57 | F6: West | G6: =COUNTIF($A$5:$A$204,F6) -> 93 | N6: Height of columns
A7: East | B7: 21.95 | C7: 25 | F7: East | G7: =COUNTIF($A$5:$A$204,F7) -> 29 | N7: convey count
A8: West | B8: 19.95 | C8: 38 | F8: South | G8: =COUNTIF($A$5:$A$204,F8) -> 23 | N8: Order of categories
A9: West | B9: 79.8 | C9: 22 | F9: Mid West | G9: =COUNTIF($A$5:$A$204,F9) -> 55 | N9: conveys no info
A10: South | B10: 79.8 | C10: 29 | F10: Total | G10: =SUM(G6:G9) -> 200 | N10: West had most
A11: West | B11: 59.85 | C11: 18 | N11: South & East had least
A12: West | B12: 139.65 | C12: 64 | E12: ** Alt + F1 = Default Chart
A13: West | B13: 119.7 | C13: 27 | K13: Increment | N13: Histogram
A14: West | B14: 43.9 | C14: 22 | F14: Quantitative: Integer, COUNTIFS | K14: 19 | N14: Columns touch to
A15: Mid West | B15: 43.9 | C15: 39 | F15: Age | G15: Frequency | I15: Min | K15: Lower | L15: Upper | N15: indicate that no
A16: Mid West | B16: 99.75 | C16: 61 | F16: =K16&" - "&L16 -> 0 - 19 | G16: =COUNTIFS($C$5:$C$204,">="&K16,$C$5:$C$204,"<="&L16) -> 13 | I16: =MIN($C$5:$C$204) -> 18 | K16: 0 | L16: =K16+$K$14 -> 19 | N16: numbers can fit
A17: Mid West | B17: 114.75 | C17: 18 | F17: =K17&" - "&L17 -> 20 - 39 | G17: =COUNTIFS($C$5:$C$204,">="&K17,$C$5:$C$204,"<="&L17) -> 110 | I17: Max | K17: =L16+1 -> 20 | L17: =K17+$K$14 -> 39 | N17: between classes
A18: West | B18: 91.8 | C18: 22 | F18: =K18&" - "&L18 -> 40 - 59 | G18: =COUNTIFS($C$5:$C$204,">="&K18,$C$5:$C$204,"<="&L18) -> 56 | I18: =MAX($C$5:$C$204) -> 65 | K18: =L17+1 -> 40 | L18: =K18+$K$14 -> 59 | N18: Height of columns
A19: Mid West | B19: 114.75 | C19: 52 | F19: =K19&" - "&L19 -> 60 - 79 | G19: =COUNTIFS($C$5:$C$204,">="&K19,$C$5:$C$204,"<="&L19) -> 21 | K19: =L18+1 -> 60 | L19: =K19+$K$14 -> 79 | N19: convey count
A20: West | B20: 22.95 | C20: 22 | F20: Total | G20: =SUM(G16:G19) -> 200 | N20: Order of classes is
A21: West | B21: 124.75 | C21: 18 | N21: important to help reveal
A22: South | B22: 19.95 | C22: 55 | N22: shape of data
A23: East | B23: 87.8 | C23: 20 | K23: Increment
A24: Mid West | B24: 22.95 | C24: 42 | F24: Quantitative: Decimal, COUNTIFS | K24: 75
A25: South | B25: 299.5 | C25: 30 | F25: Sales | G25: Frequency | I25: Min | K25: Lower | L25: Upper
A26: Mid West | B26: 19.95 | C26: 64 | E26: =K26&" <= Sales < "&L26 -> 0 <= Sales < 75 | F26: =K26&" up to "&L26 -> 0 up to 75 | G26: =COUNTIFS($B$5:$B$204,">="&K26,$B$5:$B$204,"<"&L26) -> 119 | I26: =MIN($B$5:$B$204) -> 19.95 | K26: 0 | L26: =K26+$K$24 -> 75
A27: Mid West | B27: 99.75 | C27: 63 | E27: =K27&" <= Sales < "&L27 -> 75 <= Sales < 150 | F27: =K27&" up to "&L27 -> 75 up to 150 | G27: =COUNTIFS($B$5:$B$204,">="&K27,$B$5:$B$204,"<"&L27) -> 61 | I27: Max | K27: =L26 -> 75 | L27: =K27+$K$24 -> 150
A28: South | B28: 39.9 | C28: 41 | E28: =K28&" <= Sales < "&L28 -> 150 <= Sales < 225 | F28: =K28&" up to "&L28 -> 150 up to 225 | G28: =COUNTIFS($B$5:$B$204,">="&K28,$B$5:$B$204,"<"&L28) -> 15 | I28: =MAX($B$5:$B$204) -> 299.5 | K28: =L27 -> 150 | L28: =K28+$K$24 -> 225
A29: East | B29: 65.85 | C29: 21 | E29: =K29&" <= Sales < "&L29 -> 225 <= Sales < 300 | F29: =K29&" up to "&L29 -> 225 up to 300 | G29: =COUNTIFS($B$5:$B$204,">="&K29,$B$5:$B$204,"<"&L29) -> 5 | K29: =L28 -> 225 | L29: =K29+$K$24 -> 300
A30: East | B30: 24.95 | C30: 63 | F30: Total | G30: =SUM(G26:G29) -> 200
A31: West | B31: 21.95 | C31: 54
A32: West | B32: 19.95 | C32: 18
A33: West | B33: 91.8 | C33: 26
A34: Mid West | B34: 65.85 | C34: 59
A35: West | B35: 39.9 | C35: 30
A36: West | B36: 43.9 | C36: 64
A37: West | B37: 65.85 | C37: 30
A38: West | B38: 43.9 | C38: 41
A39: South | B39: 99.75 | C39: 23
A40: West | B40: 29.95 | C40: 52
A41: West | B41: 65.85 | C41: 18
A42: West | B42: 22.95 | C42: 32
A43: Mid West | B43: 19.95 | C43: 22
A44: South | B44: 99.75 | C44: 29
A45: Mid West | B45: 124.75 | C45: 25
A46: West | B46: 21.95 | C46: 63
A47: Mid West | B47: 174.65 | C47: 26
A48: West | B48: 29.95 | C48: 31
A49: Mid West | B49: 149.75 | C49: 23
A50: Mid West | B50: 29.95 | C50: 42
A51: East | B51: 45.9 | C51: 28
A52: West | B52: 160.65 | C52: 23
A53: Mid West | B53: 160.65 | C53: 19
A54: West | B54: 119.7 | C54: 37
A55: East | B55: 43.9 | C55: 38
A56: Mid West | B56: 119.7 | C56: 50
A57: West | B57: 65.85 | C57: 26
A58: South | B58: 22.95 | C58: 33
A59: Mid West | B59: 65.85 | C59: 59
A60: Mid West | B60: 109.75 | C60: 32
A61: Mid West | B61: 114.75 | C61: 27
A62: West | B62: 249.5 | C62: 54
A63: West | B63: 109.75 | C63: 63
A64: East | B64: 114.75 | C64: 48
A65: East | B65: 114.75 | C65: 29
A66: West | B66: 119.8 | C66: 38
A67: East | B67: 29.95 | C67: 24
A68: West | B68: 114.75 | C68: 51
A69: West | B69: 209.65 | C69: 25
A70: West | B70: 114.75 | C70: 65
A71: Mid West | B71: 59.85 | C71: 35
A72: East | B72: 124.75 | C72: 35
A73: Mid West | B73: 39.9 | C73: 21
A74: West | B74: 124.75 | C74: 47
A75: East | B75: 24.95 | C75: 62
A76: East | B76: 22.95 | C76: 63
A77: Mid West | B77: 249.5 | C77: 23
A78: South | B78: 59.85 | C78: 59
A79: West | B79: 43.9 | C79: 48
A80: South | B80: 19.95 | C80: 57
A81: Mid West | B81: 29.95 | C81: 19
A82: Mid West | B82: 19.95 | C82: 48
A83: South | B83: 65.85 | C83: 21
A84: West | B84: 22.95 | C84: 40
A85: Mid West | B85: 79.8 | C85: 25
A86: South | B86: 79.8 | C86: 59
A87: West | B87: 114.75 | C87: 57
A88: West | B88: 22.95 | C88: 56
A89: West | B89: 19.95 | C89: 19
A90: Mid West | B90: 109.75 | C90: 54
A91: Mid West | B91: 59.9 | C91: 65
A92: West | B92: 43.9 | C92: 25
A93: West | B93: 39.9 | C93: 30
A94: West | B94: 209.65 | C94: 57
A95: West | B95: 19.95 | C95: 43
A96: South | B96: 79.8 | C96: 44
A97: East | B97: 124.75 | C97: 21
A98: West | B98: 24.95 | C98: 20
A99: West | B99: 160.65 | C99: 49
A100: South | B100: 65.85 | C100: 37
A101: West | B101: 137.7 | C101: 26
A102: East | B102: 29.95 | C102: 62
A103: West | B103: 119.7 | C103: 38
A104: West | B104: 19.95 | C104: 55
A105: East | B105: 39.9 | C105: 24
A106: Mid West | B106: 114.75 | C106: 30
A107: Mid West | B107: 21.95 | C107: 39
A108: South | B108: 179.7 | C108: 59
A109: East | B109: 39.9 | C109: 26
A110: Mid West | B110: 24.95 | C110: 33
A111: West | B111: 99.8 | C111: 20
A112: West | B112: 87.8 | C112: 18
A113: East | B113: 39.9 | C113: 19
A114: West | B114: 65.85 | C114: 61
A115: East | B115: 199.5 | C115: 39
A116: West | B116: 21.95 | C116: 52
A117: West | B117: 124.75 | C117: 20
A118: West | B118: 29.95 | C118: 50
A119: South | B119: 21.95 | C119: 29
A120: West | B120: 119.8 | C120: 55
A121: West | B121: 89.85 | C121: 18
A122: Mid West | B122: 65.85 | C122: 39
A123: South | B123: 91.8 | C123: 35
A124: South | B124: 149.7 | C124: 38
A125: East | B125: 59.85 | C125: 20
A126: Mid West | B126: 131.7 | C126: 60
A127: Mid West | B127: 49.9 | C127: 61
A128: West | B128: 43.9 | C128: 62
A129: Mid West | B129: 19.95 | C129: 21
A130: South | B130: 21.95 | C130: 40
A131: West | B131: 24.95 | C131: 25
A132: West | B132: 39.9 | C132: 50
A133: West | B133: 24.95 | C133: 24
A134: West | B134: 114.75 | C134: 28
A135: Mid West | B135: 119.7 | C135: 22
A136: West | B136: 43.9 | C136: 22
A137: West | B137: 24.95 | C137: 27
A138: West | B138: 174.65 | C138: 54
A139: West | B139: 24.95 | C139: 25
A140: Mid West | B140: 49.9 | C140: 25
A141: East | B141: 19.95 | C141: 30
A142: South | B142: 39.9 | C142: 59
A143: West | B143: 45.9 | C143: 51
A144: West | B144: 179.7 | C144: 38
A145: South | B145: 160.65 | C145: 28
A146: West | B146: 21.95 | C146: 30
A147: South | B147: 124.75 | C147: 43
A148: West | B148: 89.85 | C148: 42
A149: Mid West | B149: 49.9 | C149: 24
A150: Mid West | B150: 22.95 | C150: 47
A151: Mid West | B151: 19.95 | C151: 23
A152: East | B152: 99.75 | C152: 59
A153: West | B153: 91.8 | C153: 22
A154: Mid West | B154: 49.9 | C154: 27
A155: East | B155: 21.95 | C155: 65
A156: Mid West | B156: 45.9 | C156: 27
A157: East | B157: 22.95 | C157: 27
A158: West | B158: 45.9 | C158: 28
A159: West | B159: 24.95 | C159: 22
A160: East | B160: 39.9 | C160: 42
A161: East | B161: 179.7 | C161: 25
A162: West | B162: 21.95 | C162: 41
A163: West | B163: 24.95 | C163: 46
A164: West | B164: 74.85 | C164: 41
A165: West | B165: 79.8 | C165: 29
A166: Mid West | B166: 19.95 | C166: 50
A167: Mid West | B167: 22.95 | C167: 50
A168: Mid West | B168: 45.9 | C168: 34
A169: West | B169: 65.85 | C169: 24
A170: West | B170: 139.65 | C170: 29
A171: Mid West | B171: 22.95 | C171: 35
A172: West | B172: 39.9 | C172: 24
A173: South | B173: 109.75 | C173: 23
A174: Mid West | B174: 160.65 | C174: 31
A175: Mid West | B175: 49.9 | C175: 24
A176: Mid West | B176: 22.95 | C176: 30
A177: West | B177: 45.9 | C177: 22
A178: East | B178: 68.85 | C178: 43
A179: West | B179: 229.5 | C179: 55
A180: West | B180: 29.95 | C180: 38
A181: West | B181: 39.9 | C181: 28
A182: Mid West | B182: 43.9 | C182: 30
A183: West | B183: 19.95 | C183: 35
A184: West | B184: 59.9 | C184: 41
A185: East | B185: 99.75 | C185: 28
A186: Mid West | B186: 174.65 | C186: 65
A187: West | B187: 65.85 | C187: 20
A188: Mid West | B188: 124.75 | C188: 39
A189: East | B189: 87.8 | C189: 19
A190: West | B190: 229.5 | C190: 64
A191: South | B191: 99.75 | C191: 42
A192: Mid West | B192: 19.95 | C192: 24
A193: Mid West | B193: 19.95 | C193: 24
A194: Mid West | B194: 99.8 | C194: 18
A195: East | B195: 24.95 | C195: 36
A196: Mid West | B196: 114.75 | C196: 61
A197: West | B197: 59.85 | C197: 22
A198: West | B198: 43.9 | C198: 55
A199: West | B199: 74.85 | C199: 27
A200: Mid West | B200: 19.95 | C200: 49
... 4 more rows

Sheet ColumnNote
A15: Discrete Numbers (Numbers with Gaps between them - like counting) are
A16: shown in Column charts with the columns not touching so that visually
A17: you see that there are gaps. The order on the horizontal axis is important
A18: to help reveal the shape of the data.

Sheet ConstructFD
A1: Age | C1: Step 1: Determine Number of Classes using the guide: 2^k > n
A2: 21 | C2: COUNT function = No. in Sample = n =
A3: 57 | C3: k = No. Classes = | D3: 11 | E3: This is a judgment call (the art side of statistics)
A4: 25 | C4: 2^7 =
A5: 38 | C5: Step 2: Determine width of Classes
A6: 22 | C6: MAX | E6: MIN
A7: 29 | C7: "Range of ages"
A8: 18 | C8: Approximate width =
A9: 64 | C9: Width of Class (Increment for each class) | D9: 5 | E9: This is a judgment call (the art side of statistics)
A10: 27 | C10: "Range for classes" = ClassWidth*k =
A11: 22 | C11: "Range for classes" > "Range of ages"? | E11: Must be bigger than "Range of ages"
A12: 39 | C12: Step 3: Determine Class Limits
A13: 61 | C13: Lower Limit of First Class (look at MIN then estimate) | D13: 15 | E13: This is a judgment call (the art side of statistics)
A14: 18
A15: 22
A16: 52 | D16: Lower | E16: Upper | F16: Age Class | G16: Frequency
A17: 22
A18: 18
A19: 55
A20: 20
A21: 42
A22: 30
A23: 64
A24: 63
A25: 41
A26: 21
A27: 63
A28: 54 | G28: =SUM(G17:G27) -> 0
A29: 18
A30: 26
A31: 59
A32: 30
A33: 64
A34: 30
A35: 41
A36: 23
A37: 52
A38: 18
A39: 32
A40: 22
A41: 29
A42: 25
A43: 63
A44: 26
A45: 31
A46: 23
A47: 42
A48: 28
A49: 23
A50: 19
A51: 37
A52: 38
A53: 50
A54: 26
A55: 33
A56: 59
A57: 32
A58: 27
A59: 54
A60: 63
A61: 48
A62: 29
A63: 38
A64: 24
A65: 51
A66: 25
A67: 65
A68: 35
A69: 35
A70: 21
A71: 47
A72: 62
A73: 63
A74: 23
A75: 59
A76: 48
A77: 57
A78: 19
A79: 48
A80: 21
A81: 40
A82: 25
A83: 59
A84: 57
A85: 56
A86: 19
A87: 54
A88: 65
A89: 25
A90: 30
A91: 57
A92: 43
A93: 44
A94: 21
A95: 20
A96: 49
A97: 37
A98: 26
A99: 62
A100: 38
A101: 55
A102: 24
A103: 30
A104: 39
A105: 59
A106: 26
A107: 33
A108: 20
A109: 18
A110: 19
A111: 61
A112: 39
A113: 52
A114: 20
A115: 50
A116: 29
A117: 55
A118: 18
A119: 39
A120: 35
A121: 38
A122: 20
A123: 60
A124: 61
A125: 62
A126: 21
A127: 40
A128: 25
A129: 50
A130: 24
A131: 28
A132: 22
A133: 22
A134: 27
A135: 54
A136: 25
A137: 25
A138: 30
A139: 59
A140: 51
A141: 38
A142: 28
A143: 30
A144: 43
A145: 42
A146: 24
A147: 47
A148: 23
A149: 59
A150: 22
A151: 27
A152: 65
A153: 27
A154: 27
A155: 28
A156: 22
A157: 42
A158: 25
A159: 41
A160: 46
A161: 41
A162: 29
A163: 50
A164: 50
A165: 34
A166: 24
A167: 29
A168: 35
A169: 24
A170: 23
A171: 31
A172: 24
A173: 30
A174: 22
A175: 43
A176: 55
A177: 38
A178: 28
A179: 30
A180: 35
A181: 41
A182: 28
A183: 65
A184: 20
A185: 39
A186: 19
A187: 64
A188: 42
A189: 24
A190: 24
A191: 18
A192: 36
A193: 61
A194: 22
A195: 55
A196: 27
A197: 49
A198: 29
A199: 33
A200: 52
... 1 more rows

Sheet ConstructFD (an)
A1: Age | C1: Step 1: Determine Number of Classes using the guide: 2^k > n
A2: 21 | C2: COUNT function = No. in Sample = n = | D2: =COUNT(A2:A201) -> 200
A3: 57 | C3: k = No. Classes = | D3: 11 | E3: This is a judgment call (the art side of statistics)
A4: 25 | C4: 2^7 = | D4: =2^D3 -> 2048
A5: 38 | C5: Step 2: Determine width of Classes
A6: 22 | C6: MAX | D6: =MAX(A2:A201) -> 65 | E6: MIN | F6: =MIN(A2:A201) -> 18
A7: 29 | C7: "Range of ages" | D7: =D6-F6 -> 47
A8: 18 | C8: Approximate width = | D8: =D7/D3 -> 4.272727273
A9: 64 | C9: Width of Class (Increment for each class) | D9: 5 | E9: This is a judgment call (the art side of statistics)
A10: 27 | C10: "Range for classes" = ClassWidth*k = | D10: =D9*D3 -> 55
A11: 22 | C11: "Range for classes" > "Range of ages"? | D11: =D10>D7 -> TRUE | E11: Must be bigger than "Range of ages"
A12: 39 | C12: Step 3: Determine Class Limits
A13: 61 | C13: Lower Limit of First Class (look at MIN then estimate) | D13: 15 | E13: This is a judgment call (the art side of statistics)
A14: 18
A15: 22
A16: 52 | D16: Lower | E16: Upper | F16: Age Class | G16: Frequency
A17: 22 | D17: =D13 -> 15 | E17: =D17+$D$9-1 -> 19 | F17: =D17&" - "&E17 -> 15 - 19 | G17: =COUNTIFS($A$2:$A$201,">="&D17,$A$2:$A$201,"<="&E17) -> 13
A18: 18 | D18: =E17+1 -> 20 | E18: =D18+$D$9-1 -> 24 | F18: =D18&" - "&E18 -> 20 - 24 | G18: =COUNTIFS($A$2:$A$201,">="&D18,$A$2:$A$201,"<="&E18) -> 38
A19: 55 | D19: =E18+1 -> 25 | E19: =D19+$D$9-1 -> 29 | F19: 25 - 29 | G19: 35
A20: 20 | D20: 30 | E20: 34 | F20: 30 - 34 | G20: 17
A21: 42 | D21: 35 | E21: 39 | F21: 35 - 39 | G21: 20
A22: 30 | D22: 40 | E22: 44 | F22: 40 - 44 | G22: 16
A23: 64 | D23: 45 | E23: 49 | F23: 45 - 49 | G23: 8
A24: 63 | D24: 50 | E24: 54 | F24: 50 - 54 | G24: 15
A25: 41 | D25: 55 | E25: 59 | F25: 55 - 59 | G25: 17
A26: 21 | D26: 60 | E26: 64 | F26: 60 - 64 | G26: 17
A27: 63 | D27: 65 | E27: 69 | F27: 65 - 69 | G27: 4
A28: 54 | G28: =SUM(G17:G27) -> 200
A29: 18
A30: 26
A31: 59
A32: 30
A33: 64
A34: 30
A35: 41
A36: 23
A37: 52
A38: 18
A39: 32
A40: 22
A41: 29
A42: 25
A43: 63
A44: 26
A45: 31
A46: 23
A47: 42
A48: 28
A49: 23
A50: 19
A51: 37
A52: 38
A53: 50
A54: 26
A55: 33
A56: 59
A57: 32
A58: 27
A59: 54
A60: 63
A61: 48
A62: 29
A63: 38
A64: 24
A65: 51
A66: 25
A67: 65
A68: 35
A69: 35
A70: 21
A71: 47
A72: 62
A73: 63
A74: 23
A75: 59
A76: 48
A77: 57
A78: 19
A79: 48
A80: 21
A81: 40
A82: 25
A83: 59
A84: 57
A85: 56
A86: 19
A87: 54
A88: 65
A89: 25
A90: 30
A91: 57
A92: 43
A93: 44
A94: 21
A95: 20
A96: 49
A97: 37
A98: 26
A99: 62
A100: 38
A101: 55
A102: 24
A103: 30
A104: 39
A105: 59
A106: 26
A107: 33
A108: 20
A109: 18
A110: 19
A111: 61
A112: 39
A113: 52
A114: 20
A115: 50
A116: 29
A117: 55
A118: 18
A119: 39
A120: 35
A121: 38
A122: 20
A123: 60
A124: 61
A125: 62
A126: 21
A127: 40
A128: 25
A129: 50
A130: 24
A131: 28
A132: 22
A133: 22
A134: 27
A135: 54
A136: 25
A137: 25
A138: 30
A139: 59
A140: 51
A141: 38
A142: 28
A143: 30
A144: 43
A145: 42
A146: 24
A147: 47
A148: 23
A149: 59
A150: 22
A151: 27
A152: 65
A153: 27
A154: 27
A155: 28
A156: 22
A157: 42
A158: 25
A159: 41
A160: 46
A161: 41
A162: 29
A163: 50
A164: 50
A165: 34
A166: 24
A167: 29
A168: 35
A169: 24
A170: 23
A171: 31
A172: 24
A173: 30
A174: 22
A175: 43
A176: 55
A177: 38
A178: 28
A179: 30
A180: 35
A181: 41
A182: 28
A183: 65
A184: 20
A185: 39
A186: 19
A187: 64
A188: 42
A189: 24
A190: 24
A191: 18
A192: 36
A193: 61
A194: 22
A195: 55
A196: 27
A197: 49
A198: 29
A199: 33
A200: 52
... 1 more rows

Sheet FD & Charts - PT
A1: Region | B1: Revenue | C1: Age
A2: West | B2: 45.9 | C2: 21
A3: West | B3: 19.95 | C3: 57
A4: East | B4: 21.95 | C4: 25
A5: West | B5: 19.95 | C5: 38
A6: West | B6: 79.8 | C6: 22
A7: South | B7: 79.8 | C7: 29
A8: West | B8: 59.85 | C8: 18
A9: West | B9: 139.65 | C9: 64
A10: West | B10: 119.7 | C10: 27
A11: West | B11: 43.9 | C11: 22
A12: Mid West | B12: 43.9 | C12: 39
A13: Mid West | B13: 99.75 | C13: 61
A14: Mid West | B14: 114.75 | C14: 18
A15: West | B15: 91.8 | C15: 22
A16: Mid West | B16: 114.75 | C16: 52
A17: West | B17: 22.95 | C17: 22
A18: West | B18: 124.75 | C18: 18
A19: South | B19: 19.95 | C19: 55
A20: East | B20: 87.8 | C20: 20
A21: Mid West | B21: 22.95 | C21: 42
A22: South | B22: 299.5 | C22: 30
A23: Mid West | B23: 19.95 | C23: 64
A24: Mid West | B24: 99.75 | C24: 63
A25: South | B25: 39.9 | C25: 41
A26: East | B26: 65.85 | C26: 21
A27: East | B27: 24.95 | C27: 63
A28: West | B28: 21.95 | C28: 54
A29: West | B29: 19.95 | C29: 18
A30: West | B30: 91.8 | C30: 26
A31: Mid West | B31: 65.85 | C31: 59
A32: West | B32: 39.9 | C32: 30
A33: West | B33: 43.9 | C33: 64
A34: West | B34: 65.85 | C34: 30
A35: West | B35: 43.9 | C35: 41
A36: South | B36: 99.75 | C36: 23
A37: West | B37: 29.95 | C37: 52
A38: West | B38: 65.85 | C38: 18
A39: West | B39: 22.95 | C39: 32
A40: Mid West | B40: 19.95 | C40: 22
A41: South | B41: 99.75 | C41: 29
A42: Mid West | B42: 124.75 | C42: 25
A43: West | B43: 21.95 | C43: 63
A44: Mid West | B44: 174.65 | C44: 26
A45: West | B45: 29.95 | C45: 31
A46: Mid West | B46: 149.75 | C46: 23
A47: Mid West | B47: 29.95 | C47: 42
A48: East | B48: 45.9 | C48: 28
A49: West | B49: 160.65 | C49: 23
A50: Mid West | B50: 160.65 | C50: 19
A51: West | B51: 119.7 | C51: 37
A52: East | B52: 43.9 | C52: 38
A53: Mid West | B53: 119.7 | C53: 50
A54: West | B54: 65.85 | C54: 26
A55: South | B55: 22.95 | C55: 33
A56: Mid West | B56: 65.85 | C56: 59
A57: Mid West | B57: 109.75 | C57: 32
A58: Mid West | B58: 114.75 | C58: 27
A59: West | B59: 249.5 | C59: 54
A60: West | B60: 109.75 | C60: 63
A61: East | B61: 114.75 | C61: 48
A62: East | B62: 114.75 | C62: 29
A63: West | B63: 119.8 | C63: 38
A64: East | B64: 29.95 | C64: 24
A65: West | B65: 114.75 | C65: 51
A66: West | B66: 209.65 | C66: 25
A67: West | B67: 114.75 | C67: 65
A68: Mid West | B68: 59.85 | C68: 35
A69: East | B69: 124.75 | C69: 35
A70: Mid West | B70: 39.9 | C70: 21
A71: West | B71: 124.75 | C71: 47
A72: East | B72: 24.95 | C72: 62
A73: East | B73: 22.95 | C73: 63
A74: Mid West | B74: 249.5 | C74: 23
A75: South | B75: 59.85 | C75: 59
A76: West | B76: 43.9 | C76: 48
A77: South | B77: 19.95 | C77: 57
A78: Mid West | B78: 29.95 | C78: 19
A79: Mid West | B79: 19.95 | C79: 48
A80: South | B80: 65.85 | C80: 21
A81: West | B81: 22.95 | C81: 40
A82: Mid West | B82: 79.8 | C82: 25
A83: South | B83: 79.8 | C83: 59
A84: West | B84: 114.75 | C84: 57
A85: West | B85: 22.95 | C85: 56
A86: West | B86: 19.95 | C86: 19
A87: Mid West | B87: 109.75 | C87: 54
A88: Mid West | B88: 59.9 | C88: 65
A89: West | B89: 43.9 | C89: 25
A90: West | B90: 39.9 | C90: 30
A91: West | B91: 209.65 | C91: 57
A92: West | B92: 19.95 | C92: 43
A93: South | B93: 79.8 | C93: 44
A94: East | B94: 124.75 | C94: 21
A95: West | B95: 24.95 | C95: 20
A96: West | B96: 160.65 | C96: 49
A97: South | B97: 65.85 | C97: 37
A98: West | B98: 137.7 | C98: 26
A99: East | B99: 29.95 | C99: 62
A100: West | B100: 119.7 | C100: 38
A101: West | B101: 19.95 | C101: 55
A102: East | B102: 39.9 | C102: 24
A103: Mid West | B103: 114.75 | C103: 30
A104: Mid West | B104: 21.95 | C104: 39
A105: South | B105: 179.7 | C105: 59
A106: East | B106: 39.9 | C106: 26
A107: Mid West | B107: 24.95 | C107: 33
A108: West | B108: 99.8 | C108: 20
A109: West | B109: 87.8 | C109: 18
A110: East | B110: 39.9 | C110: 19
A111: West | B111: 65.85 | C111: 61
A112: East | B112: 199.5 | C112: 39
A113: West | B113: 21.95 | C113: 52
A114: West | B114: 124.75 | C114: 20
A115: West | B115: 29.95 | C115: 50
A116: South | B116: 21.95 | C116: 29
A117: West | B117: 119.8 | C117: 55
A118: West | B118: 89.85 | C118: 18
A119: Mid West | B119: 65.85 | C119: 39
A120: South | B120: 91.8 | C120: 35
A121: South | B121: 149.7 | C121: 38
A122: East | B122: 59.85 | C122: 20
A123: Mid West | B123: 131.7 | C123: 60
A124: Mid West | B124: 49.9 | C124: 61
A125: West | B125: 43.9 | C125: 62
A126: Mid West | B126: 19.95 | C126: 21
A127: South | B127: 21.95 | C127: 40
A128: West | B128: 24.95 | C128: 25
A129: West | B129: 39.9 | C129: 50
A130: West | B130: 24.95 | C130: 24
A131: West | B131: 114.75 | C131: 28
A132: Mid West | B132: 119.7 | C132: 22
A133: West | B133: 43.9 | C133: 22
A134: West | B134: 24.95 | C134: 27
A135: West | B135: 174.65 | C135: 54
A136: West | B136: 24.95 | C136: 25
A137: Mid West | B137: 49.9 | C137: 25
A138: East | B138: 19.95 | C138: 30
A139: South | B139: 39.9 | C139: 59
A140: West | B140: 45.9 | C140: 51
A141: West | B141: 179.7 | C141: 38
A142: South | B142: 160.65 | C142: 28
A143: West | B143: 21.95 | C143: 30
A144: South | B144: 124.75 | C144: 43
A145: West | B145: 89.85 | C145: 42
A146: Mid West | B146: 49.9 | C146: 24
A147: Mid West | B147: 22.95 | C147: 47
A148: Mid West | B148: 19.95 | C148: 23
A149: East | B149: 99.75 | C149: 59
A150: West | B150: 91.8 | C150: 22
A151: Mid West | B151: 49.9 | C151: 27
A152: East | B152: 21.95 | C152: 65
A153: Mid West | B153: 45.9 | C153: 27
A154: East | B154: 22.95 | C154: 27
A155: West | B155: 45.9 | C155: 28
A156: West | B156: 24.95 | C156: 22
A157: East | B157: 39.9 | C157: 42
A158: East | B158: 179.7 | C158: 25
A159: West | B159: 21.95 | C159: 41
A160: West | B160: 24.95 | C160: 46
A161: West | B161: 74.85 | C161: 41
A162: West | B162: 79.8 | C162: 29
A163: Mid West | B163: 19.95 | C163: 50
A164: Mid West | B164: 22.95 | C164: 50
A165: Mid West | B165: 45.9 | C165: 34
A166: West | B166: 65.85 | C166: 24
A167: West | B167: 139.65 | C167: 29
A168: Mid West | B168: 22.95 | C168: 35
A169: West | B169: 39.9 | C169: 24
A170: South | B170: 109.75 | C170: 23
A171: Mid West | B171: 160.65 | C171: 31
A172: Mid West | B172: 49.9 | C172: 24
A173: Mid West | B173: 22.95 | C173: 30
A174: West | B174: 45.9 | C174: 22
A175: East | B175: 68.85 | C175: 43
A176: West | B176: 229.5 | C176: 55
A177: West | B177: 29.95 | C177: 38
A178: West | B178: 39.9 | C178: 28
A179: Mid West | B179: 43.9 | C179: 30
A180: West | B180: 19.95 | C180: 35
A181: West | B181: 59.9 | C181: 41
A182: East | B182: 99.75 | C182: 28
A183: Mid West | B183: 174.65 | C183: 65
A184: West | B184: 65.85 | C184: 20
A185: Mid West | B185: 124.75 | C185: 39
A186: East | B186: 87.8 | C186: 19
A187: West | B187: 229.5 | C187: 64
A188: South | B188: 99.75 | C188: 42
A189: Mid West | B189: 19.95 | C189: 24
A190: Mid West | B190: 19.95 | C190: 24
A191: Mid West | B191: 99.8 | C191: 18
A192: East | B192: 24.95 | C192: 36
A193: Mid West | B193: 114.75 | C193: 61
A194: West | B194: 59.85 | C194: 22
A195: West | B195: 43.9 | C195: 55
A196: West | B196: 74.85 | C196: 27
A197: Mid West | B197: 19.95 | C197: 49
A198: West | B198: 22.95 | C198: 29
A199: West | B199: 153.65 | C199: 33
A200: West | B200: 39.9 | C200: 52
... 1 more rows

Sheet FD & Charts - PT (an)
A1: Region | B1: Revenue | C1: Age
A2: West | B2: 45.9 | C2: 21
A3: West | B3: 19.95 | C3: 57
A4: East | B4: 21.95 | C4: 25
A5: West | B5: 19.95 | C5: 38
A6: West | B6: 79.8 | C6: 22
A7: South | B7: 79.8 | C7: 29
A8: West | B8: 59.85 | C8: 18
A9: West | B9: 139.65 | C9: 64
A10: West | B10: 119.7 | C10: 27
A11: West | B11: 43.9 | C11: 22
A12: Mid West | B12: 43.9 | C12: 39
A13: Mid West | B13: 99.75 | C13: 61
A14: Mid West | B14: 114.75 | C14: 18
A15: West | B15: 91.8 | C15: 22
A16: Mid West | B16: 114.75 | C16: 52
A17: West | B17: 22.95 | C17: 22
A18: West | B18: 124.75 | C18: 18
A19: South | B19: 19.95 | C19: 55
A20: East | B20: 87.8 | C20: 20
A21: Mid West | B21: 22.95 | C21: 42
A22: South | B22: 299.5 | C22: 30
A23: Mid West | B23: 19.95 | C23: 64
A24: Mid West | B24: 99.75 | C24: 63
A25: South | B25: 39.9 | C25: 41
A26: East | B26: 65.85 | C26: 21
A27: East | B27: 24.95 | C27: 63
A28: West | B28: 21.95 | C28: 54
A29: West | B29: 19.95 | C29: 18
A30: West | B30: 91.8 | C30: 26
A31: Mid West | B31: 65.85 | C31: 59
A32: West | B32: 39.9 | C32: 30
A33: West | B33: 43.9 | C33: 64
A34: West | B34: 65.85 | C34: 30
A35: West | B35: 43.9 | C35: 41
A36: South | B36: 99.75 | C36: 23
A37: West | B37: 29.95 | C37: 52
A38: West | B38: 65.85 | C38: 18
A39: West | B39: 22.95 | C39: 32
A40: Mid West | B40: 19.95 | C40: 22
A41: South | B41: 99.75 | C41: 29
A42: Mid West | B42: 124.75 | C42: 25
A43: West | B43: 21.95 | C43: 63
A44: Mid West | B44: 174.65 | C44: 26
A45: West | B45: 29.95 | C45: 31
A46: Mid West | B46: 149.75 | C46: 23
A47: Mid West | B47: 29.95 | C47: 42
A48: East | B48: 45.9 | C48: 28
A49: West | B49: 160.65 | C49: 23
A50: Mid West | B50: 160.65 | C50: 19
A51: West | B51: 119.7 | C51: 37
A52: East | B52: 43.9 | C52: 38
A53: Mid West | B53: 119.7 | C53: 50
A54: West | B54: 65.85 | C54: 26
A55: South | B55: 22.95 | C55: 33
A56: Mid West | B56: 65.85 | C56: 59
A57: Mid West | B57: 109.75 | C57: 32
A58: Mid West | B58: 114.75 | C58: 27
A59: West | B59: 249.5 | C59: 54
A60: West | B60: 109.75 | C60: 63
A61: East | B61: 114.75 | C61: 48
A62: East | B62: 114.75 | C62: 29
A63: West | B63: 119.8 | C63: 38
A64: East | B64: 29.95 | C64: 24
A65: West | B65: 114.75 | C65: 51
A66: West | B66: 209.65 | C66: 25
A67: West | B67: 114.75 | C67: 65
A68: Mid West | B68: 59.85 | C68: 35
A69: East | B69: 124.75 | C69: 35
A70: Mid West | B70: 39.9 | C70: 21
A71: West | B71: 124.75 | C71: 47
A72: East | B72: 24.95 | C72: 62
A73: East | B73: 22.95 | C73: 63
A74: Mid West | B74: 249.5 | C74: 23
A75: South | B75: 59.85 | C75: 59
A76: West | B76: 43.9 | C76: 48
A77: South | B77: 19.95 | C77: 57
A78: Mid West | B78: 29.95 | C78: 19
A79: Mid West | B79: 19.95 | C79: 48
A80: South | B80: 65.85 | C80: 21
A81: West | B81: 22.95 | C81: 40
A82: Mid West | B82: 79.8 | C82: 25
A83: South | B83: 79.8 | C83: 59
A84: West | B84: 114.75 | C84: 57
A85: West | B85: 22.95 | C85: 56
A86: West | B86: 19.95 | C86: 19
A87: Mid West | B87: 109.75 | C87: 54
A88: Mid West | B88: 59.9 | C88: 65
A89: West | B89: 43.9 | C89: 25
A90: West | B90: 39.9 | C90: 30
A91: West | B91: 209.65 | C91: 57
A92: West | B92: 19.95 | C92: 43
A93: South | B93: 79.8 | C93: 44
A94: East | B94: 124.75 | C94: 21
A95: West | B95: 24.95 | C95: 20
A96: West | B96: 160.65 | C96: 49
A97: South | B97: 65.85 | C97: 37
A98: West | B98: 137.7 | C98: 26
A99: East | B99: 29.95 | C99: 62
A100: West | B100: 119.7 | C100: 38
A101: West | B101: 19.95 | C101: 55
A102: East | B102: 39.9 | C102: 24
A103: Mid West | B103: 114.75 | C103: 30
A104: Mid West | B104: 21.95 | C104: 39
A105: South | B105: 179.7 | C105: 59
A106: East | B106: 39.9 | C106: 26
A107: Mid West | B107: 24.95 | C107: 33
A108: West | B108: 99.8 | C108: 20
A109: West | B109: 87.8 | C109: 18
A110: East | B110: 39.9 | C110: 19
A111: West | B111: 65.85 | C111: 61
A112: East | B112: 199.5 | C112: 39
A113: West | B113: 21.95 | C113: 52
A114: West | B114: 124.75 | C114: 20
A115: West | B115: 29.95 | C115: 50
A116: South | B116: 21.95 | C116: 29
A117: West | B117: 119.8 | C117: 55
A118: West | B118: 89.85 | C118: 18
A119: Mid West | B119: 65.85 | C119: 39
A120: South | B120: 91.8 | C120: 35
A121: South | B121: 149.7 | C121: 38
A122: East | B122: 59.85 | C122: 20
A123: Mid West | B123: 131.7 | C123: 60
A124: Mid West | B124: 49.9 | C124: 61
A125: West | B125: 43.9 | C125: 62
A126: Mid West | B126: 19.95 | C126: 21
A127: South | B127: 21.95 | C127: 40
A128: West | B128: 24.95 | C128: 25
A129: West | B129: 39.9 | C129: 50
A130: West | B130: 24.95 | C130: 24
A131: West | B131: 114.75 | C131: 28
A132: Mid West | B132: 119.7 | C132: 22
A133: West | B133: 43.9 | C133: 22
A134: West | B134: 24.95 | C134: 27
A135: West | B135: 174.65 | C135: 54
A136: West | B136: 24.95 | C136: 25
A137: Mid West | B137: 49.9 | C137: 25
A138: East | B138: 19.95 | C138: 30
A139: South | B139: 39.9 | C139: 59
A140: West | B140: 45.9 | C140: 51
A141: West | B141: 179.7 | C141: 38
A142: South | B142: 160.65 | C142: 28
A143: West | B143: 21.95 | C143: 30
A144: South | B144: 124.75 | C144: 43
A145: West | B145: 89.85 | C145: 42
A146: Mid West | B146: 49.9 | C146: 24
A147: Mid West | B147: 22.95 | C147: 47
A148: Mid West | B148: 19.95 | C148: 23
A149: East | B149: 99.75 | C149: 59
A150: West | B150: 91.8 | C150: 22
A151: Mid West | B151: 49.9 | C151: 27
A152: East | B152: 21.95 | C152: 65
A153: Mid West | B153: 45.9 | C153: 27
A154: East | B154: 22.95 | C154: 27
A155: West | B155: 45.9 | C155: 28
A156: West | B156: 24.95 | C156: 22
A157: East | B157: 39.9 | C157: 42
A158: East | B158: 179.7 | C158: 25
A159: West | B159: 21.95 | C159: 41
A160: West | B160: 24.95 | C160: 46
A161: West | B161: 74.85 | C161: 41
A162: West | B162: 79.8 | C162: 29
A163: Mid West | B163: 19.95 | C163: 50
A164: Mid West | B164: 22.95 | C164: 50
A165: Mid West | B165: 45.9 | C165: 34
A166: West | B166: 65.85 | C166: 24
A167: West | B167: 139.65 | C167: 29
A168: Mid West | B168: 22.95 | C168: 35
A169: West | B169: 39.9 | C169: 24
A170: South | B170: 109.75 | C170: 23
A171: Mid West | B171: 160.65 | C171: 31
A172: Mid West | B172: 49.9 | C172: 24
A173: Mid West | B173: 22.95 | C173: 30
A174: West | B174: 45.9 | C174: 22
A175: East | B175: 68.85 | C175: 43
A176: West | B176: 229.5 | C176: 55
A177: West | B177: 29.95 | C177: 38
A178: West | B178: 39.9 | C178: 28
A179: Mid West | B179: 43.9 | C179: 30
A180: West | B180: 19.95 | C180: 35
A181: West | B181: 59.9 | C181: 41
A182: East | B182: 99.75 | C182: 28
A183: Mid West | B183: 174.65 | C183: 65
A184: West | B184: 65.85 | C184: 20
A185: Mid West | B185: 124.75 | C185: 39
A186: East | B186: 87.8 | C186: 19
A187: West | B187: 229.5 | C187: 64
A188: South | B188: 99.75 | C188: 42
A189: Mid West | B189: 19.95 | C189: 24
A190: Mid West | B190: 19.95 | C190: 24
A191: Mid West | B191: 99.8 | C191: 18
A192: East | B192: 24.95 | C192: 36
A193: Mid West | B193: 114.75 | C193: 61
A194: West | B194: 59.85 | C194: 22
A195: West | B195: 43.9 | C195: 55
A196: West | B196: 74.85 | C196: 27
A197: Mid West | B197: 19.95 | C197: 49
A198: West | B198: 22.95 | C198: 29
A199: West | B199: 153.65 | C199: 33
A200: West | B200: 39.9 | C200: 52
... 1 more rows

Sheet F or PT
A2: Product | B2: Frequency | E2: Product | F2: Frequency
A3: Carlota | B3: =COUNTIF($B$10:$B$18,A3) -> 2 | E3: Carlota | F3: 2
A4: Quad | B4: =COUNTIF($B$10:$B$18,A4) -> 3 | E4: Quad | F4: 3
A5: Yanaki | B5: =COUNTIF($B$10:$B$18,A5) -> 2 | E5: Sunshine | F5: 2
A6: Sunshine | B6: =COUNTIF($B$10:$B$18,A6) -> 2 | E6: Yanaki | F6: 2
A7: Total | B7: =SUM(B3:B6) -> 9 | E7: Grand Total | F7: 9
A9: Date | B9: Product | C9: Sales
A10: 2011-06-24 | B10: Carlota | C10: 156
A11: 2011-06-25 | B11: Quad | C11: 342
A12: 2011-06-26 | B12: Quad | C12: 441
A13: 2011-06-27 | B13: Carlota | C13: 136
A14: 2011-06-28 | B14: Yanaki | C14: 265
A15: 2011-06-29 | B15: Sunshine | C15: 181
A16: 2011-06-30 | B16: Sunshine | C16: 189
A17: 2011-07-01 | B17: Yanaki | C17: 188
A18: 2011-07-02 | B18: Quad | C18: 416

Sheet F or PT (an)
A2: Product | B2: Frequency | E2: Product | F2: Frequency
A3: Carlota | B3: =COUNTIF($B$10:$B$19,A3) -> 2 | E3: Carlota | F3: 2
A4: Quad | B4: =COUNTIF($B$10:$B$19,A4) -> 4 | E4: Quad | F4: 4
A5: Yanaki | B5: =COUNTIF($B$10:$B$19,A5) -> 2 | E5: Sunshine | F5: 2
A6: Sunshine | B6: =COUNTIF($B$10:$B$19,A6) -> 2 | E6: Yanaki | F6: 2
A7: Total | B7: =SUM(B3:B6) -> 10 | E7: Grand Total | F7: 10
A9: Date | B9: Product | C9: Sales
A10: 2011-06-24 | B10: Carlota | C10: 156
A11: 2011-06-25 | B11: Quad | C11: 342
A12: 2011-06-26 | B12: Quad | C12: 441
A13: 2011-06-27 | B13: Carlota | C13: 136
A14: 2011-06-28 | B14: Yanaki | C14: 265
A15: 2011-06-29 | B15: Sunshine | C15: 181
A16: 2011-06-30 | B16: Sunshine | C16: 189
A17: 2011-07-01 | B17: Yanaki | C17: 188
A18: 2011-07-02 | B18: Quad | C18: 416
A19: 2011-07-02 | B19: Quad | C19: 400

Sheet Other
A1: If the Category or class has less than 5% of the frequencies, most statisticians would say that you should group the data into an Other Category
A2: When grouping mutually exclusive categories together with a formula, you can use 2 or more COUNTIF functions in a formula and simply add them.
A3: When grouping mutually exclusive categories together in a Pivot Table, highlight the two categories and right-click then point to Group. You may have to click the collapse button ( - ).
A5: Dissatisfaction with Boomerang Purchased
A6: Broken When Thrown | C6: Category: Reason For Dissatisfaction | D6: Frequency | E6: % Frequency | G6: All The Categories | H6: % Frequency
A7: Bad Finish | C7: Bad Finish | D7: =COUNTIF($A$6:$A$51,C7) -> 21 | E7: =D7/$D$13 -> 0.4565217391 | G7: Bad Finish | H7: =COUNTIF($A$6:$A$51,G7)/COUNTA($A$6:$A$51) -> 0.4565217391
A8: Unattractive Design | C8: Unattractive Design | D8: 9 | E8: 0.1956521739 | G8: Unattractive Design | H8: 0.1956521739
A9: Unattractive Design | C9: Did Not Work | D9: 9 | E9: 0.1956521739 | G9: Did Not Work | H9: 0.1956521739
A10: Bad Finish | C10: Broken When Thrown | D10: 4 | E10: 0.08695652174 | G10: Broken When Thrown | H10: 0.08695652174
A11: Did Not Work | C11: Rough Wood | D11: 2 | E11: 0.04347826087 | G11: Rough Wood | H11: 0.04347826087
A12: Did Not Work | C12: No Instructions | D12: 1 | E12: 0.02173913043 | G12: No Instructions | H12: 0.02173913043
A13: Unattractive Design | C13: Total | D13: =COUNTA($A$6:$A$51) -> 46 | E13: =SUM(E7:E12) -> 1
A14: Bad Finish | H14: =SUM(H7:H12) -> 1
A15: Did Not Work | C15: Category: Reason For Dissatisfaction | D15: Frequency | E15: % Frequency
A16: Unattractive Design | C16: Bad Finish | D16: =COUNTIF($A$6:$A$51,C16) -> 21 | E16: =D16/$D$13 -> 0.4565217391
A17: Bad Finish | C17: Unattractive Design
A18: Did Not Work | C18: Did Not Work
A19: Rough Wood | C19: Broken When Thrown
A20: Bad Finish | C20: Other
A21: Bad Finish | C21: Total | D21: =COUNTA($A$6:$A$51) -> 46 | E21: =SUM(E16:E20) -> 0.4565217391
A22: Bad Finish
A23: Bad Finish
A24: Bad Finish
A25: Broken When Thrown
A26: Did Not Work
A27: Unattractive Design
A28: Unattractive Design
A29: Bad Finish
A30: Bad Finish
A31: Bad Finish
A32: Bad Finish
A33: Bad Finish
A34: Rough Wood
A35: Unattractive Design
A36: Did Not Work
A37: Did Not Work
A38: No Instructions
A39: Bad Finish
A40: Bad Finish
A41: Bad Finish
A42: Bad Finish
A43: Bad Finish
A44: Bad Finish
A45: Unattractive Design
A46: Broken When Thrown
A47: Unattractive Design
A48: Did Not Work
A49: Bad Finish
A50: Broken When Thrown
A51: Did Not Work

Sheet Other (an)
A1: If the Category or class has less than 5% of the frequencies, most statisticians would say that you should group the data into an Other Category
A2: When grouping mutually exclusive categories together with a formula, you can use 2 or more COUNTIF functions in a formula and simply add them.
A3: When grouping mutually exclusive categories together in a Pivot Table, highlight the two categories and right-click then point to Group. You may have to click the collapse button ( - ).
A5: Dissatisfaction with Boomerang Purchased
A6: Broken When Thrown | C6: Category: Reason For Dissatisfaction | D6: Frequency | E6: % Frequency | G6: All The Categories | H6: % Frequency
A7: Bad Finish | C7: Bad Finish | D7: =COUNTIF($A$6:$A$51,C7) -> 21 | E7: =D7/$D$13 -> 0.4565217391 | G7: Bad Finish | H7: =COUNTIF($A$6:$A$51,G7)/COUNTA($A$6:$A$51) -> 0.4565217391
A8: Unattractive Design | C8: Unattractive Design | D8: 9 | E8: 0.1956521739 | G8: Unattractive Design | H8: 0.1956521739
A9: Unattractive Design | C9: Did Not Work | D9: 9 | E9: 0.1956521739 | G9: Did Not Work | H9: 0.1956521739
A10: Bad Finish | C10: Broken When Thrown | D10: 4 | E10: 0.08695652174 | G10: Broken When Thrown | H10: 0.08695652174
A11: Did Not Work | C11: Rough Wood | D11: 2 | E11: 0.04347826087 | G11: Rough Wood | H11: 0.04347826087
A12: Did Not Work | C12: No Instructions | D12: 1 | E12: 0.02173913043 | G12: No Instructions | H12: 0.02173913043
A13: Unattractive Design | C13: Total | D13: =COUNTA($A$6:$A$51) -> 46 | E13: =SUM(E7:E12) -> 1
A14: Bad Finish | H14: =SUM(H7:H12) -> 1
A15: Did Not Work | C15: Category: Reason For Dissatisfaction | D15: Frequency | E15: % Frequency
A16: Unattractive Design | C16: Bad Finish | D16: =COUNTIF($A$6:$A$51,C16) -> 21 | E16: =D16/$D$13 -> 0.4565217391
A17: Bad Finish | C17: Unattractive Design | D17: =COUNTIF($A$6:$A$51,C17) -> 9 | E17: =D17/$D$13 -> 0.1956521739
A18: Did Not Work | C18: Did Not Work | D18: =COUNTIF($A$6:$A$51,C18) -> 9 | E18: =D18/$D$13 -> 0.1956521739
A19: Rough Wood | C19: Broken When Thrown | D19: =COUNTIF($A$6:$A$51,C19) -> 4 | E19: =D19/$D$13 -> 0.08695652174
A20: Bad Finish | C20: Other | D20: =COUNTIF($A$6:$A$51,G11)+COUNTIF($A$6:$A$51,G12) -> 3 | E20: =D20/$D$13 -> 0.0652173913
A21: Bad Finish | C21: Total | D21: =COUNTA($A$6:$A$51) -> 46 | E21: =SUM(E16:E20) -> 1
A22: Bad Finish
A23: Bad Finish | C23: Row Labels | D23: Frequency
A24: Bad Finish | C24: Bad Finish | D24: 21
A25: Broken When Thrown | C25: Unattractive Design | D25: 9
A26: Did Not Work | C26: Did Not Work | D26: 9
A27: Unattractive Design | C27: Broken When Thrown | D27: 4
A28: Unattractive Design | C28: Other | D28: 3
A29: Bad Finish | C29: Grand Total | D29: 46
A30: Bad Finish
A31: Bad Finish
A32: Bad Finish
A33: Bad Finish
A34: Rough Wood
A35: Unattractive Design
A36: Did Not Work
A37: Did Not Work
A38: No Instructions
A39: Bad Finish
A40: Bad Finish
A41: Bad Finish
A42: Bad Finish
A43: Bad Finish
A44: Bad Finish
A45: Unattractive Design
A46: Broken When Thrown
A47: Unattractive Design
A48: Did Not Work
A49: Bad Finish
A50: Broken When Thrown
A51: Did Not Work

Sheet FREQUENCY
A1: Revenue | E1: Upper end is included, Lower End is not
A2: 45.9 | C2: bins (Upper Limits) | E2: Categories for FREQUENCY function | F2: Frequency
A3: 19.95 | C3: 50 | E3: ="Rev <= "&C3 -> Rev <= 50
A4: 21.95 | C4: 100 | E4: =C3&" < Rev <= "&C4 -> 50 < Rev <= 100
A5: 19.95 | C5: 150 | E5: =C4&" < Rev <= "&C5 -> 100 < Rev <= 150
A6: 79.8 | C6: 200 | E6: =C5&" < Rev <= "&C6 -> 150 < Rev <= 200
A7: 79.8 | C7: 250 | E7: =C6&" < Rev <= "&C7 -> 200 < Rev <= 250
A8: 59.85 | C8: 300 | E8: =C7&" < Rev <= "&C8 -> 250 < Rev <= 300
A9: 139.65 | E9: ="Rev > "&C8 -> Rev > 300
A10: 119.7
A11: 43.9 | E11: Steps for FREQUENCY array Function:
A12: 43.9 | D12: 1 | E12: **Highlight one more cell than there are bins
A13: 99.75 | D13: 2 | E13: Create formula: =FREQUENCY(A2:A201,C3:C8)
A14: 114.75 | D14: 3 | E14: Enter formula into range with keystrokes: Ctrl + Shift + Enter
A15: 91.8 | D15: 4 | E15: Curly brackets are added automatically
A16: 114.75 | D16: 5 | E16: The advantage to FREQUENCY is that if you don't have enough bins, it will cath any values on the low or high end
A17: 22.95
A18: 124.75
A19: 19.95
A20: 87.8
A21: 22.95
A22: 299.5
A23: 19.95
A24: 99.75
A25: 39.9
A26: 65.85
A27: 24.95
A28: 21.95
A29: 19.95
A30: 91.8
A31: 65.85
A32: 39.9
A33: 43.9
A34: 65.85
A35: 43.9
A36: 99.75
A37: 29.95
A38: 65.85
A39: 22.95
A40: 19.95
A41: 99.75
A42: 124.75
A43: 21.95
A44: 174.65
A45: 29.95
A46: 149.75
A47: 29.95
A48: 45.9
A49: 160.65
A50: 160.65
A51: 119.7
A52: 43.9
A53: 119.7
A54: 65.85
A55: 22.95
A56: 65.85
A57: 109.75
A58: 114.75
A59: 249.5
A60: 109.75
A61: 114.75
A62: 114.75
A63: 119.8
A64: 29.95
A65: 114.75
A66: 209.65
A67: 114.75
A68: 59.85
A69: 124.75
A70: 39.9
A71: 124.75
A72: 24.95
A73: 22.95
A74: 249.5
A75: 59.85
A76: 43.9
A77: 19.95
A78: 29.95
A79: 19.95
A80: 65.85
A81: 22.95
A82: 79.8
A83: 79.8
A84: 114.75
A85: 22.95
A86: 19.95
A87: 109.75
A88: 59.9
A89: 43.9
A90: 39.9
A91: 209.65
A92: 19.95
A93: 79.8
A94: 124.75
A95: 24.95
A96: 160.65
A97: 65.85
A98: 137.7
A99: 29.95
A100: 119.7
A101: 19.95
A102: 39.9
A103: 114.75
A104: 21.95
A105: 179.7
A106: 39.9
A107: 24.95
A108: 99.8
A109: 87.8
A110: 39.9
A111: 65.85
A112: 199.5
A113: 21.95
A114: 124.75
A115: 29.95
A116: 21.95
A117: 119.8
A118: 89.85
A119: 65.85
A120: 91.8
A121: 149.7
A122: 59.85
A123: 131.7
A124: 49.9
A125: 43.9
A126: 19.95
A127: 21.95
A128: 24.95
A129: 39.9
A130: 24.95
A131: 114.75
A132: 119.7
A133: 43.9
A134: 24.95
A135: 174.65
A136: 24.95
A137: 49.9
A138: 19.95
A139: 39.9
A140: 45.9
A141: 179.7
A142: 160.65
A143: 21.95
A144: 124.75
A145: 89.85
A146: 49.9
A147: 22.95
A148: 19.95
A149: 99.75
A150: 91.8
A151: 49.9
A152: 21.95
A153: 45.9
A154: 22.95
A155: 45.9
A156: 24.95
A157: 39.9
A158: 179.7
A159: 21.95
A160: 24.95
A161: 74.85
A162: 79.8
A163: 19.95
A164: 22.95
A165: 45.9
A166: 65.85
A167: 139.65
A168: 22.95
A169: 39.9
A170: 109.75
A171: 160.65
A172: 49.9
A173: 22.95
A174: 45.9
A175: 68.85
A176: 229.5
A177: 29.95
A178: 39.9
A179: 43.9
A180: 19.95
A181: 59.9
A182: 99.75
A183: 174.65
A184: 65.85
A185: 124.75
A186: 87.8
A187: 229.5
A188: 99.75
A189: 19.95
A190: 19.95
A191: 99.8
A192: 24.95
A193: 114.75
A194: 59.85
A195: 43.9
A196: 74.85
A197: 19.95
A198: 22.95
A199: 153.65
A200: 39.9
... 1 more rows

Sheet FREQUENCY (an)
A1: Revenue | E1: Upper end is included, Lower End is not
A2: 45.9 | C2: bins (Upper Limits) | E2: Categories for FREQUENCY function | F2: Frequency
A3: 19.95 | C3: 50 | E3: ="Rev <= "&C3 -> Rev <= 50 | F3: =FREQUENCY(A2:A201,C3:C8) -> 97
A4: 21.95 | C4: 100 | E4: =C3&" < Rev <= "&C4 -> 50 < Rev <= 100 | F4: 46
A5: 19.95 | C5: 150 | E5: =C4&" < Rev <= "&C5 -> 100 < Rev <= 150 | F5: 37
A6: 79.8 | C6: 200 | E6: =C5&" < Rev <= "&C6 -> 150 < Rev <= 200 | F6: 13
A7: 79.8 | C7: 250 | E7: =C6&" < Rev <= "&C7 -> 200 < Rev <= 250 | F7: 6
A8: 59.85 | C8: 300 | E8: =C7&" < Rev <= "&C8 -> 250 < Rev <= 300 | F8: 1
A9: 139.65 | E9: ="Rev > "&C8 -> Rev > 300 | F9: 0
A10: 119.7
A11: 43.9 | E11: Steps for FREQUENCY array Function:
A12: 43.9 | D12: 1 | E12: **Highlight one more cell than there are bins
A13: 99.75 | D13: 2 | E13: Create formula: =FREQUENCY(A2:A201,C3:C8)
A14: 114.75 | D14: 3 | E14: Enter formula into range with keystrokes: Ctrl + Shift + Enter
A15: 91.8 | D15: 4 | E15: Curly brackets are added automatically
A16: 114.75 | D16: 5 | E16: The advantage to FREQUENCY is that if you don't have enough bins, it will cath any values on the low or high end
A17: 22.95
A18: 124.75
A19: 19.95
A20: 87.8
A21: 22.95
A22: 299.5
A23: 19.95
A24: 99.75
A25: 39.9
A26: 65.85
A27: 24.95
A28: 21.95
A29: 19.95
A30: 91.8
A31: 65.85
A32: 39.9
A33: 43.9
A34: 65.85
A35: 43.9
A36: 99.75
A37: 29.95
A38: 65.85
A39: 22.95
A40: 19.95
A41: 99.75
A42: 124.75
A43: 21.95
A44: 174.65
A45: 29.95
A46: 149.75
A47: 29.95
A48: 45.9
A49: 160.65
A50: 160.65
A51: 119.7
A52: 43.9
A53: 119.7
A54: 65.85
A55: 22.95
A56: 65.85
A57: 109.75
A58: 114.75
A59: 249.5
A60: 109.75
A61: 114.75
A62: 114.75
A63: 119.8
A64: 29.95
A65: 114.75
A66: 209.65
A67: 114.75
A68: 59.85
A69: 124.75
A70: 39.9
A71: 124.75
A72: 24.95
A73: 22.95
A74: 249.5
A75: 59.85
A76: 43.9
A77: 19.95
A78: 29.95
A79: 19.95
A80: 65.85
A81: 22.95
A82: 79.8
A83: 79.8
A84: 114.75
A85: 22.95
A86: 19.95
A87: 109.75
A88: 59.9
A89: 43.9
A90: 39.9
A91: 209.65
A92: 19.95
A93: 79.8
A94: 124.75
A95: 24.95
A96: 160.65
A97: 65.85
A98: 137.7
A99: 29.95
A100: 119.7
A101: 19.95
A102: 39.9
A103: 114.75
A104: 21.95
A105: 179.7
A106: 39.9
A107: 24.95
A108: 99.8
A109: 87.8
A110: 39.9
A111: 65.85
A112: 199.5
A113: 21.95
A114: 124.75
A115: 29.95
A116: 21.95
A117: 119.8
A118: 89.85
A119: 65.85
A120: 91.8
A121: 149.7
A122: 59.85
A123: 131.7
A124: 49.9
A125: 43.9
A126: 19.95
A127: 21.95
A128: 24.95
A129: 39.9
A130: 24.95
A131: 114.75
A132: 119.7
A133: 43.9
A134: 24.95
A135: 174.65
A136: 24.95
A137: 49.9
A138: 19.95
A139: 39.9
A140: 45.9
A141: 179.7
A142: 160.65
A143: 21.95
A144: 124.75
A145: 89.85
A146: 49.9
A147: 22.95
A148: 19.95
A149: 99.75
A150: 91.8
A151: 49.9
A152: 21.95
A153: 45.9
A154: 22.95
A155: 45.9
A156: 24.95
A157: 39.9
A158: 179.7
A159: 21.95
A160: 24.95
A161: 74.85
A162: 79.8
A163: 19.95
A164: 22.95
A165: 45.9
A166: 65.85
A167: 139.65
A168: 22.95
A169: 39.9
A170: 109.75
A171: 160.65
A172: 49.9
A173: 22.95
A174: 45.9
A175: 68.85
A176: 229.5
A177: 29.95
A178: 39.9
A179: 43.9
A180: 19.95
A181: 59.9
A182: 99.75
A183: 174.65
A184: 65.85
A185: 124.75
A186: 87.8
A187: 229.5
A188: 99.75
A189: 19.95
A190: 19.95
A191: 99.8
A192: 24.95
A193: 114.75
A194: 59.85
A195: 43.9
A196: 74.85
A197: 19.95
A198: 22.95
A199: 153.65
A200: 39.9
... 1 more rows

Sheet PercentFreq
A1: Revenue | B1: Product | D1: Product | E1: Frequency | F1: Relative Frequency | G1: % Frequency | H1: Percent Frequency (%)
A2: 45.9 | B2: Carlota | D2: Carlota | J2: ="Next "&K2&" Transactions" -> Next 250 Transactions | K2: 250
A3: 19.95 | B3: Yanaki | D3: Yanaki | J3: Estimate # Carlotas sold: | L3: correct
A4: 21.95 | B4: Aspen | D4: Aspen | J4: Estimate # Carlotas sold: | L4: incorrect
A5: 19.95 | B5: Yanaki | D5: Sunset | J5: Estimate # Carlotas sold: | L5: correct, but inefficient
A6: 79.8 | B6: Yanaki | D6: Delicate Arch
A7: 79.8 | B7: Yanaki | D7: Bellen
A8: 59.85 | B8: Yanaki
A9: 139.65 | B9: Yanaki
A10: 119.7 | B10: Yanaki
A11: 43.9 | B11: Aspen
A12: 43.9 | B12: Aspen
A13: 99.75 | B13: Yanaki
A14: 114.75 | B14: Carlota
A15: 91.8 | B15: Carlota
A16: 114.75 | B16: Carlota
A17: 22.95 | B17: Carlota
A18: 124.75 | B18: Sunset
A19: 19.95 | B19: Yanaki
A20: 87.8 | B20: Aspen
A21: 22.95 | B21: Carlota
A22: 299.5 | B22: Delicate Arch
A23: 19.95 | B23: Yanaki
A24: 99.75 | B24: Yanaki
A25: 39.9 | B25: Yanaki
A26: 65.85 | B26: Aspen
A27: 24.95 | B27: Sunset
A28: 21.95 | B28: Aspen
A29: 19.95 | B29: Yanaki
A30: 91.8 | B30: Carlota
A31: 65.85 | B31: Aspen
A32: 39.9 | B32: Yanaki
A33: 43.9 | B33: Aspen
A34: 65.85 | B34: Aspen
A35: 43.9 | B35: Aspen
A36: 99.75 | B36: Yanaki
A37: 29.95 | B37: Delicate Arch
A38: 65.85 | B38: Aspen
A39: 22.95 | B39: Carlota
A40: 19.95 | B40: Yanaki
A41: 99.75 | B41: Yanaki
A42: 124.75 | B42: Bellen
A43: 21.95 | B43: Aspen
A44: 174.65 | B44: Sunset
A45: 29.95 | B45: Delicate Arch
A46: 149.75 | B46: Delicate Arch
A47: 29.95 | B47: Delicate Arch
A48: 45.9 | B48: Carlota
A49: 160.65 | B49: Carlota
A50: 160.65 | B50: Carlota
A51: 119.7 | B51: Yanaki
A52: 43.9 | B52: Aspen
A53: 119.7 | B53: Yanaki
A54: 65.85 | B54: Aspen
A55: 22.95 | B55: Carlota
A56: 65.85 | B56: Aspen
A57: 109.75 | B57: Aspen
A58: 114.75 | B58: Carlota
A59: 249.5 | B59: Bellen
A60: 109.75 | B60: Aspen
A61: 114.75 | B61: Carlota
A62: 114.75 | B62: Carlota
A63: 119.8 | B63: Delicate Arch
A64: 29.95 | B64: Delicate Arch
A65: 114.75 | B65: Carlota
A66: 209.65 | B66: Delicate Arch
A67: 114.75 | B67: Carlota
A68: 59.85 | B68: Yanaki
A69: 124.75 | B69: Sunset
A70: 39.9 | B70: Yanaki
A71: 124.75 | B71: Sunset
A72: 24.95 | B72: Sunset
A73: 22.95 | B73: Carlota
A74: 249.5 | B74: Bellen
A75: 59.85 | B75: Yanaki
A76: 43.9 | B76: Aspen
A77: 19.95 | B77: Yanaki
A78: 29.95 | B78: Delicate Arch
A79: 19.95 | B79: Yanaki
A80: 65.85 | B80: Aspen
A81: 22.95 | B81: Carlota
A82: 79.8 | B82: Yanaki
A83: 79.8 | B83: Yanaki
A84: 114.75 | B84: Carlota
A85: 22.95 | B85: Carlota
A86: 19.95 | B86: Yanaki
A87: 109.75 | B87: Aspen
A88: 59.9 | B88: Delicate Arch
A89: 43.9 | B89: Aspen
A90: 39.9 | B90: Yanaki
A91: 209.65 | B91: Delicate Arch
A92: 19.95 | B92: Yanaki
A93: 79.8 | B93: Yanaki
A94: 124.75 | B94: Bellen
A95: 24.95 | B95: Bellen
A96: 160.65 | B96: Carlota
A97: 65.85 | B97: Aspen
A98: 137.7 | B98: Carlota
A99: 29.95 | B99: Delicate Arch
A100: 119.7 | B100: Yanaki
A101: 19.95 | B101: Yanaki
A102: 39.9 | B102: Yanaki
A103: 114.75 | B103: Carlota
A104: 21.95 | B104: Aspen
A105: 179.7 | B105: Delicate Arch
A106: 39.9 | B106: Yanaki
A107: 24.95 | B107: Sunset
A108: 99.8 | B108: Bellen
A109: 87.8 | B109: Aspen
A110: 39.9 | B110: Yanaki
A111: 65.85 | B111: Aspen
A112: 199.5 | B112: Yanaki
A113: 21.95 | B113: Aspen
A114: 124.75 | B114: Sunset
A115: 29.95 | B115: Delicate Arch
A116: 21.95 | B116: Aspen
A117: 119.8 | B117: Delicate Arch
A118: 89.85 | B118: Delicate Arch
A119: 65.85 | B119: Aspen
A120: 91.8 | B120: Carlota
A121: 149.7 | B121: Bellen
A122: 59.85 | B122: Yanaki
A123: 131.7 | B123: Aspen
A124: 49.9 | B124: Sunset
A125: 43.9 | B125: Aspen
A126: 19.95 | B126: Yanaki
A127: 21.95 | B127: Aspen
A128: 24.95 | B128: Bellen
A129: 39.9 | B129: Yanaki
A130: 24.95 | B130: Bellen
A131: 114.75 | B131: Carlota
A132: 119.7 | B132: Yanaki
A133: 43.9 | B133: Aspen
A134: 24.95 | B134: Bellen
A135: 174.65 | B135: Sunset
A136: 24.95 | B136: Bellen
A137: 49.9 | B137: Sunset
A138: 19.95 | B138: Yanaki
A139: 39.9 | B139: Yanaki
A140: 45.9 | B140: Carlota
A141: 179.7 | B141: Delicate Arch
A142: 160.65 | B142: Carlota
A143: 21.95 | B143: Aspen
A144: 124.75 | B144: Bellen
A145: 89.85 | B145: Delicate Arch
A146: 49.9 | B146: Bellen
A147: 22.95 | B147: Carlota
A148: 19.95 | B148: Yanaki
A149: 99.75 | B149: Yanaki
A150: 91.8 | B150: Carlota
A151: 49.9 | B151: Bellen
A152: 21.95 | B152: Aspen
A153: 45.9 | B153: Carlota
A154: 22.95 | B154: Carlota
A155: 45.9 | B155: Carlota
A156: 24.95 | B156: Bellen
A157: 39.9 | B157: Yanaki
A158: 179.7 | B158: Delicate Arch
A159: 21.95 | B159: Aspen
A160: 24.95 | B160: Bellen
A161: 74.85 | B161: Sunset
A162: 79.8 | B162: Yanaki
A163: 19.95 | B163: Yanaki
A164: 22.95 | B164: Carlota
A165: 45.9 | B165: Carlota
A166: 65.85 | B166: Aspen
A167: 139.65 | B167: Yanaki
A168: 22.95 | B168: Carlota
A169: 39.9 | B169: Yanaki
A170: 109.75 | B170: Aspen
A171: 160.65 | B171: Carlota
A172: 49.9 | B172: Bellen
A173: 22.95 | B173: Carlota
A174: 45.9 | B174: Carlota
A175: 68.85 | B175: Carlota
A176: 229.5 | B176: Carlota
A177: 29.95 | B177: Delicate Arch
A178: 39.9 | B178: Yanaki
A179: 43.9 | B179: Aspen
A180: 19.95 | B180: Yanaki
A181: 59.9 | B181: Delicate Arch
A182: 99.75 | B182: Yanaki
A183: 174.65 | B183: Bellen
A184: 65.85 | B184: Aspen
A185: 124.75 | B185: Sunset
A186: 87.8 | B186: Aspen
A187: 229.5 | B187: Carlota
A188: 99.75 | B188: Yanaki
A189: 19.95 | B189: Yanaki
A190: 19.95 | B190: Yanaki
A191: 99.8 | B191: Bellen
A192: 24.95 | B192: Bellen
A193: 114.75 | B193: Carlota
A194: 59.85 | B194: Yanaki
A195: 43.9 | B195: Aspen
A196: 74.85 | B196: Sunset
A197: 19.95 | B197: Yanaki
A198: 22.95 | B198: Carlota
A199: 153.65 | B199: Aspen
A200: 39.9 | B200: Yanaki
... 1 more rows

Sheet PercentFreq (an)
A1: Revenue | B1: Product | D1: Product | E1: Frequency | F1: Relative Frequency | G1: % Frequency | H1: Percent Frequency
A2: 45.9 | B2: Carlota | D2: Carlota | E2: =COUNTIF($B$2:$B$201,D2) -> 44 | F2: =E2/$E$8 -> 0.22 | G2: =E2/$E$8 -> 0.22 | H2: =E2/$E$8*100 -> 22 | J2: ="Next "&K2&" Transactions" -> Next 250 Transactions | K2: 250
A3: 19.95 | B3: Yanaki | D3: Yanaki | E3: 58 | F3: 0.29 | G3: 0.29 | H3: 29 | J3: Estimate # Carlotas sold: | K3: =K2*G2 -> 55 | L3: correct
A4: 21.95 | B4: Aspen | D4: Aspen | E4: 43 | F4: 0.215 | G4: 0.215 | H4: 21.5 | J4: Estimate # Carlotas sold: | K4: =K2*H2 -> 5500 | L4: incorrect
A5: 19.95 | B5: Yanaki | D5: Sunset | E5: 14 | F5: 0.07 | G5: 0.07 | H5: 7 | J5: Estimate # Carlotas sold: | K5: =K2*H2/100 -> 55 | L5: correct, but inefficient
A6: 79.8 | B6: Yanaki | D6: Delicate Arch | E6: 21 | F6: 0.105 | G6: 0.105 | H6: 10.5
A7: 79.8 | B7: Yanaki | D7: Bellen | E7: 20 | F7: 0.1 | G7: 0.1 | H7: 10
A8: 59.85 | B8: Yanaki | D8: Total | E8: =SUM(E2:E7) -> 200 | F8: =SUM(F2:F7) -> 1 | G8: =SUM(G2:G7) -> 1 | H8: =SUM(H2:H7) -> 100
A9: 139.65 | B9: Yanaki
A10: 119.7 | B10: Yanaki
A11: 43.9 | B11: Aspen | D11: Revenue | E11: % Frequency
A12: 43.9 | B12: Aspen | D12: 0-50 | E12: 0.485
A13: 99.75 | B13: Yanaki | D13: 50-100 | E13: 0.23
A14: 114.75 | B14: Carlota | D14: 100-150 | E14: 0.185
A15: 91.8 | B15: Carlota | D15: 150-200 | E15: 0.065
A16: 114.75 | B16: Carlota | D16: 200-250 | E16: 0.03
A17: 22.95 | B17: Carlota | D17: 250-300 | E17: 0.005
A18: 124.75 | B18: Sunset | D18: Grand Total | E18: 1
A19: 19.95 | B19: Yanaki
A20: 87.8 | B20: Aspen
A21: 22.95 | B21: Carlota
A22: 299.5 | B22: Delicate Arch
A23: 19.95 | B23: Yanaki
A24: 99.75 | B24: Yanaki
A25: 39.9 | B25: Yanaki
A26: 65.85 | B26: Aspen
A27: 24.95 | B27: Sunset
A28: 21.95 | B28: Aspen
A29: 19.95 | B29: Yanaki
A30: 91.8 | B30: Carlota
A31: 65.85 | B31: Aspen
A32: 39.9 | B32: Yanaki
A33: 43.9 | B33: Aspen
A34: 65.85 | B34: Aspen
A35: 43.9 | B35: Aspen
A36: 99.75 | B36: Yanaki
A37: 29.95 | B37: Delicate Arch
A38: 65.85 | B38: Aspen
A39: 22.95 | B39: Carlota
A40: 19.95 | B40: Yanaki
A41: 99.75 | B41: Yanaki
A42: 124.75 | B42: Bellen
A43: 21.95 | B43: Aspen
A44: 174.65 | B44: Sunset
A45: 29.95 | B45: Delicate Arch
A46: 149.75 | B46: Delicate Arch
A47: 29.95 | B47: Delicate Arch
A48: 45.9 | B48: Carlota
A49: 160.65 | B49: Carlota
A50: 160.65 | B50: Carlota
A51: 119.7 | B51: Yanaki
A52: 43.9 | B52: Aspen
A53: 119.7 | B53: Yanaki
A54: 65.85 | B54: Aspen
A55: 22.95 | B55: Carlota
A56: 65.85 | B56: Aspen
A57: 109.75 | B57: Aspen
A58: 114.75 | B58: Carlota
A59: 249.5 | B59: Bellen
A60: 109.75 | B60: Aspen
A61: 114.75 | B61: Carlota
A62: 114.75 | B62: Carlota
A63: 119.8 | B63: Delicate Arch
A64: 29.95 | B64: Delicate Arch
A65: 114.75 | B65: Carlota
A66: 209.65 | B66: Delicate Arch
A67: 114.75 | B67: Carlota
A68: 59.85 | B68: Yanaki
A69: 124.75 | B69: Sunset
A70: 39.9 | B70: Yanaki
A71: 124.75 | B71: Sunset
A72: 24.95 | B72: Sunset
A73: 22.95 | B73: Carlota
A74: 249.5 | B74: Bellen
A75: 59.85 | B75: Yanaki
A76: 43.9 | B76: Aspen
A77: 19.95 | B77: Yanaki
A78: 29.95 | B78: Delicate Arch
A79: 19.95 | B79: Yanaki
A80: 65.85 | B80: Aspen
A81: 22.95 | B81: Carlota
A82: 79.8 | B82: Yanaki
A83: 79.8 | B83: Yanaki
A84: 114.75 | B84: Carlota
A85: 22.95 | B85: Carlota
A86: 19.95 | B86: Yanaki
A87: 109.75 | B87: Aspen
A88: 59.9 | B88: Delicate Arch
A89: 43.9 | B89: Aspen
A90: 39.9 | B90: Yanaki
A91: 209.65 | B91: Delicate Arch
A92: 19.95 | B92: Yanaki
A93: 79.8 | B93: Yanaki
A94: 124.75 | B94: Bellen
A95: 24.95 | B95: Bellen
A96: 160.65 | B96: Carlota
A97: 65.85 | B97: Aspen
A98: 137.7 | B98: Carlota
A99: 29.95 | B99: Delicate Arch
A100: 119.7 | B100: Yanaki
A101: 19.95 | B101: Yanaki
A102: 39.9 | B102: Yanaki
A103: 114.75 | B103: Carlota
A104: 21.95 | B104: Aspen
A105: 179.7 | B105: Delicate Arch
A106: 39.9 | B106: Yanaki
A107: 24.95 | B107: Sunset
A108: 99.8 | B108: Bellen
A109: 87.8 | B109: Aspen
A110: 39.9 | B110: Yanaki
A111: 65.85 | B111: Aspen
A112: 199.5 | B112: Yanaki
A113: 21.95 | B113: Aspen
A114: 124.75 | B114: Sunset
A115: 29.95 | B115: Delicate Arch
A116: 21.95 | B116: Aspen
A117: 119.8 | B117: Delicate Arch
A118: 89.85 | B118: Delicate Arch
A119: 65.85 | B119: Aspen
A120: 91.8 | B120: Carlota
A121: 149.7 | B121: Bellen
A122: 59.85 | B122: Yanaki
A123: 131.7 | B123: Aspen
A124: 49.9 | B124: Sunset
A125: 43.9 | B125: Aspen
A126: 19.95 | B126: Yanaki
A127: 21.95 | B127: Aspen
A128: 24.95 | B128: Bellen
A129: 39.9 | B129: Yanaki
A130: 24.95 | B130: Bellen
A131: 114.75 | B131: Carlota
A132: 119.7 | B132: Yanaki
A133: 43.9 | B133: Aspen
A134: 24.95 | B134: Bellen
A135: 174.65 | B135: Sunset
A136: 24.95 | B136: Bellen
A137: 49.9 | B137: Sunset
A138: 19.95 | B138: Yanaki
A139: 39.9 | B139: Yanaki
A140: 45.9 | B140: Carlota
A141: 179.7 | B141: Delicate Arch
A142: 160.65 | B142: Carlota
A143: 21.95 | B143: Aspen
A144: 124.75 | B144: Bellen
A145: 89.85 | B145: Delicate Arch
A146: 49.9 | B146: Bellen
A147: 22.95 | B147: Carlota
A148: 19.95 | B148: Yanaki
A149: 99.75 | B149: Yanaki
A150: 91.8 | B150: Carlota
A151: 49.9 | B151: Bellen
A152: 21.95 | B152: Aspen
A153: 45.9 | B153: Carlota
A154: 22.95 | B154: Carlota
A155: 45.9 | B155: Carlota
A156: 24.95 | B156: Bellen
A157: 39.9 | B157: Yanaki
A158: 179.7 | B158: Delicate Arch
A159: 21.95 | B159: Aspen
A160: 24.95 | B160: Bellen
A161: 74.85 | B161: Sunset
A162: 79.8 | B162: Yanaki
A163: 19.95 | B163: Yanaki
A164: 22.95 | B164: Carlota
A165: 45.9 | B165: Carlota
A166: 65.85 | B166: Aspen
A167: 139.65 | B167: Yanaki
A168: 22.95 | B168: Carlota
A169: 39.9 | B169: Yanaki
A170: 109.75 | B170: Aspen
A171: 160.65 | B171: Carlota
A172: 49.9 | B172: Bellen
A173: 22.95 | B173: Carlota
A174: 45.9 | B174: Carlota
A175: 68.85 | B175: Carlota
A176: 229.5 | B176: Carlota
A177: 29.95 | B177: Delicate Arch
A178: 39.9 | B178: Yanaki
A179: 43.9 | B179: Aspen
A180: 19.95 | B180: Yanaki
A181: 59.9 | B181: Delicate Arch
A182: 99.75 | B182: Yanaki
A183: 174.65 | B183: Bellen
A184: 65.85 | B184: Aspen
A185: 124.75 | B185: Sunset
A186: 87.8 | B186: Aspen
A187: 229.5 | B187: Carlota
A188: 99.75 | B188: Yanaki
A189: 19.95 | B189: Yanaki
A190: 19.95 | B190: Yanaki
A191: 99.8 | B191: Bellen
A192: 24.95 | B192: Bellen
A193: 114.75 | B193: Carlota
A194: 59.85 | B194: Yanaki
A195: 43.9 | B195: Aspen
A196: 74.85 | B196: Sunset
A197: 19.95 | B197: Yanaki
A198: 22.95 | B198: Carlota
A199: 153.65 | B199: Aspen
A200: 39.9 | B200: Yanaki
... 1 more rows

Sheet Ogive
A1: Revenue | C1: Increment
A2: 45.9 | C2: 50
A3: 19.95 | C3: Lower | D3: Upper | E3: Label | F3: Frequency | G3: Label | H3: Cumulative Frequency | I3: % Cumulative Frequency | K3: Label | L3: Cumulative Frequency
A4: 21.95 | C4: 0
A5: 19.95
A6: 79.8
A7: 79.8
A8: 59.85
A9: 139.65
A10: 119.7
A11: 43.9 | H11: Chart Data
A12: 43.9 | H12: Upper Limit for class (except first point which is lower limit of first class) | I12: =I3 -> % Cumulative Frequency
A13: 99.75 | I13: =0 -> 0
A14: 114.75
A15: 91.8
A16: 114.75
A17: 22.95
A18: 124.75
A19: 19.95
A20: 87.8
A21: 22.95
A22: 299.5
A23: 19.95
A24: 99.75
A25: 39.9
A26: 65.85
A27: 24.95
A28: 21.95
A29: 19.95
A30: 91.8
A31: 65.85
A32: 39.9
A33: 43.9
A34: 65.85
A35: 43.9
A36: 99.75
A37: 29.95
A38: 65.85
A39: 22.95
A40: 19.95
A41: 99.75
A42: 124.75
A43: 21.95
A44: 174.65
A45: 29.95
A46: 149.75
A47: 29.95
A48: 45.9
A49: 160.65
A50: 160.65
A51: 119.7
A52: 43.9
A53: 119.7
A54: 65.85
A55: 22.95
A56: 65.85
A57: 109.75
A58: 114.75
A59: 249.5
A60: 109.75
A61: 114.75
A62: 114.75
A63: 119.8
A64: 29.95
A65: 114.75
A66: 209.65
A67: 114.75
A68: 59.85
A69: 124.75
A70: 39.9
A71: 124.75
A72: 24.95
A73: 22.95
A74: 249.5
A75: 59.85
A76: 43.9
A77: 19.95
A78: 29.95
A79: 19.95
A80: 65.85
A81: 22.95
A82: 79.8
A83: 79.8
A84: 114.75
A85: 22.95
A86: 19.95
A87: 109.75
A88: 59.9
A89: 43.9
A90: 39.9
A91: 209.65
A92: 19.95
A93: 79.8
A94: 124.75
A95: 24.95
A96: 160.65
A97: 65.85
A98: 137.7
A99: 29.95
A100: 119.7
A101: 19.95
A102: 39.9
A103: 114.75
A104: 21.95
A105: 179.7
A106: 39.9
A107: 24.95
A108: 99.8
A109: 87.8
A110: 39.9
A111: 65.85
A112: 199.5
A113: 21.95
A114: 124.75
A115: 29.95
A116: 21.95
A117: 119.8
A118: 89.85
A119: 65.85
A120: 91.8
A121: 149.7
A122: 59.85
A123: 131.7
A124: 49.9
A125: 43.9
A126: 19.95
A127: 21.95
A128: 24.95
A129: 39.9
A130: 24.95
A131: 114.75
A132: 119.7
A133: 43.9
A134: 24.95
A135: 174.65
A136: 24.95
A137: 49.9
A138: 19.95
A139: 39.9
A140: 45.9
A141: 179.7
A142: 160.65
A143: 21.95
A144: 124.75
A145: 89.85
A146: 49.9
A147: 22.95
A148: 19.95
A149: 99.75
A150: 91.8
A151: 49.9
A152: 21.95
A153: 45.9
A154: 22.95
A155: 45.9
A156: 24.95
A157: 39.9
A158: 179.7
A159: 21.95
A160: 24.95
A161: 74.85
A162: 79.8
A163: 19.95
A164: 22.95
A165: 45.9
A166: 65.85
A167: 139.65
A168: 22.95
A169: 39.9
A170: 109.75
A171: 160.65
A172: 49.9
A173: 22.95
A174: 45.9
A175: 68.85
A176: 229.5
A177: 29.95
A178: 39.9
A179: 43.9
A180: 19.95
A181: 59.9
A182: 99.75
A183: 174.65
A184: 65.85
A185: 124.75
A186: 87.8
A187: 229.5
A188: 99.75
A189: 19.95
A190: 19.95
A191: 99.8
A192: 24.95
A193: 114.75
A194: 59.85
A195: 43.9
A196: 74.85
A197: 19.95
A198: 22.95
A199: 153.65
A200: 39.9
... 1 more rows

Sheet Ogive (an)
A1: Revenue | C1: Increment
A2: 45.9 | C2: 50
A3: 19.95 | C3: Lower | D3: Upper | E3: Label | F3: Frequency | G3: Label | H3: Cumulative Frequency | I3: % Cumulative Frequency
A4: 21.95 | C4: 0 | D4: =C4+$C$2 -> 50 | E4: =C4&" up to "&D4 -> 0 up to 50 | F4: =COUNTIFS($A$2:$A$201,">="&C4,$A$2:$A$201,"<"&D4) -> 97 | G4: ="Revenue "&DOLLAR(D4,0)&" or less" -> Revenue $50 or less | H4: =SUM($F$4:F4) -> 97 | I4: =H4/$H$9 -> 0.485
A5: 19.95 | C5: =D4 -> 50 | D5: 100 | E5: 50 up to 100 | F5: 46 | G5: Revenue $100 or less | H5: =SUM($F$4:F5) -> 143 | I5: 0.715
A6: 79.8 | C6: =D5 -> 100 | D6: 150 | E6: 100 up to 150 | F6: 37 | G6: Revenue $150 or less | H6: =SUM($F$4:F6) -> 180 | I6: 0.9
A7: 79.8 | C7: =D6 -> 150 | D7: 200 | E7: 150 up to 200 | F7: 13 | G7: Revenue $200 or less | H7: =SUM($F$4:F7) -> 193 | I7: 0.965
A8: 59.85 | C8: =D7 -> 200 | D8: 250 | E8: 200 up to 250 | F8: 6 | G8: Revenue $250 or less | H8: =SUM($F$4:F8) -> 199 | I8: 0.995
A9: 139.65 | C9: =D8 -> 250 | D9: 300 | E9: 250 up to 300 | F9: 1 | G9: Revenue $300 or less | H9: =SUM($F$4:F9) -> 200 | I9: 1
A10: 119.7
A11: 43.9 | H11: Chart Data
A12: 43.9 | H12: Upper Limit for class (except first point which is lower limit of first class) | I12: =I3 -> % Cumulative Frequency
A13: 99.75 | H13: =C4 -> 0 | I13: =0 -> 0
A14: 114.75 | H14: =D4 -> 50 | I14: =I4 -> 0.485
A15: 91.8 | H15: 100 | I15: 0.715
A16: 114.75 | H16: 150 | I16: 0.9
A17: 22.95 | H17: 200 | I17: 0.965
A18: 124.75 | H18: 250 | I18: 0.995
A19: 19.95 | H19: 300 | I19: 1
A20: 87.8
A21: 22.95
A22: 299.5
A23: 19.95
A24: 99.75
A25: 39.9
A26: 65.85
A27: 24.95
A28: 21.95
A29: 19.95
A30: 91.8
A31: 65.85
A32: 39.9
A33: 43.9
A34: 65.85
A35: 43.9
A36: 99.75
A37: 29.95
A38: 65.85
A39: 22.95
A40: 19.95
A41: 99.75
A42: 124.75
A43: 21.95
A44: 174.65
A45: 29.95
A46: 149.75
A47: 29.95
A48: 45.9
A49: 160.65
A50: 160.65
A51: 119.7
A52: 43.9
A53: 119.7
A54: 65.85
A55: 22.95
A56: 65.85
A57: 109.75
A58: 114.75
A59: 249.5
A60: 109.75
A61: 114.75
A62: 114.75
A63: 119.8
A64: 29.95
A65: 114.75
A66: 209.65
A67: 114.75
A68: 59.85
A69: 124.75
A70: 39.9
A71: 124.75
A72: 24.95
A73: 22.95
A74: 249.5
A75: 59.85
A76: 43.9
A77: 19.95
A78: 29.95
A79: 19.95
A80: 65.85
A81: 22.95
A82: 79.8
A83: 79.8
A84: 114.75
A85: 22.95
A86: 19.95
A87: 109.75
A88: 59.9
A89: 43.9
A90: 39.9
A91: 209.65
A92: 19.95
A93: 79.8
A94: 124.75
A95: 24.95
A96: 160.65
A97: 65.85
A98: 137.7
A99: 29.95
A100: 119.7
A101: 19.95
A102: 39.9
A103: 114.75
A104: 21.95
A105: 179.7
A106: 39.9
A107: 24.95
A108: 99.8
A109: 87.8
A110: 39.9
A111: 65.85
A112: 199.5
A113: 21.95
A114: 124.75
A115: 29.95
A116: 21.95
A117: 119.8
A118: 89.85
A119: 65.85
A120: 91.8
A121: 149.7
A122: 59.85
A123: 131.7
A124: 49.9
A125: 43.9
A126: 19.95
A127: 21.95
A128: 24.95
A129: 39.9
A130: 24.95
A131: 114.75
A132: 119.7
A133: 43.9
A134: 24.95
A135: 174.65
A136: 24.95
A137: 49.9
A138: 19.95
A139: 39.9
A140: 45.9
A141: 179.7
A142: 160.65
A143: 21.95
A144: 124.75
A145: 89.85
A146: 49.9
A147: 22.95
A148: 19.95
A149: 99.75
A150: 91.8
A151: 49.9
A152: 21.95
A153: 45.9
A154: 22.95
A155: 45.9
A156: 24.95
A157: 39.9
A158: 179.7
A159: 21.95
A160: 24.95
A161: 74.85
A162: 79.8
A163: 19.95
A164: 22.95
A165: 45.9
A166: 65.85
A167: 139.65
A168: 22.95
A169: 39.9
A170: 109.75
A171: 160.65
A172: 49.9
A173: 22.95
A174: 45.9
A175: 68.85
A176: 229.5
A177: 29.95
A178: 39.9
A179: 43.9
A180: 19.95
A181: 59.9
A182: 99.75
A183: 174.65
A184: 65.85
A185: 124.75
A186: 87.8
A187: 229.5
A188: 99.75
A189: 19.95
A190: 19.95
A191: 99.8
A192: 24.95
A193: 114.75
A194: 59.85
A195: 43.9
A196: 74.85
A197: 19.95
A198: 22.95
A199: 153.65
A200: 39.9
... 1 more rows

Sheet PT&C-Ogive (an)
A3: Revenue | B3: Frequency | C3: % Cumulative Frequency
A4: 0-50 | B4: 97 | C4: 0.485
A5: 50-100 | B5: 46 | C5: 0.715
A6: 100-150 | B6: 37 | C6: 0.9
A7: 150-200 | B7: 13 | C7: 0.965
A8: 200-250 | B8: 6 | C8: 0.995
A9: 250-300 | B9: 1 | C9: 1
A10: Grand Total | B10: 200

Sheet Pareto
A1: Quality Control Pareto Chart (Column Chart Sorted Descending Left To Right) and then add a Cumulative Percentage Line data series to chart.
A2: If there are not totals at the bottom of your Frequency Distribution, you can right-click a cell in the column you want to sort by and point to sort.
A3: To calculate the Cumulative % total, you can use the formula, =SUM($D$14:D14)/SUM($D$14:$D$18), in cell E14, and then copy it down
A4: To add a Series of data to a chart, click on the chart, click on the Chart Tools/Design Ribbon, then click on the Select Data button. Or you can copy (Ctrl + C) the cell data, click on the chart, then paste (Ctrl + V).
A5: To change the added data to the secondary axis, click on the newly added data series, then Ctrl + 1 (to open format data series dialog box), then click the "Secondary Axis" dialog button.
A6: To change the Columns to a line chart, right-click the columns and point to "Change Series Chart Type", then select line.
A8: Pareto: Dissatisfaction with Boomerang Purchased | C8: Category: Reason For Dissatisfaction | D8: Frequency | E8: Cumulative %
A9: Broken When Thrown | C9: Bad Finish | D9: =COUNTIF($A$9:$A$54,C9) -> 21 | E9: =SUM($D$9:D9)/$D$15 -> 0.4565217391
A10: Bad Finish | C10: Unattractive Design | D10: 9 | E10: =SUM($D$9:D10)/$D$15 -> 0.652173913
A11: Unattractive Design | C11: Did Not Work | D11: 9 | E11: =SUM($D$9:D11)/$D$15 -> 0.847826087
A12: Unattractive Design | C12: Broken When Thrown | D12: 4 | E12: =SUM($D$9:D12)/$D$15 -> 0.9347826087
A13: Bad Finish | C13: Rough Wood | D13: 2 | E13: =SUM($D$9:D13)/$D$15 -> 0.9782608696
A14: Did Not Work | C14: No Instructions | D14: 1 | E14: =SUM($D$9:D14)/$D$15 -> 1
A15: Did Not Work | C15: Total | D15: =SUM(D9:D14) -> 46
A16: Unattractive Design
A17: Bad Finish
A18: Did Not Work
A19: Unattractive Design
A20: Bad Finish
A21: Did Not Work
A22: Rough Wood
A23: Bad Finish
A24: Bad Finish
A25: Bad Finish
A26: Bad Finish
A27: Bad Finish
A28: Broken When Thrown
A29: Did Not Work
A30: Unattractive Design
A31: Unattractive Design
A32: Bad Finish
A33: Bad Finish
A34: Bad Finish
A35: Bad Finish
A36: Bad Finish
A37: Rough Wood
A38: Unattractive Design
A39: Did Not Work
A40: Did Not Work
A41: No Instructions
A42: Bad Finish
A43: Bad Finish
A44: Bad Finish
A45: Bad Finish
A46: Bad Finish
A47: Bad Finish
A48: Unattractive Design
A49: Broken When Thrown
A50: Unattractive Design
A51: Did Not Work
A52: Bad Finish
A53: Broken When Thrown
A54: Did Not Work

Sheet DATAI
A1: Revenue | C1: bins
A2: 45.9 | C2: 50
A3: 19.95 | C3: 100
A4: 21.95 | C4: 150
A5: 19.95 | C5: 200
A6: 79.8 | C6: 250
A7: 79.8 | C7: 300
A8: 59.85
A9: 139.65
A10: 119.7
A11: 43.9
A12: 43.9
A13: 99.75
A14: 114.75
A15: 91.8
A16: 114.75
A17: 22.95
A18: 124.75
A19: 19.95
A20: 87.8
A21: 22.95
A22: 299.5
A23: 19.95
A24: 99.75
A25: 39.9
A26: 65.85
A27: 24.95
A28: 21.95
A29: 19.95
A30: 91.8
A31: 65.85
A32: 39.9
A33: 43.9
A34: 65.85
A35: 43.9
A36: 99.75
A37: 29.95
A38: 65.85
A39: 22.95
A40: 19.95
A41: 99.75
A42: 124.75
A43: 21.95
A44: 174.65
A45: 29.95
A46: 149.75
A47: 29.95
A48: 45.9
A49: 160.65
A50: 160.65
A51: 119.7
A52: 43.9
A53: 119.7
A54: 65.85
A55: 22.95
A56: 65.85
A57: 109.75
A58: 114.75
A59: 249.5
A60: 109.75
A61: 114.75
A62: 114.75
A63: 119.8
A64: 29.95
A65: 114.75
A66: 209.65
A67: 114.75
A68: 59.85
A69: 124.75
A70: 39.9
A71: 124.75
A72: 24.95
A73: 22.95
A74: 249.5
A75: 59.85
A76: 43.9
A77: 19.95
A78: 29.95
A79: 19.95
A80: 65.85
A81: 22.95
A82: 79.8
A83: 79.8
A84: 114.75
A85: 22.95
A86: 19.95
A87: 109.75
A88: 59.9
A89: 43.9
A90: 39.9
A91: 209.65
A92: 19.95
A93: 79.8
A94: 124.75
A95: 24.95
A96: 160.65
A97: 65.85
A98: 137.7
A99: 29.95
A100: 119.7
A101: 19.95
A102: 39.9
A103: 114.75
A104: 21.95
A105: 179.7
A106: 39.9
A107: 24.95
A108: 99.8
A109: 87.8
A110: 39.9
A111: 65.85
A112: 199.5
A113: 21.95
A114: 124.75
A115: 29.95
A116: 21.95
A117: 119.8
A118: 89.85
A119: 65.85
A120: 91.8
A121: 149.7
A122: 59.85
A123: 131.7
A124: 49.9
A125: 43.9
A126: 19.95
A127: 21.95
A128: 24.95
A129: 39.9
A130: 24.95
A131: 114.75
A132: 119.7
A133: 43.9
A134: 24.95
A135: 174.65
A136: 24.95
A137: 49.9
A138: 19.95
A139: 39.9
A140: 45.9
A141: 179.7
A142: 160.65
A143: 21.95
A144: 124.75
A145: 89.85
A146: 49.9
A147: 22.95
A148: 19.95
A149: 99.75
A150: 91.8
A151: 49.9
A152: 21.95
A153: 45.9
A154: 22.95
A155: 45.9
A156: 24.95
A157: 39.9
A158: 179.7
A159: 21.95
A160: 24.95
A161: 74.85
A162: 79.8
A163: 19.95
A164: 22.95
A165: 45.9
A166: 65.85
A167: 139.65
A168: 22.95
A169: 39.9
A170: 109.75
A171: 160.65
A172: 49.9
A173: 22.95
A174: 45.9
A175: 68.85
A176: 229.5
A177: 29.95
A178: 39.9
A179: 43.9
A180: 19.95
A181: 59.9
A182: 99.75
A183: 174.65
A184: 65.85
A185: 124.75
A186: 87.8
A187: 229.5
A188: 99.75
A189: 19.95
A190: 19.95
A191: 99.8
A192: 24.95
A193: 114.75
A194: 59.85
A195: 43.9
A196: 74.85
A197: 19.95
A198: 22.95
A199: 153.65
A200: 39.9
... 1 more rows

Sheet DATAI (an)
A1: Revenue | C1: bins
A2: 45.9 | C2: 50 | E2: Bin | F2: Frequency | G2: Cumulative %
A3: 19.95 | C3: 100 | E3: 50 | F3: 97 | G3: 0.485
A4: 21.95 | C4: 150 | E4: 100 | F4: 46 | G4: 0.715
A5: 19.95 | C5: 200 | E5: 150 | F5: 37 | G5: 0.9
A6: 79.8 | C6: 250 | E6: 200 | F6: 13 | G6: 0.965
A7: 79.8 | C7: 300 | E7: 250 | F7: 6 | G7: 0.995
A8: 59.85 | E8: 300 | F8: 1 | G8: 1
A9: 139.65 | E9: More | F9: 0 | G9: 1
A10: 119.7
A11: 43.9
A12: 43.9
A13: 99.75
A14: 114.75
A15: 91.8
A16: 114.75
A17: 22.95
A18: 124.75
A19: 19.95
A20: 87.8
A21: 22.95
A22: 299.5
A23: 19.95
A24: 99.75
A25: 39.9
A26: 65.85
A27: 24.95
A28: 21.95
A29: 19.95
A30: 91.8
A31: 65.85
A32: 39.9
A33: 43.9
A34: 65.85
A35: 43.9
A36: 99.75
A37: 29.95
A38: 65.85
A39: 22.95
A40: 19.95
A41: 99.75
A42: 124.75
A43: 21.95
A44: 174.65
A45: 29.95
A46: 149.75
A47: 29.95
A48: 45.9
A49: 160.65
A50: 160.65
A51: 119.7
A52: 43.9
A53: 119.7
A54: 65.85
A55: 22.95
A56: 65.85
A57: 109.75
A58: 114.75
A59: 249.5
A60: 109.75
A61: 114.75
A62: 114.75
A63: 119.8
A64: 29.95
A65: 114.75
A66: 209.65
A67: 114.75
A68: 59.85
A69: 124.75
A70: 39.9
A71: 124.75
A72: 24.95
A73: 22.95
A74: 249.5
A75: 59.85
A76: 43.9
A77: 19.95
A78: 29.95
A79: 19.95
A80: 65.85
A81: 22.95
A82: 79.8
A83: 79.8
A84: 114.75
A85: 22.95
A86: 19.95
A87: 109.75
A88: 59.9
A89: 43.9
A90: 39.9
A91: 209.65
A92: 19.95
A93: 79.8
A94: 124.75
A95: 24.95
A96: 160.65
A97: 65.85
A98: 137.7
A99: 29.95
A100: 119.7
A101: 19.95
A102: 39.9
A103: 114.75
A104: 21.95
A105: 179.7
A106: 39.9
A107: 24.95
A108: 99.8
A109: 87.8
A110: 39.9
A111: 65.85
A112: 199.5
A113: 21.95
A114: 124.75
A115: 29.95
A116: 21.95
A117: 119.8
A118: 89.85
A119: 65.85
A120: 91.8
A121: 149.7
A122: 59.85
A123: 131.7
A124: 49.9
A125: 43.9
A126: 19.95
A127: 21.95
A128: 24.95
A129: 39.9
A130: 24.95
A131: 114.75
A132: 119.7
A133: 43.9
A134: 24.95
A135: 174.65
A136: 24.95
A137: 49.9
A138: 19.95
A139: 39.9
A140: 45.9
A141: 179.7
A142: 160.65
A143: 21.95
A144: 124.75
A145: 89.85
A146: 49.9
A147: 22.95
A148: 19.95
A149: 99.75
A150: 91.8
A151: 49.9
A152: 21.95
A153: 45.9
A154: 22.95
A155: 45.9
A156: 24.95
A157: 39.9
A158: 179.7
A159: 21.95
A160: 24.95
A161: 74.85
A162: 79.8
A163: 19.95
A164: 22.95
A165: 45.9
A166: 65.85
A167: 139.65
A168: 22.95
A169: 39.9
A170: 109.75
A171: 160.65
A172: 49.9
A173: 22.95
A174: 45.9
A175: 68.85
A176: 229.5
A177: 29.95
A178: 39.9
A179: 43.9
A180: 19.95
A181: 59.9
A182: 99.75
A183: 174.65
A184: 65.85
A185: 124.75
A186: 87.8
A187: 229.5
A188: 99.75
A189: 19.95
A190: 19.95
A191: 99.8
A192: 24.95
A193: 114.75
A194: 59.85
A195: 43.9
A196: 74.85
A197: 19.95
A198: 22.95
A199: 153.65
A200: 39.9
... 1 more rows

Sheet Histgrams
A1: When you look at a lot of samples for the same population, you may notice that distributions tend to be shaped in a certain way.
A2: The distribution may be skewed in a certain way.
A3: If the shaped of the distribution is consistent across samples, you can use that fact to help with doing statistics.
A4: For example, if the shape of the data is bell shaped, you can use "Normal Distribution" statistical methods, which makes the calculations less difficult.
A5: In later chapters we will see how to use the normal distribution and Excel functions like NORM.DIST and NORM.INV to make our life easy.
A10: Stats Test Sample 1 | B10: Stats Test Sample 2 | C10: Stats Test Sample 3 | D10: Stats Test Sample 4 | E10: Stats Test Sample 5 | F10: Stats Test Sample 6 | G10: Stats Test Sample 7 | H10: Stats Test Sample 8 | J10: Bins | K10: Frequency Sample 1 | L10: Frequency Sample 2 | M10: Frequency Sample 3 | N10: Frequency Sample 4 | O10: Frequency Sample 5 | P10: Frequency Sample 6 | Q10: Frequency Sample 7 | R10: Frequency Sample 8
A11: =CHOOSE(RANDBETWEEN(1,10),RANDBETWEEN(0,100),RANDBETWEEN(10,100),RANDBETWEEN(20,100),RANDBETWEEN(30,95),RANDBETWEEN(30,90),RANDBETWEEN(35,85),RANDBETWEEN(40,80),RANDBETWEEN(50,75),RANDBETWEEN(50,75),RANDBETWEEN(60,85)) -> 69 | B11: 72 | C11: 48 | D11: 68 | E11: 70 | F11: 64 | G11: 51 | H11: 85 | J11: 10 | K11: =FREQUENCY(A11:A103,$J$11:$J$20) -> 1 | L11: =FREQUENCY(B11:B103,$J$11:$J$20) -> 0 | M11: =FREQUENCY(C11:C103,$J$11:$J$20) -> 2 | N11: =FREQUENCY(D11:D103,$J$11:$J$20) -> 1 | O11: =FREQUENCY(E11:E103,$J$11:$J$20) -> 3 | P11: =FREQUENCY(F11:F103,$J$11:$J$20) -> 2 | Q11: =FREQUENCY(G11:G103,$J$11:$J$20) -> 2 | R11: =FREQUENCY(H11:H103,$J$11:$J$20) -> 3
A12: 68 | B12: 59 | C12: 47 | D12: 21 | E12: 81 | F12: 63 | G12: 75 | H12: 42 | J12: 20 | K12: 3 | L12: 1 | M12: 2 | N12: 2 | O12: 0 | P12: 2 | Q12: 2 | R12: 2
A13: 89 | B13: 81 | C13: 32 | D13: 41 | E13: 8 | F13: 13 | G13: 8 | H13: 43 | J13: 30 | K13: 2 | L13: 2 | M13: 3 | N13: 4 | O13: 6 | P13: 2 | Q13: 4 | R13: 3
A14: 64 | B14: 67 | C14: 74 | D14: 60 | E14: 44 | F14: 76 | G14: 89 | H14: 54 | J14: 40 | K14: 8 | L14: 9 | M14: 7 | N14: 10 | O14: 2 | P14: 5 | Q14: 13 | R14: 3
A15: 71 | B15: 67 | C15: 61 | D15: 71 | E15: 70 | F15: 53 | G15: 37 | H15: 93 | J15: 50 | K15: 11 | L15: 12 | M15: 13 | N15: 6 | O15: 13 | P15: 7 | Q15: 12 | R15: 13
A16: 36 | B16: 59 | C16: 63 | D16: 67 | E16: 64 | F16: 54 | G16: 75 | H16: 67 | J16: 60 | K16: 16 | L16: 21 | M16: 21 | N16: 24 | O16: 16 | P16: 18 | Q16: 19 | R16: 14
A17: 58 | B17: 78 | C17: 89 | D17: 90 | E17: 74 | F17: 77 | G17: 69 | H17: 79 | J17: 70 | K17: 22 | L17: 20 | M17: 22 | N17: 19 | O17: 23 | P17: 34 | Q17: 20 | R17: 22
A18: 41 | B18: 58 | C18: 63 | D18: 55 | E18: 41 | F18: 36 | G18: 13 | H18: 52 | J18: 80 | K18: 15 | L18: 19 | M18: 14 | N18: 17 | O18: 16 | P18: 11 | Q18: 11 | R18: 19
A19: 42 | B19: 60 | C19: 76 | D19: 60 | E19: 75 | F19: 47 | G19: 85 | H19: 78 | J19: 90 | K19: 9 | L19: 7 | M19: 7 | N19: 7 | O19: 10 | P19: 9 | Q19: 8 | R19: 8
A20: 61 | B20: 77 | C20: 58 | D20: 39 | E20: 95 | F20: 75 | G20: 61 | H20: 82 | J20: 100 | K20: 6 | L20: 2 | M20: 2 | N20: 3 | O20: 4 | P20: 3 | Q20: 2 | R20: 6
A21: =CHOOSE(RANDBETWEEN(1,10),RANDBETWEEN(0,100),RANDBETWEEN(10,100),RANDBETWEEN(20,100),RANDBETWEEN(30,95),RANDBETWEEN(30,90),RANDBETWEEN(35,85),RANDBETWEEN(40,80),RANDBETWEEN(50,75),RANDBETWEEN(50,75),RANDBETWEEN(60,85)) -> 72 | B21: 46 | C21: 91 | D21: 83 | E21: 63 | F21: 58 | G21: 47 | H21: 74
A22: 28 | B22: 50 | C22: 56 | D22: 40 | E22: 44 | F22: 57 | G22: 66 | H22: 46
A23: 92 | B23: 73 | C23: 45 | D23: 38 | E23: 78 | F23: 52 | G23: 34 | H23: 57
A24: 53 | B24: 51 | C24: 32 | D24: 55 | E24: 24 | F24: 50 | G24: 74 | H24: 45
A25: 100 | B25: 41 | C25: 69 | D25: 76 | E25: 71 | F25: 72 | G25: 57 | H25: 80
A26: 63 | B26: 77 | C26: 61 | D26: 64 | E26: 76 | F26: 54 | G26: 45 | H26: 63
A27: 69 | B27: 65 | C27: 69 | D27: 82 | E27: 26 | F27: 5 | G27: 38 | H27: 23
A28: 60 | B28: 65 | C28: 60 | D28: 53 | E28: 47 | F28: 59 | G28: 60 | H28: 55
A29: 11 | B29: 44 | C29: 41 | D29: 52 | E29: 86 | F29: 61 | G29: 61 | H29: 58
A30: 79 | B30: 74 | C30: 41 | D30: 4 | E30: 45 | F30: 65 | G30: 28 | H30: 85
A31: =CHOOSE(RANDBETWEEN(1,10),RANDBETWEEN(0,100),RANDBETWEEN(10,100),RANDBETWEEN(20,100),RANDBETWEEN(30,95),RANDBETWEEN(30,90),RANDBETWEEN(35,85),RANDBETWEEN(40,80),RANDBETWEEN(50,75),RANDBETWEEN(50,75),RANDBETWEEN(60,85)) -> 61 | B31: 57 | C31: 52 | D31: 58 | E31: 82 | F31: 67 | G31: 47 | H31: 82
A32: 66 | B32: 58 | C32: 63 | D32: 11 | E32: 52 | F32: 43 | G32: 96 | H32: 25
A33: 68 | B33: 76 | C33: 58 | D33: 29 | E33: 76 | F33: 50 | G33: 68 | H33: 70
A34: 56 | B34: 56 | C34: 24 | D34: 51 | E34: 65 | F34: 91 | G34: 11 | H34: 40
A35: 100 | B35: 70 | C35: 19 | D35: 66 | E35: 53 | F35: 89 | G35: 66 | H35: 69
A36: 74 | B36: 37 | C36: 52 | D36: 59 | E36: 44 | F36: 63 | G36: 81 | H36: 68
A37: 44 | B37: 27 | C37: 58 | D37: 95 | E37: 58 | F37: 50 | G37: 41 | H37: 71
A38: 77 | B38: 73 | C38: 55 | D38: 60 | E38: 59 | F38: 74 | G38: 58 | H38: 82
A39: 62 | B39: 37 | C39: 47 | D39: 20 | E39: 42 | F39: 63 | G39: 73 | H39: 74
A40: 80 | B40: 38 | C40: 49 | D40: 68 | E40: 47 | F40: 64 | G40: 59 | H40: 74
A41: =CHOOSE(RANDBETWEEN(1,10),RANDBETWEEN(0,100),RANDBETWEEN(10,100),RANDBETWEEN(20,100),RANDBETWEEN(30,95),RANDBETWEEN(30,90),RANDBETWEEN(35,85),RANDBETWEEN(40,80),RANDBETWEEN(50,75),RANDBETWEEN(50,75),RANDBETWEEN(60,85)) -> 65 | B41: 72 | C41: 51 | D41: 40 | E41: 42 | F41: 58 | G41: 56 | H41: 41
A42: 43 | B42: 57 | C42: 41 | D42: 52 | E42: 84 | F42: 58 | G42: 41 | H42: 64
A43: 81 | B43: 34 | C43: 64 | D43: 59 | E43: 66 | F43: 84 | G43: 83 | H43: 8
A44: 69 | B44: 61 | C44: 41 | D44: 74 | E44: 56 | F44: 81 | G44: 89 | H44: 34
A45: 43 | B45: 47 | C45: 44 | D45: 63 | E45: 58 | F45: 82 | G45: 46 | H45: 62
A46: 35 | B46: 62 | C46: 64 | D46: 56 | E46: 65 | F46: 82 | G46: 63 | H46: 68
A47: 58 | B47: 84 | C47: 78 | D47: 65 | E47: 75 | F47: 70 | G47: 61 | H47: 53
A48: 75 | B48: 45 | C48: 72 | D48: 84 | E48: 71 | F48: 24 | G48: 47 | H48: 69
A49: 58 | B49: 36 | C49: 79 | D49: 74 | E49: 89 | F49: 68 | G49: 66 | H49: 54
A50: 85 | B50: 78 | C50: 28 | D50: 80 | E50: 82 | F50: 72 | G50: 30 | H50: 65
A51: =CHOOSE(RANDBETWEEN(1,10),RANDBETWEEN(0,100),RANDBETWEEN(10,100),RANDBETWEEN(20,100),RANDBETWEEN(30,95),RANDBETWEEN(30,90),RANDBETWEEN(35,85),RANDBETWEEN(40,80),RANDBETWEEN(50,75),RANDBETWEEN(50,75),RANDBETWEEN(60,85)) -> 70 | B51: 65 | C51: 65 | D51: 64 | E51: 67 | F51: 63 | G51: 55 | H51: 63
A52: 27 | B52: 51 | C52: 58 | D52: 69 | E52: 63 | F52: 99 | G52: 66 | H52: 92
A53: 53 | B53: 73 | C53: 63 | D53: 61 | E53: 54 | F53: 59 | G53: 79 | H53: 41
A54: 71 | B54: 84 | C54: 53 | D54: 58 | E54: 97 | F54: 6 | G54: 72 | H54: 67
A55: 73 | B55: 61 | C55: 44 | D55: 43 | E55: 71 | F55: 57 | G55: 79 | H55: 52
A56: 65 | B56: 77 | C56: 88 | D56: 32 | E56: 86 | F56: 62 | G56: 5 | H56: 92
A57: 72 | B57: 100 | C57: 59 | D57: 37 | E57: 35 | F57: 67 | G57: 63 | H57: 60
A58: 56 | B58: 42 | C58: 54 | D58: 53 | E58: 87 | F58: 52 | G58: 65 | H58: 78
A59: 74 | B59: 99 | C59: 62 | D59: 73 | E59: 60 | F59: 66 | G59: 58 | H59: 61
A60: 70 | B60: 31 | C60: 23 | D60: 54 | E60: 63 | F60: 65 | G60: 55 | H60: 75
A61: =CHOOSE(RANDBETWEEN(1,10),RANDBETWEEN(0,100),RANDBETWEEN(10,100),RANDBETWEEN(20,100),RANDBETWEEN(30,95),RANDBETWEEN(30,90),RANDBETWEEN(35,85),RANDBETWEEN(40,80),RANDBETWEEN(50,75),RANDBETWEEN(50,75),RANDBETWEEN(60,85)) -> 59 | B61: 61 | C61: 66 | D61: 58 | E61: 90 | F61: 98 | G61: 63 | H61: 66
A62: 3 | B62: 47 | C62: 70 | D62: 98 | E62: 63 | F62: 19 | G62: 48 | H62: 63
A63: 83 | B63: 79 | C63: 4 | D63: 85 | E63: 80 | F63: 88 | G63: 67 | H63: 66
A64: 58 | B64: 72 | C64: 50 | D64: 60 | E64: 62 | F64: 63 | G64: 40 | H64: 62
A65: 56 | B65: 60 | C65: 41 | D65: 59 | E65: 0 | F65: 70 | G65: 58 | H65: 53
A66: 66 | B66: 40 | C66: 80 | D66: 67 | E66: 66 | F66: 70 | G66: 59 | H66: 13
A67: 31 | B67: 79 | C67: 77 | D67: 50 | E67: 4 | F67: 71 | G67: 67 | H67: 74
A68: 87 | B68: 85 | C68: 71 | D68: 40 | E68: 58 | F68: 89 | G68: 40 | H68: 18
A69: 14 | B69: 54 | C69: 90 | D69: 65 | E69: 28 | F69: 76 | G69: 54 | H69: 83
A70: 49 | B70: 60 | C70: 54 | D70: 61 | E70: 66 | F70: 39 | G70: 84 | H70: 96
A71: =CHOOSE(RANDBETWEEN(1,10),RANDBETWEEN(0,100),RANDBETWEEN(10,100),RANDBETWEEN(20,100),RANDBETWEEN(30,95),RANDBETWEEN(30,90),RANDBETWEEN(35,85),RANDBETWEEN(40,80),RANDBETWEEN(50,75),RANDBETWEEN(50,75),RANDBETWEEN(60,85)) -> 50 | B71: 68 | C71: 66 | D71: 32 | E71: 64 | F71: 85 | G71: 80 | H71: 42
A72: 58 | B72: 55 | C72: 81 | D72: 72 | E72: 68 | F72: 66 | G72: 57 | H72: 68
A73: 92 | B73: 77 | C73: 71 | D73: 97 | E73: 23 | F73: 68 | G73: 63 | H73: 84
A74: 77 | B74: 61 | C74: 71 | D74: 76 | E74: 59 | F74: 71 | G74: 31 | H74: 28
A75: 66 | B75: 71 | C75: 32 | D75: 71 | E75: 66 | F75: 64 | G75: 95 | H75: 56
A76: 31 | B76: 60 | C76: 40 | D76: 72 | E76: 29 | F76: 42 | G76: 78 | H76: 71
A77: 58 | B77: 69 | C77: 58 | D77: 79 | E77: 47 | F77: 66 | G77: 54 | H77: 4
A78: 37 | B78: 51 | C78: 75 | D78: 76 | E78: 65 | F78: 64 | G78: 23 | H78: 74
A79: 94 | B79: 56 | C79: 79 | D79: 80 | E79: 70 | F79: 64 | G79: 36 | H79: 71
A80: 81 | B80: 32 | C80: 69 | D80: 43 | E80: 94 | F80: 71 | G80: 57 | H80: 72
A81: =CHOOSE(RANDBETWEEN(1,10),RANDBETWEEN(0,100),RANDBETWEEN(10,100),RANDBETWEEN(20,100),RANDBETWEEN(30,95),RANDBETWEEN(30,90),RANDBETWEEN(35,85),RANDBETWEEN(40,80),RANDBETWEEN(50,75),RANDBETWEEN(50,75),RANDBETWEEN(60,85)) -> 61 | B81: 62 | C81: 73 | D81: 52 | E81: 96 | F81: 69 | G81: 48 | H81: 44
A82: 67 | B82: 47 | C82: 67 | D82: 76 | E82: 73 | F82: 75 | G82: 61 | H82: 79
A83: 66 | B83: 58 | C83: 84 | D83: 31 | E83: 73 | F83: 65 | G83: 37 | H83: 77
A84: 49 | B84: 13 | C84: 65 | D84: 62 | E84: 74 | F84: 36 | G84: 84 | H84: 91
A85: 31 | B85: 63 | C85: 87 | D85: 23 | E85: 63 | F85: 63 | G85: 48 | H85: 46
A86: 46 | B86: 81 | C86: 39 | D86: 67 | E86: 69 | F86: 37 | G86: 36 | H86: 84
A87: 63 | B87: 47 | C87: 83 | D87: 57 | E87: 83 | F87: 50 | G87: 65 | H87: 74
A88: 87 | B88: 43 | C88: 51 | D88: 69 | E88: 60 | F88: 59 | G88: 45 | H88: 79
A89: 81 | B89: 64 | C89: 64 | D89: 84 | E89: 22 | F89: 54 | G89: 38 | H89: 66
A90: 50 | B90: 31 | C90: 34 | D90: 72 | E90: 36 | F90: 58 | G90: 30 | H90: 43
A91: =CHOOSE(RANDBETWEEN(1,10),RANDBETWEEN(0,100),RANDBETWEEN(10,100),RANDBETWEEN(20,100),RANDBETWEEN(30,95),RANDBETWEEN(30,90),RANDBETWEEN(35,85),RANDBETWEEN(40,80),RANDBETWEEN(50,75),RANDBETWEEN(50,75),RANDBETWEEN(60,85)) -> 69 | B91: 51 | C91: 53 | D91: 46 | E91: 69 | F91: 60 | G91: 71 | H91: 91
A92: 51 | B92: 68 | C92: 77 | D92: 62 | E92: 54 | F92: 66 | G92: 68 | H92: 70
A93: 97 | B93: 69 | C93: 3 | D93: 71 | E93: 60 | F93: 64 | G93: 67 | H93: 51
A94: 60 | B94: 54 | C94: 68 | D94: 45 | E94: 55 | F94: 53 | G94: 36 | H94: 66
A95: 48 | B95: 81 | C95: 14 | D95: 73 | E95: 60 | F95: 55 | G95: 54 | H95: 49
A96: 73 | B96: 73 | C96: 68 | D96: 24 | E96: 48 | F96: 70 | G96: 89 | H96: 44
A97: 88 | B97: 65 | C97: 59 | D97: 55 | E97: 74 | F97: 64 | G97: 77 | H97: 70
A98: 33 | B98: 81 | C98: 36 | D98: 51 | E98: 80 | F98: 30 | G98: 56 | H98: 73
A99: 72 | B99: 80 | C99: 95 | D99: 69 | E99: 78 | F99: 67 | G99: 36 | H99: 44
A100: 77 | B100: 30 | C100: 60 | D100: 59 | E100: 42 | F100: 65 | G100: 46 | H100: 36
A101: 33 | B101: 68 | C101: 57 | D101: 32 | E101: 50 | F101: 87 | G101: 33 | H101: 8
A102: 14 | B102: 58 | C102: 63 | D102: 82 | E102: 51 | F102: 68 | G102: 60 | H102: 55
A103: 59 | B103: 48 | C103: 57 | D103: 64 | E103: 69 | F103: 33 | G103: 60 | H103: 53

Sheet Histgrams (an)
A1: When you look at a lot of samples for the same population, you may notice that distributions tend to be shaped in a certain way.
A2: The distribution may be skewed in a certain way.
A3: If the shaped of the distribution is consistent across samples, you can use that fact to help with doing statistics.
A4: For example, if the shape of the data is bell shaped, you can use "Normal Distribution" statistical methods, which makes the calculations less difficult.
A5: In later chapters we will see how to use the normal distribution and Excel functions like NORM.DIST and NORM.INV to make our life easy.
J9: =MAX(K11:R20)&CHAR(10)&CHAR(10)&0 -> 30 0
A10: Stats Test Sample 1 | B10: Stats Test Sample 2 | C10: Stats Test Sample 3 | D10: Stats Test Sample 4 | E10: Stats Test Sample 5 | F10: Stats Test Sample 6 | G10: Stats Test Sample 7 | H10: Stats Test Sample 8 | J10: Bins | K10: Frequency Sample 1 | L10: Frequency Sample 2 | M10: Frequency Sample 3 | N10: Frequency Sample 4 | O10: Frequency Sample 5 | P10: Frequency Sample 6 | Q10: Frequency Sample 7 | R10: Frequency Sample 8
A11: =CHOOSE(RANDBETWEEN(1,10),RANDBETWEEN(0,100),RANDBETWEEN(10,100),RANDBETWEEN(20,100),RANDBETWEEN(30,95),RANDBETWEEN(30,90),RANDBETWEEN(35,85),RANDBETWEEN(40,80),RANDBETWEEN(50,75),RANDBETWEEN(50,75),RANDBETWEEN(60,85)) -> 68 | B11: 38 | C11: 74 | D11: 62 | E11: 76 | F11: 74 | G11: 66 | H11: 43 | J11: 10 | K11: =FREQUENCY(A11:A103,$J$11:$J$20) -> 1 | L11: =FREQUENCY(B11:B103,$J$11:$J$20) -> 1 | M11: =FREQUENCY(C11:C103,$J$11:$J$20) -> 0 | N11: =FREQUENCY(D11:D103,$J$11:$J$20) -> 0 | O11: =FREQUENCY(E11:E103,$J$11:$J$20) -> 1 | P11: =FREQUENCY(F11:F103,$J$11:$J$20) -> 3 | Q11: =FREQUENCY(G11:G103,$J$11:$J$20) -> 1 | R11: =FREQUENCY(H11:H103,$J$11:$J$20) -> 0
A12: 58 | B12: 1 | C12: 51 | D12: 83 | E12: 63 | F12: 63 | G12: 70 | H12: 41 | J12: 20 | K12: 1 | L12: 1 | M12: 2 | N12: 2 | O12: 1 | P12: 1 | Q12: 4 | R12: 2
A13: 8 | B13: 50 | C13: 36 | D13: 17 | E13: 67 | F13: 22 | G13: 34 | H13: 65 | J13: 30 | K13: 1 | L13: 0 | M13: 1 | N13: 4 | O13: 3 | P13: 5 | Q13: 2 | R13: 1
A14: 44 | B14: 75 | C14: 32 | D14: 96 | E14: 61 | F14: 48 | G14: 46 | H14: 51 | J14: 40 | K14: 6 | L14: 9 | M14: 9 | N14: 4 | O14: 12 | P14: 8 | Q14: 9 | R14: 6
A15: 82 | B15: 53 | C15: 67 | D15: 35 | E15: 31 | F15: 81 | G15: 62 | H15: 51 | J15: 50 | K15: 8 | L15: 11 | M15: 12 | N15: 14 | O15: 5 | P15: 10 | Q15: 17 | R15: 6
A16: 66 | B16: 79 | C16: 73 | D16: 36 | E16: 77 | F16: 51 | G16: 74 | H16: 74 | J16: 60 | K16: 19 | L16: 18 | M16: 17 | N16: 22 | O16: 14 | P16: 12 | Q16: 17 | R16: 23
A17: 37 | B17: 72 | C17: 39 | D17: 52 | E17: 91 | F17: 74 | G17: 64 | H17: 66 | J17: 70 | K17: 30 | L17: 26 | M17: 22 | N17: 16 | O17: 14 | P17: 25 | Q17: 27 | R17: 21
A18: 85 | B18: 55 | C18: 75 | D18: 56 | E18: 58 | F18: 61 | G18: 50 | H18: 37 | J18: 80 | K18: 11 | L18: 16 | M18: 25 | N18: 17 | O18: 28 | P18: 18 | Q18: 6 | R18: 19
A19: 95 | B19: 66 | C19: 47 | D19: 43 | E19: 72 | F19: 75 | G19: 50 | H19: 59 | J19: 90 | K19: 11 | L19: 9 | M19: 5 | N19: 11 | O19: 9 | P19: 10 | Q19: 6 | R19: 12
A20: 49 | B20: 57 | C20: 48 | D20: 82 | E20: 68 | F20: 67 | G20: 69 | H20: 84 | J20: 100 | K20: 5 | L20: 2 | M20: 0 | N20: 3 | O20: 6 | P20: 1 | Q20: 4 | R20: 3
A21: 57 | B21: 50 | C21: 86 | D21: 55 | E21: 77 | F21: 58 | G21: 54 | H21: 52
A22: 79 | B22: 62 | C22: 45 | D22: 56 | E22: 64 | F22: 84 | G22: 67 | H22: 36
A23: 66 | B23: 62 | C23: 72 | D23: 64 | E23: 52 | F23: 74 | G23: 69 | H23: 72
A24: 57 | B24: 78 | C24: 68 | D24: 55 | E24: 77 | F24: 87 | G24: 59 | H24: 68
A25: 66 | B25: 64 | C25: 70 | D25: 71 | E25: 54 | F25: 50 | G25: 61 | H25: 66
A26: 61 | B26: 76 | C26: 55 | D26: 68 | E26: 33 | F26: 67 | G26: 63 | H26: 79
A27: =CHOOSE(RANDBETWEEN(1,10),RANDBETWEEN(0,100),RANDBETWEEN(10,100),RANDBETWEEN(20,100),RANDBETWEEN(30,95),RANDBETWEEN(30,90),RANDBETWEEN(35,85),RANDBETWEEN(40,80),RANDBETWEEN(50,75),RANDBETWEEN(50,75),RANDBETWEEN(60,85)) -> 64 | B27: 84 | C27: 65 | D27: 73 | E27: 37 | F27: 76 | G27: 52 | H27: 25
A28: 43 | B28: 81 | C28: 70 | D28: 50 | E28: 77 | F28: 54 | G28: 96 | H28: 57
A29: 100 | B29: 65 | C29: 46 | D29: 76 | E29: 83 | F29: 77 | G29: 51 | H29: 79
A30: 67 | B30: 85 | C30: 69 | D30: 47 | E30: 90 | F30: 31 | G30: 80 | H30: 80
A31: 84 | B31: 66 | C31: 66 | D31: 77 | E31: 76 | F31: 26 | G31: 84 | H31: 85
A32: 66 | B32: 85 | C32: 71 | D32: 78 | E32: 53 | F32: 64 | G32: 42 | H32: 66
A33: 63 | B33: 50 | C33: 59 | D33: 86 | E33: 11 | F33: 36 | G33: 53 | H33: 88
A34: 51 | B34: 68 | C34: 70 | D34: 54 | E34: 79 | F34: 60 | G34: 61 | H34: 75
A35: 52 | B35: 32 | C35: 19 | D35: 48 | E35: 33 | F35: 37 | G35: 41 | H35: 53
A36: 89 | B36: 68 | C36: 83 | D36: 80 | E36: 75 | F36: 61 | G36: 14 | H36: 100
A37: 96 | B37: 60 | C37: 57 | D37: 72 | E37: 77 | F37: 85 | G37: 36 | H37: 79
A38: 78 | B38: 57 | C38: 89 | D38: 46 | E38: 69 | F38: 43 | G38: 57 | H38: 58
A39: 52 | B39: 44 | C39: 61 | D39: 45 | E39: 75 | F39: 62 | G39: 81 | H39: 75
A40: 29 | B40: 64 | C40: 74 | D40: 50 | E40: 43 | F40: 73 | G40: 70 | H40: 63
A41: 91 | B41: 68 | C41: 86 | D41: 54 | E41: 49 | F41: 55 | G41: 40 | H41: 48
A42: 63 | B42: 55 | C42: 76 | D42: 53 | E42: 73 | F42: 75 | G42: 63 | H42: 74
A43: =CHOOSE(RANDBETWEEN(1,10),RANDBETWEEN(0,100),RANDBETWEEN(10,100),RANDBETWEEN(20,100),RANDBETWEEN(30,95),RANDBETWEEN(30,90),RANDBETWEEN(35,85),RANDBETWEEN(40,80),RANDBETWEEN(50,75),RANDBETWEEN(50,75),RANDBETWEEN(60,85)) -> 66 | B43: 69 | C43: 81 | D43: 51 | E43: 77 | F43: 68 | G43: 43 | H43: 70
A44: 31 | B44: 87 | C44: 53 | D44: 56 | E44: 70 | F44: 38 | G44: 24 | H44: 78
A45: 64 | B45: 16 | C45: 56 | D45: 79 | E45: 85 | F45: 29 | G45: 62 | H45: 60
A46: 52 | B46: 74 | C46: 35 | D46: 31 | E46: 83 | F46: 79 | G46: 46 | H46: 93
A47: 47 | B47: 77 | C47: 72 | D47: 83 | E47: 60 | F47: 67 | G47: 74 | H47: 45
A48: 58 | B48: 75 | C48: 67 | D48: 64 | E48: 51 | F48: 41 | G48: 94 | H48: 83
A49: 66 | B49: 66 | C49: 50 | D49: 90 | E49: 97 | F49: 56 | G49: 41 | H49: 80
A50: 52 | B50: 48 | C50: 65 | D50: 86 | E50: 33 | F50: 77 | G50: 34 | H50: 59
A51: 81 | B51: 65 | C51: 35 | D51: 46 | E51: 66 | F51: 70 | G51: 65 | H51: 71
A52: 63 | B52: 85 | C52: 36 | D52: 56 | E52: 79 | F52: 52 | G52: 16 | H52: 81
A53: 81 | B53: 59 | C53: 79 | D53: 43 | E53: 71 | F53: 76 | G53: 81 | H53: 61
A54: 57 | B54: 88 | C54: 73 | D54: 60 | E54: 62 | F54: 59 | G54: 53 | H54: 50
A55: 69 | B55: 73 | C55: 72 | D55: 60 | E55: 57 | F55: 70 | G55: 49 | H55: 61
A56: 40 | B56: 72 | C56: 35 | D56: 69 | E56: 30 | F56: 81 | G56: 41 | H56: 59
A57: 68 | B57: 67 | C57: 51 | D57: 64 | E57: 71 | F57: 50 | G57: 92 | H57: 54
A58: 92 | B58: 80 | C58: 74 | D58: 60 | E58: 60 | F58: 75 | G58: 65 | H58: 75
A59: =CHOOSE(RANDBETWEEN(1,10),RANDBETWEEN(0,100),RANDBETWEEN(10,100),RANDBETWEEN(20,100),RANDBETWEEN(30,95),RANDBETWEEN(30,90),RANDBETWEEN(35,85),RANDBETWEEN(40,80),RANDBETWEEN(50,75),RANDBETWEEN(50,75),RANDBETWEEN(60,85)) -> 52 | B59: 64 | C59: 60 | D59: 18 | E59: 86 | F59: 42 | G59: 67 | H59: 35
A60: 63 | B60: 67 | C60: 65 | D60: 67 | E60: 40 | F60: 50 | G60: 12 | H60: 88
A61: 81 | B61: 37 | C61: 52 | D61: 22 | E61: 88 | F61: 61 | G61: 62 | H61: 12
A62: 31 | B62: 40 | C62: 75 | D62: 74 | E62: 96 | F62: 38 | G62: 30 | H62: 83
A63: 61 | B63: 42 | C63: 36 | D63: 92 | E63: 55 | F63: 68 | G63: 58 | H63: 89
A64: 69 | B64: 57 | C64: 77 | D64: 71 | E64: 35 | F64: 66 | G64: 39 | H64: 32
A65: 80 | B65: 73 | C65: 66 | D65: 51 | E65: 80 | F65: 89 | G65: 48 | H65: 65
A66: 78 | B66: 60 | C66: 72 | D66: 72 | E66: 61 | F66: 93 | G66: 56 | H66: 63
A67: 64 | B67: 72 | C67: 53 | D67: 68 | E67: 46 | F67: 61 | G67: 46 | H67: 60
A68: 54 | B68: 62 | C68: 69 | D68: 47 | E68: 60 | F68: 5 | G68: 82 | H68: 73
A69: 61 | B69: 46 | C69: 71 | D69: 61 | E69: 36 | F69: 19 | G69: 63 | H69: 64
A70: 57 | B70: 57 | C70: 67 | D70: 74 | E70: 93 | F70: 65 | G70: 56 | H70: 58
A71: 51 | B71: 70 | C71: 79 | D71: 60 | E71: 34 | F71: 76 | G71: 37 | H71: 67
A72: 70 | B72: 64 | C72: 37 | D72: 68 | E72: 59 | F72: 82 | G72: 65 | H72: 53
A73: 44 | B73: 50 | C73: 46 | D73: 64 | E73: 46 | F73: 53 | G73: 54 | H73: 91
A74: 46 | B74: 40 | C74: 75 | D74: 51 | E74: 25 | F74: 82 | G74: 60 | H74: 66
A75: =CHOOSE(RANDBETWEEN(1,10),RANDBETWEEN(0,100),RANDBETWEEN(10,100),RANDBETWEEN(20,100),RANDBETWEEN(30,95),RANDBETWEEN(30,90),RANDBETWEEN(35,85),RANDBETWEEN(40,80),RANDBETWEEN(50,75),RANDBETWEEN(50,75),RANDBETWEEN(60,85)) -> 68 | B75: 65 | C75: 18 | D75: 44 | E75: 80 | F75: 53 | G75: 51 | H75: 69
A76: 49 | B76: 95 | C76: 61 | D76: 62 | E76: 3 | F76: 40 | G76: 66 | H76: 82
A77: 75 | B77: 68 | C77: 44 | D77: 44 | E77: 62 | F77: 64 | G77: 67 | H77: 82
A78: 52 | B78: 55 | C78: 78 | D78: 43 | E78: 32 | F78: 64 | G78: 70 | H78: 57
A79: 83 | B79: 72 | C79: 60 | D79: 89 | E79: 92 | F79: 57 | G79: 67 | H79: 56
A80: 54 | B80: 75 | C80: 57 | D80: 68 | E80: 95 | F80: 63 | G80: 33 | H80: 56
A81: 68 | B81: 67 | C81: 74 | D81: 92 | E81: 76 | F81: 71 | G81: 99 | H81: 50
A82: 75 | B82: 73 | C82: 68 | D82: 50 | E82: 71 | F82: 58 | G82: 58 | H82: 17
A83: 65 | B83: 65 | C83: 48 | D83: 60 | E83: 64 | F83: 45 | G83: 70 | H83: 56
A84: 37 | B84: 48 | C84: 72 | D84: 90 | E84: 40 | F84: 67 | G84: 60 | H84: 85
A85: 14 | B85: 37 | C85: 41 | D85: 71 | E85: 76 | F85: 22 | G85: 42 | H85: 51
A86: 71 | B86: 100 | C86: 62 | D86: 76 | E86: 22 | F86: 84 | G86: 80 | H86: 61
A87: 56 | B87: 40 | C87: 67 | D87: 37 | E87: 83 | F87: 65 | G87: 66 | H87: 69
A88: 65 | B88: 83 | C88: 78 | D88: 84 | E88: 74 | F88: 84 | G88: 72 | H88: 67
A89: 82 | B89: 67 | C89: 72 | D89: 60 | E89: 72 | F89: 4 | G89: 42 | H89: 60
A90: 56 | B90: 35 | C90: 30 | D90: 81 | E90: 71 | F90: 22 | G90: 52 | H90: 72
A91: =CHOOSE(RANDBETWEEN(1,10),RANDBETWEEN(0,100),RANDBETWEEN(10,100),RANDBETWEEN(20,100),RANDBETWEEN(30,95),RANDBETWEEN(30,90),RANDBETWEEN(35,85),RANDBETWEEN(40,80),RANDBETWEEN(50,75),RANDBETWEEN(50,75),RANDBETWEEN(60,85)) -> 40 | B91: 85 | C91: 70 | D91: 21 | E91: 64 | F91: 62 | G91: 43 | H91: 37
A92: 71 | B92: 67 | C92: 46 | D92: 53 | E92: 57 | F92: 80 | G92: 64 | H92: 79
A93: 62 | B93: 53 | C93: 77 | D93: 64 | E93: 45 | F93: 75 | G93: 78 | H93: 80
A94: 71 | B94: 60 | C94: 57 | D94: 66 | E94: 73 | F94: 31 | G94: 33 | H94: 77
A95: 89 | B95: 40 | C95: 63 | D95: 62 | E95: 32 | F95: 46 | G95: 81 | H95: 65
A96: 62 | B96: 44 | C96: 53 | D96: 27 | E96: 74 | F96: 66 | G96: 37 | H96: 56
A97: 60 | B97: 57 | C97: 59 | D97: 84 | E97: 82 | F97: 34 | G97: 14 | H97: 39
A98: 78 | B98: 60 | C98: 56 | D98: 71 | E98: 82 | F98: 71 | G98: 65 | H98: 56
A99: 85 | B99: 56 | C99: 41 | D99: 72 | E99: 71 | F99: 80 | G99: 49 | H99: 70
A100: 47 | B100: 70 | C100: 61 | D100: 55 | E100: 60 | F100: 64 | G100: 59 | H100: 84
A101: 61 | B101: 55 | C101: 57 | D101: 73 | E101: 68 | F101: 0 | G101: 81 | H101: 60
A102: 63 | B102: 41 | C102: 46 | D102: 25 | E102: 71 | F102: 48 | G102: 50 | H102: 68
A103: 75 | B103: 57 | C103: 72 | D103: 54 | E103: 54 | F103: 63 | G103: 1 | H103: 77

Sheet Skew

Sheet (21.2)
A1: For Quantitative Data, Create Frequency Distribution and Histogram | O1: Other Examples of Skew Left/Negative:
O2: Death Rates
O4: Skew
O5: =SKEW(A7:A47) -> -2.07066062
A6: Tests Scores often Skewed Left - a few small values will tend to pull the Average (Mean) down | C6: COUNT function = No. in Sample = n = | D6: =COUNT(A7:A47) -> 41
A7: =IF(MOD(ROW(),4),RANDBETWEEN(65,100),RANDBETWEEN(0,100)) -> 82 | C7: MAX function | D7: =MAX(A7:A47) -> 100
A8: 21 | C8: MIN function | D8: =MIN(A7:A47) -> 1
A9: 92 | C9: ="Range = (MAX - MIN) = "&D7&" - "&D8&" =" -> Range = (MAX - MIN) = 100 - 1 = | D9: =D7-D8 -> 99
A10: 100 | C10: # of Classes = k = | D10: 7 | E10: This is a judgment call (the art side of statistics)
A11: 73 | C11: ="Is 2^"&D10&" ("&2^D10&") >= "&D6 -> Is 2^7 (128) >= 41 | D11: =2^D10>=D6 -> TRUE
A12: 64 | C12: ="Approximate Class Width = Range/k = "&D9&"/"&D10&" =" -> Approximate Class Width = Range/k = 99/7 = | D12: =(D7-D8)/D10 -> 14.14285714
A13: 96 | C13: Class width = | D13: 15 | E13: This is a judgment call (the art side of statistics)
A14: 86 | C14: ="Actual Range for Classes = ClassWidth*k = "&D13&"*"&D10&" =" -> Actual Range for Classes = ClassWidth*k = 15*7 = | D14: =D13*D10 -> 105
A15: 94 | C15: Lower Limit of First Class (look at MIN then estimate) | D15: 0 | E15: This is a judgment call (the art side of statistics)
A16: 71 | O16: Skew
A17: 76 | F17: Class | G17: Frequency | H17: % Frequency | O17: =SKEW(A53:A93) -> -0.2968278899
A18: 94 | D18: =D15 -> 0 | E18: =D18+D$13 -> 15 | F18: =D18&" up to "&E18 -> 0 up to 15 | G18: =COUNTIF($A$7:$A$47,"<"&E18)-COUNTIF($A$7:$A$47,"<"&D18) -> 2 | H18: =G18/G$25 -> 0.0487804878
A19: 79 | D19: =E18 -> 15 | E19: 30 | F19: 15 up to 30 | G19: 1 | H19: 0.0243902439
A20: 99 | D20: 30 | E20: 45 | F20: 30 up to 45 | G20: 0 | H20: 0
A21: 86 | D21: 45 | E21: 60 | F21: 45 up to 60 | G21: 2 | H21: 0.0487804878
A22: 91 | D22: 60 | E22: 75 | F22: 60 up to 75 | G22: 10 | H22: 0.243902439
A23: 83 | D23: 75 | E23: 90 | F23: 75 up to 90 | G23: 17 | H23: 0.4146341463
A24: 52 | D24: 90 | E24: 105 | F24: 90 up to 105 | G24: 9 | H24: 0.2195121951
A25: 86 | G25: =SUM(G18:G24) -> 41 | H25: =SUM(H18:H24) -> 1
A26: 82
A27: 89
A28: 67
A29: 69
A30: 91
A31: 70
A32: 4
A33: 76
A34: 85
A35: 80
A36: 47
A37: 67
A38: 70
A39: 86
A40: 85
A41: 74
A42: 82
A43: 80
A44: 1
A45: 78
A46: 94
A47: 70
A52: Tests Scores can be bi-modal | C52: COUNT function = No. in Sample = n = | D52: =COUNT(A53:A93) -> 41
A53: =CHOOSE(RANDBETWEEN(1,5),RANDBETWEEN(0,30),RANDBETWEEN(0,30),RANDBETWEEN(60,100),RANDBETWEEN(60,100),RANDBETWEEN(0,100)) -> 76 | C53: MAX function | D53: =MAX(A53:A93) -> 98
A54: 5 | C54: MIN function | D54: =MIN(A53:A93) -> 3
A55: 98 | C55: ="Range = (MAX - MIN) = "&D53&" - "&D54&" =" -> Range = (MAX - MIN) = 98 - 3 = | D55: =D53-D54 -> 95
A56: 88 | C56: # of Classes = k = | D56: 7 | E56: This is a judgment call (the art side of statistics)
A57: 86 | C57: ="Is 2^"&D56&" ("&2^D56&") >= "&D52 -> Is 2^7 (128) >= 41 | D57: =2^D56>=D52 -> TRUE
A58: 30 | C58: ="Approximate Class Width = Range/k = "&D55&"/"&D56&" =" -> Approximate Class Width = Range/k = 95/7 = | D58: =(D53-D54)/D56 -> 13.57142857
A59: 97 | C59: Class width = | D59: 15 | E59: This is a judgment call (the art side of statistics)
A60: 29 | C60: ="Actual Range for Classes = ClassWidth*k = "&D59&"*"&D56&" =" -> Actual Range for Classes = ClassWidth*k = 15*7 = | D60: =D59*D56 -> 105
A61: 69 | C61: Lower Limit of First Class (look at MIN then estimate) | D61: 0 | E61: This is a judgment call (the art side of statistics)
A62: 12
A63: 78 | F63: Class | G63: Frequency | H63: % Frequency
A64: 69 | D64: =D61 -> 0 | E64: =D64+D$59 -> 15 | F64: =D64&" up to "&E64 -> 0 up to 15 | G64: =COUNTIF($A$53:$A$93,"<"&E64)-COUNTIF($A$53:$A$93,"<"&D64) -> 8 | H64: =G64/G$25 -> 0.1951219512
A65: 91 | D65: =E64 -> 15 | E65: 30 | F65: 15 up to 30 | G65: 7 | H65: 0.1707317073
A66: 87 | D66: 30 | E66: 45 | F66: 30 up to 45 | G66: 2 | H66: 0.0487804878
A67: 89 | D67: 45 | E67: 60 | F67: 45 up to 60 | G67: 0 | H67: 0
A68: 72 | D68: 60 | E68: 75 | F68: 60 up to 75 | G68: 7 | H68: 0.1707317073
A69: 16 | D69: 75 | E69: 90 | F69: 75 up to 90 | G69: 8 | H69: 0.1951219512
A70: 93 | D70: 90 | E70: 105 | F70: 90 up to 105 | G70: 9 | H70: 0.2195121951
A71: 69 | G71: =SUM(G64:G70) -> 41 | H71: =SUM(H64:H70) -> 1
A72: 26
A73: 92
A74: 36
A75: 71
A76: 91
A77: 19
A78: 75
A79: 91
A80: 86
A81: 70
A82: 17
A83: 3
A84: 7
A85: 12
A86: 6
A87: 97
A88: 66
A89: 9
A90: 24
A91: 4
A92: 93
A93: 15

Sheet (21.3)
A1: For Quantitative Data, Create Frequency Distribution and Histogram | R1: Notes for Bell Shaped Curve:
R2: Few population distributions have a Bell Shape, but some are close:
R3: Human height & weight
R4: Cereal box weight
R5: SAT scores
A6: Human Height often Close to Symmetrical - bell shape - high in the middle and tapering off in both directions | C6: COUNT function = No. in Sample = n = | D6: =COUNT(A7:A47) -> 41
A7: =IF(MOD(ROW(),4),RANDBETWEEN(450,650)/100,RANDBETWEEN(200,820)/100) -> 4.97 | C7: MAX function | D7: =MAX(A7:A47) -> 8.17 | R7: Skew
A8: 4.79 | C8: MIN function | D8: =MIN(A7:A47) -> 2.08 | R8: =SKEW(A7:A47) -> -0.2644149524
A9: 6.31 | C9: ="Range = (MAX - MIN) = "&D7&" - "&D8&" =" -> Range = (MAX - MIN) = 8.17 - 2.08 = | D9: =D7-D8 -> 6.09
A10: 5.21 | C10: # of Classes = k = | D10: 7 | E10: This is a judgment call (the art side of statistics)
A11: 5.38 | C11: ="Is 2^"&D10&" ("&2^D10&") >= "&D6 -> Is 2^7 (128) >= 41 | D11: =2^D10>=D6 -> TRUE
A12: 6.7 | C12: ="Approximate Class Width = Range/k = "&D9&"/"&D10&" =" -> Approximate Class Width = Range/k = 6.09/7 = | D12: =(D7-D8)/D10 -> 0.87
A13: 6.4 | C13: Class width = | D13: 1 | E13: This is a judgment call (the art side of statistics)
A14: 4.61 | C14: ="Actual Range for Classes = ClassWidth*k = "&D13&"*"&D10&" =" -> Actual Range for Classes = ClassWidth*k = 1*7 = | D14: =D13*D10 -> 7
A15: 5.73 | C15: Lower Limit of First Class (look at MIN then estimate) | D15: 2 | E15: This is a judgment call (the art side of statistics)
A16: 7.19
A17: 6.01 | F17: Class | G17: Frequency | H17: % Frequency
A18: 4.52 | D18: =D15 -> 2 | E18: =D18+D$13 -> 3 | F18: =D18&" up to "&E18 -> 2 up to 3 | G18: =COUNTIF($A$7:$A$47,"<"&E18)-COUNTIF($A$7:$A$47,"<"&D18) -> 1 | H18: =G18/G$25 -> 0.0243902439
A19: 6.44 | D19: =E18 -> 3 | E19: 4 | F19: 3 up to 4 | G19: 0 | H19: 0
A20: 7.69 | D20: 4 | E20: 5 | F20: 4 up to 5 | G20: 12 | H20: 0.2926829268
A21: 4.95 | D21: 5 | E21: 6 | F21: 5 up to 6 | G21: 12 | H21: 0.2926829268
A22: 6.2 | D22: 6 | E22: 7 | F22: 6 up to 7 | G22: 12 | H22: 0.2926829268
A23: 4.65 | D23: 7 | E23: 8 | F23: 7 up to 8 | G23: 3 | H23: 0.07317073171
A24: 8.17 | D24: 8 | E24: 9 | F24: 8 up to 9 | G24: 1 | H24: 0.0243902439
A25: 6.32 | G25: =SUM(G18:G24) -> 41 | H25: =SUM(H18:H24) -> 1
A26: 5.88
A27: 4.75
A28: 6.07
A29: 5.86
A30: 5.3
A31: 6.46
A32: 7.7
A33: 6.17
A34: 5.03
A35: 4.85
A36: 6.33
A37: 5.65
A38: 5.15
A39: 5.36
A40: 2.08
A41: 5.22
A42: 4.92
A43: 5.88
A44: 4.11
A45: 6.36
A46: 4.5
A47: 4.5

Sheet (21.4)
A1: For Quantitative Data, Create Frequency Distribution and Histogram | Q1: Notes about Skew Right:
Q2: House Prices
Q3: Data Entry Errors
Q4: Manufacturing Defects
Q5: Salaries
A6: House Prices ($) often Skewed Right - a few small values will tend to pull the Average (Mean) down | C6: COUNT function = No. in Sample = n = | D6: =COUNT(A7:A47) -> 41 | Q6: All these examples start at zero and have no theoretical upper limit, but
A7: =IF(MOD(ROW(),7),RANDBETWEEN(95000,500000),RANDBETWEEN(450000,1000000)) -> 622064 | C7: MAX function | D7: =MAX(A7:A47) -> 963269 | Q7: the likelihood of getting a high value is low: thus positive/right skew
A8: 398402 | C8: MIN function | D8: =MIN(A7:A47) -> 97354
A9: 219471 | C9: ="Range = (MAX - MIN) = "&D7&" - "&D8&" =" -> Range = (MAX - MIN) = 963269 - 97354 = | D9: =D7-D8 -> 865915
A10: 432285 | C10: # of Classes = k = | D10: 7 | E10: This is a judgment call (the art side of statistics) | R10: Skew:
A11: 393829 | C11: ="Is 2^"&D10&" ("&2^D10&") >= "&D6 -> Is 2^7 (128) >= 41 | D11: =2^D10>=D6 -> TRUE | R11: =SKEW(A7:A47) -> 0.9017345334
A12: 495375 | C12: ="Approximate Class Width = Range/k = "&D9&"/"&D10&" =" -> Approximate Class Width = Range/k = 865915/7 = | D12: =(D7-D8)/D10 -> 123702.1429
A13: 322557 | C13: Class width = | D13: 150000 | E13: This is a judgment call (the art side of statistics)
A14: 869546 | C14: ="Actual Range for Classes = ClassWidth*k = "&D13&"*"&D10&" =" -> Actual Range for Classes = ClassWidth*k = 150000*7 = | D14: =D13*D10 -> 1050000
A15: 430371 | C15: Lower Limit of First Class (look at MIN then estimate) | D15: 0 | E15: This is a judgment call (the art side of statistics)
A16: 265176
A17: 374483 | F17: Class | G17: Frequency | H17: % Frequency
A18: 161870 | D18: =D15 -> 0 | E18: =D18+D$13 -> 150000 | F18: =DOLLAR(D18,0)&" up to "&DOLLAR(E18,0) -> $0 up to $150,000 | G18: =COUNTIF($A$7:$A$47,"<"&E18)-COUNTIF($A$7:$A$47,"<"&D18) -> 6 | H18: =G18/G$25 -> 0.1463414634
A19: 466454 | D19: =E18 -> 150000 | E19: 300000 | F19: $150,000 up to $300,000 | G19: 6 | H19: 0.1463414634
A20: 362186 | D20: 300000 | E20: 450000 | F20: $300,000 up to $450,000 | G20: 17 | H20: 0.4146341463
A21: 963269 | D21: 450000 | E21: 600000 | F21: $450,000 up to $600,000 | G21: 6 | H21: 0.1463414634
A22: 454962 | D22: 600000 | E22: 750000 | F22: $600,000 up to $750,000 | G22: 4 | H22: 0.09756097561
A23: 362851 | D23: 750000 | E23: 900000 | F23: $750,000 up to $900,000 | G23: 1 | H23: 0.0243902439
A24: 327025 | D24: 900000 | E24: 1050000 | F24: $900,000 up to $1,050,000 | G24: 1 | H24: 0.0243902439
A25: 328672 | G25: =SUM(G18:G24) -> 41 | H25: =SUM(H18:H24) -> 1
A26: 118742
A27: 369939
A28: 644313
A29: 177207
A30: 106211
A31: 379260
A32: 194333
A33: 417515
A34: 469374
A35: 650338
A36: 409868
A37: 133094
A38: 161226
A39: 115545
A40: 302004
A41: 454077
A42: 678305
A43: 144733
A44: 368630
A45: 484594
A46: 306354
A47: 97354

Sheet (21.5)
A1: For Quantitative Data, Create Frequency Distribution and Histogram
A6: Amount Spent at Department Store ($) often Highly Skewed Right - a few small values will tend to pull the Average (Mean) down | C6: COUNT function = No. in Sample = n = | D6: =COUNT(A7:A47) -> 41
A7: =IF(MOD(ROW(),8),RANDBETWEEN(0,750),RANDBETWEEN(0,8000)) -> 300 | C7: MAX function | D7: =MAX(A7:A47) -> 7437
A8: 4641 | C8: MIN function | D8: =MIN(A7:A47) -> 22
A9: 62 | C9: ="Range = (MAX - MIN) = "&D7&" - "&D8&" =" -> Range = (MAX - MIN) = 7437 - 22 = | D9: =D7-D8 -> 7415
A10: 264 | C10: # of Classes = k = | D10: 7 | E10: This is a judgment call (the art side of statistics)
A11: 662 | C11: ="Is 2^"&D10&" ("&2^D10&") >= "&D6 -> Is 2^7 (128) >= 41 | D11: =2^D10>=D6 -> TRUE
A12: 368 | C12: ="Approximate Class Width = Range/k = "&D9&"/"&D10&" =" -> Approximate Class Width = Range/k = 7415/7 = | D12: =(D7-D8)/D10 -> 1059.285714
A13: 677 | C13: Class width = | D13: 250 | E13: This is a judgment call (the art side of statistics)
A14: 393 | C14: ="Actual Range for Classes = ClassWidth*k = "&D13&"*"&D10&" =" -> Actual Range for Classes = ClassWidth*k = 250*7 = | D14: =D13*D10 -> 1750
A15: 555 | C15: Lower Limit of First Class (look at MIN then estimate) | D15: 0 | E15: This is a judgment call (the art side of statistics)
A16: 2882 | C16: Last 2 range | D16: 3500
A17: 413 | F17: Class | G17: Frequency | H17: % Frequency
A18: 309 | D18: =D15 -> 0 | E18: =D18+D$13 -> 250 | F18: =DOLLAR(D18,0)&" up to "&DOLLAR(E18,0) -> $0 up to $250 | G18: =COUNTIF($A$7:$A$47,"<"&E18)-COUNTIF($A$7:$A$47,"<"&D18) -> 5 | H18: =G18/G$25 -> 0.1219512195
A19: 732 | D19: =E18 -> 250 | E19: =D19+D$13 -> 500 | F19: $250 up to $500 | G19: 14 | H19: 0.3414634146
A20: 600 | D20: 500 | E20: =D20+D$13 -> 750 | F20: $500 up to $750 | G20: 17 | H20: 0.4146341463
A21: 584 | D21: 750 | E21: =D21+D$13 -> 1000 | F21: $750 up to $1,000 | G21: 0 | H21: 0
A22: 710 | D22: 1000 | E22: =D22+D$13 -> 1250 | F22: $1,000 up to $1,250 | G22: 0 | H22: 0
A23: 459 | D23: 1250 | E23: =D23+D$16 -> 4750 | F23: $1,250 up to $4,750 | G23: 2 | H23: 0.0487804878
A24: 5836 | D24: 4750 | E24: =D24+D$16 -> 8250 | F24: $4,750 up to $8,250 | G24: 3 | H24: 0.07317073171
A25: 743 | G25: =SUM(G18:G24) -> 41 | H25: =SUM(H18:H24) -> 1
A26: 461
A27: 42
A28: 22
A29: 484
A30: 150
A31: 448
A32: 5021
A33: 728
A34: 246
A35: 528
A36: 492
A37: 669
A38: 627
A39: 386
A40: 7437
A41: 666
A42: 543
A43: 631
A44: 675
A45: 473
A46: 352
A47: 506

Sheet DP
A1: 1) | B1: Horizontal axis shows range of data
A2: 2) | B2: Dots are placed above each value to indicate one count for that time. If 3 dots are above 15-19 calls, it means that on 3 days the sales rep made 15 to 19 calls.
A3: 3) | B3: We will use the REPT and COUNTIF functions and cell alignment and font formatting to build our Dot Plot in a range of cells.
A4: 4) | B4: Dot Plots are good for comparing two or more data sets
A5: 5) | B5: A formula like, =REPT("*",COUNTIFS($B$8:$B$19,">="&F9,$B$8:$B$19,"<"&F10)), counts the number of occurrences in a class.
A6: 6) | B6: Cell Chart
A8: Day | B8: SalesRep1 | C8: SalesRep2 | E8: Calls for Sales Rep1
A9: 1 | B9: 25 | C9: 26 | P9: Start | Q9: 10
A10: 2 | B10: 41 | C10: 11 | P10: Interval | Q10: 5
A11: 3 | B11: 23 | C11: 22
A12: 4 | B12: 26 | C12: 12
A13: 5 | B13: 36 | C13: 23 | E13: Calls for Sales Rep2 | F13: =REPT("*",COUNTIFS($C$9:$C$20,">="&F15,$C$9:$C$20,"<"&F16)) -> *** | G13: =REPT("*",COUNTIFS($C$9:$C$20,">="&G15,$C$9:$C$20,"<"&G16)) -> * | H13: **** | I13: **
A14: 6 | B14: 33 | C14: 23 | F14: =F15&"-"&F16 -> 10-14 | G14: 15-19 | H14: 20-24 | I14: 25-29 | J14: 30-34 | K14: 35-39 | L14: 40-44 | M14: 45-49 | N14: 50-54 | P14: Start | Q14: 10
A15: 7 | B15: 30 | C15: 24 | F15: =Q14 -> 10 | G15: =F15+$Q15 -> 15 | H15: =G15+$Q15 -> 20 | I15: 25 | J15: 30 | K15: 35 | L15: 40 | M15: 45 | N15: 50 | P15: Interval | Q15: 5
A16: 8 | B16: 30 | C16: 27 | F16: =F15+$Q15-1 -> 14 | G16: =G15+$Q15-1 -> 19 | H16: 24 | I16: 29 | J16: 34 | K16: 39 | L16: 44 | M16: 49 | N16: 54
A17: 9 | B17: 49 | C17: 13
A18: 10 | B18: 19 | C18: 16
A19: 11 | B19: 15 | C19: 22
A20: 12 | B20: 51 | C20: 19

Sheet DP (an)
A1: 1) | B1: Horizontal axis shows range of data
A2: 2) | B2: Dots are placed above each value to indicate one count for that time. If 3 dots are above 15-19 calls, it means that on 3 days the sales rep made 15 to 19 calls.
A3: 3) | B3: We will use the REPT and COUNTIF functions and cell alignment and font formatting to build our Dot Plot in a range of cells.
A4: 4) | B4: Dot Plots are good for comparing two or more data sets
A5: 5) | B5: A formula like, =REPT("*",COUNTIFS($B$8:$B$19,">="&F9,$B$8:$B$19,"<"&F10)), counts the number of occurrences in a class.
A6: 6) | B6: Cell Chart
A8: Day | B8: SalesRep1 | C8: SalesRep2 | E8: Calls for Sales Rep1 | F8: =REPT("*",COUNTIFS($B$9:$B$20,">="&F17,$B$9:$B$20,"<="&F18)) ->  | G8: ** | H8: * | I8: ** | J8: *** | K8: * | L8: * | M8: * | N8: *
A9: 1 | B9: 25 | C9: 26 | F9: =F17&"-"&F18 -> 10-14 | G9: 15-19 | H9: 20-24 | I9: 25-29 | J9: 30-34 | K9: 35-39 | L9: 40-44 | M9: 45-49 | N9: 50-54 | P9: Start | Q9: 10
A10: 2 | B10: 41 | C10: 11 | P10: Interval | Q10: 5
A11: 3 | B11: 23 | C11: 22
A12: 4 | B12: 26 | C12: 12
A13: 5 | B13: 36 | C13: 23 | E13: Calls for Sales Rep2 | F13: =REPT("*",COUNTIFS($C$9:$C$20,">="&F15,$C$9:$C$20,"<"&F16)) -> *** | G13: =REPT("*",COUNTIFS($C$9:$C$20,">="&G15,$C$9:$C$20,"<"&G16)) -> * | H13: **** | I13: **
A14: 6 | B14: 33 | C14: 23 | F14: =F15&"-"&F16 -> 10-14 | G14: 15-19 | H14: 20-24 | I14: 25-29 | J14: 30-34 | K14: 35-39 | L14: 40-44 | M14: 45-49 | N14: 50-54 | P14: Start | Q14: 10
A15: 7 | B15: 30 | C15: 24 | F15: =Q14 -> 10 | G15: =F15+$Q15 -> 15 | H15: =G15+$Q15 -> 20 | I15: 25 | J15: 30 | K15: 35 | L15: 40 | M15: 45 | N15: 50 | P15: Interval | Q15: 5
A16: 8 | B16: 30 | C16: 27 | F16: =F15+$Q15-1 -> 14 | G16: =G15+$Q15-1 -> 19 | H16: 24 | I16: 29 | J16: 34 | K16: 39 | L16: 44 | M16: 49 | N16: 54
A17: 9 | B17: 49 | C17: 13 | F17: =Q9 -> 10 | G17: =F18+1 -> 15 | H17: =G18+1 -> 20 | I17: 25 | J17: 30 | K17: 35 | L17: 40 | M17: 45 | N17: 50
A18: 10 | B18: 19 | C18: 16 | F18: =F17+$Q$10-1 -> 14 | G18: =G17+$Q$10-1 -> 19 | H18: =H17+$Q$10-1 -> 24 | I18: 29 | J18: 34 | K18: 39 | L18: 44 | M18: 49 | N18: 54
A19: 11 | B19: 15 | C19: 22
A20: 12 | B20: 51 | C20: 19

Sheet SL
A1: 1) | B1: The Stem and Leaf Display allows you to see the shape of the distribution without losing the identity of each value
A2: 2) | B2: We will use the REPT and COUNTIF functions and a lot of copying, pasting and editing.
A3: 3) | B3: Cell Chart
A5: Day | B5: SalesRep1 | D5: Min
A6: 1 | B6: 25 | D6: Max
A7: 2 | B7: 41
A8: 3 | B8: 23 | D8: Stem | E8: Leaf
A9: 4 | B9: 26 | D9: 1
A10: 5 | B10: 36 | D10: 2
A11: 6 | B11: 33 | D11: 3
A12: 7 | B12: 30 | D12: 4
A13: 8 | B13: 30 | D13: 5
A14: 9 | B14: 49
A15: 10 | B15: 19
A16: 11 | B16: 15 | D16: Other Stem and Leaf Videos:
A17: 12 | B17: 51 | D17: Excel Magic Trick 376: Stem & Leaf Chart for Big Numbers
D18: Excel Magic Trick 589: Stem & Leaf Chart for Decimals - Array Formula - Statistics

Sheet SL (an)
A1: 1) | B1: The Stem and Leaf Display allows you to see the shape of the distribution without losing the identity of each value
A2: 2) | B2: We will use the REPT and COUNTIF functions and a lot of copying, pasting and editing.
A3: 3) | B3: Cell Chart
A5: Day | B5: SalesRep1 | D5: Min | E5: =MIN(B6:B17) -> 15
A6: 1 | B6: 25 | D6: Max | E6: =MAX(B6:B17) -> 51
A7: 2 | B7: 41
A8: 3 | B8: 23 | D8: Stem | E8: Leaf
A9: 4 | B9: 26 | D9: 1 | E9: =REPT(" 0 ",COUNTIF($B$6:$B$17,D9*10+0))&REPT(" 1 ",COUNTIF($B$6:$B$17,D9*10+1))&REPT(" 2 ",COUNTIF($B$6:$B$17,D9*10+2))&REPT(" 3 ",COUNTIF($B$6:$B$17,D9*10+3))&REPT(" 4 ",COUNTIF($B$6:$B$17,D9*10+4))&REPT(" 5 ",COUNTIF($B$6:$B$17,D9*10+5))&REPT(" 6 ",COUNTIF($B$6:$B$17,D9*10+6))&REPT(" 7 ",COUNTIF($B$6:$B$17,D9*10+7))&REPT(" 8 ",COUNTIF($B$6:$B$17,D9*10+8))&REPT(" 9 ",COUNTIF($B$6:$B$17,D9*10+9)) -> 5 9
A10: 5 | B10: 36 | D10: 2 | E10: =REPT(" 0 ",COUNTIF($B$6:$B$17,D10*10+0))&REPT(" 1 ",COUNTIF($B$6:$B$17,D10*10+1))&REPT(" 2 ",COUNTIF($B$6:$B$17,D10*10+2))&REPT(" 3 ",COUNTIF($B$6:$B$17,D10*10+3))&REPT(" 4 ",COUNTIF($B$6:$B$17,D10*10+4))&REPT(" 5 ",COUNTIF($B$6:$B$17,D10*10+5))&REPT(" 6 ",COUNTIF($B$6:$B$17,D10*10+6))&REPT(" 7 ",COUNTIF($B$6:$B$17,D10*10+7))&REPT(" 8 ",COUNTIF($B$6:$B$17,D10*10+8))&REPT(" 9 ",COUNTIF($B$6:$B$17,D10*10+9)) -> 3 5 6
A11: 6 | B11: 33 | D11: 3 | E11: =REPT(" 0 ",COUNTIF($B$6:$B$17,D11*10+0))&REPT(" 1 ",COUNTIF($B$6:$B$17,D11*10+1))&REPT(" 2 ",COUNTIF($B$6:$B$17,D11*10+2))&REPT(" 3 ",COUNTIF($B$6:$B$17,D11*10+3))&REPT(" 4 ",COUNTIF($B$6:$B$17,D11*10+4))&REPT(" 5 ",COUNTIF($B$6:$B$17,D11*10+5))&REPT(" 6 ",COUNTIF($B$6:$B$17,D11*10+6))&REPT(" 7 ",COUNTIF($B$6:$B$17,D11*10+7))&REPT(" 8 ",COUNTIF($B$6:$B$17,D11*10+8))&REPT(" 9 ",COUNTIF($B$6:$B$17,D11*10+9)) -> 0 0 3 6
A12: 7 | B12: 30 | D12: 4 | E12: =REPT(" 0 ",COUNTIF($B$6:$B$17,D12*10+0))&REPT(" 1 ",COUNTIF($B$6:$B$17,D12*10+1))&REPT(" 2 ",COUNTIF($B$6:$B$17,D12*10+2))&REPT(" 3 ",COUNTIF($B$6:$B$17,D12*10+3))&REPT(" 4 ",COUNTIF($B$6:$B$17,D12*10+4))&REPT(" 5 ",COUNTIF($B$6:$B$17,D12*10+5))&REPT(" 6 ",COUNTIF($B$6:$B$17,D12*10+6))&REPT(" 7 ",COUNTIF($B$6:$B$17,D12*10+7))&REPT(" 8 ",COUNTIF($B$6:$B$17,D12*10+8))&REPT(" 9 ",COUNTIF($B$6:$B$17,D12*10+9)) -> 1 9
A13: 8 | B13: 30 | D13: 5 | E13: =REPT(" 0 ",COUNTIF($B$6:$B$17,D13*10+0))&REPT(" 1 ",COUNTIF($B$6:$B$17,D13*10+1))&REPT(" 2 ",COUNTIF($B$6:$B$17,D13*10+2))&REPT(" 3 ",COUNTIF($B$6:$B$17,D13*10+3))&REPT(" 4 ",COUNTIF($B$6:$B$17,D13*10+4))&REPT(" 5 ",COUNTIF($B$6:$B$17,D13*10+5))&REPT(" 6 ",COUNTIF($B$6:$B$17,D13*10+6))&REPT(" 7 ",COUNTIF($B$6:$B$17,D13*10+7))&REPT(" 8 ",COUNTIF($B$6:$B$17,D13*10+8))&REPT(" 9 ",COUNTIF($B$6:$B$17,D13*10+9)) -> 1
A14: 9 | B14: 49
A15: 10 | B15: 19
A16: 11 | B16: 15 | D16: Other Stem and Leaf Videos:
A17: 12 | B17: 51 | D17: Excel Magic Trick 376: Stem & Leaf Chart for Big Numbers
D18: Excel Magic Trick 589: Stem & Leaf Chart for Decimals - Array Formula - Statistics

Sheet CCrossTab
A1: Comparing two variables to see if there is a relationship: Cross Tabulation
A2: 2 variables = fields
A3: Each summarization is a summary based on 2 criteria (1 criteria from the first field, 2nd criteria from 2nd field)
A5: No. | B5: Date (2010) | C5: Coupon | D5: Payment Method | E5: Boom | F5: Region | G5: Price | H5: Units | I5: Customer Age | J5: Sales | K5: Range (Flight out meters)
A6: 1 | B6: 2010-05-22 | C6: Coupon | D6: Mastercard | E6: Carlota | F6: West | G6: 22.95 | H6: 2 | I6: 21 | J6: 45.9 | K6: 20
A7: 2 | B7: 2010-06-29 | C7: Coupon | D7: Mastercard | E7: Yanaki | F7: West | G7: 19.95 | H7: 1 | I7: 57 | J7: 19.95 | K7: 25
A8: 3 | B8: 2010-11-05 | C8: No Coupon | D8: Mastercard | E8: Aspen | F8: East | G8: 21.95 | H8: 1 | I8: 25 | J8: 21.95 | K8: 22
A9: 4 | B9: 2010-08-31 | C9: No Coupon | D9: American Express | E9: Yanaki | F9: West | G9: 19.95 | H9: 1 | I9: 38 | J9: 19.95 | K9: 25
A10: 5 | B10: 2010-05-30 | C10: Coupon | D10: Visa | E10: Yanaki | F10: West | G10: 19.95 | H10: 4 | I10: 22 | J10: 79.8 | K10: 25
A11: 6 | B11: 2010-10-05 | C11: Coupon | D11: PayPal | E11: Yanaki | F11: South | G11: 19.95 | H11: 4 | I11: 29 | J11: 79.8 | K11: 25
A12: 7 | B12: 2010-03-22 | C12: Coupon | D12: Visa | E12: Yanaki | F12: West | G12: 19.95 | H12: 3 | I12: 18 | J12: 59.85 | K12: 25
A13: 8 | B13: 2010-06-14 | C13: No Coupon | D13: Discover | E13: Yanaki | F13: West | G13: 19.95 | H13: 7 | I13: 64 | J13: 139.65 | K13: 25
A14: 9 | B14: 2010-05-09 | C14: No Coupon | D14: American Express | E14: Yanaki | F14: West | G14: 19.95 | H14: 6 | I14: 27 | J14: 119.7 | K14: 25
A15: 10 | B15: 2010-08-28 | C15: No Coupon | D15: Visa | E15: Aspen | F15: West | G15: 21.95 | H15: 2 | I15: 22 | J15: 43.9 | K15: 22
A16: 11 | B16: 2010-11-30 | C16: Coupon | D16: PayPal | E16: Aspen | F16: Mid West | G16: 21.95 | H16: 2 | I16: 39 | J16: 43.9 | K16: 22
A17: 12 | B17: 2010-09-13 | C17: No Coupon | D17: Mastercard | E17: Yanaki | F17: Mid West | G17: 19.95 | H17: 5 | I17: 61 | J17: 99.75 | K17: 25
A18: 13 | B18: 2010-10-23 | C18: No Coupon | D18: Visa | E18: Carlota | F18: Mid West | G18: 22.95 | H18: 5 | I18: 18 | J18: 114.75 | K18: 20
A19: 14 | B19: 2010-09-19 | C19: No Coupon | D19: PayPal | E19: Carlota | F19: West | G19: 22.95 | H19: 4 | I19: 22 | J19: 91.8 | K19: 20
A20: 15 | B20: 2010-09-20 | C20: No Coupon | D20: American Express | E20: Carlota | F20: Mid West | G20: 22.95 | H20: 5 | I20: 52 | J20: 114.75 | K20: 20
A21: 16 | B21: 2010-01-18 | C21: Coupon | D21: Visa | E21: Carlota | F21: West | G21: 22.95 | H21: 1 | I21: 22 | J21: 22.95 | K21: 20
A22: 17 | B22: 2010-07-28 | C22: No Coupon | D22: Discover | E22: Sunset | F22: West | G22: 24.95 | H22: 5 | I22: 18 | J22: 124.75 | K22: 35
A23: 18 | B23: 2010-06-06 | C23: No Coupon | D23: PayPal | E23: Yanaki | F23: South | G23: 19.95 | H23: 1 | I23: 55 | J23: 19.95 | K23: 25
A24: 19 | B24: 2010-01-30 | C24: No Coupon | D24: PayPal | E24: Aspen | F24: East | G24: 21.95 | H24: 4 | I24: 20 | J24: 87.8 | K24: 22
A25: 20 | B25: 2010-10-09 | C25: Coupon | D25: PayPal | E25: Carlota | F25: Mid West | G25: 22.95 | H25: 1 | I25: 42 | J25: 22.95 | K25: 20
A26: 21 | B26: 2010-07-04 | C26: No Coupon | D26: PayPal | E26: Delicate Arch | F26: South | G26: 29.95 | H26: 10 | I26: 30 | J26: 299.5 | K26: 45
A27: 22 | B27: 2010-11-08 | C27: Coupon | D27: Visa | E27: Yanaki | F27: Mid West | G27: 19.95 | H27: 1 | I27: 64 | J27: 19.95 | K27: 25
A28: 23 | B28: 2010-06-09 | C28: Coupon | D28: PayPal | E28: Yanaki | F28: Mid West | G28: 19.95 | H28: 5 | I28: 63 | J28: 99.75 | K28: 25
A29: 24 | B29: 2010-03-17 | C29: Coupon | D29: Mastercard | E29: Yanaki | F29: South | G29: 19.95 | H29: 2 | I29: 41 | J29: 39.9 | K29: 25
A30: 25 | B30: 2010-04-07 | C30: No Coupon | D30: Visa | E30: Aspen | F30: East | G30: 21.95 | H30: 3 | I30: 21 | J30: 65.85 | K30: 22
A31: 26 | B31: 2010-01-05 | C31: No Coupon | D31: PayPal | E31: Sunset | F31: East | G31: 24.95 | H31: 1 | I31: 63 | J31: 24.95 | K31: 35
A32: 27 | B32: 2010-07-22 | C32: No Coupon | D32: American Express | E32: Aspen | F32: West | G32: 21.95 | H32: 1 | I32: 54 | J32: 21.95 | K32: 22
A33: 28 | B33: 2010-11-12 | C33: No Coupon | D33: American Express | E33: Yanaki | F33: West | G33: 19.95 | H33: 1 | I33: 18 | J33: 19.95 | K33: 25
A34: 29 | B34: 2010-05-11 | C34: No Coupon | D34: Discover | E34: Carlota | F34: West | G34: 22.95 | H34: 4 | I34: 26 | J34: 91.8 | K34: 20
A35: 30 | B35: 2010-04-14 | C35: No Coupon | D35: PayPal | E35: Aspen | F35: Mid West | G35: 21.95 | H35: 3 | I35: 59 | J35: 65.85 | K35: 22
A36: 31 | B36: 2010-08-11 | C36: No Coupon | D36: Discover | E36: Yanaki | F36: West | G36: 19.95 | H36: 2 | I36: 30 | J36: 39.9 | K36: 25
A37: 32 | B37: 2010-11-14 | C37: No Coupon | D37: Visa | E37: Aspen | F37: West | G37: 21.95 | H37: 2 | I37: 64 | J37: 43.9 | K37: 22
A38: 33 | B38: 2010-01-21 | C38: No Coupon | D38: PayPal | E38: Aspen | F38: West | G38: 21.95 | H38: 3 | I38: 30 | J38: 65.85 | K38: 22
A39: 34 | B39: 2010-04-12 | C39: Coupon | D39: American Express | E39: Aspen | F39: West | G39: 21.95 | H39: 2 | I39: 41 | J39: 43.9 | K39: 22
A40: 35 | B40: 2010-06-04 | C40: Coupon | D40: Mastercard | E40: Yanaki | F40: South | G40: 19.95 | H40: 5 | I40: 23 | J40: 99.75 | K40: 25
A41: 36 | B41: 2010-10-19 | C41: Coupon | D41: Visa | E41: Delicate Arch | F41: West | G41: 29.95 | H41: 1 | I41: 52 | J41: 29.95 | K41: 45
A42: 37 | B42: 2010-09-07 | C42: No Coupon | D42: PayPal | E42: Aspen | F42: West | G42: 21.95 | H42: 3 | I42: 18 | J42: 65.85 | K42: 22
A43: 38 | B43: 2010-09-19 | C43: No Coupon | D43: PayPal | E43: Carlota | F43: West | G43: 22.95 | H43: 1 | I43: 32 | J43: 22.95 | K43: 20
A44: 39 | B44: 2010-01-17 | C44: Coupon | D44: American Express | E44: Yanaki | F44: Mid West | G44: 19.95 | H44: 1 | I44: 22 | J44: 19.95 | K44: 25
A45: 40 | B45: 2010-03-15 | C45: Coupon | D45: PayPal | E45: Yanaki | F45: South | G45: 19.95 | H45: 5 | I45: 29 | J45: 99.75 | K45: 25
A46: 41 | B46: 2010-12-16 | C46: No Coupon | D46: Mastercard | E46: Bellen | F46: Mid West | G46: 24.95 | H46: 5 | I46: 25 | J46: 124.75 | K46: 30
A47: 42 | B47: 2010-07-08 | C47: No Coupon | D47: PayPal | E47: Aspen | F47: West | G47: 21.95 | H47: 1 | I47: 63 | J47: 21.95 | K47: 22
A48: 43 | B48: 2010-05-13 | C48: No Coupon | D48: Mastercard | E48: Sunset | F48: Mid West | G48: 24.95 | H48: 7 | I48: 26 | J48: 174.65 | K48: 35
A49: 44 | B49: 2010-03-03 | C49: Coupon | D49: Discover | E49: Delicate Arch | F49: West | G49: 29.95 | H49: 1 | I49: 31 | J49: 29.95 | K49: 45
A50: 45 | B50: 2010-04-30 | C50: No Coupon | D50: PayPal | E50: Delicate Arch | F50: Mid West | G50: 29.95 | H50: 5 | I50: 23 | J50: 149.75 | K50: 45
A51: 46 | B51: 2010-07-11 | C51: Coupon | D51: PayPal | E51: Delicate Arch | F51: Mid West | G51: 29.95 | H51: 1 | I51: 42 | J51: 29.95 | K51: 45
A52: 47 | B52: 2010-03-22 | C52: Coupon | D52: Visa | E52: Carlota | F52: East | G52: 22.95 | H52: 2 | I52: 28 | J52: 45.9 | K52: 20
A53: 48 | B53: 2010-08-27 | C53: No Coupon | D53: Visa | E53: Carlota | F53: West | G53: 22.95 | H53: 7 | I53: 23 | J53: 160.65 | K53: 20
A54: 49 | B54: 2010-11-16 | C54: No Coupon | D54: Mastercard | E54: Carlota | F54: Mid West | G54: 22.95 | H54: 7 | I54: 19 | J54: 160.65 | K54: 20
A55: 50 | B55: 2010-01-26 | C55: Coupon | D55: Visa | E55: Yanaki | F55: West | G55: 19.95 | H55: 6 | I55: 37 | J55: 119.7 | K55: 25
A56: 51 | B56: 2010-05-06 | C56: No Coupon | D56: Mastercard | E56: Aspen | F56: East | G56: 21.95 | H56: 2 | I56: 38 | J56: 43.9 | K56: 22
A57: 52 | B57: 2010-03-18 | C57: Coupon | D57: Mastercard | E57: Yanaki | F57: Mid West | G57: 19.95 | H57: 6 | I57: 50 | J57: 119.7 | K57: 25
A58: 53 | B58: 2010-04-16 | C58: No Coupon | D58: Discover | E58: Aspen | F58: West | G58: 21.95 | H58: 3 | I58: 26 | J58: 65.85 | K58: 22
A59: 54 | B59: 2010-01-05 | C59: No Coupon | D59: PayPal | E59: Carlota | F59: South | G59: 22.95 | H59: 1 | I59: 33 | J59: 22.95 | K59: 20
A60: 55 | B60: 2010-11-09 | C60: No Coupon | D60: PayPal | E60: Aspen | F60: Mid West | G60: 21.95 | H60: 3 | I60: 59 | J60: 65.85 | K60: 22
A61: 56 | B61: 2010-07-29 | C61: No Coupon | D61: Visa | E61: Aspen | F61: Mid West | G61: 21.95 | H61: 5 | I61: 32 | J61: 109.75 | K61: 22
A62: 57 | B62: 2010-12-07 | C62: No Coupon | D62: Visa | E62: Carlota | F62: Mid West | G62: 22.95 | H62: 5 | I62: 27 | J62: 114.75 | K62: 20
A63: 58 | B63: 2010-11-22 | C63: Coupon | D63: American Express | E63: Bellen | F63: West | G63: 24.95 | H63: 10 | I63: 54 | J63: 249.5 | K63: 30
A64: 59 | B64: 2010-01-10 | C64: No Coupon | D64: PayPal | E64: Aspen | F64: West | G64: 21.95 | H64: 5 | I64: 63 | J64: 109.75 | K64: 22
A65: 60 | B65: 2010-06-01 | C65: No Coupon | D65: Visa | E65: Carlota | F65: East | G65: 22.95 | H65: 5 | I65: 48 | J65: 114.75 | K65: 20
A66: 61 | B66: 2010-05-02 | C66: No Coupon | D66: American Express | E66: Carlota | F66: East | G66: 22.95 | H66: 5 | I66: 29 | J66: 114.75 | K66: 20
A67: 62 | B67: 2010-06-13 | C67: Coupon | D67: Visa | E67: Delicate Arch | F67: West | G67: 29.95 | H67: 4 | I67: 38 | J67: 119.8 | K67: 45
A68: 63 | B68: 2010-02-16 | C68: Coupon | D68: Mastercard | E68: Delicate Arch | F68: East | G68: 29.95 | H68: 1 | I68: 24 | J68: 29.95 | K68: 45
A69: 64 | B69: 2010-08-02 | C69: No Coupon | D69: Visa | E69: Carlota | F69: West | G69: 22.95 | H69: 5 | I69: 51 | J69: 114.75 | K69: 20
A70: 65 | B70: 2010-11-01 | C70: Coupon | D70: Mastercard | E70: Delicate Arch | F70: West | G70: 29.95 | H70: 7 | I70: 25 | J70: 209.65 | K70: 45
A71: 66 | B71: 2010-11-08 | C71: No Coupon | D71: Visa | E71: Carlota | F71: West | G71: 22.95 | H71: 5 | I71: 65 | J71: 114.75 | K71: 20
A72: 67 | B72: 2010-08-17 | C72: No Coupon | D72: PayPal | E72: Yanaki | F72: Mid West | G72: 19.95 | H72: 3 | I72: 35 | J72: 59.85 | K72: 25
A73: 68 | B73: 2010-09-27 | C73: No Coupon | D73: Mastercard | E73: Sunset | F73: East | G73: 24.95 | H73: 5 | I73: 35 | J73: 124.75 | K73: 35
A74: 69 | B74: 2010-01-09 | C74: No Coupon | D74: Visa | E74: Yanaki | F74: Mid West | G74: 19.95 | H74: 2 | I74: 21 | J74: 39.9 | K74: 25
A75: 70 | B75: 2010-10-10 | C75: No Coupon | D75: Mastercard | E75: Sunset | F75: West | G75: 24.95 | H75: 5 | I75: 47 | J75: 124.75 | K75: 35
A76: 71 | B76: 2010-12-31 | C76: No Coupon | D76: Discover | E76: Sunset | F76: East | G76: 24.95 | H76: 1 | I76: 62 | J76: 24.95 | K76: 35
A77: 72 | B77: 2010-12-06 | C77: No Coupon | D77: PayPal | E77: Carlota | F77: East | G77: 22.95 | H77: 1 | I77: 63 | J77: 22.95 | K77: 20
A78: 73 | B78: 2010-03-18 | C78: No Coupon | D78: American Express | E78: Bellen | F78: Mid West | G78: 24.95 | H78: 10 | I78: 23 | J78: 249.5 | K78: 30
A79: 74 | B79: 2010-03-22 | C79: No Coupon | D79: Visa | E79: Yanaki | F79: South | G79: 19.95 | H79: 3 | I79: 59 | J79: 59.85 | K79: 25
A80: 75 | B80: 2010-09-14 | C80: Coupon | D80: Visa | E80: Aspen | F80: West | G80: 21.95 | H80: 2 | I80: 48 | J80: 43.9 | K80: 22
A81: 76 | B81: 2010-02-09 | C81: No Coupon | D81: Mastercard | E81: Yanaki | F81: South | G81: 19.95 | H81: 1 | I81: 57 | J81: 19.95 | K81: 25
A82: 77 | B82: 2010-03-24 | C82: No Coupon | D82: Discover | E82: Delicate Arch | F82: Mid West | G82: 29.95 | H82: 1 | I82: 19 | J82: 29.95 | K82: 45
A83: 78 | B83: 2010-07-28 | C83: Coupon | D83: Mastercard | E83: Yanaki | F83: Mid West | G83: 19.95 | H83: 1 | I83: 48 | J83: 19.95 | K83: 25
A84: 79 | B84: 2010-08-26 | C84: Coupon | D84: Mastercard | E84: Aspen | F84: South | G84: 21.95 | H84: 3 | I84: 21 | J84: 65.85 | K84: 22
A85: 80 | B85: 2010-03-05 | C85: No Coupon | D85: American Express | E85: Carlota | F85: West | G85: 22.95 | H85: 1 | I85: 40 | J85: 22.95 | K85: 20
A86: 81 | B86: 2010-08-18 | C86: No Coupon | D86: Visa | E86: Yanaki | F86: Mid West | G86: 19.95 | H86: 4 | I86: 25 | J86: 79.8 | K86: 25
A87: 82 | B87: 2010-11-02 | C87: Coupon | D87: Mastercard | E87: Yanaki | F87: South | G87: 19.95 | H87: 4 | I87: 59 | J87: 79.8 | K87: 25
A88: 83 | B88: 2010-12-19 | C88: No Coupon | D88: Visa | E88: Carlota | F88: West | G88: 22.95 | H88: 5 | I88: 57 | J88: 114.75 | K88: 20
A89: 84 | B89: 2010-07-05 | C89: Coupon | D89: Discover | E89: Carlota | F89: West | G89: 22.95 | H89: 1 | I89: 56 | J89: 22.95 | K89: 20
A90: 85 | B90: 2010-04-16 | C90: No Coupon | D90: Visa | E90: Yanaki | F90: West | G90: 19.95 | H90: 1 | I90: 19 | J90: 19.95 | K90: 25
A91: 86 | B91: 2010-12-23 | C91: No Coupon | D91: Visa | E91: Aspen | F91: Mid West | G91: 21.95 | H91: 5 | I91: 54 | J91: 109.75 | K91: 22
A92: 87 | B92: 2010-05-29 | C92: No Coupon | D92: PayPal | E92: Delicate Arch | F92: Mid West | G92: 29.95 | H92: 2 | I92: 65 | J92: 59.9 | K92: 45
A93: 88 | B93: 2010-05-01 | C93: Coupon | D93: PayPal | E93: Aspen | F93: West | G93: 21.95 | H93: 2 | I93: 25 | J93: 43.9 | K93: 22
A94: 89 | B94: 2010-07-03 | C94: No Coupon | D94: American Express | E94: Yanaki | F94: West | G94: 19.95 | H94: 2 | I94: 30 | J94: 39.9 | K94: 25
A95: 90 | B95: 2010-08-12 | C95: No Coupon | D95: Mastercard | E95: Delicate Arch | F95: West | G95: 29.95 | H95: 7 | I95: 57 | J95: 209.65 | K95: 45
A96: 91 | B96: 2010-06-21 | C96: Coupon | D96: PayPal | E96: Yanaki | F96: West | G96: 19.95 | H96: 1 | I96: 43 | J96: 19.95 | K96: 25
A97: 92 | B97: 2010-12-15 | C97: No Coupon | D97: Mastercard | E97: Yanaki | F97: South | G97: 19.95 | H97: 4 | I97: 44 | J97: 79.8 | K97: 25
A98: 93 | B98: 2010-05-25 | C98: No Coupon | D98: PayPal | E98: Bellen | F98: East | G98: 24.95 | H98: 5 | I98: 21 | J98: 124.75 | K98: 30
A99: 94 | B99: 2010-03-23 | C99: No Coupon | D99: PayPal | E99: Bellen | F99: West | G99: 24.95 | H99: 1 | I99: 20 | J99: 24.95 | K99: 30
A100: 95 | B100: 2010-01-22 | C100: Coupon | D100: Visa | E100: Carlota | F100: West | G100: 22.95 | H100: 7 | I100: 49 | J100: 160.65 | K100: 20
A101: 96 | B101: 2010-09-26 | C101: No Coupon | D101: Mastercard | E101: Aspen | F101: South | G101: 21.95 | H101: 3 | I101: 37 | J101: 65.85 | K101: 22
A102: 97 | B102: 2010-12-27 | C102: No Coupon | D102: PayPal | E102: Carlota | F102: West | G102: 22.95 | H102: 6 | I102: 26 | J102: 137.7 | K102: 20
A103: 98 | B103: 2010-07-24 | C103: No Coupon | D103: Mastercard | E103: Delicate Arch | F103: East | G103: 29.95 | H103: 1 | I103: 62 | J103: 29.95 | K103: 45
A104: 99 | B104: 2010-04-27 | C104: No Coupon | D104: PayPal | E104: Yanaki | F104: West | G104: 19.95 | H104: 6 | I104: 38 | J104: 119.7 | K104: 25
A105: 100 | B105: 2010-05-07 | C105: No Coupon | D105: Visa | E105: Yanaki | F105: West | G105: 19.95 | H105: 1 | I105: 55 | J105: 19.95 | K105: 25
A106: 101 | B106: 2010-03-03 | C106: Coupon | D106: American Express | E106: Yanaki | F106: East | G106: 19.95 | H106: 2 | I106: 24 | J106: 39.9 | K106: 25
A107: 102 | B107: 2010-03-23 | C107: No Coupon | D107: PayPal | E107: Carlota | F107: Mid West | G107: 22.95 | H107: 5 | I107: 30 | J107: 114.75 | K107: 20
A108: 103 | B108: 2010-12-05 | C108: Coupon | D108: Visa | E108: Aspen | F108: Mid West | G108: 21.95 | H108: 1 | I108: 39 | J108: 21.95 | K108: 22
A109: 104 | B109: 2010-11-11 | C109: Coupon | D109: PayPal | E109: Delicate Arch | F109: South | G109: 29.95 | H109: 6 | I109: 59 | J109: 179.7 | K109: 45
A110: 105 | B110: 2010-04-13 | C110: No Coupon | D110: Discover | E110: Yanaki | F110: East | G110: 19.95 | H110: 2 | I110: 26 | J110: 39.9 | K110: 25
A111: 106 | B111: 2010-12-13 | C111: No Coupon | D111: Visa | E111: Sunset | F111: Mid West | G111: 24.95 | H111: 1 | I111: 33 | J111: 24.95 | K111: 35
A112: 107 | B112: 2010-10-05 | C112: No Coupon | D112: Visa | E112: Bellen | F112: West | G112: 24.95 | H112: 4 | I112: 20 | J112: 99.8 | K112: 30
A113: 108 | B113: 2010-01-02 | C113: No Coupon | D113: Visa | E113: Aspen | F113: West | G113: 21.95 | H113: 4 | I113: 18 | J113: 87.8 | K113: 22
A114: 109 | B114: 2010-11-04 | C114: Coupon | D114: PayPal | E114: Yanaki | F114: East | G114: 19.95 | H114: 2 | I114: 19 | J114: 39.9 | K114: 25
A115: 110 | B115: 2010-04-29 | C115: No Coupon | D115: PayPal | E115: Aspen | F115: West | G115: 21.95 | H115: 3 | I115: 61 | J115: 65.85 | K115: 22
A116: 111 | B116: 2010-10-02 | C116: Coupon | D116: PayPal | E116: Yanaki | F116: East | G116: 19.95 | H116: 10 | I116: 39 | J116: 199.5 | K116: 25
A117: 112 | B117: 2010-12-26 | C117: Coupon | D117: Discover | E117: Aspen | F117: West | G117: 21.95 | H117: 1 | I117: 52 | J117: 21.95 | K117: 22
A118: 113 | B118: 2010-11-05 | C118: No Coupon | D118: Visa | E118: Sunset | F118: West | G118: 24.95 | H118: 5 | I118: 20 | J118: 124.75 | K118: 35
A119: 114 | B119: 2010-11-15 | C119: No Coupon | D119: Visa | E119: Delicate Arch | F119: West | G119: 29.95 | H119: 1 | I119: 50 | J119: 29.95 | K119: 45
A120: 115 | B120: 2010-06-27 | C120: Coupon | D120: PayPal | E120: Aspen | F120: South | G120: 21.95 | H120: 1 | I120: 29 | J120: 21.95 | K120: 22
A121: 116 | B121: 2010-04-21 | C121: No Coupon | D121: Visa | E121: Delicate Arch | F121: West | G121: 29.95 | H121: 4 | I121: 55 | J121: 119.8 | K121: 45
A122: 117 | B122: 2010-09-25 | C122: No Coupon | D122: American Express | E122: Delicate Arch | F122: West | G122: 29.95 | H122: 3 | I122: 18 | J122: 89.85 | K122: 45
A123: 118 | B123: 2010-01-24 | C123: Coupon | D123: Mastercard | E123: Aspen | F123: Mid West | G123: 21.95 | H123: 3 | I123: 39 | J123: 65.85 | K123: 22
A124: 119 | B124: 2010-01-04 | C124: No Coupon | D124: Visa | E124: Carlota | F124: South | G124: 22.95 | H124: 4 | I124: 35 | J124: 91.8 | K124: 20
A125: 120 | B125: 2010-05-06 | C125: Coupon | D125: American Express | E125: Bellen | F125: South | G125: 24.95 | H125: 6 | I125: 38 | J125: 149.7 | K125: 30
A126: 121 | B126: 2010-06-22 | C126: No Coupon | D126: Visa | E126: Yanaki | F126: East | G126: 19.95 | H126: 3 | I126: 20 | J126: 59.85 | K126: 25
A127: 122 | B127: 2010-07-12 | C127: No Coupon | D127: Discover | E127: Aspen | F127: Mid West | G127: 21.95 | H127: 6 | I127: 60 | J127: 131.7 | K127: 22
A128: 123 | B128: 2010-05-03 | C128: No Coupon | D128: Visa | E128: Sunset | F128: Mid West | G128: 24.95 | H128: 2 | I128: 61 | J128: 49.9 | K128: 35
A129: 124 | B129: 2010-03-09 | C129: Coupon | D129: PayPal | E129: Aspen | F129: West | G129: 21.95 | H129: 2 | I129: 62 | J129: 43.9 | K129: 22
A130: 125 | B130: 2010-03-02 | C130: No Coupon | D130: Visa | E130: Yanaki | F130: Mid West | G130: 19.95 | H130: 1 | I130: 21 | J130: 19.95 | K130: 25
A131: 126 | B131: 2010-03-28 | C131: No Coupon | D131: Discover | E131: Aspen | F131: South | G131: 21.95 | H131: 1 | I131: 40 | J131: 21.95 | K131: 22
A132: 127 | B132: 2010-01-15 | C132: No Coupon | D132: Visa | E132: Bellen | F132: West | G132: 24.95 | H132: 1 | I132: 25 | J132: 24.95 | K132: 30
A133: 128 | B133: 2010-11-18 | C133: No Coupon | D133: Mastercard | E133: Yanaki | F133: West | G133: 19.95 | H133: 2 | I133: 50 | J133: 39.9 | K133: 25
A134: 129 | B134: 2010-03-27 | C134: No Coupon | D134: Visa | E134: Bellen | F134: West | G134: 24.95 | H134: 1 | I134: 24 | J134: 24.95 | K134: 30
A135: 130 | B135: 2010-08-11 | C135: Coupon | D135: PayPal | E135: Carlota | F135: West | G135: 22.95 | H135: 5 | I135: 28 | J135: 114.75 | K135: 20
A136: 131 | B136: 2010-12-24 | C136: No Coupon | D136: Visa | E136: Yanaki | F136: Mid West | G136: 19.95 | H136: 6 | I136: 22 | J136: 119.7 | K136: 25
A137: 132 | B137: 2010-11-27 | C137: No Coupon | D137: PayPal | E137: Aspen | F137: West | G137: 21.95 | H137: 2 | I137: 22 | J137: 43.9 | K137: 22
A138: 133 | B138: 2010-03-12 | C138: No Coupon | D138: Visa | E138: Bellen | F138: West | G138: 24.95 | H138: 1 | I138: 27 | J138: 24.95 | K138: 30
A139: 134 | B139: 2010-09-16 | C139: Coupon | D139: Visa | E139: Sunset | F139: West | G139: 24.95 | H139: 7 | I139: 54 | J139: 174.65 | K139: 35
A140: 135 | B140: 2010-02-01 | C140: No Coupon | D140: Mastercard | E140: Bellen | F140: West | G140: 24.95 | H140: 1 | I140: 25 | J140: 24.95 | K140: 30
A141: 136 | B141: 2010-07-03 | C141: No Coupon | D141: Visa | E141: Sunset | F141: Mid West | G141: 24.95 | H141: 2 | I141: 25 | J141: 49.9 | K141: 35
A142: 137 | B142: 2010-08-30 | C142: No Coupon | D142: PayPal | E142: Yanaki | F142: East | G142: 19.95 | H142: 1 | I142: 30 | J142: 19.95 | K142: 25
A143: 138 | B143: 2010-09-18 | C143: Coupon | D143: Mastercard | E143: Yanaki | F143: South | G143: 19.95 | H143: 2 | I143: 59 | J143: 39.9 | K143: 25
A144: 139 | B144: 2010-11-24 | C144: No Coupon | D144: Visa | E144: Carlota | F144: West | G144: 22.95 | H144: 2 | I144: 51 | J144: 45.9 | K144: 20
A145: 140 | B145: 2010-12-22 | C145: No Coupon | D145: Visa | E145: Delicate Arch | F145: West | G145: 29.95 | H145: 6 | I145: 38 | J145: 179.7 | K145: 45
A146: 141 | B146: 2010-04-23 | C146: No Coupon | D146: PayPal | E146: Carlota | F146: South | G146: 22.95 | H146: 7 | I146: 28 | J146: 160.65 | K146: 20
A147: 142 | B147: 2010-11-18 | C147: Coupon | D147: Discover | E147: Aspen | F147: West | G147: 21.95 | H147: 1 | I147: 30 | J147: 21.95 | K147: 22
A148: 143 | B148: 2010-10-28 | C148: No Coupon | D148: Visa | E148: Bellen | F148: South | G148: 24.95 | H148: 5 | I148: 43 | J148: 124.75 | K148: 30
A149: 144 | B149: 2010-08-14 | C149: No Coupon | D149: PayPal | E149: Delicate Arch | F149: West | G149: 29.95 | H149: 3 | I149: 42 | J149: 89.85 | K149: 45
A150: 145 | B150: 2010-05-05 | C150: No Coupon | D150: Visa | E150: Bellen | F150: Mid West | G150: 24.95 | H150: 2 | I150: 24 | J150: 49.9 | K150: 30
A151: 146 | B151: 2010-08-25 | C151: Coupon | D151: Visa | E151: Carlota | F151: Mid West | G151: 22.95 | H151: 1 | I151: 47 | J151: 22.95 | K151: 20
A152: 147 | B152: 2010-10-25 | C152: No Coupon | D152: PayPal | E152: Yanaki | F152: Mid West | G152: 19.95 | H152: 1 | I152: 23 | J152: 19.95 | K152: 25
A153: 148 | B153: 2010-07-31 | C153: No Coupon | D153: PayPal | E153: Yanaki | F153: East | G153: 19.95 | H153: 5 | I153: 59 | J153: 99.75 | K153: 25
A154: 149 | B154: 2010-07-25 | C154: Coupon | D154: Mastercard | E154: Carlota | F154: West | G154: 22.95 | H154: 4 | I154: 22 | J154: 91.8 | K154: 20
A155: 150 | B155: 2010-09-30 | C155: Coupon | D155: Visa | E155: Bellen | F155: Mid West | G155: 24.95 | H155: 2 | I155: 27 | J155: 49.9 | K155: 30
A156: 151 | B156: 2010-10-03 | C156: No Coupon | D156: Discover | E156: Aspen | F156: East | G156: 21.95 | H156: 1 | I156: 65 | J156: 21.95 | K156: 22
A157: 152 | B157: 2010-04-01 | C157: No Coupon | D157: Mastercard | E157: Carlota | F157: Mid West | G157: 22.95 | H157: 2 | I157: 27 | J157: 45.9 | K157: 20
A158: 153 | B158: 2010-12-15 | C158: No Coupon | D158: American Express | E158: Carlota | F158: East | G158: 22.95 | H158: 1 | I158: 27 | J158: 22.95 | K158: 20
A159: 154 | B159: 2010-01-07 | C159: No Coupon | D159: PayPal | E159: Carlota | F159: West | G159: 22.95 | H159: 2 | I159: 28 | J159: 45.9 | K159: 20
A160: 155 | B160: 2010-07-23 | C160: Coupon | D160: PayPal | E160: Bellen | F160: West | G160: 24.95 | H160: 1 | I160: 22 | J160: 24.95 | K160: 30
A161: 156 | B161: 2010-03-16 | C161: No Coupon | D161: PayPal | E161: Yanaki | F161: East | G161: 19.95 | H161: 2 | I161: 42 | J161: 39.9 | K161: 25
A162: 157 | B162: 2010-12-04 | C162: No Coupon | D162: American Express | E162: Delicate Arch | F162: East | G162: 29.95 | H162: 6 | I162: 25 | J162: 179.7 | K162: 45
A163: 158 | B163: 2010-01-08 | C163: Coupon | D163: Mastercard | E163: Aspen | F163: West | G163: 21.95 | H163: 1 | I163: 41 | J163: 21.95 | K163: 22
A164: 159 | B164: 2010-06-02 | C164: Coupon | D164: PayPal | E164: Bellen | F164: West | G164: 24.95 | H164: 1 | I164: 46 | J164: 24.95 | K164: 30
A165: 160 | B165: 2010-08-18 | C165: No Coupon | D165: Discover | E165: Sunset | F165: West | G165: 24.95 | H165: 3 | I165: 41 | J165: 74.85 | K165: 35
A166: 161 | B166: 2010-04-24 | C166: No Coupon | D166: Mastercard | E166: Yanaki | F166: West | G166: 19.95 | H166: 4 | I166: 29 | J166: 79.8 | K166: 25
A167: 162 | B167: 2010-12-01 | C167: No Coupon | D167: Visa | E167: Yanaki | F167: Mid West | G167: 19.95 | H167: 1 | I167: 50 | J167: 19.95 | K167: 25
A168: 163 | B168: 2010-12-31 | C168: Coupon | D168: Visa | E168: Carlota | F168: Mid West | G168: 22.95 | H168: 1 | I168: 50 | J168: 22.95 | K168: 20
A169: 164 | B169: 2010-04-30 | C169: Coupon | D169: PayPal | E169: Carlota | F169: Mid West | G169: 22.95 | H169: 2 | I169: 34 | J169: 45.9 | K169: 20
A170: 165 | B170: 2010-03-16 | C170: Coupon | D170: American Express | E170: Aspen | F170: West | G170: 21.95 | H170: 3 | I170: 24 | J170: 65.85 | K170: 22
A171: 166 | B171: 2010-01-28 | C171: No Coupon | D171: Mastercard | E171: Yanaki | F171: West | G171: 19.95 | H171: 7 | I171: 29 | J171: 139.65 | K171: 25
A172: 167 | B172: 2010-08-03 | C172: No Coupon | D172: Mastercard | E172: Carlota | F172: Mid West | G172: 22.95 | H172: 1 | I172: 35 | J172: 22.95 | K172: 20
A173: 168 | B173: 2010-11-11 | C173: No Coupon | D173: Visa | E173: Yanaki | F173: West | G173: 19.95 | H173: 2 | I173: 24 | J173: 39.9 | K173: 25
A174: 169 | B174: 2010-12-13 | C174: Coupon | D174: Visa | E174: Aspen | F174: South | G174: 21.95 | H174: 5 | I174: 23 | J174: 109.75 | K174: 22
A175: 170 | B175: 2010-03-27 | C175: No Coupon | D175: PayPal | E175: Carlota | F175: Mid West | G175: 22.95 | H175: 7 | I175: 31 | J175: 160.65 | K175: 20
A176: 171 | B176: 2010-10-08 | C176: Coupon | D176: PayPal | E176: Bellen | F176: Mid West | G176: 24.95 | H176: 2 | I176: 24 | J176: 49.9 | K176: 30
A177: 172 | B177: 2010-08-03 | C177: No Coupon | D177: Visa | E177: Carlota | F177: Mid West | G177: 22.95 | H177: 1 | I177: 30 | J177: 22.95 | K177: 20
A178: 173 | B178: 2010-03-10 | C178: Coupon | D178: Visa | E178: Carlota | F178: West | G178: 22.95 | H178: 2 | I178: 22 | J178: 45.9 | K178: 20
A179: 174 | B179: 2010-03-02 | C179: No Coupon | D179: Visa | E179: Carlota | F179: East | G179: 22.95 | H179: 3 | I179: 43 | J179: 68.85 | K179: 20
A180: 175 | B180: 2010-01-26 | C180: No Coupon | D180: Visa | E180: Carlota | F180: West | G180: 22.95 | H180: 10 | I180: 55 | J180: 229.5 | K180: 20
A181: 176 | B181: 2010-05-06 | C181: No Coupon | D181: American Express | E181: Delicate Arch | F181: West | G181: 29.95 | H181: 1 | I181: 38 | J181: 29.95 | K181: 45
A182: 177 | B182: 2010-03-10 | C182: Coupon | D182: Visa | E182: Yanaki | F182: West | G182: 19.95 | H182: 2 | I182: 28 | J182: 39.9 | K182: 25
A183: 178 | B183: 2010-11-18 | C183: Coupon | D183: PayPal | E183: Aspen | F183: Mid West | G183: 21.95 | H183: 2 | I183: 30 | J183: 43.9 | K183: 22
A184: 179 | B184: 2010-01-30 | C184: Coupon | D184: Discover | E184: Yanaki | F184: West | G184: 19.95 | H184: 1 | I184: 35 | J184: 19.95 | K184: 25
A185: 180 | B185: 2010-07-02 | C185: No Coupon | D185: Visa | E185: Delicate Arch | F185: West | G185: 29.95 | H185: 2 | I185: 41 | J185: 59.9 | K185: 45
A186: 181 | B186: 2010-10-13 | C186: Coupon | D186: Discover | E186: Yanaki | F186: East | G186: 19.95 | H186: 5 | I186: 28 | J186: 99.75 | K186: 25
A187: 182 | B187: 2010-02-07 | C187: No Coupon | D187: Discover | E187: Bellen | F187: Mid West | G187: 24.95 | H187: 7 | I187: 65 | J187: 174.65 | K187: 30
A188: 183 | B188: 2010-06-05 | C188: No Coupon | D188: Mastercard | E188: Aspen | F188: West | G188: 21.95 | H188: 3 | I188: 20 | J188: 65.85 | K188: 22
A189: 184 | B189: 2010-11-02 | C189: No Coupon | D189: Visa | E189: Sunset | F189: Mid West | G189: 24.95 | H189: 5 | I189: 39 | J189: 124.75 | K189: 35
A190: 185 | B190: 2010-12-13 | C190: No Coupon | D190: Visa | E190: Aspen | F190: East | G190: 21.95 | H190: 4 | I190: 19 | J190: 87.8 | K190: 22
A191: 186 | B191: 2010-10-23 | C191: No Coupon | D191: Visa | E191: Carlota | F191: West | G191: 22.95 | H191: 10 | I191: 64 | J191: 229.5 | K191: 20
A192: 187 | B192: 2010-12-22 | C192: Coupon | D192: PayPal | E192: Yanaki | F192: South | G192: 19.95 | H192: 5 | I192: 42 | J192: 99.75 | K192: 25
A193: 188 | B193: 2010-08-21 | C193: Coupon | D193: PayPal | E193: Yanaki | F193: Mid West | G193: 19.95 | H193: 1 | I193: 24 | J193: 19.95 | K193: 25
A194: 189 | B194: 2010-08-28 | C194: Coupon | D194: PayPal | E194: Yanaki | F194: Mid West | G194: 19.95 | H194: 1 | I194: 24 | J194: 19.95 | K194: 25
A195: 190 | B195: 2010-06-20 | C195: No Coupon | D195: American Express | E195: Bellen | F195: Mid West | G195: 24.95 | H195: 4 | I195: 18 | J195: 99.8 | K195: 30
A196: 191 | B196: 2010-04-30 | C196: Coupon | D196: Mastercard | E196: Bellen | F196: East | G196: 24.95 | H196: 1 | I196: 36 | J196: 24.95 | K196: 30
A197: 192 | B197: 2010-10-14 | C197: No Coupon | D197: Mastercard | E197: Carlota | F197: Mid West | G197: 22.95 | H197: 5 | I197: 61 | J197: 114.75 | K197: 20
A198: 193 | B198: 2010-08-04 | C198: No Coupon | D198: Visa | E198: Yanaki | F198: West | G198: 19.95 | H198: 3 | I198: 22 | J198: 59.85 | K198: 25
A199: 194 | B199: 2010-10-28 | C199: Coupon | D199: PayPal | E199: Aspen | F199: West | G199: 21.95 | H199: 2 | I199: 55 | J199: 43.9 | K199: 22
A200: 195 | B200: 2010-11-04 | C200: No Coupon | D200: American Express | E200: Sunset | F200: West | G200: 24.95 | H200: 3 | I200: 27 | J200: 74.85 | K200: 35
A201: 196 | B201: 2010-01-05 | C201: No Coupon | D201: PayPal | E201: Yanaki | F201: Mid West | G201: 19.95 | H201: 1 | I201: 49 | J201: 19.95 | K201: 25
... 4 more rows

Sheet PT-CT1(an)

Sheet PT-CT2(an)

Sheet CCrossTab-F
A1: Comparing two variables to see if there is a relationship: Cross Tabulation | M1: Start | N1: 15
A2: 2 variables = fields | M2: Increment | N2: 9
A3: Each summarization is a summary based on 2 criteria (1 criteria from the first field, 2nd criteria from 2nd field)
A5: No. | B5: Date (2010) | C5: Coupon | D5: Payment Method | E5: Boom | F5: Region | G5: Price | H5: Units | I5: Customer Age | J5: Sales | K5: Range (Flight out meters) | M5: Lower | N5: Upper | O5: Age/Payment Method | P5: American Express | Q5: Discover | R5: Mastercard | S5: PayPal | T5: Visa | U5: Total
A6: 1 | B6: 2010-05-22 | C6: Coupon | D6: Mastercard | E6: Carlota | F6: West | G6: 22.95 | H6: 2 | I6: 21 | J6: 45.9 | K6: 20 | M6: =N1 -> 15 | N6: =M6+$N$2 -> 24 | O6: =M6&" - "&N6 -> 15 - 24 | U6: =SUM(P6:T6) -> 0
A7: 2 | B7: 2010-06-29 | C7: Coupon | D7: Mastercard | E7: Yanaki | F7: West | G7: 19.95 | H7: 1 | I7: 57 | J7: 19.95 | K7: 25 | M7: =N6+1 -> 25 | N7: 34 | O7: 25 - 34 | U7: 0
A8: 3 | B8: 2010-11-05 | C8: No Coupon | D8: Mastercard | E8: Aspen | F8: East | G8: 21.95 | H8: 1 | I8: 25 | J8: 21.95 | K8: 22 | M8: =N7+1 -> 35 | N8: 44 | O8: 35 - 44 | U8: 0
A9: 4 | B9: 2010-08-31 | C9: No Coupon | D9: American Express | E9: Yanaki | F9: West | G9: 19.95 | H9: 1 | I9: 38 | J9: 19.95 | K9: 25 | M9: =N8+1 -> 45 | N9: 54 | O9: 45 - 54 | U9: 0
A10: 5 | B10: 2010-05-30 | C10: Coupon | D10: Visa | E10: Yanaki | F10: West | G10: 19.95 | H10: 4 | I10: 22 | J10: 79.8 | K10: 25 | M10: =N9+1 -> 55 | N10: 64 | O10: 55 - 64 | U10: 0
A11: 6 | B11: 2010-10-05 | C11: Coupon | D11: PayPal | E11: Yanaki | F11: South | G11: 19.95 | H11: 4 | I11: 29 | J11: 79.8 | K11: 25 | M11: =N10+1 -> 65 | N11: 74 | O11: 65 - 74 | U11: 0
A12: 7 | B12: 2010-03-22 | C12: Coupon | D12: Visa | E12: Yanaki | F12: West | G12: 19.95 | H12: 3 | I12: 18 | J12: 59.85 | K12: 25 | O12: Total | P12: =SUM(P6:P11) -> 0 | Q12: =SUM(Q6:Q11) -> 0 | R12: =SUM(R6:R11) -> 0 | S12: =SUM(S6:S11) -> 0 | T12: =SUM(T6:T11) -> 0 | U12: 0
A13: 8 | B13: 2010-06-14 | C13: No Coupon | D13: Discover | E13: Yanaki | F13: West | G13: 19.95 | H13: 7 | I13: 64 | J13: 139.65 | K13: 25
A14: 9 | B14: 2010-05-09 | C14: No Coupon | D14: American Express | E14: Yanaki | F14: West | G14: 19.95 | H14: 6 | I14: 27 | J14: 119.7 | K14: 25
A15: 10 | B15: 2010-08-28 | C15: No Coupon | D15: Visa | E15: Aspen | F15: West | G15: 21.95 | H15: 2 | I15: 22 | J15: 43.9 | K15: 22
A16: 11 | B16: 2010-11-30 | C16: Coupon | D16: PayPal | E16: Aspen | F16: Mid West | G16: 21.95 | H16: 2 | I16: 39 | J16: 43.9 | K16: 22
A17: 12 | B17: 2010-09-13 | C17: No Coupon | D17: Mastercard | E17: Yanaki | F17: Mid West | G17: 19.95 | H17: 5 | I17: 61 | J17: 99.75 | K17: 25
A18: 13 | B18: 2010-10-23 | C18: No Coupon | D18: Visa | E18: Carlota | F18: Mid West | G18: 22.95 | H18: 5 | I18: 18 | J18: 114.75 | K18: 20
A19: 14 | B19: 2010-09-19 | C19: No Coupon | D19: PayPal | E19: Carlota | F19: West | G19: 22.95 | H19: 4 | I19: 22 | J19: 91.8 | K19: 20
A20: 15 | B20: 2010-09-20 | C20: No Coupon | D20: American Express | E20: Carlota | F20: Mid West | G20: 22.95 | H20: 5 | I20: 52 | J20: 114.75 | K20: 20
A21: 16 | B21: 2010-01-18 | C21: Coupon | D21: Visa | E21: Carlota | F21: West | G21: 22.95 | H21: 1 | I21: 22 | J21: 22.95 | K21: 20
A22: 17 | B22: 2010-07-28 | C22: No Coupon | D22: Discover | E22: Sunset | F22: West | G22: 24.95 | H22: 5 | I22: 18 | J22: 124.75 | K22: 35
A23: 18 | B23: 2010-06-06 | C23: No Coupon | D23: PayPal | E23: Yanaki | F23: South | G23: 19.95 | H23: 1 | I23: 55 | J23: 19.95 | K23: 25
A24: 19 | B24: 2010-01-30 | C24: No Coupon | D24: PayPal | E24: Aspen | F24: East | G24: 21.95 | H24: 4 | I24: 20 | J24: 87.8 | K24: 22
A25: 20 | B25: 2010-10-09 | C25: Coupon | D25: PayPal | E25: Carlota | F25: Mid West | G25: 22.95 | H25: 1 | I25: 42 | J25: 22.95 | K25: 20
A26: 21 | B26: 2010-07-04 | C26: No Coupon | D26: PayPal | E26: Delicate Arch | F26: South | G26: 29.95 | H26: 10 | I26: 30 | J26: 299.5 | K26: 45
A27: 22 | B27: 2010-11-08 | C27: Coupon | D27: Visa | E27: Yanaki | F27: Mid West | G27: 19.95 | H27: 1 | I27: 64 | J27: 19.95 | K27: 25
A28: 23 | B28: 2010-06-09 | C28: Coupon | D28: PayPal | E28: Yanaki | F28: Mid West | G28: 19.95 | H28: 5 | I28: 63 | J28: 99.75 | K28: 25
A29: 24 | B29: 2010-03-17 | C29: Coupon | D29: Mastercard | E29: Yanaki | F29: South | G29: 19.95 | H29: 2 | I29: 41 | J29: 39.9 | K29: 25
A30: 25 | B30: 2010-04-07 | C30: No Coupon | D30: Visa | E30: Aspen | F30: East | G30: 21.95 | H30: 3 | I30: 21 | J30: 65.85 | K30: 22
A31: 26 | B31: 2010-01-05 | C31: No Coupon | D31: PayPal | E31: Sunset | F31: East | G31: 24.95 | H31: 1 | I31: 63 | J31: 24.95 | K31: 35
A32: 27 | B32: 2010-07-22 | C32: No Coupon | D32: American Express | E32: Aspen | F32: West | G32: 21.95 | H32: 1 | I32: 54 | J32: 21.95 | K32: 22
A33: 28 | B33: 2010-11-12 | C33: No Coupon | D33: American Express | E33: Yanaki | F33: West | G33: 19.95 | H33: 1 | I33: 18 | J33: 19.95 | K33: 25
A34: 29 | B34: 2010-05-11 | C34: No Coupon | D34: Discover | E34: Carlota | F34: West | G34: 22.95 | H34: 4 | I34: 26 | J34: 91.8 | K34: 20
A35: 30 | B35: 2010-04-14 | C35: No Coupon | D35: PayPal | E35: Aspen | F35: Mid West | G35: 21.95 | H35: 3 | I35: 59 | J35: 65.85 | K35: 22
A36: 31 | B36: 2010-08-11 | C36: No Coupon | D36: Discover | E36: Yanaki | F36: West | G36: 19.95 | H36: 2 | I36: 30 | J36: 39.9 | K36: 25
A37: 32 | B37: 2010-11-14 | C37: No Coupon | D37: Visa | E37: Aspen | F37: West | G37: 21.95 | H37: 2 | I37: 64 | J37: 43.9 | K37: 22
A38: 33 | B38: 2010-01-21 | C38: No Coupon | D38: PayPal | E38: Aspen | F38: West | G38: 21.95 | H38: 3 | I38: 30 | J38: 65.85 | K38: 22
A39: 34 | B39: 2010-04-12 | C39: Coupon | D39: American Express | E39: Aspen | F39: West | G39: 21.95 | H39: 2 | I39: 41 | J39: 43.9 | K39: 22
A40: 35 | B40: 2010-06-04 | C40: Coupon | D40: Mastercard | E40: Yanaki | F40: South | G40: 19.95 | H40: 5 | I40: 23 | J40: 99.75 | K40: 25
A41: 36 | B41: 2010-10-19 | C41: Coupon | D41: Visa | E41: Delicate Arch | F41: West | G41: 29.95 | H41: 1 | I41: 52 | J41: 29.95 | K41: 45
A42: 37 | B42: 2010-09-07 | C42: No Coupon | D42: PayPal | E42: Aspen | F42: West | G42: 21.95 | H42: 3 | I42: 18 | J42: 65.85 | K42: 22
A43: 38 | B43: 2010-09-19 | C43: No Coupon | D43: PayPal | E43: Carlota | F43: West | G43: 22.95 | H43: 1 | I43: 32 | J43: 22.95 | K43: 20
A44: 39 | B44: 2010-01-17 | C44: Coupon | D44: American Express | E44: Yanaki | F44: Mid West | G44: 19.95 | H44: 1 | I44: 22 | J44: 19.95 | K44: 25
A45: 40 | B45: 2010-03-15 | C45: Coupon | D45: PayPal | E45: Yanaki | F45: South | G45: 19.95 | H45: 5 | I45: 29 | J45: 99.75 | K45: 25
A46: 41 | B46: 2010-12-16 | C46: No Coupon | D46: Mastercard | E46: Bellen | F46: Mid West | G46: 24.95 | H46: 5 | I46: 25 | J46: 124.75 | K46: 30
A47: 42 | B47: 2010-07-08 | C47: No Coupon | D47: PayPal | E47: Aspen | F47: West | G47: 21.95 | H47: 1 | I47: 63 | J47: 21.95 | K47: 22
A48: 43 | B48: 2010-05-13 | C48: No Coupon | D48: Mastercard | E48: Sunset | F48: Mid West | G48: 24.95 | H48: 7 | I48: 26 | J48: 174.65 | K48: 35
A49: 44 | B49: 2010-03-03 | C49: Coupon | D49: Discover | E49: Delicate Arch | F49: West | G49: 29.95 | H49: 1 | I49: 31 | J49: 29.95 | K49: 45
A50: 45 | B50: 2010-04-30 | C50: No Coupon | D50: PayPal | E50: Delicate Arch | F50: Mid West | G50: 29.95 | H50: 5 | I50: 23 | J50: 149.75 | K50: 45
A51: 46 | B51: 2010-07-11 | C51: Coupon | D51: PayPal | E51: Delicate Arch | F51: Mid West | G51: 29.95 | H51: 1 | I51: 42 | J51: 29.95 | K51: 45
A52: 47 | B52: 2010-03-22 | C52: Coupon | D52: Visa | E52: Carlota | F52: East | G52: 22.95 | H52: 2 | I52: 28 | J52: 45.9 | K52: 20
A53: 48 | B53: 2010-08-27 | C53: No Coupon | D53: Visa | E53: Carlota | F53: West | G53: 22.95 | H53: 7 | I53: 23 | J53: 160.65 | K53: 20
A54: 49 | B54: 2010-11-16 | C54: No Coupon | D54: Mastercard | E54: Carlota | F54: Mid West | G54: 22.95 | H54: 7 | I54: 19 | J54: 160.65 | K54: 20
A55: 50 | B55: 2010-01-26 | C55: Coupon | D55: Visa | E55: Yanaki | F55: West | G55: 19.95 | H55: 6 | I55: 37 | J55: 119.7 | K55: 25
A56: 51 | B56: 2010-05-06 | C56: No Coupon | D56: Mastercard | E56: Aspen | F56: East | G56: 21.95 | H56: 2 | I56: 38 | J56: 43.9 | K56: 22
A57: 52 | B57: 2010-03-18 | C57: Coupon | D57: Mastercard | E57: Yanaki | F57: Mid West | G57: 19.95 | H57: 6 | I57: 50 | J57: 119.7 | K57: 25
A58: 53 | B58: 2010-04-16 | C58: No Coupon | D58: Discover | E58: Aspen | F58: West | G58: 21.95 | H58: 3 | I58: 26 | J58: 65.85 | K58: 22
A59: 54 | B59: 2010-01-05 | C59: No Coupon | D59: PayPal | E59: Carlota | F59: South | G59: 22.95 | H59: 1 | I59: 33 | J59: 22.95 | K59: 20
A60: 55 | B60: 2010-11-09 | C60: No Coupon | D60: PayPal | E60: Aspen | F60: Mid West | G60: 21.95 | H60: 3 | I60: 59 | J60: 65.85 | K60: 22
A61: 56 | B61: 2010-07-29 | C61: No Coupon | D61: Visa | E61: Aspen | F61: Mid West | G61: 21.95 | H61: 5 | I61: 32 | J61: 109.75 | K61: 22
A62: 57 | B62: 2010-12-07 | C62: No Coupon | D62: Visa | E62: Carlota | F62: Mid West | G62: 22.95 | H62: 5 | I62: 27 | J62: 114.75 | K62: 20
A63: 58 | B63: 2010-11-22 | C63: Coupon | D63: American Express | E63: Bellen | F63: West | G63: 24.95 | H63: 10 | I63: 54 | J63: 249.5 | K63: 30
A64: 59 | B64: 2010-01-10 | C64: No Coupon | D64: PayPal | E64: Aspen | F64: West | G64: 21.95 | H64: 5 | I64: 63 | J64: 109.75 | K64: 22
A65: 60 | B65: 2010-06-01 | C65: No Coupon | D65: Visa | E65: Carlota | F65: East | G65: 22.95 | H65: 5 | I65: 48 | J65: 114.75 | K65: 20
A66: 61 | B66: 2010-05-02 | C66: No Coupon | D66: American Express | E66: Carlota | F66: East | G66: 22.95 | H66: 5 | I66: 29 | J66: 114.75 | K66: 20
A67: 62 | B67: 2010-06-13 | C67: Coupon | D67: Visa | E67: Delicate Arch | F67: West | G67: 29.95 | H67: 4 | I67: 38 | J67: 119.8 | K67: 45
A68: 63 | B68: 2010-02-16 | C68: Coupon | D68: Mastercard | E68: Delicate Arch | F68: East | G68: 29.95 | H68: 1 | I68: 24 | J68: 29.95 | K68: 45
A69: 64 | B69: 2010-08-02 | C69: No Coupon | D69: Visa | E69: Carlota | F69: West | G69: 22.95 | H69: 5 | I69: 51 | J69: 114.75 | K69: 20
A70: 65 | B70: 2010-11-01 | C70: Coupon | D70: Mastercard | E70: Delicate Arch | F70: West | G70: 29.95 | H70: 7 | I70: 25 | J70: 209.65 | K70: 45
A71: 66 | B71: 2010-11-08 | C71: No Coupon | D71: Visa | E71: Carlota | F71: West | G71: 22.95 | H71: 5 | I71: 65 | J71: 114.75 | K71: 20
A72: 67 | B72: 2010-08-17 | C72: No Coupon | D72: PayPal | E72: Yanaki | F72: Mid West | G72: 19.95 | H72: 3 | I72: 35 | J72: 59.85 | K72: 25
A73: 68 | B73: 2010-09-27 | C73: No Coupon | D73: Mastercard | E73: Sunset | F73: East | G73: 24.95 | H73: 5 | I73: 35 | J73: 124.75 | K73: 35
A74: 69 | B74: 2010-01-09 | C74: No Coupon | D74: Visa | E74: Yanaki | F74: Mid West | G74: 19.95 | H74: 2 | I74: 21 | J74: 39.9 | K74: 25
A75: 70 | B75: 2010-10-10 | C75: No Coupon | D75: Mastercard | E75: Sunset | F75: West | G75: 24.95 | H75: 5 | I75: 47 | J75: 124.75 | K75: 35
A76: 71 | B76: 2010-12-31 | C76: No Coupon | D76: Discover | E76: Sunset | F76: East | G76: 24.95 | H76: 1 | I76: 62 | J76: 24.95 | K76: 35
A77: 72 | B77: 2010-12-06 | C77: No Coupon | D77: PayPal | E77: Carlota | F77: East | G77: 22.95 | H77: 1 | I77: 63 | J77: 22.95 | K77: 20
A78: 73 | B78: 2010-03-18 | C78: No Coupon | D78: American Express | E78: Bellen | F78: Mid West | G78: 24.95 | H78: 10 | I78: 23 | J78: 249.5 | K78: 30
A79: 74 | B79: 2010-03-22 | C79: No Coupon | D79: Visa | E79: Yanaki | F79: South | G79: 19.95 | H79: 3 | I79: 59 | J79: 59.85 | K79: 25
A80: 75 | B80: 2010-09-14 | C80: Coupon | D80: Visa | E80: Aspen | F80: West | G80: 21.95 | H80: 2 | I80: 48 | J80: 43.9 | K80: 22
A81: 76 | B81: 2010-02-09 | C81: No Coupon | D81: Mastercard | E81: Yanaki | F81: South | G81: 19.95 | H81: 1 | I81: 57 | J81: 19.95 | K81: 25
A82: 77 | B82: 2010-03-24 | C82: No Coupon | D82: Discover | E82: Delicate Arch | F82: Mid West | G82: 29.95 | H82: 1 | I82: 19 | J82: 29.95 | K82: 45
A83: 78 | B83: 2010-07-28 | C83: Coupon | D83: Mastercard | E83: Yanaki | F83: Mid West | G83: 19.95 | H83: 1 | I83: 48 | J83: 19.95 | K83: 25
A84: 79 | B84: 2010-08-26 | C84: Coupon | D84: Mastercard | E84: Aspen | F84: South | G84: 21.95 | H84: 3 | I84: 21 | J84: 65.85 | K84: 22
A85: 80 | B85: 2010-03-05 | C85: No Coupon | D85: American Express | E85: Carlota | F85: West | G85: 22.95 | H85: 1 | I85: 40 | J85: 22.95 | K85: 20
A86: 81 | B86: 2010-08-18 | C86: No Coupon | D86: Visa | E86: Yanaki | F86: Mid West | G86: 19.95 | H86: 4 | I86: 25 | J86: 79.8 | K86: 25
A87: 82 | B87: 2010-11-02 | C87: Coupon | D87: Mastercard | E87: Yanaki | F87: South | G87: 19.95 | H87: 4 | I87: 59 | J87: 79.8 | K87: 25
A88: 83 | B88: 2010-12-19 | C88: No Coupon | D88: Visa | E88: Carlota | F88: West | G88: 22.95 | H88: 5 | I88: 57 | J88: 114.75 | K88: 20
A89: 84 | B89: 2010-07-05 | C89: Coupon | D89: Discover | E89: Carlota | F89: West | G89: 22.95 | H89: 1 | I89: 56 | J89: 22.95 | K89: 20
A90: 85 | B90: 2010-04-16 | C90: No Coupon | D90: Visa | E90: Yanaki | F90: West | G90: 19.95 | H90: 1 | I90: 19 | J90: 19.95 | K90: 25
A91: 86 | B91: 2010-12-23 | C91: No Coupon | D91: Visa | E91: Aspen | F91: Mid West | G91: 21.95 | H91: 5 | I91: 54 | J91: 109.75 | K91: 22
A92: 87 | B92: 2010-05-29 | C92: No Coupon | D92: PayPal | E92: Delicate Arch | F92: Mid West | G92: 29.95 | H92: 2 | I92: 65 | J92: 59.9 | K92: 45
A93: 88 | B93: 2010-05-01 | C93: Coupon | D93: PayPal | E93: Aspen | F93: West | G93: 21.95 | H93: 2 | I93: 25 | J93: 43.9 | K93: 22
A94: 89 | B94: 2010-07-03 | C94: No Coupon | D94: American Express | E94: Yanaki | F94: West | G94: 19.95 | H94: 2 | I94: 30 | J94: 39.9 | K94: 25
A95: 90 | B95: 2010-08-12 | C95: No Coupon | D95: Mastercard | E95: Delicate Arch | F95: West | G95: 29.95 | H95: 7 | I95: 57 | J95: 209.65 | K95: 45
A96: 91 | B96: 2010-06-21 | C96: Coupon | D96: PayPal | E96: Yanaki | F96: West | G96: 19.95 | H96: 1 | I96: 43 | J96: 19.95 | K96: 25
A97: 92 | B97: 2010-12-15 | C97: No Coupon | D97: Mastercard | E97: Yanaki | F97: South | G97: 19.95 | H97: 4 | I97: 44 | J97: 79.8 | K97: 25
A98: 93 | B98: 2010-05-25 | C98: No Coupon | D98: PayPal | E98: Bellen | F98: East | G98: 24.95 | H98: 5 | I98: 21 | J98: 124.75 | K98: 30
A99: 94 | B99: 2010-03-23 | C99: No Coupon | D99: PayPal | E99: Bellen | F99: West | G99: 24.95 | H99: 1 | I99: 20 | J99: 24.95 | K99: 30
A100: 95 | B100: 2010-01-22 | C100: Coupon | D100: Visa | E100: Carlota | F100: West | G100: 22.95 | H100: 7 | I100: 49 | J100: 160.65 | K100: 20
A101: 96 | B101: 2010-09-26 | C101: No Coupon | D101: Mastercard | E101: Aspen | F101: South | G101: 21.95 | H101: 3 | I101: 37 | J101: 65.85 | K101: 22
A102: 97 | B102: 2010-12-27 | C102: No Coupon | D102: PayPal | E102: Carlota | F102: West | G102: 22.95 | H102: 6 | I102: 26 | J102: 137.7 | K102: 20
A103: 98 | B103: 2010-07-24 | C103: No Coupon | D103: Mastercard | E103: Delicate Arch | F103: East | G103: 29.95 | H103: 1 | I103: 62 | J103: 29.95 | K103: 45
A104: 99 | B104: 2010-04-27 | C104: No Coupon | D104: PayPal | E104: Yanaki | F104: West | G104: 19.95 | H104: 6 | I104: 38 | J104: 119.7 | K104: 25
A105: 100 | B105: 2010-05-07 | C105: No Coupon | D105: Visa | E105: Yanaki | F105: West | G105: 19.95 | H105: 1 | I105: 55 | J105: 19.95 | K105: 25
A106: 101 | B106: 2010-03-03 | C106: Coupon | D106: American Express | E106: Yanaki | F106: East | G106: 19.95 | H106: 2 | I106: 24 | J106: 39.9 | K106: 25
A107: 102 | B107: 2010-03-23 | C107: No Coupon | D107: PayPal | E107: Carlota | F107: Mid West | G107: 22.95 | H107: 5 | I107: 30 | J107: 114.75 | K107: 20
A108: 103 | B108: 2010-12-05 | C108: Coupon | D108: Visa | E108: Aspen | F108: Mid West | G108: 21.95 | H108: 1 | I108: 39 | J108: 21.95 | K108: 22
A109: 104 | B109: 2010-11-11 | C109: Coupon | D109: PayPal | E109: Delicate Arch | F109: South | G109: 29.95 | H109: 6 | I109: 59 | J109: 179.7 | K109: 45
A110: 105 | B110: 2010-04-13 | C110: No Coupon | D110: Discover | E110: Yanaki | F110: East | G110: 19.95 | H110: 2 | I110: 26 | J110: 39.9 | K110: 25
A111: 106 | B111: 2010-12-13 | C111: No Coupon | D111: Visa | E111: Sunset | F111: Mid West | G111: 24.95 | H111: 1 | I111: 33 | J111: 24.95 | K111: 35
A112: 107 | B112: 2010-10-05 | C112: No Coupon | D112: Visa | E112: Bellen | F112: West | G112: 24.95 | H112: 4 | I112: 20 | J112: 99.8 | K112: 30
A113: 108 | B113: 2010-01-02 | C113: No Coupon | D113: Visa | E113: Aspen | F113: West | G113: 21.95 | H113: 4 | I113: 18 | J113: 87.8 | K113: 22
A114: 109 | B114: 2010-11-04 | C114: Coupon | D114: PayPal | E114: Yanaki | F114: East | G114: 19.95 | H114: 2 | I114: 19 | J114: 39.9 | K114: 25
A115: 110 | B115: 2010-04-29 | C115: No Coupon | D115: PayPal | E115: Aspen | F115: West | G115: 21.95 | H115: 3 | I115: 61 | J115: 65.85 | K115: 22
A116: 111 | B116: 2010-10-02 | C116: Coupon | D116: PayPal | E116: Yanaki | F116: East | G116: 19.95 | H116: 10 | I116: 39 | J116: 199.5 | K116: 25
A117: 112 | B117: 2010-12-26 | C117: Coupon | D117: Discover | E117: Aspen | F117: West | G117: 21.95 | H117: 1 | I117: 52 | J117: 21.95 | K117: 22
A118: 113 | B118: 2010-11-05 | C118: No Coupon | D118: Visa | E118: Sunset | F118: West | G118: 24.95 | H118: 5 | I118: 20 | J118: 124.75 | K118: 35
A119: 114 | B119: 2010-11-15 | C119: No Coupon | D119: Visa | E119: Delicate Arch | F119: West | G119: 29.95 | H119: 1 | I119: 50 | J119: 29.95 | K119: 45
A120: 115 | B120: 2010-06-27 | C120: Coupon | D120: PayPal | E120: Aspen | F120: South | G120: 21.95 | H120: 1 | I120: 29 | J120: 21.95 | K120: 22
A121: 116 | B121: 2010-04-21 | C121: No Coupon | D121: Visa | E121: Delicate Arch | F121: West | G121: 29.95 | H121: 4 | I121: 55 | J121: 119.8 | K121: 45
A122: 117 | B122: 2010-09-25 | C122: No Coupon | D122: American Express | E122: Delicate Arch | F122: West | G122: 29.95 | H122: 3 | I122: 18 | J122: 89.85 | K122: 45
A123: 118 | B123: 2010-01-24 | C123: Coupon | D123: Mastercard | E123: Aspen | F123: Mid West | G123: 21.95 | H123: 3 | I123: 39 | J123: 65.85 | K123: 22
A124: 119 | B124: 2010-01-04 | C124: No Coupon | D124: Visa | E124: Carlota | F124: South | G124: 22.95 | H124: 4 | I124: 35 | J124: 91.8 | K124: 20
A125: 120 | B125: 2010-05-06 | C125: Coupon | D125: American Express | E125: Bellen | F125: South | G125: 24.95 | H125: 6 | I125: 38 | J125: 149.7 | K125: 30
A126: 121 | B126: 2010-06-22 | C126: No Coupon | D126: Visa | E126: Yanaki | F126: East | G126: 19.95 | H126: 3 | I126: 20 | J126: 59.85 | K126: 25
A127: 122 | B127: 2010-07-12 | C127: No Coupon | D127: Discover | E127: Aspen | F127: Mid West | G127: 21.95 | H127: 6 | I127: 60 | J127: 131.7 | K127: 22
A128: 123 | B128: 2010-05-03 | C128: No Coupon | D128: Visa | E128: Sunset | F128: Mid West | G128: 24.95 | H128: 2 | I128: 61 | J128: 49.9 | K128: 35
A129: 124 | B129: 2010-03-09 | C129: Coupon | D129: PayPal | E129: Aspen | F129: West | G129: 21.95 | H129: 2 | I129: 62 | J129: 43.9 | K129: 22
A130: 125 | B130: 2010-03-02 | C130: No Coupon | D130: Visa | E130: Yanaki | F130: Mid West | G130: 19.95 | H130: 1 | I130: 21 | J130: 19.95 | K130: 25
A131: 126 | B131: 2010-03-28 | C131: No Coupon | D131: Discover | E131: Aspen | F131: South | G131: 21.95 | H131: 1 | I131: 40 | J131: 21.95 | K131: 22
A132: 127 | B132: 2010-01-15 | C132: No Coupon | D132: Visa | E132: Bellen | F132: West | G132: 24.95 | H132: 1 | I132: 25 | J132: 24.95 | K132: 30
A133: 128 | B133: 2010-11-18 | C133: No Coupon | D133: Mastercard | E133: Yanaki | F133: West | G133: 19.95 | H133: 2 | I133: 50 | J133: 39.9 | K133: 25
A134: 129 | B134: 2010-03-27 | C134: No Coupon | D134: Visa | E134: Bellen | F134: West | G134: 24.95 | H134: 1 | I134: 24 | J134: 24.95 | K134: 30
A135: 130 | B135: 2010-08-11 | C135: Coupon | D135: PayPal | E135: Carlota | F135: West | G135: 22.95 | H135: 5 | I135: 28 | J135: 114.75 | K135: 20
A136: 131 | B136: 2010-12-24 | C136: No Coupon | D136: Visa | E136: Yanaki | F136: Mid West | G136: 19.95 | H136: 6 | I136: 22 | J136: 119.7 | K136: 25
A137: 132 | B137: 2010-11-27 | C137: No Coupon | D137: PayPal | E137: Aspen | F137: West | G137: 21.95 | H137: 2 | I137: 22 | J137: 43.9 | K137: 22
A138: 133 | B138: 2010-03-12 | C138: No Coupon | D138: Visa | E138: Bellen | F138: West | G138: 24.95 | H138: 1 | I138: 27 | J138: 24.95 | K138: 30
A139: 134 | B139: 2010-09-16 | C139: Coupon | D139: Visa | E139: Sunset | F139: West | G139: 24.95 | H139: 7 | I139: 54 | J139: 174.65 | K139: 35
A140: 135 | B140: 2010-02-01 | C140: No Coupon | D140: Mastercard | E140: Bellen | F140: West | G140: 24.95 | H140: 1 | I140: 25 | J140: 24.95 | K140: 30
A141: 136 | B141: 2010-07-03 | C141: No Coupon | D141: Visa | E141: Sunset | F141: Mid West | G141: 24.95 | H141: 2 | I141: 25 | J141: 49.9 | K141: 35
A142: 137 | B142: 2010-08-30 | C142: No Coupon | D142: PayPal | E142: Yanaki | F142: East | G142: 19.95 | H142: 1 | I142: 30 | J142: 19.95 | K142: 25
A143: 138 | B143: 2010-09-18 | C143: Coupon | D143: Mastercard | E143: Yanaki | F143: South | G143: 19.95 | H143: 2 | I143: 59 | J143: 39.9 | K143: 25
A144: 139 | B144: 2010-11-24 | C144: No Coupon | D144: Visa | E144: Carlota | F144: West | G144: 22.95 | H144: 2 | I144: 51 | J144: 45.9 | K144: 20
A145: 140 | B145: 2010-12-22 | C145: No Coupon | D145: Visa | E145: Delicate Arch | F145: West | G145: 29.95 | H145: 6 | I145: 38 | J145: 179.7 | K145: 45
A146: 141 | B146: 2010-04-23 | C146: No Coupon | D146: PayPal | E146: Carlota | F146: South | G146: 22.95 | H146: 7 | I146: 28 | J146: 160.65 | K146: 20
A147: 142 | B147: 2010-11-18 | C147: Coupon | D147: Discover | E147: Aspen | F147: West | G147: 21.95 | H147: 1 | I147: 30 | J147: 21.95 | K147: 22
A148: 143 | B148: 2010-10-28 | C148: No Coupon | D148: Visa | E148: Bellen | F148: South | G148: 24.95 | H148: 5 | I148: 43 | J148: 124.75 | K148: 30
A149: 144 | B149: 2010-08-14 | C149: No Coupon | D149: PayPal | E149: Delicate Arch | F149: West | G149: 29.95 | H149: 3 | I149: 42 | J149: 89.85 | K149: 45
A150: 145 | B150: 2010-05-05 | C150: No Coupon | D150: Visa | E150: Bellen | F150: Mid West | G150: 24.95 | H150: 2 | I150: 24 | J150: 49.9 | K150: 30
A151: 146 | B151: 2010-08-25 | C151: Coupon | D151: Visa | E151: Carlota | F151: Mid West | G151: 22.95 | H151: 1 | I151: 47 | J151: 22.95 | K151: 20
A152: 147 | B152: 2010-10-25 | C152: No Coupon | D152: PayPal | E152: Yanaki | F152: Mid West | G152: 19.95 | H152: 1 | I152: 23 | J152: 19.95 | K152: 25
A153: 148 | B153: 2010-07-31 | C153: No Coupon | D153: PayPal | E153: Yanaki | F153: East | G153: 19.95 | H153: 5 | I153: 59 | J153: 99.75 | K153: 25
A154: 149 | B154: 2010-07-25 | C154: Coupon | D154: Mastercard | E154: Carlota | F154: West | G154: 22.95 | H154: 4 | I154: 22 | J154: 91.8 | K154: 20
A155: 150 | B155: 2010-09-30 | C155: Coupon | D155: Visa | E155: Bellen | F155: Mid West | G155: 24.95 | H155: 2 | I155: 27 | J155: 49.9 | K155: 30
A156: 151 | B156: 2010-10-03 | C156: No Coupon | D156: Discover | E156: Aspen | F156: East | G156: 21.95 | H156: 1 | I156: 65 | J156: 21.95 | K156: 22
A157: 152 | B157: 2010-04-01 | C157: No Coupon | D157: Mastercard | E157: Carlota | F157: Mid West | G157: 22.95 | H157: 2 | I157: 27 | J157: 45.9 | K157: 20
A158: 153 | B158: 2010-12-15 | C158: No Coupon | D158: American Express | E158: Carlota | F158: East | G158: 22.95 | H158: 1 | I158: 27 | J158: 22.95 | K158: 20
A159: 154 | B159: 2010-01-07 | C159: No Coupon | D159: PayPal | E159: Carlota | F159: West | G159: 22.95 | H159: 2 | I159: 28 | J159: 45.9 | K159: 20
A160: 155 | B160: 2010-07-23 | C160: Coupon | D160: PayPal | E160: Bellen | F160: West | G160: 24.95 | H160: 1 | I160: 22 | J160: 24.95 | K160: 30
A161: 156 | B161: 2010-03-16 | C161: No Coupon | D161: PayPal | E161: Yanaki | F161: East | G161: 19.95 | H161: 2 | I161: 42 | J161: 39.9 | K161: 25
A162: 157 | B162: 2010-12-04 | C162: No Coupon | D162: American Express | E162: Delicate Arch | F162: East | G162: 29.95 | H162: 6 | I162: 25 | J162: 179.7 | K162: 45
A163: 158 | B163: 2010-01-08 | C163: Coupon | D163: Mastercard | E163: Aspen | F163: West | G163: 21.95 | H163: 1 | I163: 41 | J163: 21.95 | K163: 22
A164: 159 | B164: 2010-06-02 | C164: Coupon | D164: PayPal | E164: Bellen | F164: West | G164: 24.95 | H164: 1 | I164: 46 | J164: 24.95 | K164: 30
A165: 160 | B165: 2010-08-18 | C165: No Coupon | D165: Discover | E165: Sunset | F165: West | G165: 24.95 | H165: 3 | I165: 41 | J165: 74.85 | K165: 35
A166: 161 | B166: 2010-04-24 | C166: No Coupon | D166: Mastercard | E166: Yanaki | F166: West | G166: 19.95 | H166: 4 | I166: 29 | J166: 79.8 | K166: 25
A167: 162 | B167: 2010-12-01 | C167: No Coupon | D167: Visa | E167: Yanaki | F167: Mid West | G167: 19.95 | H167: 1 | I167: 50 | J167: 19.95 | K167: 25
A168: 163 | B168: 2010-12-31 | C168: Coupon | D168: Visa | E168: Carlota | F168: Mid West | G168: 22.95 | H168: 1 | I168: 50 | J168: 22.95 | K168: 20
A169: 164 | B169: 2010-04-30 | C169: Coupon | D169: PayPal | E169: Carlota | F169: Mid West | G169: 22.95 | H169: 2 | I169: 34 | J169: 45.9 | K169: 20
A170: 165 | B170: 2010-03-16 | C170: Coupon | D170: American Express | E170: Aspen | F170: West | G170: 21.95 | H170: 3 | I170: 24 | J170: 65.85 | K170: 22
A171: 166 | B171: 2010-01-28 | C171: No Coupon | D171: Mastercard | E171: Yanaki | F171: West | G171: 19.95 | H171: 7 | I171: 29 | J171: 139.65 | K171: 25
A172: 167 | B172: 2010-08-03 | C172: No Coupon | D172: Mastercard | E172: Carlota | F172: Mid West | G172: 22.95 | H172: 1 | I172: 35 | J172: 22.95 | K172: 20
A173: 168 | B173: 2010-11-11 | C173: No Coupon | D173: Visa | E173: Yanaki | F173: West | G173: 19.95 | H173: 2 | I173: 24 | J173: 39.9 | K173: 25
A174: 169 | B174: 2010-12-13 | C174: Coupon | D174: Visa | E174: Aspen | F174: South | G174: 21.95 | H174: 5 | I174: 23 | J174: 109.75 | K174: 22
A175: 170 | B175: 2010-03-27 | C175: No Coupon | D175: PayPal | E175: Carlota | F175: Mid West | G175: 22.95 | H175: 7 | I175: 31 | J175: 160.65 | K175: 20
A176: 171 | B176: 2010-10-08 | C176: Coupon | D176: PayPal | E176: Bellen | F176: Mid West | G176: 24.95 | H176: 2 | I176: 24 | J176: 49.9 | K176: 30
A177: 172 | B177: 2010-08-03 | C177: No Coupon | D177: Visa | E177: Carlota | F177: Mid West | G177: 22.95 | H177: 1 | I177: 30 | J177: 22.95 | K177: 20
A178: 173 | B178: 2010-03-10 | C178: Coupon | D178: Visa | E178: Carlota | F178: West | G178: 22.95 | H178: 2 | I178: 22 | J178: 45.9 | K178: 20
A179: 174 | B179: 2010-03-02 | C179: No Coupon | D179: Visa | E179: Carlota | F179: East | G179: 22.95 | H179: 3 | I179: 43 | J179: 68.85 | K179: 20
A180: 175 | B180: 2010-01-26 | C180: No Coupon | D180: Visa | E180: Carlota | F180: West | G180: 22.95 | H180: 10 | I180: 55 | J180: 229.5 | K180: 20
A181: 176 | B181: 2010-05-06 | C181: No Coupon | D181: American Express | E181: Delicate Arch | F181: West | G181: 29.95 | H181: 1 | I181: 38 | J181: 29.95 | K181: 45
A182: 177 | B182: 2010-03-10 | C182: Coupon | D182: Visa | E182: Yanaki | F182: West | G182: 19.95 | H182: 2 | I182: 28 | J182: 39.9 | K182: 25
A183: 178 | B183: 2010-11-18 | C183: Coupon | D183: PayPal | E183: Aspen | F183: Mid West | G183: 21.95 | H183: 2 | I183: 30 | J183: 43.9 | K183: 22
A184: 179 | B184: 2010-01-30 | C184: Coupon | D184: Discover | E184: Yanaki | F184: West | G184: 19.95 | H184: 1 | I184: 35 | J184: 19.95 | K184: 25
A185: 180 | B185: 2010-07-02 | C185: No Coupon | D185: Visa | E185: Delicate Arch | F185: West | G185: 29.95 | H185: 2 | I185: 41 | J185: 59.9 | K185: 45
A186: 181 | B186: 2010-10-13 | C186: Coupon | D186: Discover | E186: Yanaki | F186: East | G186: 19.95 | H186: 5 | I186: 28 | J186: 99.75 | K186: 25
A187: 182 | B187: 2010-02-07 | C187: No Coupon | D187: Discover | E187: Bellen | F187: Mid West | G187: 24.95 | H187: 7 | I187: 65 | J187: 174.65 | K187: 30
A188: 183 | B188: 2010-06-05 | C188: No Coupon | D188: Mastercard | E188: Aspen | F188: West | G188: 21.95 | H188: 3 | I188: 20 | J188: 65.85 | K188: 22
A189: 184 | B189: 2010-11-02 | C189: No Coupon | D189: Visa | E189: Sunset | F189: Mid West | G189: 24.95 | H189: 5 | I189: 39 | J189: 124.75 | K189: 35
A190: 185 | B190: 2010-12-13 | C190: No Coupon | D190: Visa | E190: Aspen | F190: East | G190: 21.95 | H190: 4 | I190: 19 | J190: 87.8 | K190: 22
A191: 186 | B191: 2010-10-23 | C191: No Coupon | D191: Visa | E191: Carlota | F191: West | G191: 22.95 | H191: 10 | I191: 64 | J191: 229.5 | K191: 20
A192: 187 | B192: 2010-12-22 | C192: Coupon | D192: PayPal | E192: Yanaki | F192: South | G192: 19.95 | H192: 5 | I192: 42 | J192: 99.75 | K192: 25
A193: 188 | B193: 2010-08-21 | C193: Coupon | D193: PayPal | E193: Yanaki | F193: Mid West | G193: 19.95 | H193: 1 | I193: 24 | J193: 19.95 | K193: 25
A194: 189 | B194: 2010-08-28 | C194: Coupon | D194: PayPal | E194: Yanaki | F194: Mid West | G194: 19.95 | H194: 1 | I194: 24 | J194: 19.95 | K194: 25
A195: 190 | B195: 2010-06-20 | C195: No Coupon | D195: American Express | E195: Bellen | F195: Mid West | G195: 24.95 | H195: 4 | I195: 18 | J195: 99.8 | K195: 30
A196: 191 | B196: 2010-04-30 | C196: Coupon | D196: Mastercard | E196: Bellen | F196: East | G196: 24.95 | H196: 1 | I196: 36 | J196: 24.95 | K196: 30
A197: 192 | B197: 2010-10-14 | C197: No Coupon | D197: Mastercard | E197: Carlota | F197: Mid West | G197: 22.95 | H197: 5 | I197: 61 | J197: 114.75 | K197: 20
A198: 193 | B198: 2010-08-04 | C198: No Coupon | D198: Visa | E198: Yanaki | F198: West | G198: 19.95 | H198: 3 | I198: 22 | J198: 59.85 | K198: 25
A199: 194 | B199: 2010-10-28 | C199: Coupon | D199: PayPal | E199: Aspen | F199: West | G199: 21.95 | H199: 2 | I199: 55 | J199: 43.9 | K199: 22
A200: 195 | B200: 2010-11-04 | C200: No Coupon | D200: American Express | E200: Sunset | F200: West | G200: 24.95 | H200: 3 | I200: 27 | J200: 74.85 | K200: 35
A201: 196 | B201: 2010-01-05 | C201: No Coupon | D201: PayPal | E201: Yanaki | F201: Mid West | G201: 19.95 | H201: 1 | I201: 49 | J201: 19.95 | K201: 25
... 4 more rows

Sheet CCrossTab-F (an)
A1: Comparing two variables to see if there is a relationship: Cross Tabulation | M1: Start | N1: 15
A2: 2 variables = fields | M2: Increment | N2: 9
A3: Each summarization is a summary based on 2 criteria (1 criteria from the first field, 2nd criteria from 2nd field)
A5: No. | B5: Date (2010) | C5: Coupon | D5: Payment Method | E5: Boom | F5: Region | G5: Price | H5: Units | I5: Customer Age | J5: Sales | K5: Range (Flight out meters) | M5: Lower | N5: Upper | O5: Age/Payment Method | P5: American Express | Q5: Discover | R5: Mastercard | S5: PayPal | T5: Visa | U5: Total
A6: 1 | B6: 2010-05-22 | C6: Coupon | D6: Mastercard | E6: Carlota | F6: West | G6: 22.95 | H6: 2 | I6: 21 | J6: 45.9 | K6: 20 | M6: =N1 -> 15 | N6: =M6+$N$2 -> 24 | O6: =M6&" - "&N6 -> 15 - 24 | P6: =COUNTIFS($I$6:$I$205,">="&$M6,$I$6:$I$205,"<="&$N6,$D$6:$D$205,P$5) -> 7 | Q6: =COUNTIFS($I$6:$I$205,">="&$M6,$I$6:$I$205,"<="&$N6,$D$6:$D$205,Q$5) -> 2 | R6: 7 | S6: 13 | T6: 22 | U6: =SUM(P6:T6) -> 51
A7: 2 | B7: 2010-06-29 | C7: Coupon | D7: Mastercard | E7: Yanaki | F7: West | G7: 19.95 | H7: 1 | I7: 57 | J7: 19.95 | K7: 25 | M7: =N6+1 -> 25 | N7: 34 | O7: 25 - 34 | P7: 6 | Q7: 7 | R7: 8 | S7: 19 | T7: 12 | U7: 52
A8: 3 | B8: 2010-11-05 | C8: No Coupon | D8: Mastercard | E8: Aspen | F8: East | G8: 21.95 | H8: 1 | I8: 25 | J8: 21.95 | K8: 22 | M8: =N7+1 -> 35 | N8: 44 | O8: 35 - 44 | P8: 5 | Q8: 3 | R8: 9 | S8: 10 | T8: 9 | U8: 36
A9: 4 | B9: 2010-08-31 | C9: No Coupon | D9: American Express | E9: Yanaki | F9: West | G9: 19.95 | H9: 1 | I9: 38 | J9: 19.95 | K9: 25 | M9: =N8+1 -> 45 | N9: 54 | O9: 45 - 54 | P9: 3 | Q9: 1 | R9: 4 | S9: 2 | T9: 13 | U9: 23
A10: 5 | B10: 2010-05-30 | C10: Coupon | D10: Visa | E10: Yanaki | F10: West | G10: 19.95 | H10: 4 | I10: 22 | J10: 79.8 | K10: 25 | M10: =N9+1 -> 55 | N10: 64 | O10: 55 - 64 | P10: 0 | Q10: 4 | R10: 8 | S10: 13 | T10: 9 | U10: 34
A11: 6 | B11: 2010-10-05 | C11: Coupon | D11: PayPal | E11: Yanaki | F11: South | G11: 19.95 | H11: 4 | I11: 29 | J11: 79.8 | K11: 25 | M11: =N10+1 -> 65 | N11: 74 | O11: 65 - 74 | P11: 0 | Q11: 2 | R11: 0 | S11: 1 | T11: 1 | U11: 4
A12: 7 | B12: 2010-03-22 | C12: Coupon | D12: Visa | E12: Yanaki | F12: West | G12: 19.95 | H12: 3 | I12: 18 | J12: 59.85 | K12: 25 | O12: Total | P12: =SUM(P6:P11) -> 21 | Q12: =SUM(Q6:Q11) -> 19 | R12: =SUM(R6:R11) -> 36 | S12: =SUM(S6:S11) -> 58 | T12: =SUM(T6:T11) -> 66 | U12: 200
A13: 8 | B13: 2010-06-14 | C13: No Coupon | D13: Discover | E13: Yanaki | F13: West | G13: 19.95 | H13: 7 | I13: 64 | J13: 139.65 | K13: 25
A14: 9 | B14: 2010-05-09 | C14: No Coupon | D14: American Express | E14: Yanaki | F14: West | G14: 19.95 | H14: 6 | I14: 27 | J14: 119.7 | K14: 25 | M14: Payment Method
A15: 10 | B15: 2010-08-28 | C15: No Coupon | D15: Visa | E15: Aspen | F15: West | G15: 21.95 | H15: 2 | I15: 22 | J15: 43.9 | K15: 22 | M15: Mastercard
A16: 11 | B16: 2010-11-30 | C16: Coupon | D16: PayPal | E16: Aspen | F16: Mid West | G16: 21.95 | H16: 2 | I16: 39 | J16: 43.9 | K16: 22 | M16: American Express
A17: 12 | B17: 2010-09-13 | C17: No Coupon | D17: Mastercard | E17: Yanaki | F17: Mid West | G17: 19.95 | H17: 5 | I17: 61 | J17: 99.75 | K17: 25 | M17: Visa
A18: 13 | B18: 2010-10-23 | C18: No Coupon | D18: Visa | E18: Carlota | F18: Mid West | G18: 22.95 | H18: 5 | I18: 18 | J18: 114.75 | K18: 20 | M18: PayPal
A19: 14 | B19: 2010-09-19 | C19: No Coupon | D19: PayPal | E19: Carlota | F19: West | G19: 22.95 | H19: 4 | I19: 22 | J19: 91.8 | K19: 20 | M19: Discover
A20: 15 | B20: 2010-09-20 | C20: No Coupon | D20: American Express | E20: Carlota | F20: Mid West | G20: 22.95 | H20: 5 | I20: 52 | J20: 114.75 | K20: 20
A21: 16 | B21: 2010-01-18 | C21: Coupon | D21: Visa | E21: Carlota | F21: West | G21: 22.95 | H21: 1 | I21: 22 | J21: 22.95 | K21: 20
A22: 17 | B22: 2010-07-28 | C22: No Coupon | D22: Discover | E22: Sunset | F22: West | G22: 24.95 | H22: 5 | I22: 18 | J22: 124.75 | K22: 35
A23: 18 | B23: 2010-06-06 | C23: No Coupon | D23: PayPal | E23: Yanaki | F23: South | G23: 19.95 | H23: 1 | I23: 55 | J23: 19.95 | K23: 25
A24: 19 | B24: 2010-01-30 | C24: No Coupon | D24: PayPal | E24: Aspen | F24: East | G24: 21.95 | H24: 4 | I24: 20 | J24: 87.8 | K24: 22
A25: 20 | B25: 2010-10-09 | C25: Coupon | D25: PayPal | E25: Carlota | F25: Mid West | G25: 22.95 | H25: 1 | I25: 42 | J25: 22.95 | K25: 20
A26: 21 | B26: 2010-07-04 | C26: No Coupon | D26: PayPal | E26: Delicate Arch | F26: South | G26: 29.95 | H26: 10 | I26: 30 | J26: 299.5 | K26: 45
A27: 22 | B27: 2010-11-08 | C27: Coupon | D27: Visa | E27: Yanaki | F27: Mid West | G27: 19.95 | H27: 1 | I27: 64 | J27: 19.95 | K27: 25
A28: 23 | B28: 2010-06-09 | C28: Coupon | D28: PayPal | E28: Yanaki | F28: Mid West | G28: 19.95 | H28: 5 | I28: 63 | J28: 99.75 | K28: 25
A29: 24 | B29: 2010-03-17 | C29: Coupon | D29: Mastercard | E29: Yanaki | F29: South | G29: 19.95 | H29: 2 | I29: 41 | J29: 39.9 | K29: 25
A30: 25 | B30: 2010-04-07 | C30: No Coupon | D30: Visa | E30: Aspen | F30: East | G30: 21.95 | H30: 3 | I30: 21 | J30: 65.85 | K30: 22
A31: 26 | B31: 2010-01-05 | C31: No Coupon | D31: PayPal | E31: Sunset | F31: East | G31: 24.95 | H31: 1 | I31: 63 | J31: 24.95 | K31: 35
A32: 27 | B32: 2010-07-22 | C32: No Coupon | D32: American Express | E32: Aspen | F32: West | G32: 21.95 | H32: 1 | I32: 54 | J32: 21.95 | K32: 22
A33: 28 | B33: 2010-11-12 | C33: No Coupon | D33: American Express | E33: Yanaki | F33: West | G33: 19.95 | H33: 1 | I33: 18 | J33: 19.95 | K33: 25
A34: 29 | B34: 2010-05-11 | C34: No Coupon | D34: Discover | E34: Carlota | F34: West | G34: 22.95 | H34: 4 | I34: 26 | J34: 91.8 | K34: 20
A35: 30 | B35: 2010-04-14 | C35: No Coupon | D35: PayPal | E35: Aspen | F35: Mid West | G35: 21.95 | H35: 3 | I35: 59 | J35: 65.85 | K35: 22
A36: 31 | B36: 2010-08-11 | C36: No Coupon | D36: Discover | E36: Yanaki | F36: West | G36: 19.95 | H36: 2 | I36: 30 | J36: 39.9 | K36: 25
A37: 32 | B37: 2010-11-14 | C37: No Coupon | D37: Visa | E37: Aspen | F37: West | G37: 21.95 | H37: 2 | I37: 64 | J37: 43.9 | K37: 22
A38: 33 | B38: 2010-01-21 | C38: No Coupon | D38: PayPal | E38: Aspen | F38: West | G38: 21.95 | H38: 3 | I38: 30 | J38: 65.85 | K38: 22
A39: 34 | B39: 2010-04-12 | C39: Coupon | D39: American Express | E39: Aspen | F39: West | G39: 21.95 | H39: 2 | I39: 41 | J39: 43.9 | K39: 22
A40: 35 | B40: 2010-06-04 | C40: Coupon | D40: Mastercard | E40: Yanaki | F40: South | G40: 19.95 | H40: 5 | I40: 23 | J40: 99.75 | K40: 25
A41: 36 | B41: 2010-10-19 | C41: Coupon | D41: Visa | E41: Delicate Arch | F41: West | G41: 29.95 | H41: 1 | I41: 52 | J41: 29.95 | K41: 45
A42: 37 | B42: 2010-09-07 | C42: No Coupon | D42: PayPal | E42: Aspen | F42: West | G42: 21.95 | H42: 3 | I42: 18 | J42: 65.85 | K42: 22
A43: 38 | B43: 2010-09-19 | C43: No Coupon | D43: PayPal | E43: Carlota | F43: West | G43: 22.95 | H43: 1 | I43: 32 | J43: 22.95 | K43: 20
A44: 39 | B44: 2010-01-17 | C44: Coupon | D44: American Express | E44: Yanaki | F44: Mid West | G44: 19.95 | H44: 1 | I44: 22 | J44: 19.95 | K44: 25
A45: 40 | B45: 2010-03-15 | C45: Coupon | D45: PayPal | E45: Yanaki | F45: South | G45: 19.95 | H45: 5 | I45: 29 | J45: 99.75 | K45: 25
A46: 41 | B46: 2010-12-16 | C46: No Coupon | D46: Mastercard | E46: Bellen | F46: Mid West | G46: 24.95 | H46: 5 | I46: 25 | J46: 124.75 | K46: 30
A47: 42 | B47: 2010-07-08 | C47: No Coupon | D47: PayPal | E47: Aspen | F47: West | G47: 21.95 | H47: 1 | I47: 63 | J47: 21.95 | K47: 22
A48: 43 | B48: 2010-05-13 | C48: No Coupon | D48: Mastercard | E48: Sunset | F48: Mid West | G48: 24.95 | H48: 7 | I48: 26 | J48: 174.65 | K48: 35
A49: 44 | B49: 2010-03-03 | C49: Coupon | D49: Discover | E49: Delicate Arch | F49: West | G49: 29.95 | H49: 1 | I49: 31 | J49: 29.95 | K49: 45
A50: 45 | B50: 2010-04-30 | C50: No Coupon | D50: PayPal | E50: Delicate Arch | F50: Mid West | G50: 29.95 | H50: 5 | I50: 23 | J50: 149.75 | K50: 45
A51: 46 | B51: 2010-07-11 | C51: Coupon | D51: PayPal | E51: Delicate Arch | F51: Mid West | G51: 29.95 | H51: 1 | I51: 42 | J51: 29.95 | K51: 45
A52: 47 | B52: 2010-03-22 | C52: Coupon | D52: Visa | E52: Carlota | F52: East | G52: 22.95 | H52: 2 | I52: 28 | J52: 45.9 | K52: 20
A53: 48 | B53: 2010-08-27 | C53: No Coupon | D53: Visa | E53: Carlota | F53: West | G53: 22.95 | H53: 7 | I53: 23 | J53: 160.65 | K53: 20
A54: 49 | B54: 2010-11-16 | C54: No Coupon | D54: Mastercard | E54: Carlota | F54: Mid West | G54: 22.95 | H54: 7 | I54: 19 | J54: 160.65 | K54: 20
A55: 50 | B55: 2010-01-26 | C55: Coupon | D55: Visa | E55: Yanaki | F55: West | G55: 19.95 | H55: 6 | I55: 37 | J55: 119.7 | K55: 25
A56: 51 | B56: 2010-05-06 | C56: No Coupon | D56: Mastercard | E56: Aspen | F56: East | G56: 21.95 | H56: 2 | I56: 38 | J56: 43.9 | K56: 22
A57: 52 | B57: 2010-03-18 | C57: Coupon | D57: Mastercard | E57: Yanaki | F57: Mid West | G57: 19.95 | H57: 6 | I57: 50 | J57: 119.7 | K57: 25
A58: 53 | B58: 2010-04-16 | C58: No Coupon | D58: Discover | E58: Aspen | F58: West | G58: 21.95 | H58: 3 | I58: 26 | J58: 65.85 | K58: 22
A59: 54 | B59: 2010-01-05 | C59: No Coupon | D59: PayPal | E59: Carlota | F59: South | G59: 22.95 | H59: 1 | I59: 33 | J59: 22.95 | K59: 20
A60: 55 | B60: 2010-11-09 | C60: No Coupon | D60: PayPal | E60: Aspen | F60: Mid West | G60: 21.95 | H60: 3 | I60: 59 | J60: 65.85 | K60: 22
A61: 56 | B61: 2010-07-29 | C61: No Coupon | D61: Visa | E61: Aspen | F61: Mid West | G61: 21.95 | H61: 5 | I61: 32 | J61: 109.75 | K61: 22
A62: 57 | B62: 2010-12-07 | C62: No Coupon | D62: Visa | E62: Carlota | F62: Mid West | G62: 22.95 | H62: 5 | I62: 27 | J62: 114.75 | K62: 20
A63: 58 | B63: 2010-11-22 | C63: Coupon | D63: American Express | E63: Bellen | F63: West | G63: 24.95 | H63: 10 | I63: 54 | J63: 249.5 | K63: 30
A64: 59 | B64: 2010-01-10 | C64: No Coupon | D64: PayPal | E64: Aspen | F64: West | G64: 21.95 | H64: 5 | I64: 63 | J64: 109.75 | K64: 22
A65: 60 | B65: 2010-06-01 | C65: No Coupon | D65: Visa | E65: Carlota | F65: East | G65: 22.95 | H65: 5 | I65: 48 | J65: 114.75 | K65: 20
A66: 61 | B66: 2010-05-02 | C66: No Coupon | D66: American Express | E66: Carlota | F66: East | G66: 22.95 | H66: 5 | I66: 29 | J66: 114.75 | K66: 20
A67: 62 | B67: 2010-06-13 | C67: Coupon | D67: Visa | E67: Delicate Arch | F67: West | G67: 29.95 | H67: 4 | I67: 38 | J67: 119.8 | K67: 45
A68: 63 | B68: 2010-02-16 | C68: Coupon | D68: Mastercard | E68: Delicate Arch | F68: East | G68: 29.95 | H68: 1 | I68: 24 | J68: 29.95 | K68: 45
A69: 64 | B69: 2010-08-02 | C69: No Coupon | D69: Visa | E69: Carlota | F69: West | G69: 22.95 | H69: 5 | I69: 51 | J69: 114.75 | K69: 20
A70: 65 | B70: 2010-11-01 | C70: Coupon | D70: Mastercard | E70: Delicate Arch | F70: West | G70: 29.95 | H70: 7 | I70: 25 | J70: 209.65 | K70: 45
A71: 66 | B71: 2010-11-08 | C71: No Coupon | D71: Visa | E71: Carlota | F71: West | G71: 22.95 | H71: 5 | I71: 65 | J71: 114.75 | K71: 20
A72: 67 | B72: 2010-08-17 | C72: No Coupon | D72: PayPal | E72: Yanaki | F72: Mid West | G72: 19.95 | H72: 3 | I72: 35 | J72: 59.85 | K72: 25
A73: 68 | B73: 2010-09-27 | C73: No Coupon | D73: Mastercard | E73: Sunset | F73: East | G73: 24.95 | H73: 5 | I73: 35 | J73: 124.75 | K73: 35
A74: 69 | B74: 2010-01-09 | C74: No Coupon | D74: Visa | E74: Yanaki | F74: Mid West | G74: 19.95 | H74: 2 | I74: 21 | J74: 39.9 | K74: 25
A75: 70 | B75: 2010-10-10 | C75: No Coupon | D75: Mastercard | E75: Sunset | F75: West | G75: 24.95 | H75: 5 | I75: 47 | J75: 124.75 | K75: 35
A76: 71 | B76: 2010-12-31 | C76: No Coupon | D76: Discover | E76: Sunset | F76: East | G76: 24.95 | H76: 1 | I76: 62 | J76: 24.95 | K76: 35
A77: 72 | B77: 2010-12-06 | C77: No Coupon | D77: PayPal | E77: Carlota | F77: East | G77: 22.95 | H77: 1 | I77: 63 | J77: 22.95 | K77: 20
A78: 73 | B78: 2010-03-18 | C78: No Coupon | D78: American Express | E78: Bellen | F78: Mid West | G78: 24.95 | H78: 10 | I78: 23 | J78: 249.5 | K78: 30
A79: 74 | B79: 2010-03-22 | C79: No Coupon | D79: Visa | E79: Yanaki | F79: South | G79: 19.95 | H79: 3 | I79: 59 | J79: 59.85 | K79: 25
A80: 75 | B80: 2010-09-14 | C80: Coupon | D80: Visa | E80: Aspen | F80: West | G80: 21.95 | H80: 2 | I80: 48 | J80: 43.9 | K80: 22
A81: 76 | B81: 2010-02-09 | C81: No Coupon | D81: Mastercard | E81: Yanaki | F81: South | G81: 19.95 | H81: 1 | I81: 57 | J81: 19.95 | K81: 25
A82: 77 | B82: 2010-03-24 | C82: No Coupon | D82: Discover | E82: Delicate Arch | F82: Mid West | G82: 29.95 | H82: 1 | I82: 19 | J82: 29.95 | K82: 45
A83: 78 | B83: 2010-07-28 | C83: Coupon | D83: Mastercard | E83: Yanaki | F83: Mid West | G83: 19.95 | H83: 1 | I83: 48 | J83: 19.95 | K83: 25
A84: 79 | B84: 2010-08-26 | C84: Coupon | D84: Mastercard | E84: Aspen | F84: South | G84: 21.95 | H84: 3 | I84: 21 | J84: 65.85 | K84: 22
A85: 80 | B85: 2010-03-05 | C85: No Coupon | D85: American Express | E85: Carlota | F85: West | G85: 22.95 | H85: 1 | I85: 40 | J85: 22.95 | K85: 20
A86: 81 | B86: 2010-08-18 | C86: No Coupon | D86: Visa | E86: Yanaki | F86: Mid West | G86: 19.95 | H86: 4 | I86: 25 | J86: 79.8 | K86: 25
A87: 82 | B87: 2010-11-02 | C87: Coupon | D87: Mastercard | E87: Yanaki | F87: South | G87: 19.95 | H87: 4 | I87: 59 | J87: 79.8 | K87: 25
A88: 83 | B88: 2010-12-19 | C88: No Coupon | D88: Visa | E88: Carlota | F88: West | G88: 22.95 | H88: 5 | I88: 57 | J88: 114.75 | K88: 20
A89: 84 | B89: 2010-07-05 | C89: Coupon | D89: Discover | E89: Carlota | F89: West | G89: 22.95 | H89: 1 | I89: 56 | J89: 22.95 | K89: 20
A90: 85 | B90: 2010-04-16 | C90: No Coupon | D90: Visa | E90: Yanaki | F90: West | G90: 19.95 | H90: 1 | I90: 19 | J90: 19.95 | K90: 25
A91: 86 | B91: 2010-12-23 | C91: No Coupon | D91: Visa | E91: Aspen | F91: Mid West | G91: 21.95 | H91: 5 | I91: 54 | J91: 109.75 | K91: 22
A92: 87 | B92: 2010-05-29 | C92: No Coupon | D92: PayPal | E92: Delicate Arch | F92: Mid West | G92: 29.95 | H92: 2 | I92: 65 | J92: 59.9 | K92: 45
A93: 88 | B93: 2010-05-01 | C93: Coupon | D93: PayPal | E93: Aspen | F93: West | G93: 21.95 | H93: 2 | I93: 25 | J93: 43.9 | K93: 22
A94: 89 | B94: 2010-07-03 | C94: No Coupon | D94: American Express | E94: Yanaki | F94: West | G94: 19.95 | H94: 2 | I94: 30 | J94: 39.9 | K94: 25
A95: 90 | B95: 2010-08-12 | C95: No Coupon | D95: Mastercard | E95: Delicate Arch | F95: West | G95: 29.95 | H95: 7 | I95: 57 | J95: 209.65 | K95: 45
A96: 91 | B96: 2010-06-21 | C96: Coupon | D96: PayPal | E96: Yanaki | F96: West | G96: 19.95 | H96: 1 | I96: 43 | J96: 19.95 | K96: 25
A97: 92 | B97: 2010-12-15 | C97: No Coupon | D97: Mastercard | E97: Yanaki | F97: South | G97: 19.95 | H97: 4 | I97: 44 | J97: 79.8 | K97: 25
A98: 93 | B98: 2010-05-25 | C98: No Coupon | D98: PayPal | E98: Bellen | F98: East | G98: 24.95 | H98: 5 | I98: 21 | J98: 124.75 | K98: 30
A99: 94 | B99: 2010-03-23 | C99: No Coupon | D99: PayPal | E99: Bellen | F99: West | G99: 24.95 | H99: 1 | I99: 20 | J99: 24.95 | K99: 30
A100: 95 | B100: 2010-01-22 | C100: Coupon | D100: Visa | E100: Carlota | F100: West | G100: 22.95 | H100: 7 | I100: 49 | J100: 160.65 | K100: 20
A101: 96 | B101: 2010-09-26 | C101: No Coupon | D101: Mastercard | E101: Aspen | F101: South | G101: 21.95 | H101: 3 | I101: 37 | J101: 65.85 | K101: 22
A102: 97 | B102: 2010-12-27 | C102: No Coupon | D102: PayPal | E102: Carlota | F102: West | G102: 22.95 | H102: 6 | I102: 26 | J102: 137.7 | K102: 20
A103: 98 | B103: 2010-07-24 | C103: No Coupon | D103: Mastercard | E103: Delicate Arch | F103: East | G103: 29.95 | H103: 1 | I103: 62 | J103: 29.95 | K103: 45
A104: 99 | B104: 2010-04-27 | C104: No Coupon | D104: PayPal | E104: Yanaki | F104: West | G104: 19.95 | H104: 6 | I104: 38 | J104: 119.7 | K104: 25
A105: 100 | B105: 2010-05-07 | C105: No Coupon | D105: Visa | E105: Yanaki | F105: West | G105: 19.95 | H105: 1 | I105: 55 | J105: 19.95 | K105: 25
A106: 101 | B106: 2010-03-03 | C106: Coupon | D106: American Express | E106: Yanaki | F106: East | G106: 19.95 | H106: 2 | I106: 24 | J106: 39.9 | K106: 25
A107: 102 | B107: 2010-03-23 | C107: No Coupon | D107: PayPal | E107: Carlota | F107: Mid West | G107: 22.95 | H107: 5 | I107: 30 | J107: 114.75 | K107: 20
A108: 103 | B108: 2010-12-05 | C108: Coupon | D108: Visa | E108: Aspen | F108: Mid West | G108: 21.95 | H108: 1 | I108: 39 | J108: 21.95 | K108: 22
A109: 104 | B109: 2010-11-11 | C109: Coupon | D109: PayPal | E109: Delicate Arch | F109: South | G109: 29.95 | H109: 6 | I109: 59 | J109: 179.7 | K109: 45
A110: 105 | B110: 2010-04-13 | C110: No Coupon | D110: Discover | E110: Yanaki | F110: East | G110: 19.95 | H110: 2 | I110: 26 | J110: 39.9 | K110: 25
A111: 106 | B111: 2010-12-13 | C111: No Coupon | D111: Visa | E111: Sunset | F111: Mid West | G111: 24.95 | H111: 1 | I111: 33 | J111: 24.95 | K111: 35
A112: 107 | B112: 2010-10-05 | C112: No Coupon | D112: Visa | E112: Bellen | F112: West | G112: 24.95 | H112: 4 | I112: 20 | J112: 99.8 | K112: 30
A113: 108 | B113: 2010-01-02 | C113: No Coupon | D113: Visa | E113: Aspen | F113: West | G113: 21.95 | H113: 4 | I113: 18 | J113: 87.8 | K113: 22
A114: 109 | B114: 2010-11-04 | C114: Coupon | D114: PayPal | E114: Yanaki | F114: East | G114: 19.95 | H114: 2 | I114: 19 | J114: 39.9 | K114: 25
A115: 110 | B115: 2010-04-29 | C115: No Coupon | D115: PayPal | E115: Aspen | F115: West | G115: 21.95 | H115: 3 | I115: 61 | J115: 65.85 | K115: 22
A116: 111 | B116: 2010-10-02 | C116: Coupon | D116: PayPal | E116: Yanaki | F116: East | G116: 19.95 | H116: 10 | I116: 39 | J116: 199.5 | K116: 25
A117: 112 | B117: 2010-12-26 | C117: Coupon | D117: Discover | E117: Aspen | F117: West | G117: 21.95 | H117: 1 | I117: 52 | J117: 21.95 | K117: 22
A118: 113 | B118: 2010-11-05 | C118: No Coupon | D118: Visa | E118: Sunset | F118: West | G118: 24.95 | H118: 5 | I118: 20 | J118: 124.75 | K118: 35
A119: 114 | B119: 2010-11-15 | C119: No Coupon | D119: Visa | E119: Delicate Arch | F119: West | G119: 29.95 | H119: 1 | I119: 50 | J119: 29.95 | K119: 45
A120: 115 | B120: 2010-06-27 | C120: Coupon | D120: PayPal | E120: Aspen | F120: South | G120: 21.95 | H120: 1 | I120: 29 | J120: 21.95 | K120: 22
A121: 116 | B121: 2010-04-21 | C121: No Coupon | D121: Visa | E121: Delicate Arch | F121: West | G121: 29.95 | H121: 4 | I121: 55 | J121: 119.8 | K121: 45
A122: 117 | B122: 2010-09-25 | C122: No Coupon | D122: American Express | E122: Delicate Arch | F122: West | G122: 29.95 | H122: 3 | I122: 18 | J122: 89.85 | K122: 45
A123: 118 | B123: 2010-01-24 | C123: Coupon | D123: Mastercard | E123: Aspen | F123: Mid West | G123: 21.95 | H123: 3 | I123: 39 | J123: 65.85 | K123: 22
A124: 119 | B124: 2010-01-04 | C124: No Coupon | D124: Visa | E124: Carlota | F124: South | G124: 22.95 | H124: 4 | I124: 35 | J124: 91.8 | K124: 20
A125: 120 | B125: 2010-05-06 | C125: Coupon | D125: American Express | E125: Bellen | F125: South | G125: 24.95 | H125: 6 | I125: 38 | J125: 149.7 | K125: 30
A126: 121 | B126: 2010-06-22 | C126: No Coupon | D126: Visa | E126: Yanaki | F126: East | G126: 19.95 | H126: 3 | I126: 20 | J126: 59.85 | K126: 25
A127: 122 | B127: 2010-07-12 | C127: No Coupon | D127: Discover | E127: Aspen | F127: Mid West | G127: 21.95 | H127: 6 | I127: 60 | J127: 131.7 | K127: 22
A128: 123 | B128: 2010-05-03 | C128: No Coupon | D128: Visa | E128: Sunset | F128: Mid West | G128: 24.95 | H128: 2 | I128: 61 | J128: 49.9 | K128: 35
A129: 124 | B129: 2010-03-09 | C129: Coupon | D129: PayPal | E129: Aspen | F129: West | G129: 21.95 | H129: 2 | I129: 62 | J129: 43.9 | K129: 22
A130: 125 | B130: 2010-03-02 | C130: No Coupon | D130: Visa | E130: Yanaki | F130: Mid West | G130: 19.95 | H130: 1 | I130: 21 | J130: 19.95 | K130: 25
A131: 126 | B131: 2010-03-28 | C131: No Coupon | D131: Discover | E131: Aspen | F131: South | G131: 21.95 | H131: 1 | I131: 40 | J131: 21.95 | K131: 22
A132: 127 | B132: 2010-01-15 | C132: No Coupon | D132: Visa | E132: Bellen | F132: West | G132: 24.95 | H132: 1 | I132: 25 | J132: 24.95 | K132: 30
A133: 128 | B133: 2010-11-18 | C133: No Coupon | D133: Mastercard | E133: Yanaki | F133: West | G133: 19.95 | H133: 2 | I133: 50 | J133: 39.9 | K133: 25
A134: 129 | B134: 2010-03-27 | C134: No Coupon | D134: Visa | E134: Bellen | F134: West | G134: 24.95 | H134: 1 | I134: 24 | J134: 24.95 | K134: 30
A135: 130 | B135: 2010-08-11 | C135: Coupon | D135: PayPal | E135: Carlota | F135: West | G135: 22.95 | H135: 5 | I135: 28 | J135: 114.75 | K135: 20
A136: 131 | B136: 2010-12-24 | C136: No Coupon | D136: Visa | E136: Yanaki | F136: Mid West | G136: 19.95 | H136: 6 | I136: 22 | J136: 119.7 | K136: 25
A137: 132 | B137: 2010-11-27 | C137: No Coupon | D137: PayPal | E137: Aspen | F137: West | G137: 21.95 | H137: 2 | I137: 22 | J137: 43.9 | K137: 22
A138: 133 | B138: 2010-03-12 | C138: No Coupon | D138: Visa | E138: Bellen | F138: West | G138: 24.95 | H138: 1 | I138: 27 | J138: 24.95 | K138: 30
A139: 134 | B139: 2010-09-16 | C139: Coupon | D139: Visa | E139: Sunset | F139: West | G139: 24.95 | H139: 7 | I139: 54 | J139: 174.65 | K139: 35
A140: 135 | B140: 2010-02-01 | C140: No Coupon | D140: Mastercard | E140: Bellen | F140: West | G140: 24.95 | H140: 1 | I140: 25 | J140: 24.95 | K140: 30
A141: 136 | B141: 2010-07-03 | C141: No Coupon | D141: Visa | E141: Sunset | F141: Mid West | G141: 24.95 | H141: 2 | I141: 25 | J141: 49.9 | K141: 35
A142: 137 | B142: 2010-08-30 | C142: No Coupon | D142: PayPal | E142: Yanaki | F142: East | G142: 19.95 | H142: 1 | I142: 30 | J142: 19.95 | K142: 25
A143: 138 | B143: 2010-09-18 | C143: Coupon | D143: Mastercard | E143: Yanaki | F143: South | G143: 19.95 | H143: 2 | I143: 59 | J143: 39.9 | K143: 25
A144: 139 | B144: 2010-11-24 | C144: No Coupon | D144: Visa | E144: Carlota | F144: West | G144: 22.95 | H144: 2 | I144: 51 | J144: 45.9 | K144: 20
A145: 140 | B145: 2010-12-22 | C145: No Coupon | D145: Visa | E145: Delicate Arch | F145: West | G145: 29.95 | H145: 6 | I145: 38 | J145: 179.7 | K145: 45
A146: 141 | B146: 2010-04-23 | C146: No Coupon | D146: PayPal | E146: Carlota | F146: South | G146: 22.95 | H146: 7 | I146: 28 | J146: 160.65 | K146: 20
A147: 142 | B147: 2010-11-18 | C147: Coupon | D147: Discover | E147: Aspen | F147: West | G147: 21.95 | H147: 1 | I147: 30 | J147: 21.95 | K147: 22
A148: 143 | B148: 2010-10-28 | C148: No Coupon | D148: Visa | E148: Bellen | F148: South | G148: 24.95 | H148: 5 | I148: 43 | J148: 124.75 | K148: 30
A149: 144 | B149: 2010-08-14 | C149: No Coupon | D149: PayPal | E149: Delicate Arch | F149: West | G149: 29.95 | H149: 3 | I149: 42 | J149: 89.85 | K149: 45
A150: 145 | B150: 2010-05-05 | C150: No Coupon | D150: Visa | E150: Bellen | F150: Mid West | G150: 24.95 | H150: 2 | I150: 24 | J150: 49.9 | K150: 30
A151: 146 | B151: 2010-08-25 | C151: Coupon | D151: Visa | E151: Carlota | F151: Mid West | G151: 22.95 | H151: 1 | I151: 47 | J151: 22.95 | K151: 20
A152: 147 | B152: 2010-10-25 | C152: No Coupon | D152: PayPal | E152: Yanaki | F152: Mid West | G152: 19.95 | H152: 1 | I152: 23 | J152: 19.95 | K152: 25
A153: 148 | B153: 2010-07-31 | C153: No Coupon | D153: PayPal | E153: Yanaki | F153: East | G153: 19.95 | H153: 5 | I153: 59 | J153: 99.75 | K153: 25
A154: 149 | B154: 2010-07-25 | C154: Coupon | D154: Mastercard | E154: Carlota | F154: West | G154: 22.95 | H154: 4 | I154: 22 | J154: 91.8 | K154: 20
A155: 150 | B155: 2010-09-30 | C155: Coupon | D155: Visa | E155: Bellen | F155: Mid West | G155: 24.95 | H155: 2 | I155: 27 | J155: 49.9 | K155: 30
A156: 151 | B156: 2010-10-03 | C156: No Coupon | D156: Discover | E156: Aspen | F156: East | G156: 21.95 | H156: 1 | I156: 65 | J156: 21.95 | K156: 22
A157: 152 | B157: 2010-04-01 | C157: No Coupon | D157: Mastercard | E157: Carlota | F157: Mid West | G157: 22.95 | H157: 2 | I157: 27 | J157: 45.9 | K157: 20
A158: 153 | B158: 2010-12-15 | C158: No Coupon | D158: American Express | E158: Carlota | F158: East | G158: 22.95 | H158: 1 | I158: 27 | J158: 22.95 | K158: 20
A159: 154 | B159: 2010-01-07 | C159: No Coupon | D159: PayPal | E159: Carlota | F159: West | G159: 22.95 | H159: 2 | I159: 28 | J159: 45.9 | K159: 20
A160: 155 | B160: 2010-07-23 | C160: Coupon | D160: PayPal | E160: Bellen | F160: West | G160: 24.95 | H160: 1 | I160: 22 | J160: 24.95 | K160: 30
A161: 156 | B161: 2010-03-16 | C161: No Coupon | D161: PayPal | E161: Yanaki | F161: East | G161: 19.95 | H161: 2 | I161: 42 | J161: 39.9 | K161: 25
A162: 157 | B162: 2010-12-04 | C162: No Coupon | D162: American Express | E162: Delicate Arch | F162: East | G162: 29.95 | H162: 6 | I162: 25 | J162: 179.7 | K162: 45
A163: 158 | B163: 2010-01-08 | C163: Coupon | D163: Mastercard | E163: Aspen | F163: West | G163: 21.95 | H163: 1 | I163: 41 | J163: 21.95 | K163: 22
A164: 159 | B164: 2010-06-02 | C164: Coupon | D164: PayPal | E164: Bellen | F164: West | G164: 24.95 | H164: 1 | I164: 46 | J164: 24.95 | K164: 30
A165: 160 | B165: 2010-08-18 | C165: No Coupon | D165: Discover | E165: Sunset | F165: West | G165: 24.95 | H165: 3 | I165: 41 | J165: 74.85 | K165: 35
A166: 161 | B166: 2010-04-24 | C166: No Coupon | D166: Mastercard | E166: Yanaki | F166: West | G166: 19.95 | H166: 4 | I166: 29 | J166: 79.8 | K166: 25
A167: 162 | B167: 2010-12-01 | C167: No Coupon | D167: Visa | E167: Yanaki | F167: Mid West | G167: 19.95 | H167: 1 | I167: 50 | J167: 19.95 | K167: 25
A168: 163 | B168: 2010-12-31 | C168: Coupon | D168: Visa | E168: Carlota | F168: Mid West | G168: 22.95 | H168: 1 | I168: 50 | J168: 22.95 | K168: 20
A169: 164 | B169: 2010-04-30 | C169: Coupon | D169: PayPal | E169: Carlota | F169: Mid West | G169: 22.95 | H169: 2 | I169: 34 | J169: 45.9 | K169: 20
A170: 165 | B170: 2010-03-16 | C170: Coupon | D170: American Express | E170: Aspen | F170: West | G170: 21.95 | H170: 3 | I170: 24 | J170: 65.85 | K170: 22
A171: 166 | B171: 2010-01-28 | C171: No Coupon | D171: Mastercard | E171: Yanaki | F171: West | G171: 19.95 | H171: 7 | I171: 29 | J171: 139.65 | K171: 25
A172: 167 | B172: 2010-08-03 | C172: No Coupon | D172: Mastercard | E172: Carlota | F172: Mid West | G172: 22.95 | H172: 1 | I172: 35 | J172: 22.95 | K172: 20
A173: 168 | B173: 2010-11-11 | C173: No Coupon | D173: Visa | E173: Yanaki | F173: West | G173: 19.95 | H173: 2 | I173: 24 | J173: 39.9 | K173: 25
A174: 169 | B174: 2010-12-13 | C174: Coupon | D174: Visa | E174: Aspen | F174: South | G174: 21.95 | H174: 5 | I174: 23 | J174: 109.75 | K174: 22
A175: 170 | B175: 2010-03-27 | C175: No Coupon | D175: PayPal | E175: Carlota | F175: Mid West | G175: 22.95 | H175: 7 | I175: 31 | J175: 160.65 | K175: 20
A176: 171 | B176: 2010-10-08 | C176: Coupon | D176: PayPal | E176: Bellen | F176: Mid West | G176: 24.95 | H176: 2 | I176: 24 | J176: 49.9 | K176: 30
A177: 172 | B177: 2010-08-03 | C177: No Coupon | D177: Visa | E177: Carlota | F177: Mid West | G177: 22.95 | H177: 1 | I177: 30 | J177: 22.95 | K177: 20
A178: 173 | B178: 2010-03-10 | C178: Coupon | D178: Visa | E178: Carlota | F178: West | G178: 22.95 | H178: 2 | I178: 22 | J178: 45.9 | K178: 20
A179: 174 | B179: 2010-03-02 | C179: No Coupon | D179: Visa | E179: Carlota | F179: East | G179: 22.95 | H179: 3 | I179: 43 | J179: 68.85 | K179: 20
A180: 175 | B180: 2010-01-26 | C180: No Coupon | D180: Visa | E180: Carlota | F180: West | G180: 22.95 | H180: 10 | I180: 55 | J180: 229.5 | K180: 20
A181: 176 | B181: 2010-05-06 | C181: No Coupon | D181: American Express | E181: Delicate Arch | F181: West | G181: 29.95 | H181: 1 | I181: 38 | J181: 29.95 | K181: 45
A182: 177 | B182: 2010-03-10 | C182: Coupon | D182: Visa | E182: Yanaki | F182: West | G182: 19.95 | H182: 2 | I182: 28 | J182: 39.9 | K182: 25
A183: 178 | B183: 2010-11-18 | C183: Coupon | D183: PayPal | E183: Aspen | F183: Mid West | G183: 21.95 | H183: 2 | I183: 30 | J183: 43.9 | K183: 22
A184: 179 | B184: 2010-01-30 | C184: Coupon | D184: Discover | E184: Yanaki | F184: West | G184: 19.95 | H184: 1 | I184: 35 | J184: 19.95 | K184: 25
A185: 180 | B185: 2010-07-02 | C185: No Coupon | D185: Visa | E185: Delicate Arch | F185: West | G185: 29.95 | H185: 2 | I185: 41 | J185: 59.9 | K185: 45
A186: 181 | B186: 2010-10-13 | C186: Coupon | D186: Discover | E186: Yanaki | F186: East | G186: 19.95 | H186: 5 | I186: 28 | J186: 99.75 | K186: 25
A187: 182 | B187: 2010-02-07 | C187: No Coupon | D187: Discover | E187: Bellen | F187: Mid West | G187: 24.95 | H187: 7 | I187: 65 | J187: 174.65 | K187: 30
A188: 183 | B188: 2010-06-05 | C188: No Coupon | D188: Mastercard | E188: Aspen | F188: West | G188: 21.95 | H188: 3 | I188: 20 | J188: 65.85 | K188: 22
A189: 184 | B189: 2010-11-02 | C189: No Coupon | D189: Visa | E189: Sunset | F189: Mid West | G189: 24.95 | H189: 5 | I189: 39 | J189: 124.75 | K189: 35
A190: 185 | B190: 2010-12-13 | C190: No Coupon | D190: Visa | E190: Aspen | F190: East | G190: 21.95 | H190: 4 | I190: 19 | J190: 87.8 | K190: 22
A191: 186 | B191: 2010-10-23 | C191: No Coupon | D191: Visa | E191: Carlota | F191: West | G191: 22.95 | H191: 10 | I191: 64 | J191: 229.5 | K191: 20
A192: 187 | B192: 2010-12-22 | C192: Coupon | D192: PayPal | E192: Yanaki | F192: South | G192: 19.95 | H192: 5 | I192: 42 | J192: 99.75 | K192: 25
A193: 188 | B193: 2010-08-21 | C193: Coupon | D193: PayPal | E193: Yanaki | F193: Mid West | G193: 19.95 | H193: 1 | I193: 24 | J193: 19.95 | K193: 25
A194: 189 | B194: 2010-08-28 | C194: Coupon | D194: PayPal | E194: Yanaki | F194: Mid West | G194: 19.95 | H194: 1 | I194: 24 | J194: 19.95 | K194: 25
A195: 190 | B195: 2010-06-20 | C195: No Coupon | D195: American Express | E195: Bellen | F195: Mid West | G195: 24.95 | H195: 4 | I195: 18 | J195: 99.8 | K195: 30
A196: 191 | B196: 2010-04-30 | C196: Coupon | D196: Mastercard | E196: Bellen | F196: East | G196: 24.95 | H196: 1 | I196: 36 | J196: 24.95 | K196: 30
A197: 192 | B197: 2010-10-14 | C197: No Coupon | D197: Mastercard | E197: Carlota | F197: Mid West | G197: 22.95 | H197: 5 | I197: 61 | J197: 114.75 | K197: 20
A198: 193 | B198: 2010-08-04 | C198: No Coupon | D198: Visa | E198: Yanaki | F198: West | G198: 19.95 | H198: 3 | I198: 22 | J198: 59.85 | K198: 25
A199: 194 | B199: 2010-10-28 | C199: Coupon | D199: PayPal | E199: Aspen | F199: West | G199: 21.95 | H199: 2 | I199: 55 | J199: 43.9 | K199: 22
A200: 195 | B200: 2010-11-04 | C200: No Coupon | D200: American Express | E200: Sunset | F200: West | G200: 24.95 | H200: 3 | I200: 27 | J200: 74.85 | K200: 35
A201: 196 | B201: 2010-01-05 | C201: No Coupon | D201: PayPal | E201: Yanaki | F201: Mid West | G201: 19.95 | H201: 1 | I201: 49 | J201: 19.95 | K201: 25
... 4 more rows

Sheet Simpson
A1: Simpson's Paradox
A2: Conclusions based on aggregate data can be reversed if we aggregate the data because of a hidden variable.
A4: Judge | B4: Verdict | C4: Court | E4: Frequency | F4: Judge | J4: Frequency | K4: Judge
A5: Lucket | B5: Upheld | C5: Municipal Court | E5: Verdict | F5: Kendall | G5: Lucket | H5: Grand Total | J5: Verdict | K5: Kendall | L5: Lucket | M5: Grand Total
A6: Lucket | B6: Upheld | C6: Municipal Court | E6: Reversed | F6: 0.12 | G6: 0.14 | H6: 0.1309090909 | J6: Reversed | K6: 15 | L6: 21 | M6: 36
A7: Lucket | B7: Upheld | C7: Municipal Court | E7: Upheld | F7: 0.88 | G7: 0.86 | H7: 0.8690909091 | J7: Upheld | K7: 110 | L7: 129 | M7: 239
A8: Lucket | B8: Upheld | C8: Municipal Court | E8: Grand Total | F8: 1 | G8: 1 | H8: 1 | J8: Grand Total | K8: 125 | L8: 150 | M8: 275
A9: Lucket | B9: Upheld | C9: Municipal Court
A10: Lucket | B10: Upheld | C10: Municipal Court | E10: Judge | F10: Kendall | J10: Judge | K10: Kendall
A11: Lucket | B11: Upheld | C11: Municipal Court
A12: Lucket | B12: Upheld | C12: Municipal Court | E12: Frequency | F12: Court | J12: Frequency | K12: Court
A13: Lucket | B13: Upheld | C13: Municipal Court | E13: Verdict | F13: Common Pleas | G13: Municipal Court | H13: Grand Total | J13: Verdict | K13: Common Pleas | L13: Municipal Court | M13: Grand Total
A14: Lucket | B14: Upheld | C14: Municipal Court | E14: Reversed | F14: 0.1 | G14: 0.2 | H14: 0.12 | J14: Reversed | K14: 10 | L14: 5 | M14: 15
A15: Lucket | B15: Upheld | C15: Municipal Court | E15: Upheld | F15: 0.9 | G15: 0.8 | H15: 0.88 | J15: Upheld | K15: 90 | L15: 20 | M15: 110
A16: Lucket | B16: Upheld | C16: Municipal Court | E16: Grand Total | F16: 1 | G16: 1 | H16: 1 | J16: Grand Total | K16: 100 | L16: 25 | M16: 125
A17: Lucket | B17: Upheld | C17: Municipal Court
A18: Lucket | B18: Upheld | C18: Municipal Court | E18: Judge | F18: Lucket | J18: Judge | K18: Lucket
A19: Lucket | B19: Upheld | C19: Municipal Court
A20: Lucket | B20: Upheld | C20: Municipal Court | E20: Frequency | F20: Court | J20: Frequency | K20: Court
A21: Lucket | B21: Upheld | C21: Municipal Court | E21: Verdict | F21: Common Pleas | G21: Municipal Court | H21: Grand Total | J21: Verdict | K21: Common Pleas | L21: Municipal Court | M21: Grand Total
A22: Lucket | B22: Upheld | C22: Municipal Court | E22: Reversed | F22: 0.09375 | G22: 0.1525423729 | H22: 0.14 | J22: Reversed | K22: 3 | L22: 18 | M22: 21
A23: Lucket | B23: Upheld | C23: Municipal Court | E23: Upheld | F23: 0.90625 | G23: 0.8474576271 | H23: 0.86 | J23: Upheld | K23: 29 | L23: 100 | M23: 129
A24: Lucket | B24: Upheld | C24: Municipal Court | E24: Grand Total | F24: 1 | G24: 1 | H24: 1 | J24: Grand Total | K24: 32 | L24: 118 | M24: 150
A25: Lucket | B25: Upheld | C25: Municipal Court
A26: Lucket | B26: Upheld | C26: Municipal Court | E26: *Lucket looks like he had more reversals in aggregated data (Kendall looks like he did better)
A27: Lucket | B27: Upheld | C27: Municipal Court | E27: *Lucket had fewer reversals in aggregated data (Kendall looks like he did worse)
A28: Lucket | B28: Upheld | C28: Municipal Court | E28: *More Reversals in Municipal Courts
A29: Lucket | B29: Upheld | C29: Municipal Court | E29: *Lucket tried more cases in Municipal Courts, which made the aggregated data look like Lucket did worse
A30: Lucket | B30: Upheld | C30: Municipal Court | E30: *Hidden variable "Court" caused this problem
A31: Lucket | B31: Upheld | C31: Municipal Court
A32: Lucket | B32: Upheld | C32: Municipal Court
A33: Lucket | B33: Upheld | C33: Municipal Court
A34: Lucket | B34: Upheld | C34: Municipal Court
A35: Lucket | B35: Upheld | C35: Municipal Court
A36: Lucket | B36: Upheld | C36: Municipal Court
A37: Lucket | B37: Upheld | C37: Municipal Court
A38: Lucket | B38: Upheld | C38: Municipal Court
A39: Lucket | B39: Upheld | C39: Municipal Court
A40: Lucket | B40: Upheld | C40: Municipal Court
A41: Lucket | B41: Upheld | C41: Municipal Court
A42: Lucket | B42: Upheld | C42: Municipal Court
A43: Lucket | B43: Upheld | C43: Municipal Court
A44: Lucket | B44: Upheld | C44: Municipal Court
A45: Lucket | B45: Upheld | C45: Municipal Court
A46: Lucket | B46: Upheld | C46: Municipal Court
A47: Lucket | B47: Upheld | C47: Municipal Court
A48: Lucket | B48: Upheld | C48: Municipal Court
A49: Lucket | B49: Upheld | C49: Municipal Court
A50: Lucket | B50: Upheld | C50: Municipal Court
A51: Lucket | B51: Upheld | C51: Municipal Court
A52: Lucket | B52: Upheld | C52: Municipal Court
A53: Lucket | B53: Upheld | C53: Municipal Court
A54: Lucket | B54: Upheld | C54: Municipal Court
A55: Lucket | B55: Upheld | C55: Municipal Court
A56: Lucket | B56: Upheld | C56: Municipal Court
A57: Lucket | B57: Upheld | C57: Municipal Court
A58: Lucket | B58: Upheld | C58: Municipal Court
A59: Lucket | B59: Upheld | C59: Municipal Court
A60: Lucket | B60: Upheld | C60: Municipal Court
A61: Lucket | B61: Upheld | C61: Municipal Court
A62: Lucket | B62: Upheld | C62: Municipal Court
A63: Lucket | B63: Upheld | C63: Municipal Court
A64: Lucket | B64: Upheld | C64: Municipal Court
A65: Lucket | B65: Upheld | C65: Municipal Court
A66: Lucket | B66: Upheld | C66: Municipal Court
A67: Lucket | B67: Upheld | C67: Municipal Court
A68: Lucket | B68: Upheld | C68: Municipal Court
A69: Lucket | B69: Upheld | C69: Municipal Court
A70: Lucket | B70: Upheld | C70: Municipal Court
A71: Lucket | B71: Upheld | C71: Municipal Court
A72: Lucket | B72: Upheld | C72: Municipal Court
A73: Lucket | B73: Upheld | C73: Municipal Court
A74: Lucket | B74: Upheld | C74: Municipal Court
A75: Lucket | B75: Upheld | C75: Municipal Court
A76: Lucket | B76: Upheld | C76: Municipal Court
A77: Lucket | B77: Upheld | C77: Municipal Court
A78: Lucket | B78: Upheld | C78: Municipal Court
A79: Lucket | B79: Upheld | C79: Municipal Court
A80: Lucket | B80: Upheld | C80: Municipal Court
A81: Lucket | B81: Upheld | C81: Municipal Court
A82: Lucket | B82: Upheld | C82: Municipal Court
A83: Lucket | B83: Upheld | C83: Municipal Court
A84: Lucket | B84: Upheld | C84: Municipal Court
A85: Lucket | B85: Upheld | C85: Municipal Court
A86: Lucket | B86: Upheld | C86: Municipal Court
A87: Lucket | B87: Upheld | C87: Municipal Court
A88: Lucket | B88: Upheld | C88: Municipal Court
A89: Lucket | B89: Upheld | C89: Municipal Court
A90: Lucket | B90: Upheld | C90: Municipal Court
A91: Lucket | B91: Upheld | C91: Municipal Court
A92: Lucket | B92: Upheld | C92: Municipal Court
A93: Lucket | B93: Upheld | C93: Municipal Court
A94: Lucket | B94: Upheld | C94: Municipal Court
A95: Lucket | B95: Upheld | C95: Municipal Court
A96: Lucket | B96: Upheld | C96: Municipal Court
A97: Lucket | B97: Upheld | C97: Municipal Court
A98: Lucket | B98: Upheld | C98: Municipal Court
A99: Lucket | B99: Upheld | C99: Municipal Court
A100: Lucket | B100: Upheld | C100: Municipal Court
A101: Lucket | B101: Upheld | C101: Municipal Court
A102: Lucket | B102: Upheld | C102: Municipal Court
A103: Lucket | B103: Upheld | C103: Municipal Court
A104: Lucket | B104: Upheld | C104: Municipal Court
A105: Lucket | B105: Upheld | C105: Common Pleas
A106: Lucket | B106: Upheld | C106: Common Pleas
A107: Lucket | B107: Upheld | C107: Common Pleas
A108: Lucket | B108: Upheld | C108: Common Pleas
A109: Lucket | B109: Upheld | C109: Common Pleas
A110: Lucket | B110: Upheld | C110: Common Pleas
A111: Lucket | B111: Upheld | C111: Common Pleas
A112: Lucket | B112: Upheld | C112: Common Pleas
A113: Lucket | B113: Upheld | C113: Common Pleas
A114: Lucket | B114: Upheld | C114: Common Pleas
A115: Lucket | B115: Upheld | C115: Common Pleas
A116: Lucket | B116: Upheld | C116: Common Pleas
A117: Lucket | B117: Upheld | C117: Common Pleas
A118: Lucket | B118: Upheld | C118: Common Pleas
A119: Lucket | B119: Upheld | C119: Common Pleas
A120: Lucket | B120: Upheld | C120: Common Pleas
A121: Lucket | B121: Upheld | C121: Common Pleas
A122: Lucket | B122: Upheld | C122: Common Pleas
A123: Lucket | B123: Upheld | C123: Common Pleas
A124: Lucket | B124: Upheld | C124: Common Pleas
A125: Lucket | B125: Upheld | C125: Common Pleas
A126: Lucket | B126: Upheld | C126: Common Pleas
A127: Lucket | B127: Upheld | C127: Common Pleas
A128: Lucket | B128: Upheld | C128: Common Pleas
A129: Lucket | B129: Upheld | C129: Common Pleas
A130: Lucket | B130: Upheld | C130: Common Pleas
A131: Lucket | B131: Upheld | C131: Common Pleas
A132: Lucket | B132: Upheld | C132: Common Pleas
A133: Lucket | B133: Upheld | C133: Common Pleas
A134: Lucket | B134: Reversed | C134: Common Pleas
A135: Lucket | B135: Reversed | C135: Common Pleas
A136: Lucket | B136: Reversed | C136: Common Pleas
A137: Lucket | B137: Reversed | C137: Municipal Court
A138: Lucket | B138: Reversed | C138: Municipal Court
A139: Lucket | B139: Reversed | C139: Municipal Court
A140: Lucket | B140: Reversed | C140: Municipal Court
A141: Lucket | B141: Reversed | C141: Municipal Court
A142: Lucket | B142: Reversed | C142: Municipal Court
A143: Lucket | B143: Reversed | C143: Municipal Court
A144: Lucket | B144: Reversed | C144: Municipal Court
A145: Lucket | B145: Reversed | C145: Municipal Court
A146: Lucket | B146: Reversed | C146: Municipal Court
A147: Lucket | B147: Reversed | C147: Municipal Court
A148: Lucket | B148: Reversed | C148: Municipal Court
A149: Lucket | B149: Reversed | C149: Municipal Court
A150: Lucket | B150: Reversed | C150: Municipal Court
A151: Lucket | B151: Reversed | C151: Municipal Court
A152: Lucket | B152: Reversed | C152: Municipal Court
A153: Lucket | B153: Reversed | C153: Municipal Court
A154: Lucket | B154: Reversed | C154: Municipal Court
A155: Kendall | B155: Upheld | C155: Municipal Court
A156: Kendall | B156: Upheld | C156: Municipal Court
A157: Kendall | B157: Upheld | C157: Municipal Court
A158: Kendall | B158: Upheld | C158: Municipal Court
A159: Kendall | B159: Upheld | C159: Municipal Court
A160: Kendall | B160: Upheld | C160: Municipal Court
A161: Kendall | B161: Upheld | C161: Municipal Court
A162: Kendall | B162: Upheld | C162: Municipal Court
A163: Kendall | B163: Upheld | C163: Municipal Court
A164: Kendall | B164: Upheld | C164: Municipal Court
A165: Kendall | B165: Upheld | C165: Municipal Court
A166: Kendall | B166: Upheld | C166: Municipal Court
A167: Kendall | B167: Upheld | C167: Municipal Court
A168: Kendall | B168: Upheld | C168: Municipal Court
A169: Kendall | B169: Upheld | C169: Municipal Court
A170: Kendall | B170: Upheld | C170: Municipal Court
A171: Kendall | B171: Upheld | C171: Municipal Court
A172: Kendall | B172: Upheld | C172: Municipal Court
A173: Kendall | B173: Upheld | C173: Municipal Court
A174: Kendall | B174: Upheld | C174: Municipal Court
A175: Kendall | B175: Upheld | C175: Common Pleas
A176: Kendall | B176: Upheld | C176: Common Pleas
A177: Kendall | B177: Upheld | C177: Common Pleas
A178: Kendall | B178: Upheld | C178: Common Pleas
A179: Kendall | B179: Upheld | C179: Common Pleas
A180: Kendall | B180: Upheld | C180: Common Pleas
A181: Kendall | B181: Upheld | C181: Common Pleas
A182: Kendall | B182: Upheld | C182: Common Pleas
A183: Kendall | B183: Upheld | C183: Common Pleas
A184: Kendall | B184: Upheld | C184: Common Pleas
A185: Kendall | B185: Upheld | C185: Common Pleas
A186: Kendall | B186: Upheld | C186: Common Pleas
A187: Kendall | B187: Upheld | C187: Common Pleas
A188: Kendall | B188: Upheld | C188: Common Pleas
A189: Kendall | B189: Upheld | C189: Common Pleas
A190: Kendall | B190: Upheld | C190: Common Pleas
A191: Kendall | B191: Upheld | C191: Common Pleas
A192: Kendall | B192: Upheld | C192: Common Pleas
A193: Kendall | B193: Upheld | C193: Common Pleas
A194: Kendall | B194: Upheld | C194: Common Pleas
A195: Kendall | B195: Upheld | C195: Common Pleas
A196: Kendall | B196: Upheld | C196: Common Pleas
A197: Kendall | B197: Upheld | C197: Common Pleas
A198: Kendall | B198: Upheld | C198: Common Pleas
A199: Kendall | B199: Upheld | C199: Common Pleas
A200: Kendall | B200: Upheld | C200: Common Pleas
A201: Kendall | B201: Upheld | C201: Common Pleas
... 78 more rows

Sheet SC(1)
A1: Comparing two quantitative variables to see if there is a relationship: Scatter Diagram
A2: Two Numbers plotted, one on each axis
A3: Horizontal Axis = Independent Variable = x
A4: Vertical Axis = Dependent Variable = f(x) = y
A5: 1) Move along x axis, then 2) move along y axis, record point
A6: X values should be to left of y values, and field (variable names at top of each column).
A10: Direct / Positive Relationship: as x increases, y increases
A12: Hours Studied | B12: Test Scores
A13: 8 | B13: 85
A14: 24 | B14: 99
A15: 4 | B15: 62
A16: 21 | B16: 92
A17: 9 | B17: 100
A18: 16 | B18: 88
A19: 9 | B19: 75
A20: 16 | B20: 88
A21: 1 | B21: 25
A22: 8 | B22: 78
A23: 10 | B23: 82
A24: 15 | B24: 92
A25: 8 | B25: 55
A26: 10 | B26: 84
A27: 9 | B27: 91

Sheet SC(1an)
A1: Comparing two quantitative variables to see if there is a relationship: Scatter Diagram
A2: Two Numbers plotted, one on each axis
A3: Horizontal Axis = Independent Variable = x
A4: Vertical Axis = Dependent Variable = f(x) = y
A5: 1) Move along x axis, then 2) move along y axis, record point
A6: X values should be to left of y values, and field (variable names at top of each column).
A10: Direct / Positive Relationship: as x increases, y increases
A12: Hours Studied | B12: Test Scores
A13: 8 | B13: 85
A14: 24 | B14: 99
A15: 4 | B15: 62
A16: 21 | B16: 92
A17: 9 | B17: 100
A18: 16 | B18: 88
A19: 9 | B19: 75
A20: 16 | B20: 88
A21: 1 | B21: 25
A22: 8 | B22: 78
A23: 10 | B23: 82
A24: 15 | B24: 92
A25: 8 | B25: 55
A26: 10 | B26: 84
A27: 9 | B27: 91

Sheet SC(2)
A1: Comparing two quantitative variables to see if there is a relationship: Scatter Diagram
A2: Two Numbers plotted, one on each axis
A3: Horizontal Axis = Independent Variable = x
A4: Vertical Axis = Dependent Variable = f(x) = y
A5: 1) Move along x axis, then 2) move along y axis, record point
A6: X values should be to left of y values, and field (variable names at top of each column).
A10: Indirect (inverse) / Negative Relationship: as x increases, y decreases
A12: Absences In Class | B12: Grade
A13: 2 | B13: 2.9
A14: 3 | B14: 4
A15: 8 | B15: 2
A16: 2 | B16: 2.5
A17: 0 | B17: 3.8
A18: 1 | B18: 3.3
A19: 3 | B19: 1.8
A20: 3 | B20: 1.2
A21: 2 | B21: 2.4
A22: 1 | B22: 2.8
A23: 10 | B23: 0
A24: 0 | B24: 3.4
A25: 2 | B25: 4
A26: 0 | B26: 3.6
A27: 2 | B27: 3.8

Sheet SC(2an)
A1: Comparing two quantitative variables to see if there is a relationship: Scatter Diagram
A2: Two Numbers plotted, one on each axis
A3: Horizontal Axis = Independent Variable = x
A4: Vertical Axis = Dependent Variable = f(x) = y
A5: 1) Move along x axis, then 2) move along y axis, record point
A6: X values should be to left of y values, and field (variable names at top of each column).
A10: Indirect (inverse) / Negative Relationship: as x increases, y decreases
A12: Absences In Class | B12: Grade
A13: 2 | B13: 2.9
A14: 3 | B14: 4
A15: 8 | B15: 2
A16: 2 | B16: 2.5
A17: 0 | B17: 3.8
A18: 1 | B18: 3.3
A19: 3 | B19: 1.8
A20: 3 | B20: 1.2
A21: 2 | B21: 2.4
A22: 1 | B22: 2.8
A23: 10 | B23: 0
A24: 0 | B24: 3.4
A25: 2 | B25: 4
A26: 0 | B26: 3.6
A27: 2 | B27: 3.8

Sheet SC(3)
A1: Comparing two quantitative variables to see if there is a relationship: Scatter Diagram
A2: Two Numbers plotted, one on each axis
A3: Horizontal Axis = Independent Variable = x
A4: Vertical Axis = Dependent Variable = f(x) = y
A5: 1) Move along x axis, then 2) move along y axis, record point
A6: X values should be to left of y values, and field (variable names at top of each column).
A10: Direct / Positive Relationship: as x increases, y increases
A12: # Ads on Radio During Week | B12: Car Sales
A13: 12 | B13: 1560000
A14: 1 | B14: 60000
A15: 15 | B15: 1950000
A16: 18 | B16: 900000
A17: 16 | B17: 1760000
A18: 1 | B18: 50000
A19: 13 | B19: 1950000
A20: 22 | B20: 2860000
A21: 20 | B21: 1600000
A22: 1 | B22: 120000
A23: 4 | B23: 480000
A24: 11 | B24: 880000
A25: 24 | B25: 3600000
A26: 8 | B26: 1040000
A27: 23 | B27: 2530000

Sheet SC(3an)
A1: Comparing two quantitative variables to see if there is a relationship: Scatter Diagram
A2: Two Numbers plotted, one on each axis
A3: Horizontal Axis = Independent Variable = x
A4: Vertical Axis = Dependent Variable = f(x) = y
A5: 1) Move along x axis, then 2) move along y axis, record point
A6: X values should be to left of y values, and field (variable names at top of each column).
A10: Direct / Positive Relationship: as x increases, y increases
A12: # Ads on Radio During Week | B12: Car Sales
A13: 12 | B13: 1560000
A14: 1 | B14: 60000
A15: 15 | B15: 1950000
A16: 18 | B16: 900000
A17: 16 | B17: 1760000
A18: 1 | B18: 50000
A19: 13 | B19: 1950000
A20: 22 | B20: 2860000
A21: 20 | B21: 1600000
A22: 1 | B22: 120000
A23: 4 | B23: 480000
A24: 11 | B24: 880000
A25: 24 | B25: 3600000
A26: 8 | B26: 1040000
A27: 23 | B27: 2530000

Sheet SC(4)
A1: Customer Age | B1: Amount Spent
A2: 21 | B2: 45.9
A3: 57 | B3: 19.95
A4: 25 | B4: 21.95
A5: 38 | B5: 19.95
A6: 22 | B6: 79.8
A7: 29 | B7: 79.8
A8: 18 | B8: 59.85
A9: 64 | B9: 139.65
A10: 27 | B10: 119.7
A11: 22 | B11: 43.9
A12: 39 | B12: 43.9
A13: 61 | B13: 99.75
A14: 18 | B14: 114.75
A15: 22 | B15: 91.8
A16: 52 | B16: 114.75
A17: 22 | B17: 22.95
A18: 18 | B18: 124.75
A19: 55 | B19: 19.95
A20: 20 | B20: 87.8
A21: 42 | B21: 22.95
A22: 30 | B22: 299.5
A23: 64 | B23: 19.95
A24: 63 | B24: 99.75
A25: 41 | B25: 39.9
A26: 21 | B26: 65.85
A27: 63 | B27: 24.95
A28: 54 | B28: 21.95
A29: 18 | B29: 19.95
A30: 26 | B30: 91.8
A31: 59 | B31: 65.85
A32: 30 | B32: 39.9
A33: 64 | B33: 43.9
A34: 30 | B34: 65.85
A35: 41 | B35: 43.9
A36: 23 | B36: 99.75
A37: 52 | B37: 29.95
A38: 18 | B38: 65.85
A39: 32 | B39: 22.95
A40: 22 | B40: 19.95
A41: 29 | B41: 99.75
A42: 25 | B42: 124.75
A43: 63 | B43: 21.95
A44: 26 | B44: 174.65
A45: 31 | B45: 29.95
A46: 23 | B46: 149.75
A47: 42 | B47: 29.95
A48: 28 | B48: 45.9
A49: 23 | B49: 160.65
A50: 19 | B50: 160.65
A51: 37 | B51: 119.7
A52: 38 | B52: 43.9
A53: 50 | B53: 119.7
A54: 26 | B54: 65.85
A55: 33 | B55: 22.95
A56: 59 | B56: 65.85
A57: 32 | B57: 109.75
A58: 27 | B58: 114.75
A59: 54 | B59: 249.5
A60: 63 | B60: 109.75
A61: 48 | B61: 114.75
A62: 29 | B62: 114.75
A63: 38 | B63: 119.8
A64: 24 | B64: 29.95
A65: 51 | B65: 114.75
A66: 25 | B66: 209.65
A67: 65 | B67: 114.75
A68: 35 | B68: 59.85
A69: 35 | B69: 124.75
A70: 21 | B70: 39.9
A71: 47 | B71: 124.75
A72: 62 | B72: 24.95
A73: 63 | B73: 22.95
A74: 23 | B74: 249.5
A75: 59 | B75: 59.85
A76: 48 | B76: 43.9
A77: 57 | B77: 19.95
A78: 19 | B78: 29.95
A79: 48 | B79: 19.95
A80: 21 | B80: 65.85
A81: 40 | B81: 22.95
A82: 25 | B82: 79.8
A83: 59 | B83: 79.8
A84: 57 | B84: 114.75
A85: 56 | B85: 22.95
A86: 19 | B86: 19.95
A87: 54 | B87: 109.75
A88: 65 | B88: 59.9
A89: 25 | B89: 43.9
A90: 30 | B90: 39.9
A91: 57 | B91: 209.65
A92: 43 | B92: 19.95
A93: 44 | B93: 79.8
A94: 21 | B94: 124.75
A95: 20 | B95: 24.95
A96: 49 | B96: 160.65
A97: 37 | B97: 65.85
A98: 26 | B98: 137.7
A99: 62 | B99: 29.95
A100: 38 | B100: 119.7
A101: 55 | B101: 19.95
A102: 24 | B102: 39.9
A103: 30 | B103: 114.75
A104: 39 | B104: 21.95
A105: 59 | B105: 179.7
A106: 26 | B106: 39.9
A107: 33 | B107: 24.95
A108: 20 | B108: 99.8
A109: 18 | B109: 87.8
A110: 19 | B110: 39.9
A111: 61 | B111: 65.85
A112: 39 | B112: 199.5
A113: 52 | B113: 21.95
A114: 20 | B114: 124.75
A115: 50 | B115: 29.95
A116: 29 | B116: 21.95
A117: 55 | B117: 119.8
A118: 18 | B118: 89.85
A119: 39 | B119: 65.85
A120: 35 | B120: 91.8
A121: 38 | B121: 149.7
A122: 20 | B122: 59.85
A123: 60 | B123: 131.7
A124: 61 | B124: 49.9
A125: 62 | B125: 43.9
A126: 21 | B126: 19.95
A127: 40 | B127: 21.95
A128: 25 | B128: 24.95
A129: 50 | B129: 39.9
A130: 24 | B130: 24.95
A131: 28 | B131: 114.75
A132: 22 | B132: 119.7
A133: 22 | B133: 43.9
A134: 27 | B134: 24.95
A135: 54 | B135: 174.65
A136: 25 | B136: 24.95
A137: 25 | B137: 49.9
A138: 30 | B138: 19.95
A139: 59 | B139: 39.9
A140: 51 | B140: 45.9
A141: 38 | B141: 179.7
A142: 28 | B142: 160.65
A143: 30 | B143: 21.95
A144: 43 | B144: 124.75
A145: 42 | B145: 89.85
A146: 24 | B146: 49.9
A147: 47 | B147: 22.95
A148: 23 | B148: 19.95
A149: 59 | B149: 99.75
A150: 22 | B150: 91.8
A151: 27 | B151: 49.9
A152: 65 | B152: 21.95
A153: 27 | B153: 45.9
A154: 27 | B154: 22.95
A155: 28 | B155: 45.9
A156: 22 | B156: 24.95
A157: 42 | B157: 39.9
A158: 25 | B158: 179.7
A159: 41 | B159: 21.95
A160: 46 | B160: 24.95
A161: 41 | B161: 74.85
A162: 29 | B162: 79.8
A163: 50 | B163: 19.95
A164: 50 | B164: 22.95
A165: 34 | B165: 45.9
A166: 24 | B166: 65.85
A167: 29 | B167: 139.65
A168: 35 | B168: 22.95
A169: 24 | B169: 39.9
A170: 23 | B170: 109.75
A171: 31 | B171: 160.65
A172: 24 | B172: 49.9
A173: 30 | B173: 22.95
A174: 22 | B174: 45.9
A175: 43 | B175: 68.85
A176: 55 | B176: 229.5
A177: 38 | B177: 29.95
A178: 28 | B178: 39.9
A179: 30 | B179: 43.9
A180: 35 | B180: 19.95
A181: 41 | B181: 59.9
A182: 28 | B182: 99.75
A183: 65 | B183: 174.65
A184: 20 | B184: 65.85
A185: 39 | B185: 124.75
A186: 19 | B186: 87.8
A187: 64 | B187: 229.5
A188: 42 | B188: 99.75
A189: 24 | B189: 19.95
A190: 24 | B190: 19.95
A191: 18 | B191: 99.8
A192: 36 | B192: 24.95
A193: 61 | B193: 114.75
A194: 22 | B194: 59.85
A195: 55 | B195: 43.9
A196: 27 | B196: 74.85
A197: 49 | B197: 19.95
A198: 29 | B198: 22.95
A199: 33 | B199: 153.65
A200: 52 | B200: 39.9
... 1 more rows

Sheet SC(4an)
A1: Comparing two quantitative variables to see if there is a relationship: Scatter Diagram | B1: Date (2010) | C1: Coupon | D1: Payment Method | E1: Boom | F1: Region | G1: Price | H1: Units | I1: Customer Age | J1: Amount Spent | K1: Range (Flight out meters)
A2: 1 | B2: 2010-05-22 | C2: Coupon | D2: Mastercard | E2: Carlota | F2: West | G2: 22.95 | H2: 2 | I2: 21 | J2: 45.9 | K2: 20
A3: 2 | B3: 2010-06-29 | C3: Coupon | D3: Mastercard | E3: Yanaki | F3: West | G3: 19.95 | H3: 1 | I3: 57 | J3: 19.95 | K3: 25
A4: 3 | B4: 2010-11-05 | C4: No Coupon | D4: Mastercard | E4: Aspen | F4: East | G4: 21.95 | H4: 1 | I4: 25 | J4: 21.95 | K4: 22
A5: 4 | B5: 2010-08-31 | C5: No Coupon | D5: American Express | E5: Yanaki | F5: West | G5: 19.95 | H5: 1 | I5: 38 | J5: 19.95 | K5: 25
A6: 5 | B6: 2010-05-30 | C6: Coupon | D6: Visa | E6: Yanaki | F6: West | G6: 19.95 | H6: 4 | I6: 22 | J6: 79.8 | K6: 25
A7: 6 | B7: 2010-10-05 | C7: Coupon | D7: PayPal | E7: Yanaki | F7: South | G7: 19.95 | H7: 4 | I7: 29 | J7: 79.8 | K7: 25
A8: 7 | B8: 2010-03-22 | C8: Coupon | D8: Visa | E8: Yanaki | F8: West | G8: 19.95 | H8: 3 | I8: 18 | J8: 59.85 | K8: 25
A9: 8 | B9: 2010-06-14 | C9: No Coupon | D9: Discover | E9: Yanaki | F9: West | G9: 19.95 | H9: 7 | I9: 64 | J9: 139.65 | K9: 25
A10: 9 | B10: 2010-05-09 | C10: No Coupon | D10: American Express | E10: Yanaki | F10: West | G10: 19.95 | H10: 6 | I10: 27 | J10: 119.7 | K10: 25
A11: 10 | B11: 2010-08-28 | C11: No Coupon | D11: Visa | E11: Aspen | F11: West | G11: 21.95 | H11: 2 | I11: 22 | J11: 43.9 | K11: 22
A12: 11 | B12: 2010-11-30 | C12: Coupon | D12: PayPal | E12: Aspen | F12: Mid West | G12: 21.95 | H12: 2 | I12: 39 | J12: 43.9 | K12: 22
A13: 12 | B13: 2010-09-13 | C13: No Coupon | D13: Mastercard | E13: Yanaki | F13: Mid West | G13: 19.95 | H13: 5 | I13: 61 | J13: 99.75 | K13: 25
A14: 13 | B14: 2010-10-23 | C14: No Coupon | D14: Visa | E14: Carlota | F14: Mid West | G14: 22.95 | H14: 5 | I14: 18 | J14: 114.75 | K14: 20
A15: 14 | B15: 2010-09-19 | C15: No Coupon | D15: PayPal | E15: Carlota | F15: West | G15: 22.95 | H15: 4 | I15: 22 | J15: 91.8 | K15: 20
A16: 15 | B16: 2010-09-20 | C16: No Coupon | D16: American Express | E16: Carlota | F16: Mid West | G16: 22.95 | H16: 5 | I16: 52 | J16: 114.75 | K16: 20
A17: 16 | B17: 2010-01-18 | C17: Coupon | D17: Visa | E17: Carlota | F17: West | G17: 22.95 | H17: 1 | I17: 22 | J17: 22.95 | K17: 20
A18: 17 | B18: 2010-07-28 | C18: No Coupon | D18: Discover | E18: Sunset | F18: West | G18: 24.95 | H18: 5 | I18: 18 | J18: 124.75 | K18: 35
A19: 18 | B19: 2010-06-06 | C19: No Coupon | D19: PayPal | E19: Yanaki | F19: South | G19: 19.95 | H19: 1 | I19: 55 | J19: 19.95 | K19: 25
A20: 19 | B20: 2010-01-30 | C20: No Coupon | D20: PayPal | E20: Aspen | F20: East | G20: 21.95 | H20: 4 | I20: 20 | J20: 87.8 | K20: 22
A21: 20 | B21: 2010-10-09 | C21: Coupon | D21: PayPal | E21: Carlota | F21: Mid West | G21: 22.95 | H21: 1 | I21: 42 | J21: 22.95 | K21: 20
A22: 21 | B22: 2010-07-04 | C22: No Coupon | D22: PayPal | E22: Delicate Arch | F22: South | G22: 29.95 | H22: 10 | I22: 30 | J22: 299.5 | K22: 45
A23: 22 | B23: 2010-11-08 | C23: Coupon | D23: Visa | E23: Yanaki | F23: Mid West | G23: 19.95 | H23: 1 | I23: 64 | J23: 19.95 | K23: 25
A24: 23 | B24: 2010-06-09 | C24: Coupon | D24: PayPal | E24: Yanaki | F24: Mid West | G24: 19.95 | H24: 5 | I24: 63 | J24: 99.75 | K24: 25
A25: 24 | B25: 2010-03-17 | C25: Coupon | D25: Mastercard | E25: Yanaki | F25: South | G25: 19.95 | H25: 2 | I25: 41 | J25: 39.9 | K25: 25
A26: 25 | B26: 2010-04-07 | C26: No Coupon | D26: Visa | E26: Aspen | F26: East | G26: 21.95 | H26: 3 | I26: 21 | J26: 65.85 | K26: 22
A27: 26 | B27: 2010-01-05 | C27: No Coupon | D27: PayPal | E27: Sunset | F27: East | G27: 24.95 | H27: 1 | I27: 63 | J27: 24.95 | K27: 35
A28: 27 | B28: 2010-07-22 | C28: No Coupon | D28: American Express | E28: Aspen | F28: West | G28: 21.95 | H28: 1 | I28: 54 | J28: 21.95 | K28: 22
A29: 28 | B29: 2010-11-12 | C29: No Coupon | D29: American Express | E29: Yanaki | F29: West | G29: 19.95 | H29: 1 | I29: 18 | J29: 19.95 | K29: 25
A30: 29 | B30: 2010-05-11 | C30: No Coupon | D30: Discover | E30: Carlota | F30: West | G30: 22.95 | H30: 4 | I30: 26 | J30: 91.8 | K30: 20
A31: 30 | B31: 2010-04-14 | C31: No Coupon | D31: PayPal | E31: Aspen | F31: Mid West | G31: 21.95 | H31: 3 | I31: 59 | J31: 65.85 | K31: 22
A32: 31 | B32: 2010-08-11 | C32: No Coupon | D32: Discover | E32: Yanaki | F32: West | G32: 19.95 | H32: 2 | I32: 30 | J32: 39.9 | K32: 25
A33: 32 | B33: 2010-11-14 | C33: No Coupon | D33: Visa | E33: Aspen | F33: West | G33: 21.95 | H33: 2 | I33: 64 | J33: 43.9 | K33: 22
A34: 33 | B34: 2010-01-21 | C34: No Coupon | D34: PayPal | E34: Aspen | F34: West | G34: 21.95 | H34: 3 | I34: 30 | J34: 65.85 | K34: 22
A35: 34 | B35: 2010-04-12 | C35: Coupon | D35: American Express | E35: Aspen | F35: West | G35: 21.95 | H35: 2 | I35: 41 | J35: 43.9 | K35: 22
A36: 35 | B36: 2010-06-04 | C36: Coupon | D36: Mastercard | E36: Yanaki | F36: South | G36: 19.95 | H36: 5 | I36: 23 | J36: 99.75 | K36: 25
A37: 36 | B37: 2010-10-19 | C37: Coupon | D37: Visa | E37: Delicate Arch | F37: West | G37: 29.95 | H37: 1 | I37: 52 | J37: 29.95 | K37: 45
A38: 37 | B38: 2010-09-07 | C38: No Coupon | D38: PayPal | E38: Aspen | F38: West | G38: 21.95 | H38: 3 | I38: 18 | J38: 65.85 | K38: 22
A39: 38 | B39: 2010-09-19 | C39: No Coupon | D39: PayPal | E39: Carlota | F39: West | G39: 22.95 | H39: 1 | I39: 32 | J39: 22.95 | K39: 20
A40: 39 | B40: 2010-01-17 | C40: Coupon | D40: American Express | E40: Yanaki | F40: Mid West | G40: 19.95 | H40: 1 | I40: 22 | J40: 19.95 | K40: 25
A41: 40 | B41: 2010-03-15 | C41: Coupon | D41: PayPal | E41: Yanaki | F41: South | G41: 19.95 | H41: 5 | I41: 29 | J41: 99.75 | K41: 25
A42: 41 | B42: 2010-12-16 | C42: No Coupon | D42: Mastercard | E42: Bellen | F42: Mid West | G42: 24.95 | H42: 5 | I42: 25 | J42: 124.75 | K42: 30
A43: 42 | B43: 2010-07-08 | C43: No Coupon | D43: PayPal | E43: Aspen | F43: West | G43: 21.95 | H43: 1 | I43: 63 | J43: 21.95 | K43: 22
A44: 43 | B44: 2010-05-13 | C44: No Coupon | D44: Mastercard | E44: Sunset | F44: Mid West | G44: 24.95 | H44: 7 | I44: 26 | J44: 174.65 | K44: 35
A45: 44 | B45: 2010-03-03 | C45: Coupon | D45: Discover | E45: Delicate Arch | F45: West | G45: 29.95 | H45: 1 | I45: 31 | J45: 29.95 | K45: 45
A46: 45 | B46: 2010-04-30 | C46: No Coupon | D46: PayPal | E46: Delicate Arch | F46: Mid West | G46: 29.95 | H46: 5 | I46: 23 | J46: 149.75 | K46: 45
A47: 46 | B47: 2010-07-11 | C47: Coupon | D47: PayPal | E47: Delicate Arch | F47: Mid West | G47: 29.95 | H47: 1 | I47: 42 | J47: 29.95 | K47: 45
A48: 47 | B48: 2010-03-22 | C48: Coupon | D48: Visa | E48: Carlota | F48: East | G48: 22.95 | H48: 2 | I48: 28 | J48: 45.9 | K48: 20
A49: 48 | B49: 2010-08-27 | C49: No Coupon | D49: Visa | E49: Carlota | F49: West | G49: 22.95 | H49: 7 | I49: 23 | J49: 160.65 | K49: 20
A50: 49 | B50: 2010-11-16 | C50: No Coupon | D50: Mastercard | E50: Carlota | F50: Mid West | G50: 22.95 | H50: 7 | I50: 19 | J50: 160.65 | K50: 20
A51: 50 | B51: 2010-01-26 | C51: Coupon | D51: Visa | E51: Yanaki | F51: West | G51: 19.95 | H51: 6 | I51: 37 | J51: 119.7 | K51: 25
A52: 51 | B52: 2010-05-06 | C52: No Coupon | D52: Mastercard | E52: Aspen | F52: East | G52: 21.95 | H52: 2 | I52: 38 | J52: 43.9 | K52: 22
A53: 52 | B53: 2010-03-18 | C53: Coupon | D53: Mastercard | E53: Yanaki | F53: Mid West | G53: 19.95 | H53: 6 | I53: 50 | J53: 119.7 | K53: 25
A54: 53 | B54: 2010-04-16 | C54: No Coupon | D54: Discover | E54: Aspen | F54: West | G54: 21.95 | H54: 3 | I54: 26 | J54: 65.85 | K54: 22
A55: 54 | B55: 2010-01-05 | C55: No Coupon | D55: PayPal | E55: Carlota | F55: South | G55: 22.95 | H55: 1 | I55: 33 | J55: 22.95 | K55: 20
A56: 55 | B56: 2010-11-09 | C56: No Coupon | D56: PayPal | E56: Aspen | F56: Mid West | G56: 21.95 | H56: 3 | I56: 59 | J56: 65.85 | K56: 22
A57: 56 | B57: 2010-07-29 | C57: No Coupon | D57: Visa | E57: Aspen | F57: Mid West | G57: 21.95 | H57: 5 | I57: 32 | J57: 109.75 | K57: 22
A58: 57 | B58: 2010-12-07 | C58: No Coupon | D58: Visa | E58: Carlota | F58: Mid West | G58: 22.95 | H58: 5 | I58: 27 | J58: 114.75 | K58: 20
A59: 58 | B59: 2010-11-22 | C59: Coupon | D59: American Express | E59: Bellen | F59: West | G59: 24.95 | H59: 10 | I59: 54 | J59: 249.5 | K59: 30
A60: 59 | B60: 2010-01-10 | C60: No Coupon | D60: PayPal | E60: Aspen | F60: West | G60: 21.95 | H60: 5 | I60: 63 | J60: 109.75 | K60: 22
A61: 60 | B61: 2010-06-01 | C61: No Coupon | D61: Visa | E61: Carlota | F61: East | G61: 22.95 | H61: 5 | I61: 48 | J61: 114.75 | K61: 20
A62: 61 | B62: 2010-05-02 | C62: No Coupon | D62: American Express | E62: Carlota | F62: East | G62: 22.95 | H62: 5 | I62: 29 | J62: 114.75 | K62: 20
A63: 62 | B63: 2010-06-13 | C63: Coupon | D63: Visa | E63: Delicate Arch | F63: West | G63: 29.95 | H63: 4 | I63: 38 | J63: 119.8 | K63: 45
A64: 63 | B64: 2010-02-16 | C64: Coupon | D64: Mastercard | E64: Delicate Arch | F64: East | G64: 29.95 | H64: 1 | I64: 24 | J64: 29.95 | K64: 45
A65: 64 | B65: 2010-08-02 | C65: No Coupon | D65: Visa | E65: Carlota | F65: West | G65: 22.95 | H65: 5 | I65: 51 | J65: 114.75 | K65: 20
A66: 65 | B66: 2010-11-01 | C66: Coupon | D66: Mastercard | E66: Delicate Arch | F66: West | G66: 29.95 | H66: 7 | I66: 25 | J66: 209.65 | K66: 45
A67: 66 | B67: 2010-11-08 | C67: No Coupon | D67: Visa | E67: Carlota | F67: West | G67: 22.95 | H67: 5 | I67: 65 | J67: 114.75 | K67: 20
A68: 67 | B68: 2010-08-17 | C68: No Coupon | D68: PayPal | E68: Yanaki | F68: Mid West | G68: 19.95 | H68: 3 | I68: 35 | J68: 59.85 | K68: 25
A69: 68 | B69: 2010-09-27 | C69: No Coupon | D69: Mastercard | E69: Sunset | F69: East | G69: 24.95 | H69: 5 | I69: 35 | J69: 124.75 | K69: 35
A70: 69 | B70: 2010-01-09 | C70: No Coupon | D70: Visa | E70: Yanaki | F70: Mid West | G70: 19.95 | H70: 2 | I70: 21 | J70: 39.9 | K70: 25
A71: 70 | B71: 2010-10-10 | C71: No Coupon | D71: Mastercard | E71: Sunset | F71: West | G71: 24.95 | H71: 5 | I71: 47 | J71: 124.75 | K71: 35
A72: 71 | B72: 2010-12-31 | C72: No Coupon | D72: Discover | E72: Sunset | F72: East | G72: 24.95 | H72: 1 | I72: 62 | J72: 24.95 | K72: 35
A73: 72 | B73: 2010-12-06 | C73: No Coupon | D73: PayPal | E73: Carlota | F73: East | G73: 22.95 | H73: 1 | I73: 63 | J73: 22.95 | K73: 20
A74: 73 | B74: 2010-03-18 | C74: No Coupon | D74: American Express | E74: Bellen | F74: Mid West | G74: 24.95 | H74: 10 | I74: 23 | J74: 249.5 | K74: 30
A75: 74 | B75: 2010-03-22 | C75: No Coupon | D75: Visa | E75: Yanaki | F75: South | G75: 19.95 | H75: 3 | I75: 59 | J75: 59.85 | K75: 25
A76: 75 | B76: 2010-09-14 | C76: Coupon | D76: Visa | E76: Aspen | F76: West | G76: 21.95 | H76: 2 | I76: 48 | J76: 43.9 | K76: 22
A77: 76 | B77: 2010-02-09 | C77: No Coupon | D77: Mastercard | E77: Yanaki | F77: South | G77: 19.95 | H77: 1 | I77: 57 | J77: 19.95 | K77: 25
A78: 77 | B78: 2010-03-24 | C78: No Coupon | D78: Discover | E78: Delicate Arch | F78: Mid West | G78: 29.95 | H78: 1 | I78: 19 | J78: 29.95 | K78: 45
A79: 78 | B79: 2010-07-28 | C79: Coupon | D79: Mastercard | E79: Yanaki | F79: Mid West | G79: 19.95 | H79: 1 | I79: 48 | J79: 19.95 | K79: 25
A80: 79 | B80: 2010-08-26 | C80: Coupon | D80: Mastercard | E80: Aspen | F80: South | G80: 21.95 | H80: 3 | I80: 21 | J80: 65.85 | K80: 22
A81: 80 | B81: 2010-03-05 | C81: No Coupon | D81: American Express | E81: Carlota | F81: West | G81: 22.95 | H81: 1 | I81: 40 | J81: 22.95 | K81: 20
A82: 81 | B82: 2010-08-18 | C82: No Coupon | D82: Visa | E82: Yanaki | F82: Mid West | G82: 19.95 | H82: 4 | I82: 25 | J82: 79.8 | K82: 25
A83: 82 | B83: 2010-11-02 | C83: Coupon | D83: Mastercard | E83: Yanaki | F83: South | G83: 19.95 | H83: 4 | I83: 59 | J83: 79.8 | K83: 25
A84: 83 | B84: 2010-12-19 | C84: No Coupon | D84: Visa | E84: Carlota | F84: West | G84: 22.95 | H84: 5 | I84: 57 | J84: 114.75 | K84: 20
A85: 84 | B85: 2010-07-05 | C85: Coupon | D85: Discover | E85: Carlota | F85: West | G85: 22.95 | H85: 1 | I85: 56 | J85: 22.95 | K85: 20
A86: 85 | B86: 2010-04-16 | C86: No Coupon | D86: Visa | E86: Yanaki | F86: West | G86: 19.95 | H86: 1 | I86: 19 | J86: 19.95 | K86: 25
A87: 86 | B87: 2010-12-23 | C87: No Coupon | D87: Visa | E87: Aspen | F87: Mid West | G87: 21.95 | H87: 5 | I87: 54 | J87: 109.75 | K87: 22
A88: 87 | B88: 2010-05-29 | C88: No Coupon | D88: PayPal | E88: Delicate Arch | F88: Mid West | G88: 29.95 | H88: 2 | I88: 65 | J88: 59.9 | K88: 45
A89: 88 | B89: 2010-05-01 | C89: Coupon | D89: PayPal | E89: Aspen | F89: West | G89: 21.95 | H89: 2 | I89: 25 | J89: 43.9 | K89: 22
A90: 89 | B90: 2010-07-03 | C90: No Coupon | D90: American Express | E90: Yanaki | F90: West | G90: 19.95 | H90: 2 | I90: 30 | J90: 39.9 | K90: 25
A91: 90 | B91: 2010-08-12 | C91: No Coupon | D91: Mastercard | E91: Delicate Arch | F91: West | G91: 29.95 | H91: 7 | I91: 57 | J91: 209.65 | K91: 45
A92: 91 | B92: 2010-06-21 | C92: Coupon | D92: PayPal | E92: Yanaki | F92: West | G92: 19.95 | H92: 1 | I92: 43 | J92: 19.95 | K92: 25
A93: 92 | B93: 2010-12-15 | C93: No Coupon | D93: Mastercard | E93: Yanaki | F93: South | G93: 19.95 | H93: 4 | I93: 44 | J93: 79.8 | K93: 25
A94: 93 | B94: 2010-05-25 | C94: No Coupon | D94: PayPal | E94: Bellen | F94: East | G94: 24.95 | H94: 5 | I94: 21 | J94: 124.75 | K94: 30
A95: 94 | B95: 2010-03-23 | C95: No Coupon | D95: PayPal | E95: Bellen | F95: West | G95: 24.95 | H95: 1 | I95: 20 | J95: 24.95 | K95: 30
A96: 95 | B96: 2010-01-22 | C96: Coupon | D96: Visa | E96: Carlota | F96: West | G96: 22.95 | H96: 7 | I96: 49 | J96: 160.65 | K96: 20
A97: 96 | B97: 2010-09-26 | C97: No Coupon | D97: Mastercard | E97: Aspen | F97: South | G97: 21.95 | H97: 3 | I97: 37 | J97: 65.85 | K97: 22
A98: 97 | B98: 2010-12-27 | C98: No Coupon | D98: PayPal | E98: Carlota | F98: West | G98: 22.95 | H98: 6 | I98: 26 | J98: 137.7 | K98: 20
A99: 98 | B99: 2010-07-24 | C99: No Coupon | D99: Mastercard | E99: Delicate Arch | F99: East | G99: 29.95 | H99: 1 | I99: 62 | J99: 29.95 | K99: 45
A100: 99 | B100: 2010-04-27 | C100: No Coupon | D100: PayPal | E100: Yanaki | F100: West | G100: 19.95 | H100: 6 | I100: 38 | J100: 119.7 | K100: 25
A101: 100 | B101: 2010-05-07 | C101: No Coupon | D101: Visa | E101: Yanaki | F101: West | G101: 19.95 | H101: 1 | I101: 55 | J101: 19.95 | K101: 25
A102: 101 | B102: 2010-03-03 | C102: Coupon | D102: American Express | E102: Yanaki | F102: East | G102: 19.95 | H102: 2 | I102: 24 | J102: 39.9 | K102: 25
A103: 102 | B103: 2010-03-23 | C103: No Coupon | D103: PayPal | E103: Carlota | F103: Mid West | G103: 22.95 | H103: 5 | I103: 30 | J103: 114.75 | K103: 20
A104: 103 | B104: 2010-12-05 | C104: Coupon | D104: Visa | E104: Aspen | F104: Mid West | G104: 21.95 | H104: 1 | I104: 39 | J104: 21.95 | K104: 22
A105: 104 | B105: 2010-11-11 | C105: Coupon | D105: PayPal | E105: Delicate Arch | F105: South | G105: 29.95 | H105: 6 | I105: 59 | J105: 179.7 | K105: 45
A106: 105 | B106: 2010-04-13 | C106: No Coupon | D106: Discover | E106: Yanaki | F106: East | G106: 19.95 | H106: 2 | I106: 26 | J106: 39.9 | K106: 25
A107: 106 | B107: 2010-12-13 | C107: No Coupon | D107: Visa | E107: Sunset | F107: Mid West | G107: 24.95 | H107: 1 | I107: 33 | J107: 24.95 | K107: 35
A108: 107 | B108: 2010-10-05 | C108: No Coupon | D108: Visa | E108: Bellen | F108: West | G108: 24.95 | H108: 4 | I108: 20 | J108: 99.8 | K108: 30
A109: 108 | B109: 2010-01-02 | C109: No Coupon | D109: Visa | E109: Aspen | F109: West | G109: 21.95 | H109: 4 | I109: 18 | J109: 87.8 | K109: 22
A110: 109 | B110: 2010-11-04 | C110: Coupon | D110: PayPal | E110: Yanaki | F110: East | G110: 19.95 | H110: 2 | I110: 19 | J110: 39.9 | K110: 25
A111: 110 | B111: 2010-04-29 | C111: No Coupon | D111: PayPal | E111: Aspen | F111: West | G111: 21.95 | H111: 3 | I111: 61 | J111: 65.85 | K111: 22
A112: 111 | B112: 2010-10-02 | C112: Coupon | D112: PayPal | E112: Yanaki | F112: East | G112: 19.95 | H112: 10 | I112: 39 | J112: 199.5 | K112: 25
A113: 112 | B113: 2010-12-26 | C113: Coupon | D113: Discover | E113: Aspen | F113: West | G113: 21.95 | H113: 1 | I113: 52 | J113: 21.95 | K113: 22
A114: 113 | B114: 2010-11-05 | C114: No Coupon | D114: Visa | E114: Sunset | F114: West | G114: 24.95 | H114: 5 | I114: 20 | J114: 124.75 | K114: 35
A115: 114 | B115: 2010-11-15 | C115: No Coupon | D115: Visa | E115: Delicate Arch | F115: West | G115: 29.95 | H115: 1 | I115: 50 | J115: 29.95 | K115: 45
A116: 115 | B116: 2010-06-27 | C116: Coupon | D116: PayPal | E116: Aspen | F116: South | G116: 21.95 | H116: 1 | I116: 29 | J116: 21.95 | K116: 22
A117: 116 | B117: 2010-04-21 | C117: No Coupon | D117: Visa | E117: Delicate Arch | F117: West | G117: 29.95 | H117: 4 | I117: 55 | J117: 119.8 | K117: 45
A118: 117 | B118: 2010-09-25 | C118: No Coupon | D118: American Express | E118: Delicate Arch | F118: West | G118: 29.95 | H118: 3 | I118: 18 | J118: 89.85 | K118: 45
A119: 118 | B119: 2010-01-24 | C119: Coupon | D119: Mastercard | E119: Aspen | F119: Mid West | G119: 21.95 | H119: 3 | I119: 39 | J119: 65.85 | K119: 22
A120: 119 | B120: 2010-01-04 | C120: No Coupon | D120: Visa | E120: Carlota | F120: South | G120: 22.95 | H120: 4 | I120: 35 | J120: 91.8 | K120: 20
A121: 120 | B121: 2010-05-06 | C121: Coupon | D121: American Express | E121: Bellen | F121: South | G121: 24.95 | H121: 6 | I121: 38 | J121: 149.7 | K121: 30
A122: 121 | B122: 2010-06-22 | C122: No Coupon | D122: Visa | E122: Yanaki | F122: East | G122: 19.95 | H122: 3 | I122: 20 | J122: 59.85 | K122: 25
A123: 122 | B123: 2010-07-12 | C123: No Coupon | D123: Discover | E123: Aspen | F123: Mid West | G123: 21.95 | H123: 6 | I123: 60 | J123: 131.7 | K123: 22
A124: 123 | B124: 2010-05-03 | C124: No Coupon | D124: Visa | E124: Sunset | F124: Mid West | G124: 24.95 | H124: 2 | I124: 61 | J124: 49.9 | K124: 35
A125: 124 | B125: 2010-03-09 | C125: Coupon | D125: PayPal | E125: Aspen | F125: West | G125: 21.95 | H125: 2 | I125: 62 | J125: 43.9 | K125: 22
A126: 125 | B126: 2010-03-02 | C126: No Coupon | D126: Visa | E126: Yanaki | F126: Mid West | G126: 19.95 | H126: 1 | I126: 21 | J126: 19.95 | K126: 25
A127: 126 | B127: 2010-03-28 | C127: No Coupon | D127: Discover | E127: Aspen | F127: South | G127: 21.95 | H127: 1 | I127: 40 | J127: 21.95 | K127: 22
A128: 127 | B128: 2010-01-15 | C128: No Coupon | D128: Visa | E128: Bellen | F128: West | G128: 24.95 | H128: 1 | I128: 25 | J128: 24.95 | K128: 30
A129: 128 | B129: 2010-11-18 | C129: No Coupon | D129: Mastercard | E129: Yanaki | F129: West | G129: 19.95 | H129: 2 | I129: 50 | J129: 39.9 | K129: 25
A130: 129 | B130: 2010-03-27 | C130: No Coupon | D130: Visa | E130: Bellen | F130: West | G130: 24.95 | H130: 1 | I130: 24 | J130: 24.95 | K130: 30
A131: 130 | B131: 2010-08-11 | C131: Coupon | D131: PayPal | E131: Carlota | F131: West | G131: 22.95 | H131: 5 | I131: 28 | J131: 114.75 | K131: 20
A132: 131 | B132: 2010-12-24 | C132: No Coupon | D132: Visa | E132: Yanaki | F132: Mid West | G132: 19.95 | H132: 6 | I132: 22 | J132: 119.7 | K132: 25
A133: 132 | B133: 2010-11-27 | C133: No Coupon | D133: PayPal | E133: Aspen | F133: West | G133: 21.95 | H133: 2 | I133: 22 | J133: 43.9 | K133: 22
A134: 133 | B134: 2010-03-12 | C134: No Coupon | D134: Visa | E134: Bellen | F134: West | G134: 24.95 | H134: 1 | I134: 27 | J134: 24.95 | K134: 30
A135: 134 | B135: 2010-09-16 | C135: Coupon | D135: Visa | E135: Sunset | F135: West | G135: 24.95 | H135: 7 | I135: 54 | J135: 174.65 | K135: 35
A136: 135 | B136: 2010-02-01 | C136: No Coupon | D136: Mastercard | E136: Bellen | F136: West | G136: 24.95 | H136: 1 | I136: 25 | J136: 24.95 | K136: 30
A137: 136 | B137: 2010-07-03 | C137: No Coupon | D137: Visa | E137: Sunset | F137: Mid West | G137: 24.95 | H137: 2 | I137: 25 | J137: 49.9 | K137: 35
A138: 137 | B138: 2010-08-30 | C138: No Coupon | D138: PayPal | E138: Yanaki | F138: East | G138: 19.95 | H138: 1 | I138: 30 | J138: 19.95 | K138: 25
A139: 138 | B139: 2010-09-18 | C139: Coupon | D139: Mastercard | E139: Yanaki | F139: South | G139: 19.95 | H139: 2 | I139: 59 | J139: 39.9 | K139: 25
A140: 139 | B140: 2010-11-24 | C140: No Coupon | D140: Visa | E140: Carlota | F140: West | G140: 22.95 | H140: 2 | I140: 51 | J140: 45.9 | K140: 20
A141: 140 | B141: 2010-12-22 | C141: No Coupon | D141: Visa | E141: Delicate Arch | F141: West | G141: 29.95 | H141: 6 | I141: 38 | J141: 179.7 | K141: 45
A142: 141 | B142: 2010-04-23 | C142: No Coupon | D142: PayPal | E142: Carlota | F142: South | G142: 22.95 | H142: 7 | I142: 28 | J142: 160.65 | K142: 20
A143: 142 | B143: 2010-11-18 | C143: Coupon | D143: Discover | E143: Aspen | F143: West | G143: 21.95 | H143: 1 | I143: 30 | J143: 21.95 | K143: 22
A144: 143 | B144: 2010-10-28 | C144: No Coupon | D144: Visa | E144: Bellen | F144: South | G144: 24.95 | H144: 5 | I144: 43 | J144: 124.75 | K144: 30
A145: 144 | B145: 2010-08-14 | C145: No Coupon | D145: PayPal | E145: Delicate Arch | F145: West | G145: 29.95 | H145: 3 | I145: 42 | J145: 89.85 | K145: 45
A146: 145 | B146: 2010-05-05 | C146: No Coupon | D146: Visa | E146: Bellen | F146: Mid West | G146: 24.95 | H146: 2 | I146: 24 | J146: 49.9 | K146: 30
A147: 146 | B147: 2010-08-25 | C147: Coupon | D147: Visa | E147: Carlota | F147: Mid West | G147: 22.95 | H147: 1 | I147: 47 | J147: 22.95 | K147: 20
A148: 147 | B148: 2010-10-25 | C148: No Coupon | D148: PayPal | E148: Yanaki | F148: Mid West | G148: 19.95 | H148: 1 | I148: 23 | J148: 19.95 | K148: 25
A149: 148 | B149: 2010-07-31 | C149: No Coupon | D149: PayPal | E149: Yanaki | F149: East | G149: 19.95 | H149: 5 | I149: 59 | J149: 99.75 | K149: 25
A150: 149 | B150: 2010-07-25 | C150: Coupon | D150: Mastercard | E150: Carlota | F150: West | G150: 22.95 | H150: 4 | I150: 22 | J150: 91.8 | K150: 20
A151: 150 | B151: 2010-09-30 | C151: Coupon | D151: Visa | E151: Bellen | F151: Mid West | G151: 24.95 | H151: 2 | I151: 27 | J151: 49.9 | K151: 30
A152: 151 | B152: 2010-10-03 | C152: No Coupon | D152: Discover | E152: Aspen | F152: East | G152: 21.95 | H152: 1 | I152: 65 | J152: 21.95 | K152: 22
A153: 152 | B153: 2010-04-01 | C153: No Coupon | D153: Mastercard | E153: Carlota | F153: Mid West | G153: 22.95 | H153: 2 | I153: 27 | J153: 45.9 | K153: 20
A154: 153 | B154: 2010-12-15 | C154: No Coupon | D154: American Express | E154: Carlota | F154: East | G154: 22.95 | H154: 1 | I154: 27 | J154: 22.95 | K154: 20
A155: 154 | B155: 2010-01-07 | C155: No Coupon | D155: PayPal | E155: Carlota | F155: West | G155: 22.95 | H155: 2 | I155: 28 | J155: 45.9 | K155: 20
A156: 155 | B156: 2010-07-23 | C156: Coupon | D156: PayPal | E156: Bellen | F156: West | G156: 24.95 | H156: 1 | I156: 22 | J156: 24.95 | K156: 30
A157: 156 | B157: 2010-03-16 | C157: No Coupon | D157: PayPal | E157: Yanaki | F157: East | G157: 19.95 | H157: 2 | I157: 42 | J157: 39.9 | K157: 25
A158: 157 | B158: 2010-12-04 | C158: No Coupon | D158: American Express | E158: Delicate Arch | F158: East | G158: 29.95 | H158: 6 | I158: 25 | J158: 179.7 | K158: 45
A159: 158 | B159: 2010-01-08 | C159: Coupon | D159: Mastercard | E159: Aspen | F159: West | G159: 21.95 | H159: 1 | I159: 41 | J159: 21.95 | K159: 22
A160: 159 | B160: 2010-06-02 | C160: Coupon | D160: PayPal | E160: Bellen | F160: West | G160: 24.95 | H160: 1 | I160: 46 | J160: 24.95 | K160: 30
A161: 160 | B161: 2010-08-18 | C161: No Coupon | D161: Discover | E161: Sunset | F161: West | G161: 24.95 | H161: 3 | I161: 41 | J161: 74.85 | K161: 35
A162: 161 | B162: 2010-04-24 | C162: No Coupon | D162: Mastercard | E162: Yanaki | F162: West | G162: 19.95 | H162: 4 | I162: 29 | J162: 79.8 | K162: 25
A163: 162 | B163: 2010-12-01 | C163: No Coupon | D163: Visa | E163: Yanaki | F163: Mid West | G163: 19.95 | H163: 1 | I163: 50 | J163: 19.95 | K163: 25
A164: 163 | B164: 2010-12-31 | C164: Coupon | D164: Visa | E164: Carlota | F164: Mid West | G164: 22.95 | H164: 1 | I164: 50 | J164: 22.95 | K164: 20
A165: 164 | B165: 2010-04-30 | C165: Coupon | D165: PayPal | E165: Carlota | F165: Mid West | G165: 22.95 | H165: 2 | I165: 34 | J165: 45.9 | K165: 20
A166: 165 | B166: 2010-03-16 | C166: Coupon | D166: American Express | E166: Aspen | F166: West | G166: 21.95 | H166: 3 | I166: 24 | J166: 65.85 | K166: 22
A167: 166 | B167: 2010-01-28 | C167: No Coupon | D167: Mastercard | E167: Yanaki | F167: West | G167: 19.95 | H167: 7 | I167: 29 | J167: 139.65 | K167: 25
A168: 167 | B168: 2010-08-03 | C168: No Coupon | D168: Mastercard | E168: Carlota | F168: Mid West | G168: 22.95 | H168: 1 | I168: 35 | J168: 22.95 | K168: 20
A169: 168 | B169: 2010-11-11 | C169: No Coupon | D169: Visa | E169: Yanaki | F169: West | G169: 19.95 | H169: 2 | I169: 24 | J169: 39.9 | K169: 25
A170: 169 | B170: 2010-12-13 | C170: Coupon | D170: Visa | E170: Aspen | F170: South | G170: 21.95 | H170: 5 | I170: 23 | J170: 109.75 | K170: 22
A171: 170 | B171: 2010-03-27 | C171: No Coupon | D171: PayPal | E171: Carlota | F171: Mid West | G171: 22.95 | H171: 7 | I171: 31 | J171: 160.65 | K171: 20
A172: 171 | B172: 2010-10-08 | C172: Coupon | D172: PayPal | E172: Bellen | F172: Mid West | G172: 24.95 | H172: 2 | I172: 24 | J172: 49.9 | K172: 30
A173: 172 | B173: 2010-08-03 | C173: No Coupon | D173: Visa | E173: Carlota | F173: Mid West | G173: 22.95 | H173: 1 | I173: 30 | J173: 22.95 | K173: 20
A174: 173 | B174: 2010-03-10 | C174: Coupon | D174: Visa | E174: Carlota | F174: West | G174: 22.95 | H174: 2 | I174: 22 | J174: 45.9 | K174: 20
A175: 174 | B175: 2010-03-02 | C175: No Coupon | D175: Visa | E175: Carlota | F175: East | G175: 22.95 | H175: 3 | I175: 43 | J175: 68.85 | K175: 20
A176: 175 | B176: 2010-01-26 | C176: No Coupon | D176: Visa | E176: Carlota | F176: West | G176: 22.95 | H176: 10 | I176: 55 | J176: 229.5 | K176: 20
A177: 176 | B177: 2010-05-06 | C177: No Coupon | D177: American Express | E177: Delicate Arch | F177: West | G177: 29.95 | H177: 1 | I177: 38 | J177: 29.95 | K177: 45
A178: 177 | B178: 2010-03-10 | C178: Coupon | D178: Visa | E178: Yanaki | F178: West | G178: 19.95 | H178: 2 | I178: 28 | J178: 39.9 | K178: 25
A179: 178 | B179: 2010-11-18 | C179: Coupon | D179: PayPal | E179: Aspen | F179: Mid West | G179: 21.95 | H179: 2 | I179: 30 | J179: 43.9 | K179: 22
A180: 179 | B180: 2010-01-30 | C180: Coupon | D180: Discover | E180: Yanaki | F180: West | G180: 19.95 | H180: 1 | I180: 35 | J180: 19.95 | K180: 25
A181: 180 | B181: 2010-07-02 | C181: No Coupon | D181: Visa | E181: Delicate Arch | F181: West | G181: 29.95 | H181: 2 | I181: 41 | J181: 59.9 | K181: 45
A182: 181 | B182: 2010-10-13 | C182: Coupon | D182: Discover | E182: Yanaki | F182: East | G182: 19.95 | H182: 5 | I182: 28 | J182: 99.75 | K182: 25
A183: 182 | B183: 2010-02-07 | C183: No Coupon | D183: Discover | E183: Bellen | F183: Mid West | G183: 24.95 | H183: 7 | I183: 65 | J183: 174.65 | K183: 30
A184: 183 | B184: 2010-06-05 | C184: No Coupon | D184: Mastercard | E184: Aspen | F184: West | G184: 21.95 | H184: 3 | I184: 20 | J184: 65.85 | K184: 22
A185: 184 | B185: 2010-11-02 | C185: No Coupon | D185: Visa | E185: Sunset | F185: Mid West | G185: 24.95 | H185: 5 | I185: 39 | J185: 124.75 | K185: 35
A186: 185 | B186: 2010-12-13 | C186: No Coupon | D186: Visa | E186: Aspen | F186: East | G186: 21.95 | H186: 4 | I186: 19 | J186: 87.8 | K186: 22
A187: 186 | B187: 2010-10-23 | C187: No Coupon | D187: Visa | E187: Carlota | F187: West | G187: 22.95 | H187: 10 | I187: 64 | J187: 229.5 | K187: 20
A188: 187 | B188: 2010-12-22 | C188: Coupon | D188: PayPal | E188: Yanaki | F188: South | G188: 19.95 | H188: 5 | I188: 42 | J188: 99.75 | K188: 25
A189: 188 | B189: 2010-08-21 | C189: Coupon | D189: PayPal | E189: Yanaki | F189: Mid West | G189: 19.95 | H189: 1 | I189: 24 | J189: 19.95 | K189: 25
A190: 189 | B190: 2010-08-28 | C190: Coupon | D190: PayPal | E190: Yanaki | F190: Mid West | G190: 19.95 | H190: 1 | I190: 24 | J190: 19.95 | K190: 25
A191: 190 | B191: 2010-06-20 | C191: No Coupon | D191: American Express | E191: Bellen | F191: Mid West | G191: 24.95 | H191: 4 | I191: 18 | J191: 99.8 | K191: 30
A192: 191 | B192: 2010-04-30 | C192: Coupon | D192: Mastercard | E192: Bellen | F192: East | G192: 24.95 | H192: 1 | I192: 36 | J192: 24.95 | K192: 30
A193: 192 | B193: 2010-10-14 | C193: No Coupon | D193: Mastercard | E193: Carlota | F193: Mid West | G193: 22.95 | H193: 5 | I193: 61 | J193: 114.75 | K193: 20
A194: 193 | B194: 2010-08-04 | C194: No Coupon | D194: Visa | E194: Yanaki | F194: West | G194: 19.95 | H194: 3 | I194: 22 | J194: 59.85 | K194: 25
A195: 194 | B195: 2010-10-28 | C195: Coupon | D195: PayPal | E195: Aspen | F195: West | G195: 21.95 | H195: 2 | I195: 55 | J195: 43.9 | K195: 22
A196: 195 | B196: 2010-11-04 | C196: No Coupon | D196: American Express | E196: Sunset | F196: West | G196: 24.95 | H196: 3 | I196: 27 | J196: 74.85 | K196: 35
A197: 196 | B197: 2010-01-05 | C197: No Coupon | D197: PayPal | E197: Yanaki | F197: Mid West | G197: 19.95 | H197: 1 | I197: 49 | J197: 19.95 | K197: 25
A198: 197 | B198: 2010-12-11 | C198: Coupon | D198: Visa | E198: Carlota | F198: West | G198: 22.95 | H198: 1 | I198: 29 | J198: 22.95 | K198: 20
A199: 198 | B199: 2010-07-18 | C199: No Coupon | D199: PayPal | E199: Aspen | F199: West | G199: 21.95 | H199: 7 | I199: 33 | J199: 153.65 | K199: 22
A200: 199 | B200: 2010-05-31 | C200: No Coupon | D200: Visa | E200: Yanaki | F200: West | G200: 19.95 | H200: 2 | I200: 52 | J200: 39.9 | K200: 25
... 1 more rows

Sheet ScatterSummary
